{"text_format":"1","workbook":"xlsx","n_sheets":4,"sheets":["Base de données","Maps","Matchups","Fonds"],"not_rendered":{"charts":0,"images":0,"macros":1,"external_links":0,"defined_names":3,"comments":0,"pivot_tables":0},"unopened":[],"bounds":{"document_bytes":16777216,"sheet_cells":100000,"rows_first":2000,"rows_last":500,"rows_between":2000,"halvings":0,"cell_chars":16384,"cell_head_chars":4096},"cells_cut":0,"cells_raw":0,"read":"whole","date_system":"1900"}

{"sheet":"Base de données","index":0,"n_rows":540,"n_cols":70,"rows_kept":540,"cut":false,"hidden":false,"merged":[]}
["Nom","Upgrade","Family","Tiers","Power","Type","Attack","Health","Image","Image Miniature","ALL","PVE & PVP","PVE","PVP","Pure Fire","Pure Shadow","Pure Frost","Pure Nature","Fire/Shadow","Fire/Frost","Frost/Fire","Fire/Nature","Shadow/Fire","Shadow/Frost","Shadow/Nature","Frost/Nature","Nature/Frost","ASCENSION Map 1","ASCENSION Map 2","ASCENSION Map 3","BAD HARVEST","BEHIND ENEMY LINES","BLIGHT","CONVOY","CONVOY Support","CRUSADE","CRUSADE Support","DEFENDING HOPE","EMPIRE","ENCOUNTERS WITH TWILIGHT","INTRODUCTION","KING OF THE GIANTS","KING OF THE GIANTS Support","MO","NIGHTMARE SHARD","NIGHTMARE SHARD Support","NIGHTMARE'S END","NIGHTMARE'S END Support","OCEAN","ORACLE","PASSAGE TO DARKNESS","RAVEN'S END","RAVEN'S END Support","RPVE Shadow BloodHorn","RPVE Fire BloodHorn","SIEGE OF HOPE","SLAVE MASTER","SLAVE MASTER Support","SUNBRIDGE Left","SUNBRIDGE Right","THE DWARVEN RIDDLE","THE DWARVEN RIDDLE Support","THE GUNS OF LYR","THE GUNS OF LYR Support","THE INSANE GOD","THE INSANE GOD Support","THE SOULTREE","THE TREASURE FLEET","TITANS","TITANS Support"]
["Abomination (Frost)","BEHIND ENEMY LINES","Twilight","Tiers 4",220,"Unit",5270,5550,"https://cardbase.skylords.eu/lrms/GetMediaData?id=57b76b501f73e816c7115352",null,1,{"$f":"SUM(BDD[[#This Row],[PVP]],BDD[[#This Row],[PVE]])","v":1},{"$f":"SUM(BDD[[#This Row],[BAD HARVEST]:[TITANS Support]])","v":1},{"$f":"SUM(BDD[[#This Row],[Pure Fire]:[Nature/Frost]])","v":0},null,null,null,null,null,null,null,null,null,null,null,null,null,null,null,null,null,null,1]
["Abomination (Shadow)","NIGHTMARE'S END","Twilight","Tiers 4",220,"Unit",5270,5550,"https://cardbase.skylords.eu/lrms/GetMediaData?id=57b76b501f73e816c7115354",null,1,{"$f":"SUM(BDD[[#This Row],[PVP]],BDD[[#This Row],[PVE]])","v":0},{"$f":"SUM(BDD[[#This Row],[BAD HARVEST]:[TITANS Support]])","v":0},{"$f":"SUM(BDD[[#This Row],[Pure Fire]:[Nature/Frost]])","v":0}]
["Abyssal Warder (Fire)","THE TITANS","Nature","Tiers 3",250,"Unit",2500,2500,"https://cardbase.skylords.eu/lrms/GetMediaData?id=57b76b501f73e816c7115358",null,1,{"$f":"SUM(BDD[[#This Row],[PVP]],BDD[[#This Row],[PVE]])","v":1},{"$f":"SUM(BDD[[#This Row],[BAD HARVEST]:[TITANS Support]])","v":0},{"$f":"SUM(BDD[[#This Row],[Pure Fire]:[Nature/Frost]])","v":1},null,null,null,1]
["Abyssal Warder (Frost)","THE SOULTREE","Nature","Tiers 3",250,"Unit",2500,2500,"https://cardbase.skylords.eu/lrms/GetMediaData?id=57b76b501f73e816c7115356",null,1,{"$f":"SUM(BDD[[#This Row],[PVP]],BDD[[#This Row],[PVE]])","v":0},{"$f":"SUM(BDD[[#This Row],[BAD HARVEST]:[TITANS Support]])","v":0},{"$f":"SUM(BDD[[#This Row],[Pure Fire]:[Nature/Frost]])","v":0}]
["Aggressor (Frost)","KING OF THE GIANTS","Stonekin","Tiers 2",150,"Unit",700,1075,"https://cardbase.skylords.eu/lrms/GetMediaData?id=57b76b501f73e816c711535c",null,1,{"$f":"SUM(BDD[[#This Row],[PVP]],BDD[[#This Row],[PVE]])","v":1},{"$f":"SUM(BDD[[#This Row],[BAD HARVEST]:[TITANS Support]])","v":0},{"$f":"SUM(BDD[[#This Row],[Pure Fire]:[Nature/Frost]])","v":1},null,null,null,null,null,null,null,null,null,null,null,null,1]
["Aggressor (Nature)","THE TITANS","Stonekin","Tiers 2",150,"Unit",700,1075,"https://cardbase.skylords.eu/lrms/GetMediaData?id=57b76b501f73e816c711535a",null,1,{"$f":"SUM(BDD[[#This Row],[PVP]],BDD[[#This Row],[PVE]])","v":1},{"$f":"SUM(BDD[[#This Row],[BAD HARVEST]:[TITANS Support]])","v":0},{"$f":"SUM(BDD[[#This Row],[Pure Fire]:[Nature/Frost]])","v":1},null,null,null,null,null,null,null,null,null,null,null,1]
["Altar of Chaos","SUNBRIDGE","Shadow","Tiers 3",250,"Building",null,5200,"https://cardbase.skylords.eu/lrms/GetMediaData?id=57b76b501f73e816c711535e",null,1,{"$f":"SUM(BDD[[#This Row],[PVP]],BDD[[#This Row],[PVE]])","v":0},{"$f":"SUM(BDD[[#This Row],[BAD HARVEST]:[TITANS Support]])","v":0},{"$f":"SUM(BDD[[#This Row],[Pure Fire]:[Nature/Frost]])","v":0}]
["Altar of Nihil","RAVEN'S END","Shadow","Tiers 4",80,"Building",null,1600,"https://cardbase.skylords.eu/lrms/GetMediaData?id=57b76b501f73e816c7115360",null,1,{"$f":"SUM(BDD[[#This Row],[PVP]],BDD[[#This Row],[PVE]])","v":0},{"$f":"SUM(BDD[[#This Row],[BAD HARVEST]:[TITANS Support]])","v":0},{"$f":"SUM(BDD[[#This Row],[Pure Fire]:[Nature/Frost]])","v":0}]
["Amazon (Frost)","ENCOUNTERS WITH TWILIGHT","Nature","Tiers 1",80,"Unit",575,720,"https://cardbase.skylords.eu/lrms/GetMediaData?id=57b76b501f73e816c7115362",null,1,{"$f":"SUM(BDD[[#This Row],[PVP]],BDD[[#This Row],[PVE]])","v":4},{"$f":"SUM(BDD[[#This Row],[BAD HARVEST]:[TITANS Support]])","v":4},{"$f":"SUM(BDD[[#This Row],[Pure Fire]:[Nature/Frost]])","v":0},null,null,null,null,null,null,null,null,null,null,null,null,null,null,null,null,null,null,null,null,null,null,1,null,null,null,null,1,1,null,null,null,null,null,null,null,null,null,null,null,null,null,null,null,null,null,null,null,null,null,null,null,null,1]
["Amazon (Nature)","CRUSADE","Nature","Tiers 1",80,"Unit",575,720,"https://cardbase.skylords.eu/lrms/GetMediaData?id=57b76b501f73e816c7115364",null,1,{"$f":"SUM(BDD[[#This Row],[PVP]],BDD[[#This Row],[PVE]])","v":0},{"$f":"SUM(BDD[[#This Row],[BAD HARVEST]:[TITANS Support]])","v":0},{"$f":"SUM(BDD[[#This Row],[Pure Fire]:[Nature/Frost]])","v":0}]
["Amii Monument","CONVOY","Amii","Tiers 3",230,"Building",null,1700,"https://cardbase.skylords.eu/lrms/GetMediaData?id=57b8d0731f73e82f8ff28f02",null,1,{"$f":"SUM(BDD[[#This Row],[PVP]],BDD[[#This Row],[PVE]])","v":16},{"$f":"SUM(BDD[[#This Row],[BAD HARVEST]:[TITANS Support]])","v":16},{"$f":"SUM(BDD[[#This Row],[Pure Fire]:[Nature/Frost]])","v":0},null,null,null,null,null,null,null,null,null,null,null,null,null,null,null,null,1,null,null,1,null,null,null,null,null,null,null,1,null,1,1,null,1,1,null,1,null,null,null,null,null,1,1,null,null,null,1,null,1,null,1,null,1,1,1]
["Amii Phantom","EMPIRE","Amii","Tiers 2",60,"Unit",680,540,"https://cardbase.skylords.eu/lrms/GetMediaData?id=57b76b501f73e816c7115367",null,1,{"$f":"SUM(BDD[[#This Row],[PVP]],BDD[[#This Row],[PVE]])","v":1},{"$f":"SUM(BDD[[#This Row],[BAD HARVEST]:[TITANS Support]])","v":0},{"$f":"SUM(BDD[[#This Row],[Pure Fire]:[Nature/Frost]])","v":1},null,null,null,null,null,null,null,null,null,null,1]
["Amii Ritual (Frost)","DEFENDING HOPE","Frost","Tiers 3",150,"Spell",null,null,"https://cardbase.skylords.eu/lrms/GetMediaData?id=57b76b501f73e816c7115369",null,1,{"$f":"SUM(BDD[[#This Row],[PVP]],BDD[[#This Row],[PVE]])","v":0},{"$f":"SUM(BDD[[#This Row],[BAD HARVEST]:[TITANS Support]])","v":0},{"$f":"SUM(BDD[[#This Row],[Pure Fire]:[Nature/Frost]])","v":0}]
["Amii Ritual (Nature)","CRUSADE","Frost","Tiers 3",150,"Spell",null,null,"https://cardbase.skylords.eu/lrms/GetMediaData?id=57b76b501f73e816c711536b",null,1,{"$f":"SUM(BDD[[#This Row],[PVP]],BDD[[#This Row],[PVE]])","v":0},{"$f":"SUM(BDD[[#This Row],[BAD HARVEST]:[TITANS Support]])","v":0},{"$f":"SUM(BDD[[#This Row],[Pure Fire]:[Nature/Frost]])","v":0}]
["Amok (Fire)","THE TITANS","Bandits","Tiers 4",125,"Spell",null,null,"https://cardbase.skylords.eu/lrms/GetMediaData?id=57b76b501f73e816c711536f",null,1,{"$f":"SUM(BDD[[#This Row],[PVP]],BDD[[#This Row],[PVE]])","v":0},{"$f":"SUM(BDD[[#This Row],[BAD HARVEST]:[TITANS Support]])","v":0},{"$f":"SUM(BDD[[#This Row],[Pure Fire]:[Nature/Frost]])","v":0}]
["Amok (Shadow)","BLIGHT","Bandits","Tiers 4",125,"Spell",null,null,"https://cardbase.skylords.eu/lrms/GetMediaData?id=57b76b501f73e816c711536d",null,1,{"$f":"SUM(BDD[[#This Row],[PVP]],BDD[[#This Row],[PVE]])","v":0},{"$f":"SUM(BDD[[#This Row],[BAD HARVEST]:[TITANS Support]])","v":0},{"$f":"SUM(BDD[[#This Row],[Pure Fire]:[Nature/Frost]])","v":0}]
["Architect's call (Frost)","THE GUNS OF LYR","Frost","Tiers 3",100,"Spell",null,null,"https://cardbase.skylords.eu/lrms/GetMediaData?id=57b76b501f73e816c7115373",null,1,{"$f":"SUM(BDD[[#This Row],[PVP]],BDD[[#This Row],[PVE]])","v":0},{"$f":"SUM(BDD[[#This Row],[BAD HARVEST]:[TITANS Support]])","v":0},{"$f":"SUM(BDD[[#This Row],[Pure Fire]:[Nature/Frost]])","v":0}]
["Architect's Call (Shadow)","NIGHTMARE SHARD","Frost","Tiers 3",100,"Spell",null,null,"https://cardbase.skylords.eu/lrms/GetMediaData?id=57b76b501f73e816c7115371",null,1,{"$f":"SUM(BDD[[#This Row],[PVP]],BDD[[#This Row],[PVE]])","v":0},{"$f":"SUM(BDD[[#This Row],[BAD HARVEST]:[TITANS Support]])","v":0},{"$f":"SUM(BDD[[#This Row],[Pure Fire]:[Nature/Frost]])","v":0}]
["Area Ice Shield","SIEGE OF HOPE","Frost","Tiers 2",80,"Spell",null,null,"https://cardbase.skylords.eu/lrms/GetMediaData?id=57b76b501f73e816c7115375",null,1,{"$f":"SUM(BDD[[#This Row],[PVP]],BDD[[#This Row],[PVE]])","v":1},{"$f":"SUM(BDD[[#This Row],[BAD HARVEST]:[TITANS Support]])","v":0},{"$f":"SUM(BDD[[#This Row],[Pure Fire]:[Nature/Frost]])","v":1},null,null,1]
["Armored Tower","DEFENDING HOPE","Frost","Tiers 3",80,"Building",1420,2590,"https://cardbase.skylords.eu/lrms/GetMediaData?id=57b76b501f73e816c7115377",null,1,{"$f":"SUM(BDD[[#This Row],[PVP]],BDD[[#This Row],[PVE]])","v":0},{"$f":"SUM(BDD[[#This Row],[BAD HARVEST]:[TITANS Support]])","v":0},{"$f":"SUM(BDD[[#This Row],[Pure Fire]:[Nature/Frost]])","v":0}]
["Artillery (Fire)","RAVEN'S END","Bandits","Tiers 4",190,"Building",4900,3500,"https://cardbase.skylords.eu/lrms/GetMediaData?id=57b76b501f73e816c711537b",null,1,{"$f":"SUM(BDD[[#This Row],[PVP]],BDD[[#This Row],[PVE]])","v":0},{"$f":"SUM(BDD[[#This Row],[BAD HARVEST]:[TITANS Support]])","v":0},{"$f":"SUM(BDD[[#This Row],[Pure Fire]:[Nature/Frost]])","v":0}]
["Artillery (Shadow)","BLIGHT","Bandits","Tiers 4",190,"Building",4900,3500,"https://cardbase.skylords.eu/lrms/GetMediaData?id=57b76b501f73e816c7115379",null,1,{"$f":"SUM(BDD[[#This Row],[PVP]],BDD[[#This Row],[PVE]])","v":0},{"$f":"SUM(BDD[[#This Row],[BAD HARVEST]:[TITANS Support]])","v":0},{"$f":"SUM(BDD[[#This Row],[Pure Fire]:[Nature/Frost]])","v":0}]
["Ashbone Pyro","BAD HARVEST","Shadow","Tiers 3",100,"Unit",1400,1000,"https://cardbase.skylords.eu/lrms/GetMediaData?id=57b76b501f73e816c711537d",null,1,{"$f":"SUM(BDD[[#This Row],[PVP]],BDD[[#This Row],[PVE]])","v":7},{"$f":"SUM(BDD[[#This Row],[BAD HARVEST]:[TITANS Support]])","v":2},{"$f":"SUM(BDD[[#This Row],[Pure Fire]:[Nature/Frost]])","v":5},null,1,1,null,null,null,null,null,1,1,1,null,null,null,null,null,null,null,null,null,null,null,null,null,1,null,null,null,null,null,null,null,null,null,null,null,null,null,null,null,null,null,null,null,null,null,null,null,1]
["Aura of Corruption","THE INSANE GOD","Shadow","Tiers 2",100,"Spell",null,null,"https://cardbase.skylords.eu/lrms/GetMediaData?id=57b76b501f73e816c711537f",null,1,{"$f":"SUM(BDD[[#This Row],[PVP]],BDD[[#This Row],[PVE]])","v":6},{"$f":"SUM(BDD[[#This Row],[BAD HARVEST]:[TITANS Support]])","v":1},{"$f":"SUM(BDD[[#This Row],[Pure Fire]:[Nature/Frost]])","v":5},null,1,null,null,1,null,null,null,1,1,1,null,null,null,null,null,null,null,null,null,null,null,null,null,null,null,null,null,null,null,null,null,null,null,null,null,null,null,null,null,null,null,null,null,null,null,null,null,1]
["Aura of Pain","SLAVE MASTER","Fire","Tiers 3",100,"Spell",null,null,"https://cardbase.skylords.eu/lrms/GetMediaData?id=57b76b501f73e816c7115381",null,1,{"$f":"SUM(BDD[[#This Row],[PVP]],BDD[[#This Row],[PVE]])","v":0},{"$f":"SUM(BDD[[#This Row],[BAD HARVEST]:[TITANS Support]])","v":0},{"$f":"SUM(BDD[[#This Row],[Pure Fire]:[Nature/Frost]])","v":0}]
["Avatar of Frost","THE GUNS OF LYR","Frost","Tiers 3",250,"Unit",3850,2650,"https://cardbase.skylords.eu/lrms/GetMediaData?id=57b76b501f73e816c7115383",null,1,{"$f":"SUM(BDD[[#This Row],[PVP]],BDD[[#This Row],[PVE]])","v":0},{"$f":"SUM(BDD[[#This Row],[BAD HARVEST]:[TITANS Support]])","v":0},{"$f":"SUM(BDD[[#This Row],[Pure Fire]:[Nature/Frost]])","v":0}]
["Backlash","OCEAN","Fire","Tiers 3",130,"Spell",null,null,"https://cardbase.skylords.eu/lrms/GetMediaData?id=57b76b501f73e816c7115385",null,1,{"$f":"SUM(BDD[[#This Row],[PVP]],BDD[[#This Row],[PVE]])","v":0},{"$f":"SUM(BDD[[#This Row],[BAD HARVEST]:[TITANS Support]])","v":0},{"$f":"SUM(BDD[[#This Row],[Pure Fire]:[Nature/Frost]])","v":0}]
["Bandit Lancer (Nature)","MO","Bandits","Tiers 3",60,"Unit",1300,770,"https://cardbase.skylords.eu/lrms/GetMediaData?id=57b76b501f73e816c7115387",null,1,{"$f":"SUM(BDD[[#This Row],[PVP]],BDD[[#This Row],[PVE]])","v":4},{"$f":"SUM(BDD[[#This Row],[BAD HARVEST]:[TITANS Support]])","v":3},{"$f":"SUM(BDD[[#This Row],[Pure Fire]:[Nature/Frost]])","v":1},null,null,null,null,1,null,null,null,null,null,null,null,null,null,null,null,null,null,null,1,null,null,null,1,null,null,null,null,null,null,null,null,null,null,null,1]
["Bandit Lancer (Shadow)","ORACLE","Bandits","Tiers 3",60,"Unit",1300,770,"https://cardbase.skylords.eu/lrms/GetMediaData?id=57b76b501f73e816c7115389",null,1,{"$f":"SUM(BDD[[#This Row],[PVP]],BDD[[#This Row],[PVE]])","v":0},{"$f":"SUM(BDD[[#This Row],[BAD HARVEST]:[TITANS Support]])","v":0},{"$f":"SUM(BDD[[#This Row],[Pure Fire]:[Nature/Frost]])","v":0}]
["Bandit Launcher (Fire)","MO","Bandits","Tiers 2",60,"Building",1200,1270,"https://cardbase.skylords.eu/lrms/GetMediaData?id=57b76b501f73e816c711538b",null,1,{"$f":"SUM(BDD[[#This Row],[PVP]],BDD[[#This Row],[PVE]])","v":0},{"$f":"SUM(BDD[[#This Row],[BAD HARVEST]:[TITANS Support]])","v":0},{"$f":"SUM(BDD[[#This Row],[Pure Fire]:[Nature/Frost]])","v":0}]
["Bandit Launcher (Shadow)","SLAVE MASTER","Bandits","Tiers 2",60,"Building",1200,1270,"https://cardbase.skylords.eu/lrms/GetMediaData?id=57b76b501f73e816c711538d",null,1,{"$f":"SUM(BDD[[#This Row],[PVP]],BDD[[#This Row],[PVE]])","v":0},{"$f":"SUM(BDD[[#This Row],[BAD HARVEST]:[TITANS Support]])","v":0},{"$f":"SUM(BDD[[#This Row],[Pure Fire]:[Nature/Frost]])","v":0}]
["Bandit Sorceress (Fire)","OCEAN","Bandits","Tiers 2",50,"Unit",366.66666666666663,470,"https://cardbase.skylords.eu/lrms/GetMediaData?id=57b76b501f73e816c711538f",null,1,{"$f":"SUM(BDD[[#This Row],[PVP]],BDD[[#This Row],[PVE]])","v":0},{"$f":"SUM(BDD[[#This Row],[BAD HARVEST]:[TITANS Support]])","v":0},{"$f":"SUM(BDD[[#This Row],[Pure Fire]:[Nature/Frost]])","v":0}]
["Bandit Sorceress (Frost)","THE DWARVEN RIDDLE","Bandits","Tiers 2",50,"Unit",366.66666666666663,470,"https://cardbase.skylords.eu/lrms/GetMediaData?id=57b76b501f73e816c7115391",null,1,{"$f":"SUM(BDD[[#This Row],[PVP]],BDD[[#This Row],[PVE]])","v":1},{"$f":"SUM(BDD[[#This Row],[BAD HARVEST]:[TITANS Support]])","v":1},{"$f":"SUM(BDD[[#This Row],[Pure Fire]:[Nature/Frost]])","v":0},null,null,null,null,null,null,null,null,null,null,null,null,null,null,null,null,null,null,null,null,null,null,null,1]
["Bandit Spearmen (Fire)","BLIGHT","Bandits","Tiers 2",60,"Unit",890,770,"https://cardbase.skylords.eu/lrms/GetMediaData?id=57b76b501f73e816c7115393",null,1,{"$f":"SUM(BDD[[#This Row],[PVP]],BDD[[#This Row],[PVE]])","v":0},{"$f":"SUM(BDD[[#This Row],[BAD HARVEST]:[TITANS Support]])","v":0},{"$f":"SUM(BDD[[#This Row],[Pure Fire]:[Nature/Frost]])","v":0}]
["Bandit Spearmen (Frost)","SLAVE MASTER","Bandits","Tiers 2",60,"Unit",890,770,"https://cardbase.skylords.eu/lrms/GetMediaData?id=57b76b501f73e816c7115395",null,1,{"$f":"SUM(BDD[[#This Row],[PVP]],BDD[[#This Row],[PVE]])","v":0},{"$f":"SUM(BDD[[#This Row],[BAD HARVEST]:[TITANS Support]])","v":0},{"$f":"SUM(BDD[[#This Row],[Pure Fire]:[Nature/Frost]])","v":0}]
["Bandit Stalker (Nature)","CONVOY","Bandits","Tiers 2",70,"Unit",750,660,"https://cardbase.skylords.eu/lrms/GetMediaData?id=57b76b501f73e816c7115397",null,1,{"$f":"SUM(BDD[[#This Row],[PVP]],BDD[[#This Row],[PVE]])","v":0},{"$f":"SUM(BDD[[#This Row],[BAD HARVEST]:[TITANS Support]])","v":0},{"$f":"SUM(BDD[[#This Row],[Pure Fire]:[Nature/Frost]])","v":0}]
["Bandit Stalker (Shadow)","ORACLE","Bandits","Tiers 2",70,"Unit",750,660,"https://cardbase.skylords.eu/lrms/GetMediaData?id=57b76b501f73e816c7115399",null,1,{"$f":"SUM(BDD[[#This Row],[PVP]],BDD[[#This Row],[PVE]])","v":0},{"$f":"SUM(BDD[[#This Row],[BAD HARVEST]:[TITANS Support]])","v":0},{"$f":"SUM(BDD[[#This Row],[Pure Fire]:[Nature/Frost]])","v":0}]
["Banditos (Frost)","MO","Bandits","Tiers 2",60,"Unit",1050,660,"https://cardbase.skylords.eu/lrms/GetMediaData?id=57b76b501f73e816c711539b",null,1,{"$f":"SUM(BDD[[#This Row],[PVP]],BDD[[#This Row],[PVE]])","v":0},{"$f":"SUM(BDD[[#This Row],[BAD HARVEST]:[TITANS Support]])","v":0},{"$f":"SUM(BDD[[#This Row],[Pure Fire]:[Nature/Frost]])","v":0}]
["Banditos (Nature)","BLIGHT","Bandits","Tiers 2",60,"Unit",1050,660,"https://cardbase.skylords.eu/lrms/GetMediaData?id=57b76b501f73e816c711539d",null,1,{"$f":"SUM(BDD[[#This Row],[PVP]],BDD[[#This Row],[PVE]])","v":0},{"$f":"SUM(BDD[[#This Row],[BAD HARVEST]:[TITANS Support]])","v":0},{"$f":"SUM(BDD[[#This Row],[Pure Fire]:[Nature/Frost]])","v":0}]
["Banner of Glory","SIEGE OF HOPE","Fire","Tiers 1",40,"Building",null,500,"https://cardbase.skylords.eu/lrms/GetMediaData?id=57b76b501f73e816c711539f",null,1,{"$f":"SUM(BDD[[#This Row],[PVP]],BDD[[#This Row],[PVE]])","v":1},{"$f":"SUM(BDD[[#This Row],[BAD HARVEST]:[TITANS Support]])","v":1},{"$f":"SUM(BDD[[#This Row],[Pure Fire]:[Nature/Frost]])","v":0},null,null,null,null,null,null,null,null,null,null,null,null,null,null,null,null,null,null,null,null,null,null,null,null,null,null,null,null,null,null,null,null,null,null,null,1]
["Batariel (Fire)","BEHIND ENEMY LINES","Fire ","Tiers 4",300,"Unit",3460,5000,"https://cardbase.skylords.eu/lrms/GetMediaData?id=57b76b501f73e816c71153a1",null,1,{"$f":"SUM(BDD[[#This Row],[PVP]],BDD[[#This Row],[PVE]])","v":7},{"$f":"SUM(BDD[[#This Row],[BAD HARVEST]:[TITANS Support]])","v":7},{"$f":"SUM(BDD[[#This Row],[Pure Fire]:[Nature/Frost]])","v":0},null,null,null,null,null,null,null,null,null,null,null,null,null,null,null,null,null,null,null,null,null,1,null,null,null,null,null,1,null,null,1,null,null,null,null,null,null,1,null,null,null,null,1,null,1,null,null,null,null,null,null,null,null,null,1]
["Batariel (Shadow)","NIGHTMARE'S END","Fire ","Tiers 4",300,"Unit",3460,5000,"https://cardbase.skylords.eu/lrms/GetMediaData?id=57b76b501f73e816c71153a3",null,1,{"$f":"SUM(BDD[[#This Row],[PVP]],BDD[[#This Row],[PVE]])","v":0},{"$f":"SUM(BDD[[#This Row],[BAD HARVEST]:[TITANS Support]])","v":0},{"$f":"SUM(BDD[[#This Row],[Pure Fire]:[Nature/Frost]])","v":0}]
["Battleship","KING OF THE GIANTS","Frost","Tiers 4",300,"Unit",3750,4350,"https://cardbase.skylords.eu/lrms/GetMediaData?id=57b76b501f73e816c71153a5",null,1,{"$f":"SUM(BDD[[#This Row],[PVP]],BDD[[#This Row],[PVE]])","v":0},{"$f":"SUM(BDD[[#This Row],[BAD HARVEST]:[TITANS Support]])","v":0},{"$f":"SUM(BDD[[#This Row],[Pure Fire]:[Nature/Frost]])","v":0}]
["Befallen's Curse (Fire)","NIGHTMARE SHARD","Shadow","Tiers 2",120,"Spell",null,null,"https://cardbase.skylords.eu/lrms/GetMediaData?id=57b76b501f73e816c71153a7",null,1,{"$f":"SUM(BDD[[#This Row],[PVP]],BDD[[#This Row],[PVE]])","v":0},{"$f":"SUM(BDD[[#This Row],[BAD HARVEST]:[TITANS Support]])","v":0},{"$f":"SUM(BDD[[#This Row],[Pure Fire]:[Nature/Frost]])","v":0}]
["Befallen's Curse (Shadow)","BAD HARVEST","Shadow","Tiers 2",120,"Spell",null,null,"https://cardbase.skylords.eu/lrms/GetMediaData?id=57b76b501f73e816c71153a9",null,1,{"$f":"SUM(BDD[[#This Row],[PVP]],BDD[[#This Row],[PVE]])","v":0},{"$f":"SUM(BDD[[#This Row],[BAD HARVEST]:[TITANS Support]])","v":0},{"$f":"SUM(BDD[[#This Row],[Pure Fire]:[Nature/Frost]])","v":0}]
["Blaster Cannon (Fire)","SLAVE MASTER","Fire","Tiers 1",60,"Building",1733.3333333333335,870,"https://cardbase.skylords.eu/lrms/GetMediaData?id=57b76b501f73e816c71153ab",null,1,{"$f":"SUM(BDD[[#This Row],[PVP]],BDD[[#This Row],[PVE]])","v":0},{"$f":"SUM(BDD[[#This Row],[BAD HARVEST]:[TITANS Support]])","v":0},{"$f":"SUM(BDD[[#This Row],[Pure Fire]:[Nature/Frost]])","v":0}]
["Blaster Cannon (Shadow)","DEFENDING HOPE","Fire","Tiers 1",60,"Building",1733.3333333333335,870,"https://cardbase.skylords.eu/lrms/GetMediaData?id=57b76b501f73e816c71153ad",null,1,{"$f":"SUM(BDD[[#This Row],[PVP]],BDD[[#This Row],[PVE]])","v":0},{"$f":"SUM(BDD[[#This Row],[BAD HARVEST]:[TITANS Support]])","v":0},{"$f":"SUM(BDD[[#This Row],[Pure Fire]:[Nature/Frost]])","v":0}]
["Blood Healing","THE TITANS","Shadow","Tiers 3",50,"Spell",null,null,"https://cardbase.skylords.eu/lrms/GetMediaData?id=57b76b501f73e816c71153af",null,1,{"$f":"SUM(BDD[[#This Row],[PVP]],BDD[[#This Row],[PVE]])","v":0},{"$f":"SUM(BDD[[#This Row],[BAD HARVEST]:[TITANS Support]])","v":0},{"$f":"SUM(BDD[[#This Row],[Pure Fire]:[Nature/Frost]])","v":0}]
["Bloodhorn (Fire)","RAVEN'S END","Bandits","Tiers 4",240,"Unit",4700,5000,"https://cardbase.skylords.eu/lrms/GetMediaData?id=57b76b501f73e816c71153b1",null,1,{"$f":"SUM(BDD[[#This Row],[PVP]],BDD[[#This Row],[PVE]])","v":0},{"$f":"SUM(BDD[[#This Row],[BAD HARVEST]:[TITANS Support]])","v":0},{"$f":"SUM(BDD[[#This Row],[Pure Fire]:[Nature/Frost]])","v":0}]
["Bloodhorn (Shadow)","SLAVE MASTER","Bandits","Tiers 4",240,"Unit",4700,5000,"https://cardbase.skylords.eu/lrms/GetMediaData?id=57b76b501f73e816c71153b3",null,1,{"$f":"SUM(BDD[[#This Row],[PVP]],BDD[[#This Row],[PVE]])","v":6},{"$f":"SUM(BDD[[#This Row],[BAD HARVEST]:[TITANS Support]])","v":6},{"$f":"SUM(BDD[[#This Row],[Pure Fire]:[Nature/Frost]])","v":0},null,null,null,null,null,null,null,null,null,null,null,null,null,null,null,null,null,null,null,1,null,null,null,null,null,null,null,null,null,1,null,null,null,null,null,null,null,null,null,1,1,null,null,null,1,1]
["Bloodthirst","THE INSANE GOD","Fire","Tiers 4",120,"Spell",null,null,"https://cardbase.skylords.eu/lrms/GetMediaData?id=57b76b501f73e816c71153b5",null,1,{"$f":"SUM(BDD[[#This Row],[PVP]],BDD[[#This Row],[PVE]])","v":0},{"$f":"SUM(BDD[[#This Row],[BAD HARVEST]:[TITANS Support]])","v":0},{"$f":"SUM(BDD[[#This Row],[Pure Fire]:[Nature/Frost]])","v":0}]
["Boom Brothers","SUNBRIDGE","Fire ","Tiers 4",100,"Unit",2800,2000,"https://cardbase.skylords.eu/lrms/GetMediaData?id=57b76b501f73e816c71153b7",null,1,{"$f":"SUM(BDD[[#This Row],[PVP]],BDD[[#This Row],[PVE]])","v":0},{"$f":"SUM(BDD[[#This Row],[BAD HARVEST]:[TITANS Support]])","v":0},{"$f":"SUM(BDD[[#This Row],[Pure Fire]:[Nature/Frost]])","v":0}]
["Brannoc","THE TITANS","Neutral","Tiers 3",230,"Unit",4000,4100,"https://cardbase.skylords.eu/lrms/GetMediaData?id=57b76b501f73e816c71153b9",null,1,{"$f":"SUM(BDD[[#This Row],[PVP]],BDD[[#This Row],[PVE]])","v":3},{"$f":"SUM(BDD[[#This Row],[BAD HARVEST]:[TITANS Support]])","v":0},{"$f":"SUM(BDD[[#This Row],[Pure Fire]:[Nature/Frost]])","v":3},null,null,null,null,null,1,1,1]
["Breeding Grounds","ENCOUNTERS WITH TWILIGHT","Nature","Tiers 2",70,"Building",null,1200,"https://cardbase.skylords.eu/lrms/GetMediaData?id=57b76b501f73e816c71153bb",null,1,{"$f":"SUM(BDD[[#This Row],[PVP]],BDD[[#This Row],[PVE]])","v":10},{"$f":"SUM(BDD[[#This Row],[BAD HARVEST]:[TITANS Support]])","v":10},{"$f":"SUM(BDD[[#This Row],[Pure Fire]:[Nature/Frost]])","v":0},null,null,null,null,null,null,null,null,null,null,null,null,null,null,null,null,1,null,null,null,null,null,null,null,1,null,null,null,null,null,null,null,null,1,1,1,null,1,null,1,null,1,1,null,null,null,null,null,null,null,null,null,null,null,1]
["Burrow Ritual (Fire)","THE TREASURE FLEET","Nature","Tiers 2",50,"Spell",null,null,"https://cardbase.skylords.eu/lrms/GetMediaData?id=57b76b501f73e816c71153bd",null,1,{"$f":"SUM(BDD[[#This Row],[PVP]],BDD[[#This Row],[PVE]])","v":2},{"$f":"SUM(BDD[[#This Row],[BAD HARVEST]:[TITANS Support]])","v":2},{"$f":"SUM(BDD[[#This Row],[Pure Fire]:[Nature/Frost]])","v":0},null,null,null,null,null,null,null,null,null,null,null,null,null,null,null,null,null,null,null,null,null,1,null,null,null,null,null,null,null,null,null,null,null,null,null,null,null,null,null,null,null,null,null,null,null,null,null,null,null,null,null,null,null,null,1]
["Burrow Ritual (Nature)","CRUSADE","Nature","Tiers 2",50,"Spell",null,null,"https://cardbase.skylords.eu/lrms/GetMediaData?id=57b76b501f73e816c71153bf",null,1,{"$f":"SUM(BDD[[#This Row],[PVP]],BDD[[#This Row],[PVE]])","v":0},{"$f":"SUM(BDD[[#This Row],[BAD HARVEST]:[TITANS Support]])","v":0},{"$f":"SUM(BDD[[#This Row],[Pure Fire]:[Nature/Frost]])","v":0}]
["Burrower","NIGHTMARE SHARD","Nature","Tiers 2",70,"Unit",820,710,"https://cardbase.skylords.eu/lrms/GetMediaData?id=57b76b501f73e816c71153c1",null,1,{"$f":"SUM(BDD[[#This Row],[PVP]],BDD[[#This Row],[PVE]])","v":7},{"$f":"SUM(BDD[[#This Row],[BAD HARVEST]:[TITANS Support]])","v":2},{"$f":"SUM(BDD[[#This Row],[Pure Fire]:[Nature/Frost]])","v":5},null,null,null,1,null,null,null,1,null,null,1,1,1,null,null,null,null,null,null,null,null,null,null,null,null,1,null,1]
["Cannon Tower","SIEGE OF HOPE","Frost","Tiers 2",70,"Building",1750,2000,"https://cardbase.skylords.eu/lrms/GetMediaData?id=57b76b501f73e816c71153c3",null,1,{"$f":"SUM(BDD[[#This Row],[PVP]],BDD[[#This Row],[PVE]])","v":2},{"$f":"SUM(BDD[[#This Row],[BAD HARVEST]:[TITANS Support]])","v":2},{"$f":"SUM(BDD[[#This Row],[Pure Fire]:[Nature/Frost]])","v":0},null,null,null,null,null,null,null,null,null,null,null,null,null,null,null,null,null,null,null,null,null,null,null,null,null,null,1,null,null,null,null,null,null,null,null,null,null,null,null,null,null,null,null,null,null,null,null,null,null,null,null,null,null,1]
["Church of Negation","NIGHTMARE'S END","Shadow","Tiers 3",150,"Building",null,2000,"https://cardbase.skylords.eu/lrms/GetMediaData?id=57b76b501f73e816c71153c5",null,1,{"$f":"SUM(BDD[[#This Row],[PVP]],BDD[[#This Row],[PVE]])","v":1},{"$f":"SUM(BDD[[#This Row],[BAD HARVEST]:[TITANS Support]])","v":1},{"$f":"SUM(BDD[[#This Row],[Pure Fire]:[Nature/Frost]])","v":0},null,null,null,null,null,null,null,null,null,null,null,null,null,null,null,null,null,null,null,null,null,null,null,null,null,null,null,null,null,null,null,null,null,null,null,null,null,null,null,null,null,null,null,null,null,null,null,null,1]
["Cluster Explosion (Fire)","THE GUNS OF LYR","Fire","Tiers 4",200,"Spell",null,null,"https://cardbase.skylords.eu/lrms/GetMediaData?id=57b76b501f73e816c71153c9",null,1,{"$f":"SUM(BDD[[#This Row],[PVP]],BDD[[#This Row],[PVE]])","v":1},{"$f":"SUM(BDD[[#This Row],[BAD HARVEST]:[TITANS Support]])","v":1},{"$f":"SUM(BDD[[#This Row],[Pure Fire]:[Nature/Frost]])","v":0},null,null,null,null,null,null,null,null,null,null,null,null,null,null,null,null,null,null,null,null,null,null,null,null,null,null,null,null,null,null,null,null,null,null,null,null,null,null,1]
["Cluster Explosion (Shadow)","CONVOY","Fire","Tiers 4",200,"Spell",null,null,"https://cardbase.skylords.eu/lrms/GetMediaData?id=57b76b501f73e816c71153c7",null,1,{"$f":"SUM(BDD[[#This Row],[PVP]],BDD[[#This Row],[PVE]])","v":0},{"$f":"SUM(BDD[[#This Row],[BAD HARVEST]:[TITANS Support]])","v":0},{"$f":"SUM(BDD[[#This Row],[Pure Fire]:[Nature/Frost]])","v":0}]
["Coldsnap","NIGHTMARE SHARD","Frost","Tiers 2",80,"Spell",null,null,"https://cardbase.skylords.eu/lrms/GetMediaData?id=57b76b501f73e816c71153cb",null,1,{"$f":"SUM(BDD[[#This Row],[PVP]],BDD[[#This Row],[PVE]])","v":5},{"$f":"SUM(BDD[[#This Row],[BAD HARVEST]:[TITANS Support]])","v":1},{"$f":"SUM(BDD[[#This Row],[Pure Fire]:[Nature/Frost]])","v":4},null,null,1,null,null,1,1,null,null,1,null,null,null,null,null,null,null,1]
["Colossus","THE SOULTREE","Nature","Tiers 4",280,"Unit",5820,5000,"https://cardbase.skylords.eu/lrms/GetMediaData?id=57b76b501f73e816c71153cd",null,1,{"$f":"SUM(BDD[[#This Row],[PVP]],BDD[[#This Row],[PVE]])","v":1},{"$f":"SUM(BDD[[#This Row],[BAD HARVEST]:[TITANS Support]])","v":1},{"$f":"SUM(BDD[[#This Row],[Pure Fire]:[Nature/Frost]])","v":0},null,null,null,null,null,null,null,null,null,null,null,null,null,null,null,null,1]
["Comet Catcher","RAVEN'S END","Fire","Tiers 4",250,"Building",null,5000,"https://cardbase.skylords.eu/lrms/GetMediaData?id=57b76b501f73e816c71153cf",null,1,{"$f":"SUM(BDD[[#This Row],[PVP]],BDD[[#This Row],[PVE]])","v":0},{"$f":"SUM(BDD[[#This Row],[BAD HARVEST]:[TITANS Support]])","v":0},{"$f":"SUM(BDD[[#This Row],[Pure Fire]:[Nature/Frost]])","v":0}]
["Commandos (Frost)","OCEAN","Bandits","Tiers 2",80,"Unit",1320,582,"https://cardbase.skylords.eu/lrms/GetMediaData?id=57b76b501f73e816c71153d3",null,1,{"$f":"SUM(BDD[[#This Row],[PVP]],BDD[[#This Row],[PVE]])","v":0},{"$f":"SUM(BDD[[#This Row],[BAD HARVEST]:[TITANS Support]])","v":0},{"$f":"SUM(BDD[[#This Row],[Pure Fire]:[Nature/Frost]])","v":0}]
["Commandos (Shadow)","BLIGHT","Bandits","Tiers 2",80,"Unit",1320,582,"https://cardbase.skylords.eu/lrms/GetMediaData?id=57b76b501f73e816c71153d1",null,1,{"$f":"SUM(BDD[[#This Row],[PVP]],BDD[[#This Row],[PVE]])","v":0},{"$f":"SUM(BDD[[#This Row],[BAD HARVEST]:[TITANS Support]])","v":0},{"$f":"SUM(BDD[[#This Row],[Pure Fire]:[Nature/Frost]])","v":0}]
["Construct","CONVOY","Frost","Tiers 4",250,"Unit",3440,5300,"https://cardbase.skylords.eu/lrms/GetMediaData?id=57b76b501f73e816c71153d5",null,1,{"$f":"SUM(BDD[[#This Row],[PVP]],BDD[[#This Row],[PVE]])","v":0},{"$f":"SUM(BDD[[#This Row],[BAD HARVEST]:[TITANS Support]])","v":0},{"$f":"SUM(BDD[[#This Row],[Pure Fire]:[Nature/Frost]])","v":0}]
["Construct (promo)","CONVOY","Frost","Tiers 4",250,"Unit",3440,5300,"https://cardbase.skylords.eu/lrms/GetMediaData?id=57b77b891f73e816c7115772",null,1,{"$f":"SUM(BDD[[#This Row],[PVP]],BDD[[#This Row],[PVE]])","v":0},{"$f":"SUM(BDD[[#This Row],[BAD HARVEST]:[TITANS Support]])","v":0},{"$f":"SUM(BDD[[#This Row],[Pure Fire]:[Nature/Frost]])","v":0}]
["Construction Hut","THE DWARVEN RIDDLE","Frost","Tiers 1",50,"Building",null,1120,"https://cardbase.skylords.eu/lrms/GetMediaData?id=57b76b501f73e816c71153d8",null,1,{"$f":"SUM(BDD[[#This Row],[PVP]],BDD[[#This Row],[PVE]])","v":8},{"$f":"SUM(BDD[[#This Row],[BAD HARVEST]:[TITANS Support]])","v":8},{"$f":"SUM(BDD[[#This Row],[Pure Fire]:[Nature/Frost]])","v":0},null,null,null,null,null,null,null,null,null,null,null,null,null,null,null,null,null,null,null,null,null,null,null,null,1,1,null,null,null,null,null,null,1,null,null,null,null,null,null,null,null,null,null,1,null,null,null,null,1,null,1,null,1,1]
["Core Dredge (Fire)","DEFENDING HOPE","Frost","Tiers 3",225,"Unit",2330,2700,"https://cardbase.skylords.eu/lrms/GetMediaData?id=57b76b501f73e816c71153da",null,1,{"$f":"SUM(BDD[[#This Row],[PVP]],BDD[[#This Row],[PVE]])","v":0},{"$f":"SUM(BDD[[#This Row],[BAD HARVEST]:[TITANS Support]])","v":0},{"$f":"SUM(BDD[[#This Row],[Pure Fire]:[Nature/Frost]])","v":0}]
["Core Dredge (Frost)","EMPIRE","Frost","Tiers 3",225,"Unit",2330,2700,"https://cardbase.skylords.eu/lrms/GetMediaData?id=57b76b501f73e816c71153dc",null,1,{"$f":"SUM(BDD[[#This Row],[PVP]],BDD[[#This Row],[PVE]])","v":0},{"$f":"SUM(BDD[[#This Row],[BAD HARVEST]:[TITANS Support]])","v":0},{"$f":"SUM(BDD[[#This Row],[Pure Fire]:[Nature/Frost]])","v":0}]
["Corpse Explosion","NIGHTMARE SHARD","Shadow","Tiers 2",100,"Spell",null,null,"https://cardbase.skylords.eu/lrms/GetMediaData?id=57b76b501f73e816c71153de",null,1,{"$f":"SUM(BDD[[#This Row],[PVP]],BDD[[#This Row],[PVE]])","v":0},{"$f":"SUM(BDD[[#This Row],[BAD HARVEST]:[TITANS Support]])","v":0},{"$f":"SUM(BDD[[#This Row],[Pure Fire]:[Nature/Frost]])","v":0}]
["Corsair (Nature)","BLIGHT","Bandits","Tiers 3",230,"Unit",2260,2100,"https://cardbase.skylords.eu/lrms/GetMediaData?id=57b76b501f73e816c71153e2",null,1,{"$f":"SUM(BDD[[#This Row],[PVP]],BDD[[#This Row],[PVE]])","v":0},{"$f":"SUM(BDD[[#This Row],[BAD HARVEST]:[TITANS Support]])","v":0},{"$f":"SUM(BDD[[#This Row],[Pure Fire]:[Nature/Frost]])","v":0}]
["Corsair (Shadow)","OCEAN","Bandits","Tiers 3",230,"Unit",2260,2100,"https://cardbase.skylords.eu/lrms/GetMediaData?id=57b76b501f73e816c71153e0",null,1,{"$f":"SUM(BDD[[#This Row],[PVP]],BDD[[#This Row],[PVE]])","v":1},{"$f":"SUM(BDD[[#This Row],[BAD HARVEST]:[TITANS Support]])","v":1},{"$f":"SUM(BDD[[#This Row],[Pure Fire]:[Nature/Frost]])","v":0},null,null,null,null,null,null,null,null,null,null,null,null,null,null,null,null,null,null,null,null,null,null,null,null,null,null,null,null,null,null,null,null,null,null,null,null,null,null,null,null,null,null,null,null,null,null,null,null,null,null,null,null,null,null,1]
["Creeping Paralysis","THE SOULTREE","Nature","Tiers 2",60,"Spell",null,null,"https://cardbase.skylords.eu/lrms/GetMediaData?id=57b76b501f73e816c71153e4",null,1,{"$f":"SUM(BDD[[#This Row],[PVP]],BDD[[#This Row],[PVE]])","v":0},{"$f":"SUM(BDD[[#This Row],[BAD HARVEST]:[TITANS Support]])","v":0},{"$f":"SUM(BDD[[#This Row],[Pure Fire]:[Nature/Frost]])","v":0}]
["Crystal Fiend (Frost)","RAVEN'S END","Stonekin","Tiers 2",100,"Unit",2080,400,"https://cardbase.skylords.eu/lrms/GetMediaData?id=57b76b501f73e816c71153e6",null,1,{"$f":"SUM(BDD[[#This Row],[PVP]],BDD[[#This Row],[PVE]])","v":0},{"$f":"SUM(BDD[[#This Row],[BAD HARVEST]:[TITANS Support]])","v":0},{"$f":"SUM(BDD[[#This Row],[Pure Fire]:[Nature/Frost]])","v":0}]
["Crystal Fiend (Nature)","KING OF THE GIANTS","Stonekin","Tiers 2",100,"Unit",2080,400,"https://cardbase.skylords.eu/lrms/GetMediaData?id=57b76b501f73e816c71153e8",null,1,{"$f":"SUM(BDD[[#This Row],[PVP]],BDD[[#This Row],[PVE]])","v":0},{"$f":"SUM(BDD[[#This Row],[BAD HARVEST]:[TITANS Support]])","v":0},{"$f":"SUM(BDD[[#This Row],[Pure Fire]:[Nature/Frost]])","v":0}]
["Cultist Master","ORACLE","Shadow","Tiers 3",60,"Unit",600,700,"https://cardbase.skylords.eu/lrms/GetMediaData?id=57b76b501f73e816c71153ea",null,1,{"$f":"SUM(BDD[[#This Row],[PVP]],BDD[[#This Row],[PVE]])","v":23},{"$f":"SUM(BDD[[#This Row],[BAD HARVEST]:[TITANS Support]])","v":23},{"$f":"SUM(BDD[[#This Row],[Pure Fire]:[Nature/Frost]])","v":0},null,null,null,null,null,null,null,null,null,null,null,null,null,null,null,null,1,null,null,1,null,1,null,1,1,null,null,1,null,1,1,null,1,1,1,1,null,1,null,1,1,null,1,null,null,1,1,null,1,null,1,null,null,1,1,1]
["Curse of Oink","MO","Nature","Tiers 2",65,"Spell",null,null,"https://cardbase.skylords.eu/lrms/GetMediaData?id=57b76b501f73e816c71153ec",null,1,{"$f":"SUM(BDD[[#This Row],[PVP]],BDD[[#This Row],[PVE]])","v":20},{"$f":"SUM(BDD[[#This Row],[BAD HARVEST]:[TITANS Support]])","v":15},{"$f":"SUM(BDD[[#This Row],[Pure Fire]:[Nature/Frost]])","v":5},null,null,null,1,null,null,null,1,null,null,1,1,1,null,null,null,1,1,null,1,null,1,null,null,null,null,null,null,null,1,1,null,1,1,null,1,null,null,null,null,null,1,1,null,1,1,1,null,null,null,null,null,null,1]
["Curse Orb","EMPIRE","Neutral","Tiers 3",165,"Spell",null,null,"https://cardbase.skylords.eu/lrms/GetMediaData?id=57b8d1731f73e82f8ff28f04",null,1,{"$f":"SUM(BDD[[#This Row],[PVP]],BDD[[#This Row],[PVE]])","v":0},{"$f":"SUM(BDD[[#This Row],[BAD HARVEST]:[TITANS Support]])","v":0},{"$f":"SUM(BDD[[#This Row],[Pure Fire]:[Nature/Frost]])","v":0}]
["Curse Well","THE DWARVEN RIDDLE","Neutral","Tiers 3",250,"Spell",null,null,"https://cardbase.skylords.eu/lrms/GetMediaData?id=57b8d16b1f73e82f8ff28f03",null,1,{"$f":"SUM(BDD[[#This Row],[PVP]],BDD[[#This Row],[PVE]])","v":0},{"$f":"SUM(BDD[[#This Row],[BAD HARVEST]:[TITANS Support]])","v":0},{"$f":"SUM(BDD[[#This Row],[Pure Fire]:[Nature/Frost]])","v":0}]
["Dark Crystal","THE DWARVEN RIDDLE","Neutral","Tiers 2",100,"Building",null,680,"https://cardbase.skylords.eu/lrms/GetMediaData?id=57b76b501f73e816c71153f0",null,1,{"$f":"SUM(BDD[[#This Row],[PVP]],BDD[[#This Row],[PVE]])","v":0},{"$f":"SUM(BDD[[#This Row],[BAD HARVEST]:[TITANS Support]])","v":0},{"$f":"SUM(BDD[[#This Row],[Pure Fire]:[Nature/Frost]])","v":0}]
["Darkelf Assassins","BAD HARVEST","Shadow","Tiers 2",50,"Unit",576,450,"https://cardbase.skylords.eu/lrms/GetMediaData?id=57b76b501f73e816c71153f2",null,1,{"$f":"SUM(BDD[[#This Row],[PVP]],BDD[[#This Row],[PVE]])","v":5},{"$f":"SUM(BDD[[#This Row],[BAD HARVEST]:[TITANS Support]])","v":0},{"$f":"SUM(BDD[[#This Row],[Pure Fire]:[Nature/Frost]])","v":5},null,1,null,null,1,null,null,null,1,1,1]
["Death Ray","THE TREASURE FLEET","Shadow","Tiers 4",240,"Unit",3450,3000,"https://cardbase.skylords.eu/lrms/GetMediaData?id=57b76b501f73e816c71153f4",null,1,{"$f":"SUM(BDD[[#This Row],[PVP]],BDD[[#This Row],[PVE]])","v":0},{"$f":"SUM(BDD[[#This Row],[BAD HARVEST]:[TITANS Support]])","v":0},{"$f":"SUM(BDD[[#This Row],[Pure Fire]:[Nature/Frost]])","v":0}]
["Deathglider (Frost)","SUNBRIDGE","Twilight","Tiers 2",60,"Unit",433.33333333333337,380,"https://cardbase.skylords.eu/lrms/GetMediaData?id=57b76b501f73e816c71153f6",null,1,{"$f":"SUM(BDD[[#This Row],[PVP]],BDD[[#This Row],[PVE]])","v":0},{"$f":"SUM(BDD[[#This Row],[BAD HARVEST]:[TITANS Support]])","v":0},{"$f":"SUM(BDD[[#This Row],[Pure Fire]:[Nature/Frost]])","v":0}]
["Deathglider (Nature)","THE TREASURE FLEET","Twilight","Tiers 2",60,"Unit",433.33333333333337,380,"https://cardbase.skylords.eu/lrms/GetMediaData?id=57b76b501f73e816c71153f8",null,1,{"$f":"SUM(BDD[[#This Row],[PVP]],BDD[[#This Row],[PVE]])","v":0},{"$f":"SUM(BDD[[#This Row],[BAD HARVEST]:[TITANS Support]])","v":0},{"$f":"SUM(BDD[[#This Row],[Pure Fire]:[Nature/Frost]])","v":0}]
["Decomposer","CONVOY","Shadow","Tiers 1",50,"Building",null,1000,"https://cardbase.skylords.eu/lrms/GetMediaData?id=57b76b501f73e816c71153fa",null,1,{"$f":"SUM(BDD[[#This Row],[PVP]],BDD[[#This Row],[PVE]])","v":10},{"$f":"SUM(BDD[[#This Row],[BAD HARVEST]:[TITANS Support]])","v":10},{"$f":"SUM(BDD[[#This Row],[Pure Fire]:[Nature/Frost]])","v":0},null,null,null,null,null,null,null,null,null,null,null,null,null,null,null,null,1,null,null,1,null,1,null,null,null,null,null,1,null,null,1,null,null,null,null,null,null,1,null,null,null,null,1,null,null,null,1,null,1,null,1]
["Deep One (Nature)","CRUSADE","Nature","Tiers 2",120,"Unit",1650,1300,"https://cardbase.skylords.eu/lrms/GetMediaData?id=57b76b501f73e816c71153fe",null,1,{"$f":"SUM(BDD[[#This Row],[PVP]],BDD[[#This Row],[PVE]])","v":1},{"$f":"SUM(BDD[[#This Row],[BAD HARVEST]:[TITANS Support]])","v":0},{"$f":"SUM(BDD[[#This Row],[Pure Fire]:[Nature/Frost]])","v":1},null,null,null,1]
["Deep One (Shadow)","BAD HARVEST","Nature","Tiers 2",120,"Unit",1650,1300,"https://cardbase.skylords.eu/lrms/GetMediaData?id=57b76b501f73e816c71153fc",null,1,{"$f":"SUM(BDD[[#This Row],[PVP]],BDD[[#This Row],[PVE]])","v":0},{"$f":"SUM(BDD[[#This Row],[BAD HARVEST]:[TITANS Support]])","v":0},{"$f":"SUM(BDD[[#This Row],[Pure Fire]:[Nature/Frost]])","v":0}]
["Deepcoil Worm","THE SOULTREE","Nature","Tiers 3",250,"Unit",3066.666666666667,2300,"https://cardbase.skylords.eu/lrms/GetMediaData?id=57b76b501f73e816c7115400",null,1,{"$f":"SUM(BDD[[#This Row],[PVP]],BDD[[#This Row],[PVE]])","v":0},{"$f":"SUM(BDD[[#This Row],[BAD HARVEST]:[TITANS Support]])","v":0},{"$f":"SUM(BDD[[#This Row],[Pure Fire]:[Nature/Frost]])","v":0}]
["Deepfang (Fire)","CONVOY","Stonekin","Tiers 3",250,"Unit",4000,2370,"https://cardbase.skylords.eu/lrms/GetMediaData?id=57b8d6751f73e82f8ff28f08",null,1,{"$f":"SUM(BDD[[#This Row],[PVP]],BDD[[#This Row],[PVE]])","v":0},{"$f":"SUM(BDD[[#This Row],[BAD HARVEST]:[TITANS Support]])","v":0},{"$f":"SUM(BDD[[#This Row],[Pure Fire]:[Nature/Frost]])","v":0}]
["Deepfang (Nature)","THE TITANS","Stonekin","Tiers 3",250,"Unit",4000,2370,"https://cardbase.skylords.eu/lrms/GetMediaData?id=57b76b501f73e816c7115403",null,1,{"$f":"SUM(BDD[[#This Row],[PVP]],BDD[[#This Row],[PVE]])","v":0},{"$f":"SUM(BDD[[#This Row],[BAD HARVEST]:[TITANS Support]])","v":0},{"$f":"SUM(BDD[[#This Row],[Pure Fire]:[Nature/Frost]])","v":0}]
["Deepgorge (Fire)","KING OF THE GIANTS","Stonekin","Tiers 4",225,"Unit",3000,4650,"https://cardbase.skylords.eu/lrms/GetMediaData?id=57b76b501f73e816c7115407",null,1,{"$f":"SUM(BDD[[#This Row],[PVP]],BDD[[#This Row],[PVE]])","v":0},{"$f":"SUM(BDD[[#This Row],[BAD HARVEST]:[TITANS Support]])","v":0},{"$f":"SUM(BDD[[#This Row],[Pure Fire]:[Nature/Frost]])","v":0}]
["Deepgorge (Frost)","CONVOY","Stonekin","Tiers 4",225,"Unit",3000,4650,"https://cardbase.skylords.eu/lrms/GetMediaData?id=57b76b501f73e816c7115405",null,1,{"$f":"SUM(BDD[[#This Row],[PVP]],BDD[[#This Row],[PVE]])","v":0},{"$f":"SUM(BDD[[#This Row],[BAD HARVEST]:[TITANS Support]])","v":0},{"$f":"SUM(BDD[[#This Row],[Pure Fire]:[Nature/Frost]])","v":0}]
["Defenders","DEFENDING HOPE","Frost","Tiers 2",70,"Unit",540,630,"https://cardbase.skylords.eu/lrms/GetMediaData?id=57b76b501f73e816c7115409",null,1,{"$f":"SUM(BDD[[#This Row],[PVP]],BDD[[#This Row],[PVE]])","v":1},{"$f":"SUM(BDD[[#This Row],[BAD HARVEST]:[TITANS Support]])","v":0},{"$f":"SUM(BDD[[#This Row],[Pure Fire]:[Nature/Frost]])","v":1},null,null,1]
["Defense Tower","BAD HARVEST","Frost","Tiers 1",50,"Building",625,1500,"https://cardbase.skylords.eu/lrms/GetMediaData?id=57b76b501f73e816c711540b",null,1,{"$f":"SUM(BDD[[#This Row],[PVP]],BDD[[#This Row],[PVE]])","v":0},{"$f":"SUM(BDD[[#This Row],[BAD HARVEST]:[TITANS Support]])","v":0},{"$f":"SUM(BDD[[#This Row],[Pure Fire]:[Nature/Frost]])","v":0}]
["Disenchant (Nature)","NIGHTMARE'S END","Fire","Tiers 2",90,"Spell",null,null,"https://cardbase.skylords.eu/lrms/GetMediaData?id=57b76b501f73e816c711540f",null,1,{"$f":"SUM(BDD[[#This Row],[PVP]],BDD[[#This Row],[PVE]])","v":4},{"$f":"SUM(BDD[[#This Row],[BAD HARVEST]:[TITANS Support]])","v":2},{"$f":"SUM(BDD[[#This Row],[Pure Fire]:[Nature/Frost]])","v":2},1,null,null,null,null,null,null,null,1,null,null,null,null,null,null,null,null,null,null,null,null,null,null,null,null,null,null,null,null,1,null,null,null,null,null,null,null,null,null,null,null,null,1]
["Disenchant (Shadow)","SUNBRIDGE","Fire","Tiers 2",90,"Spell",null,null,"https://cardbase.skylords.eu/lrms/GetMediaData?id=57b76b501f73e816c711540d",null,1,{"$f":"SUM(BDD[[#This Row],[PVP]],BDD[[#This Row],[PVE]])","v":1},{"$f":"SUM(BDD[[#This Row],[BAD HARVEST]:[TITANS Support]])","v":0},{"$f":"SUM(BDD[[#This Row],[Pure Fire]:[Nature/Frost]])","v":1},null,null,null,null,1]
["Dreadcharger","BEHIND ENEMY LINES","Shadow","Tiers 1",60,"Unit",600,520,"https://cardbase.skylords.eu/lrms/GetMediaData?id=57b76b501f73e816c7115411",null,1,{"$f":"SUM(BDD[[#This Row],[PVP]],BDD[[#This Row],[PVE]])","v":11},{"$f":"SUM(BDD[[#This Row],[BAD HARVEST]:[TITANS Support]])","v":7},{"$f":"SUM(BDD[[#This Row],[Pure Fire]:[Nature/Frost]])","v":4},null,1,null,null,null,null,null,null,1,1,1,null,null,null,null,null,1,1,null,null,null,1,null,null,null,null,null,null,null,null,null,null,null,null,null,null,null,null,null,1,null,null,1,null,null,null,null,null,1,null,1]
["Dreadnought","THE GUNS OF LYR","Frost","Tiers 4",240,"Unit",4100,6100,"https://cardbase.skylords.eu/lrms/GetMediaData?id=57b76b501f73e816c7115413",null,1,{"$f":"SUM(BDD[[#This Row],[PVP]],BDD[[#This Row],[PVE]])","v":2},{"$f":"SUM(BDD[[#This Row],[BAD HARVEST]:[TITANS Support]])","v":2},{"$f":"SUM(BDD[[#This Row],[Pure Fire]:[Nature/Frost]])","v":0},null,null,null,null,null,null,null,null,null,null,null,null,null,null,null,null,null,null,null,null,null,null,null,null,null,null,null,null,null,null,null,null,null,null,null,null,null,1,null,null,null,null,null,null,null,null,null,null,null,null,null,null,null,null,1]
["Drones","CRUSADE","Nature","Tiers 3",120,"Unit",1560,1800,"https://cardbase.skylords.eu/lrms/GetMediaData?id=57b76b501f73e816c7115415",null,1,{"$f":"SUM(BDD[[#This Row],[PVP]],BDD[[#This Row],[PVE]])","v":4},{"$f":"SUM(BDD[[#This Row],[BAD HARVEST]:[TITANS Support]])","v":1},{"$f":"SUM(BDD[[#This Row],[Pure Fire]:[Nature/Frost]])","v":3},null,null,null,1,null,null,null,null,null,null,null,1,1,null,null,null,null,null,null,null,null,null,null,null,null,null,null,null,null,null,null,null,null,null,1]
["Dryad (Frost)","THE TITANS","Nature","Tiers 1",60,"Unit",455,500,"https://cardbase.skylords.eu/lrms/GetMediaData?id=57b76b501f73e816c7115419",null,1,{"$f":"SUM(BDD[[#This Row],[PVP]],BDD[[#This Row],[PVE]])","v":3},{"$f":"SUM(BDD[[#This Row],[BAD HARVEST]:[TITANS Support]])","v":1},{"$f":"SUM(BDD[[#This Row],[Pure Fire]:[Nature/Frost]])","v":2},null,null,null,1,null,null,null,null,null,null,null,null,1,null,null,null,null,null,null,null,null,null,null,null,null,null,null,null,null,null,null,null,null,null,1]
["Dryad (Nature)","THE SOULTREE","Nature","Tiers 1",60,"Unit",455,500,"https://cardbase.skylords.eu/lrms/GetMediaData?id=57b76b501f73e816c7115417",null,1,{"$f":"SUM(BDD[[#This Row],[PVP]],BDD[[#This Row],[PVE]])","v":0},{"$f":"SUM(BDD[[#This Row],[BAD HARVEST]:[TITANS Support]])","v":0},{"$f":"SUM(BDD[[#This Row],[Pure Fire]:[Nature/Frost]])","v":0}]
["Dying Breed (Nature)","SUNBRIDGE","Fire","Tiers 3",120,"Spell",null,null,"https://cardbase.skylords.eu/lrms/GetMediaData?id=57b76b501f73e816c711541d",null,1,{"$f":"SUM(BDD[[#This Row],[PVP]],BDD[[#This Row],[PVE]])","v":0},{"$f":"SUM(BDD[[#This Row],[BAD HARVEST]:[TITANS Support]])","v":0},{"$f":"SUM(BDD[[#This Row],[Pure Fire]:[Nature/Frost]])","v":0}]
["Dying Breed (Shadow)","SLAVE MASTER","Fire","Tiers 3",120,"Spell",null,null,"https://cardbase.skylords.eu/lrms/GetMediaData?id=57b76b501f73e816c711541b",null,1,{"$f":"SUM(BDD[[#This Row],[PVP]],BDD[[#This Row],[PVE]])","v":0},{"$f":"SUM(BDD[[#This Row],[BAD HARVEST]:[TITANS Support]])","v":0},{"$f":"SUM(BDD[[#This Row],[Pure Fire]:[Nature/Frost]])","v":0}]
["Earth Crystal","THE DWARVEN RIDDLE","Neutral","Tiers 3",100,"Building",null,680,"https://cardbase.skylords.eu/lrms/GetMediaData?id=57b76b501f73e816c711541f",null,1,{"$f":"SUM(BDD[[#This Row],[PVP]],BDD[[#This Row],[PVE]])","v":0},{"$f":"SUM(BDD[[#This Row],[BAD HARVEST]:[TITANS Support]])","v":0},{"$f":"SUM(BDD[[#This Row],[Pure Fire]:[Nature/Frost]])","v":0}]
["Earthen Gift (Fire)","KING OF THE GIANTS","Stonekin","Tiers 4",160,"Spell",null,null,"https://cardbase.skylords.eu/lrms/GetMediaData?id=57b76b501f73e816c7115421",null,1,{"$f":"SUM(BDD[[#This Row],[PVP]],BDD[[#This Row],[PVE]])","v":0},{"$f":"SUM(BDD[[#This Row],[BAD HARVEST]:[TITANS Support]])","v":0},{"$f":"SUM(BDD[[#This Row],[Pure Fire]:[Nature/Frost]])","v":0}]
["Earthen Gift (Shadow)","RAVEN'S END","Stonekin","Tiers 4",160,"Spell",null,null,"https://cardbase.skylords.eu/lrms/GetMediaData?id=57b76b501f73e816c7115423",null,1,{"$f":"SUM(BDD[[#This Row],[PVP]],BDD[[#This Row],[PVE]])","v":0},{"$f":"SUM(BDD[[#This Row],[BAD HARVEST]:[TITANS Support]])","v":0},{"$f":"SUM(BDD[[#This Row],[Pure Fire]:[Nature/Frost]])","v":0}]
["Earthkeeper (Fire)","KING OF THE GIANTS","Stonekin","Tiers 2",60,"Unit",540,750,"https://cardbase.skylords.eu/lrms/GetMediaData?id=57b76b501f73e816c7115425",null,1,{"$f":"SUM(BDD[[#This Row],[PVP]],BDD[[#This Row],[PVE]])","v":0},{"$f":"SUM(BDD[[#This Row],[BAD HARVEST]:[TITANS Support]])","v":0},{"$f":"SUM(BDD[[#This Row],[Pure Fire]:[Nature/Frost]])","v":0}]
["Earthkeeper (Frost)","BAD HARVEST","Stonekin","Tiers 2",60,"Unit",540,750,"https://cardbase.skylords.eu/lrms/GetMediaData?id=57b76b501f73e816c7115427",null,1,{"$f":"SUM(BDD[[#This Row],[PVP]],BDD[[#This Row],[PVE]])","v":0},{"$f":"SUM(BDD[[#This Row],[BAD HARVEST]:[TITANS Support]])","v":0},{"$f":"SUM(BDD[[#This Row],[Pure Fire]:[Nature/Frost]])","v":0}]
["Earthshaker","EMPIRE","Fire","Tiers 4",100,"Spell",null,null,"https://cardbase.skylords.eu/lrms/GetMediaData?id=57b76b501f73e816c7115429",null,1,{"$f":"SUM(BDD[[#This Row],[PVP]],BDD[[#This Row],[PVE]])","v":5},{"$f":"SUM(BDD[[#This Row],[BAD HARVEST]:[TITANS Support]])","v":5},{"$f":"SUM(BDD[[#This Row],[Pure Fire]:[Nature/Frost]])","v":0},null,null,null,null,null,null,null,null,null,null,null,null,null,null,null,null,null,null,null,null,null,null,null,null,null,null,null,null,null,1,1,null,null,null,null,null,null,null,1,1,1]
["Easter Egg (promo)","NONE","Neutral","Tiers 2",25,"Unit",10,100,"https://cardbase.skylords.eu/lrms/GetMediaData?id=57b8d43c1f73e82f8ff28f06",null,1,{"$f":"SUM(BDD[[#This Row],[PVP]],BDD[[#This Row],[PVE]])","v":0},{"$f":"SUM(BDD[[#This Row],[BAD HARVEST]:[TITANS Support]])","v":0},{"$f":"SUM(BDD[[#This Row],[Pure Fire]:[Nature/Frost]])","v":0}]
["Eliminator (Fire)","RAVEN'S END","Shadow","Tiers 2",60,"Unit",780,675,"https://cardbase.skylords.eu/lrms/GetMediaData?id=57b76b501f73e816c711542c",null,1,{"$f":"SUM(BDD[[#This Row],[PVP]],BDD[[#This Row],[PVE]])","v":0},{"$f":"SUM(BDD[[#This Row],[BAD HARVEST]:[TITANS Support]])","v":0},{"$f":"SUM(BDD[[#This Row],[Pure Fire]:[Nature/Frost]])","v":0}]
["Eliminator (Frost)","SLAVE MASTER","Shadow","Tiers 2",60,"Unit",780,675,"https://cardbase.skylords.eu/lrms/GetMediaData?id=57b76b501f73e816c711542e",null,1,{"$f":"SUM(BDD[[#This Row],[PVP]],BDD[[#This Row],[PVE]])","v":0},{"$f":"SUM(BDD[[#This Row],[BAD HARVEST]:[TITANS Support]])","v":0},{"$f":"SUM(BDD[[#This Row],[Pure Fire]:[Nature/Frost]])","v":0}]
["Embalmer's shrine","BAD HARVEST","Shadow","Tiers 1",30,"Building",null,1200,"https://cardbase.skylords.eu/lrms/GetMediaData?id=57b76b501f73e816c7115430",null,1,{"$f":"SUM(BDD[[#This Row],[PVP]],BDD[[#This Row],[PVE]])","v":12},{"$f":"SUM(BDD[[#This Row],[BAD HARVEST]:[TITANS Support]])","v":12},{"$f":"SUM(BDD[[#This Row],[Pure Fire]:[Nature/Frost]])","v":0},null,null,null,null,null,null,null,null,null,null,null,null,null,null,null,null,null,1,null,null,1,null,null,null,1,null,null,null,null,null,null,null,null,null,null,null,null,1,null,1,null,1,null,null,null,1,null,null,1,null,1,null,1,1,null,1]
["Emberstrike","ENCOUNTERS WITH TWILIGHT","Fire ","Tiers 4",120,"Unit",3035,1960,"https://cardbase.skylords.eu/lrms/GetMediaData?id=57b76b501f73e816c7115432",null,1,{"$f":"SUM(BDD[[#This Row],[PVP]],BDD[[#This Row],[PVE]])","v":0},{"$f":"SUM(BDD[[#This Row],[BAD HARVEST]:[TITANS Support]])","v":0},{"$f":"SUM(BDD[[#This Row],[Pure Fire]:[Nature/Frost]])","v":0}]
["Energy Parasite","THE INSANE GOD","Nature","Tiers 2",50,"Unit",515,225,"https://cardbase.skylords.eu/lrms/GetMediaData?id=57b76b501f73e816c7115434",null,1,{"$f":"SUM(BDD[[#This Row],[PVP]],BDD[[#This Row],[PVE]])","v":1},{"$f":"SUM(BDD[[#This Row],[BAD HARVEST]:[TITANS Support]])","v":0},{"$f":"SUM(BDD[[#This Row],[Pure Fire]:[Nature/Frost]])","v":1},null,null,null,1]
["Enforcer","SLAVE MASTER","Fire","Tiers 2",60,"Unit",700,670,"https://cardbase.skylords.eu/lrms/GetMediaData?id=57b76b501f73e816c7115436",null,1,{"$f":"SUM(BDD[[#This Row],[PVP]],BDD[[#This Row],[PVE]])","v":1},{"$f":"SUM(BDD[[#This Row],[BAD HARVEST]:[TITANS Support]])","v":0},{"$f":"SUM(BDD[[#This Row],[Pure Fire]:[Nature/Frost]])","v":1},1]
["Enlightenment","THE INSANE GOD","Nature","Tiers 3",270,"Spell",null,null,"https://cardbase.skylords.eu/lrms/GetMediaData?id=57b76b501f73e816c7115438",null,1,{"$f":"SUM(BDD[[#This Row],[PVP]],BDD[[#This Row],[PVE]])","v":9},{"$f":"SUM(BDD[[#This Row],[BAD HARVEST]:[TITANS Support]])","v":9},{"$f":"SUM(BDD[[#This Row],[Pure Fire]:[Nature/Frost]])","v":0},null,null,null,null,null,null,null,null,null,null,null,null,null,null,null,null,1,null,null,null,null,1,null,null,null,null,null,1,null,null,1,null,null,null,null,null,null,1,null,null,null,null,1,null,1,null,1,null,null,null,null,null,null,null,1]
["Ensnaring Roots","NIGHTMARE SHARD","Nature","Tiers 1",60,"Spell",null,null,"https://cardbase.skylords.eu/lrms/GetMediaData?id=57b76b501f73e816c711543a",null,1,{"$f":"SUM(BDD[[#This Row],[PVP]],BDD[[#This Row],[PVE]])","v":18},{"$f":"SUM(BDD[[#This Row],[BAD HARVEST]:[TITANS Support]])","v":13},{"$f":"SUM(BDD[[#This Row],[Pure Fire]:[Nature/Frost]])","v":5},null,null,null,1,null,null,null,1,null,null,1,1,1,null,null,null,null,1,null,null,null,null,1,null,null,1,null,null,null,null,null,null,1,null,null,null,null,null,1,null,null,1,1,null,1,1,1,null,null,1,null,null,null,1,null,1]
["Envenom (Fire)","THE TREASURE FLEET","Nature","Tiers 1",75,"Spell",null,null,"https://cardbase.skylords.eu/lrms/GetMediaData?id=57b76b501f73e816c711543c",null,1,{"$f":"SUM(BDD[[#This Row],[PVP]],BDD[[#This Row],[PVE]])","v":1},{"$f":"SUM(BDD[[#This Row],[BAD HARVEST]:[TITANS Support]])","v":1},{"$f":"SUM(BDD[[#This Row],[Pure Fire]:[Nature/Frost]])","v":0},null,null,null,null,null,null,null,null,null,null,null,null,null,null,null,null,null,null,null,null,null,null,null,null,null,null,null,null,null,null,null,null,null,null,null,null,null,null,1]
["Envenom (Shadow)","ORACLE","Nature","Tiers 1",75,"Spell",null,null,"https://cardbase.skylords.eu/lrms/GetMediaData?id=57b76b501f73e816c711543e",null,1,{"$f":"SUM(BDD[[#This Row],[PVP]],BDD[[#This Row],[PVE]])","v":1},{"$f":"SUM(BDD[[#This Row],[BAD HARVEST]:[TITANS Support]])","v":1},{"$f":"SUM(BDD[[#This Row],[Pure Fire]:[Nature/Frost]])","v":0},null,null,null,null,null,null,null,null,null,null,null,null,null,null,null,null,null,null,null,null,null,null,null,null,null,null,null,null,null,null,null,null,null,null,null,null,null,null,1]
["Equilibrium (Frost)","ENCOUNTERS WITH TWILIGHT","Nature","Tiers 3",125,"Spell",null,null,"https://cardbase.skylords.eu/lrms/GetMediaData?id=57b76b501f73e816c7115442",null,1,{"$f":"SUM(BDD[[#This Row],[PVP]],BDD[[#This Row],[PVE]])","v":8},{"$f":"SUM(BDD[[#This Row],[BAD HARVEST]:[TITANS Support]])","v":8},{"$f":"SUM(BDD[[#This Row],[Pure Fire]:[Nature/Frost]])","v":0},null,null,null,null,null,null,null,null,null,null,null,null,null,null,null,null,null,null,null,1,null,1,null,null,null,null,null,1,null,1,null,null,null,null,null,null,null,1,1,null,null,null,null,null,1,1]
["Equilibrium (Nature)","CRUSADE","Nature","Tiers 3",125,"Spell",null,null,"https://cardbase.skylords.eu/lrms/GetMediaData?id=57b76b501f73e816c7115440",null,1,{"$f":"SUM(BDD[[#This Row],[PVP]],BDD[[#This Row],[PVE]])","v":6},{"$f":"SUM(BDD[[#This Row],[BAD HARVEST]:[TITANS Support]])","v":6},{"$f":"SUM(BDD[[#This Row],[Pure Fire]:[Nature/Frost]])","v":0},null,null,null,null,null,null,null,null,null,null,null,null,null,null,null,null,null,null,null,null,null,null,null,null,1,null,null,null,null,null,null,null,1,1,null,1,null,null,null,1,1]
["Eruption","ENCOUNTERS WITH TWILIGHT","Fire","Tiers 1",80,"Spell",null,null,"https://cardbase.skylords.eu/lrms/GetMediaData?id=57b76b501f73e816c7115444",null,1,{"$f":"SUM(BDD[[#This Row],[PVP]],BDD[[#This Row],[PVE]])","v":8},{"$f":"SUM(BDD[[#This Row],[BAD HARVEST]:[TITANS Support]])","v":4},{"$f":"SUM(BDD[[#This Row],[Pure Fire]:[Nature/Frost]])","v":4},1,null,null,null,1,1,null,1,null,null,null,null,null,null,null,null,null,null,null,null,null,null,null,1,null,null,1,null,null,null,null,null,null,null,null,null,null,null,null,null,1,null,null,null,null,null,null,1]
["Ethereal Storm (Fire)","EMPIRE","Lost Souls","Tiers 3",165,"Spell",null,null,"https://cardbase.skylords.eu/lrms/GetMediaData?id=57b76b501f73e816c7115448",null,1,{"$f":"SUM(BDD[[#This Row],[PVP]],BDD[[#This Row],[PVE]])","v":0},{"$f":"SUM(BDD[[#This Row],[BAD HARVEST]:[TITANS Support]])","v":0},{"$f":"SUM(BDD[[#This Row],[Pure Fire]:[Nature/Frost]])","v":0}]
["Ethereal Storm (Frost)","THE TITANS","Lost Souls","Tiers 3",165,"Spell",null,null,"https://cardbase.skylords.eu/lrms/GetMediaData?id=57b76b501f73e816c7115446",null,1,{"$f":"SUM(BDD[[#This Row],[PVP]],BDD[[#This Row],[PVE]])","v":0},{"$f":"SUM(BDD[[#This Row],[BAD HARVEST]:[TITANS Support]])","v":0},{"$f":"SUM(BDD[[#This Row],[Pure Fire]:[Nature/Frost]])","v":0}]
["Evocator's Woe (Nature)","EMPIRE","Shadow","Tiers 3",90,"Spell",null,null,"https://cardbase.skylords.eu/lrms/GetMediaData?id=57b76b501f73e816c711544a",null,1,{"$f":"SUM(BDD[[#This Row],[PVP]],BDD[[#This Row],[PVE]])","v":0},{"$f":"SUM(BDD[[#This Row],[BAD HARVEST]:[TITANS Support]])","v":0},{"$f":"SUM(BDD[[#This Row],[Pure Fire]:[Nature/Frost]])","v":0}]
["Evocator's Woe (Shadow)","THE DWARVEN RIDDLE","Shadow","Tiers 3",90,"Spell",null,null,"https://cardbase.skylords.eu/lrms/GetMediaData?id=57b76b501f73e816c711544c",null,1,{"$f":"SUM(BDD[[#This Row],[PVP]],BDD[[#This Row],[PVE]])","v":0},{"$f":"SUM(BDD[[#This Row],[BAD HARVEST]:[TITANS Support]])","v":0},{"$f":"SUM(BDD[[#This Row],[Pure Fire]:[Nature/Frost]])","v":0}]
["Executor","SLAVE MASTER","Shadow","Tiers 1",50,"Unit",600,520,"https://cardbase.skylords.eu/lrms/GetMediaData?id=57b76b501f73e816c711544e",null,1,{"$f":"SUM(BDD[[#This Row],[PVP]],BDD[[#This Row],[PVE]])","v":1},{"$f":"SUM(BDD[[#This Row],[BAD HARVEST]:[TITANS Support]])","v":1},{"$f":"SUM(BDD[[#This Row],[Pure Fire]:[Nature/Frost]])","v":0},null,null,null,null,null,null,null,null,null,null,null,null,null,null,null,null,null,null,null,null,1]
["Fallen Skyelf","DEFENDING HOPE","Shadow","Tiers 3",100,"Unit",1250,780,"https://cardbase.skylords.eu/lrms/GetMediaData?id=57b76b501f73e816c7115450",null,1,{"$f":"SUM(BDD[[#This Row],[PVP]],BDD[[#This Row],[PVE]])","v":0},{"$f":"SUM(BDD[[#This Row],[BAD HARVEST]:[TITANS Support]])","v":0},{"$f":"SUM(BDD[[#This Row],[Pure Fire]:[Nature/Frost]])","v":0}]
["Fallen Skyelf (promo)","DEFENDING HOPE","Shadow","Tiers 3",100,"Unit",1250,780,"https://cardbase.skylords.eu/lrms/GetMediaData?id=57b77f2e1f73e825237afcbf",null,1,{"$f":"SUM(BDD[[#This Row],[PVP]],BDD[[#This Row],[PVE]])","v":6},{"$f":"SUM(BDD[[#This Row],[BAD HARVEST]:[TITANS Support]])","v":6},{"$f":"SUM(BDD[[#This Row],[Pure Fire]:[Nature/Frost]])","v":0},null,null,null,null,null,null,null,null,null,null,null,null,null,null,null,null,null,null,null,null,null,null,null,1,1,1,null,null,null,1,null,null,null,null,null,null,null,null,null,null,null,null,null,null,null,null,null,null,null,null,1,null,null,null,1]
["Fathom Lord","THE INSANE GOD","Nature","Tiers 3",120,"Unit",2100,1800,"https://cardbase.skylords.eu/lrms/GetMediaData?id=57b76b501f73e816c7115453",null,1,{"$f":"SUM(BDD[[#This Row],[PVP]],BDD[[#This Row],[PVE]])","v":2},{"$f":"SUM(BDD[[#This Row],[BAD HARVEST]:[TITANS Support]])","v":0},{"$f":"SUM(BDD[[#This Row],[Pure Fire]:[Nature/Frost]])","v":2},null,null,null,1,null,null,null,null,null,null,1]
["Fire Bomb","SIEGE OF HOPE","Fire","Tiers 1",50,"Building",null,850,"https://cardbase.skylords.eu/lrms/GetMediaData?id=57b76b501f73e816c7115455",null,1,{"$f":"SUM(BDD[[#This Row],[PVP]],BDD[[#This Row],[PVE]])","v":1},{"$f":"SUM(BDD[[#This Row],[BAD HARVEST]:[TITANS Support]])","v":1},{"$f":"SUM(BDD[[#This Row],[Pure Fire]:[Nature/Frost]])","v":0},null,null,null,null,null,null,null,null,null,null,null,null,null,null,null,null,null,null,null,null,null,null,null,null,null,null,null,null,null,null,null,null,null,null,null,null,null,null,null,null,null,null,null,null,null,null,null,null,null,null,null,null,1]
["Fire Dragon","OCEAN","Fire ","Tiers 4",250,"Unit",2000,2400,"https://cardbase.skylords.eu/lrms/GetMediaData?id=57b76b501f73e816c7115457",null,1,{"$f":"SUM(BDD[[#This Row],[PVP]],BDD[[#This Row],[PVE]])","v":1},{"$f":"SUM(BDD[[#This Row],[BAD HARVEST]:[TITANS Support]])","v":1},{"$f":"SUM(BDD[[#This Row],[Pure Fire]:[Nature/Frost]])","v":0},null,null,null,null,null,null,null,null,null,null,null,null,null,null,null,null,null,null,null,null,null,null,null,null,null,null,null,null,null,null,null,null,null,null,null,null,null,null,1]
["Fire Sphere","ENCOUNTERS WITH TWILIGHT","Fire","Tiers 4",150,"Spell",null,null,"https://cardbase.skylords.eu/lrms/GetMediaData?id=57b76b501f73e816c7115459",null,1,{"$f":"SUM(BDD[[#This Row],[PVP]],BDD[[#This Row],[PVE]])","v":0},{"$f":"SUM(BDD[[#This Row],[BAD HARVEST]:[TITANS Support]])","v":0},{"$f":"SUM(BDD[[#This Row],[Pure Fire]:[Nature/Frost]])","v":0}]
["Fire Stalker","SIEGE OF HOPE","Fire","Tiers 2",70,"Unit",820,580,"https://cardbase.skylords.eu/lrms/GetMediaData?id=57b76b501f73e816c711545b",null,1,{"$f":"SUM(BDD[[#This Row],[PVP]],BDD[[#This Row],[PVE]])","v":1},{"$f":"SUM(BDD[[#This Row],[BAD HARVEST]:[TITANS Support]])","v":1},{"$f":"SUM(BDD[[#This Row],[Pure Fire]:[Nature/Frost]])","v":0},null,null,null,null,null,null,null,null,null,null,null,null,null,null,null,null,null,null,null,null,null,null,null,null,null,null,1]
["Fire Worm","BLIGHT","Fire ","Tiers 4",230,"Unit",4000,2100,"https://cardbase.skylords.eu/lrms/GetMediaData?id=57b76b501f73e816c711545d",null,1,{"$f":"SUM(BDD[[#This Row],[PVP]],BDD[[#This Row],[PVE]])","v":0},{"$f":"SUM(BDD[[#This Row],[BAD HARVEST]:[TITANS Support]])","v":0},{"$f":"SUM(BDD[[#This Row],[Pure Fire]:[Nature/Frost]])","v":0}]
["Firedancer","THE TITANS","Fire","Tiers 2",70,"Unit",637.5,430,"https://cardbase.skylords.eu/lrms/GetMediaData?id=57b76b501f73e816c711545f",null,1,{"$f":"SUM(BDD[[#This Row],[PVP]],BDD[[#This Row],[PVE]])","v":0},{"$f":"SUM(BDD[[#This Row],[BAD HARVEST]:[TITANS Support]])","v":0},{"$f":"SUM(BDD[[#This Row],[Pure Fire]:[Nature/Frost]])","v":0}]
["Firedancer (promo)","THE TITANS","Fire","Tiers 2",70,"Unit",637.5,430,"https://cardbase.skylords.eu/lrms/GetMediaData?id=57b779d71f73e816c7115771",null,1,{"$f":"SUM(BDD[[#This Row],[PVP]],BDD[[#This Row],[PVE]])","v":2},{"$f":"SUM(BDD[[#This Row],[BAD HARVEST]:[TITANS Support]])","v":1},{"$f":"SUM(BDD[[#This Row],[Pure Fire]:[Nature/Frost]])","v":1},1,null,null,null,null,null,null,null,null,null,null,null,null,null,null,null,null,null,null,null,null,null,null,null,null,null,null,null,null,null,null,null,null,null,null,1]
["Firesworn (Fire)","BEHIND ENEMY LINES","Fire","Tiers 1",75,"Unit",662.5,440,"https://cardbase.skylords.eu/lrms/GetMediaData?id=57b76b501f73e816c7115462",null,1,{"$f":"SUM(BDD[[#This Row],[PVP]],BDD[[#This Row],[PVE]])","v":4},{"$f":"SUM(BDD[[#This Row],[BAD HARVEST]:[TITANS Support]])","v":0},{"$f":"SUM(BDD[[#This Row],[Pure Fire]:[Nature/Frost]])","v":4},1,null,null,null,1,1,null,1]
["Firesworn (Frost)","THE DWARVEN RIDDLE","Fire","Tiers 1",75,"Unit",662.5,440,"https://cardbase.skylords.eu/lrms/GetMediaData?id=57b76b501f73e816c7115464",null,1,{"$f":"SUM(BDD[[#This Row],[PVP]],BDD[[#This Row],[PVE]])","v":0},{"$f":"SUM(BDD[[#This Row],[BAD HARVEST]:[TITANS Support]])","v":0},{"$f":"SUM(BDD[[#This Row],[Pure Fire]:[Nature/Frost]])","v":0}]
["Flame Crystal","THE DWARVEN RIDDLE","Neutral","Tiers 2",100,"Building",null,680,"https://cardbase.skylords.eu/lrms/GetMediaData?id=57b76b501f73e816c7115466",null,1,{"$f":"SUM(BDD[[#This Row],[PVP]],BDD[[#This Row],[PVE]])","v":0},{"$f":"SUM(BDD[[#This Row],[BAD HARVEST]:[TITANS Support]])","v":0},{"$f":"SUM(BDD[[#This Row],[Pure Fire]:[Nature/Frost]])","v":0}]
["Fleshbender (Fire)","NIGHTMARE SHARD","Twilight","Tiers 3",120,"Building",null,1800,"https://cardbase.skylords.eu/lrms/GetMediaData?id=57b76b501f73e816c711546a",null,1,{"$f":"SUM(BDD[[#This Row],[PVP]],BDD[[#This Row],[PVE]])","v":0},{"$f":"SUM(BDD[[#This Row],[BAD HARVEST]:[TITANS Support]])","v":0},{"$f":"SUM(BDD[[#This Row],[Pure Fire]:[Nature/Frost]])","v":0}]
["Fleshbender (Shadow)","THE TREASURE FLEET","Twilight","Tiers 3",120,"Building",null,1800,"https://cardbase.skylords.eu/lrms/GetMediaData?id=57b76b501f73e816c7115468",null,1,{"$f":"SUM(BDD[[#This Row],[PVP]],BDD[[#This Row],[PVE]])","v":0},{"$f":"SUM(BDD[[#This Row],[BAD HARVEST]:[TITANS Support]])","v":0},{"$f":"SUM(BDD[[#This Row],[Pure Fire]:[Nature/Frost]])","v":0}]
["Forest Elder (Nature)","THE GUNS OF LYR","Nature","Tiers 4",325,"Unit",4750,6800,"https://cardbase.skylords.eu/lrms/GetMediaData?id=57b76b501f73e816c711546c",null,1,{"$f":"SUM(BDD[[#This Row],[PVP]],BDD[[#This Row],[PVE]])","v":0},{"$f":"SUM(BDD[[#This Row],[BAD HARVEST]:[TITANS Support]])","v":0},{"$f":"SUM(BDD[[#This Row],[Pure Fire]:[Nature/Frost]])","v":0}]
["Forest Elder (Shadow)","NIGHTMARE'S END","Nature","Tiers 4",325,"Unit",4750,6800,"https://cardbase.skylords.eu/lrms/GetMediaData?id=57b76b501f73e816c711546e",null,1,{"$f":"SUM(BDD[[#This Row],[PVP]],BDD[[#This Row],[PVE]])","v":0},{"$f":"SUM(BDD[[#This Row],[BAD HARVEST]:[TITANS Support]])","v":0},{"$f":"SUM(BDD[[#This Row],[Pure Fire]:[Nature/Frost]])","v":0}]
["Forest's Vim (Nature)","THE SOULTREE","Nature","Tiers 3",100,"Spell",null,null,"https://cardbase.skylords.eu/lrms/GetMediaData?id=57b76b501f73e816c7115470",null,1,{"$f":"SUM(BDD[[#This Row],[PVP]],BDD[[#This Row],[PVE]])","v":0},{"$f":"SUM(BDD[[#This Row],[BAD HARVEST]:[TITANS Support]])","v":0},{"$f":"SUM(BDD[[#This Row],[Pure Fire]:[Nature/Frost]])","v":0}]
["Forest's Vim (Shadow)","KING OF THE GIANTS","Nature","Tiers 3",100,"Spell",null,null,"https://cardbase.skylords.eu/lrms/GetMediaData?id=57b76b501f73e816c7115472",null,1,{"$f":"SUM(BDD[[#This Row],[PVP]],BDD[[#This Row],[PVE]])","v":0},{"$f":"SUM(BDD[[#This Row],[BAD HARVEST]:[TITANS Support]])","v":0},{"$f":"SUM(BDD[[#This Row],[Pure Fire]:[Nature/Frost]])","v":0}]
["Forsaken","ENCOUNTERS WITH TWILIGHT","Shadow","Tiers 1",50,"Unit",360,450,"https://cardbase.skylords.eu/lrms/GetMediaData?id=57b76b501f73e816c7115474",null,1,{"$f":"SUM(BDD[[#This Row],[PVP]],BDD[[#This Row],[PVE]])","v":8},{"$f":"SUM(BDD[[#This Row],[BAD HARVEST]:[TITANS Support]])","v":4},{"$f":"SUM(BDD[[#This Row],[Pure Fire]:[Nature/Frost]])","v":4},null,1,null,null,null,null,null,null,1,1,1,null,null,null,null,null,null,1,null,null,null,1,null,null,null,null,null,null,null,null,null,null,null,null,null,null,null,1,null,1]
["Fountain of Rebirth","ORACLE","Nature","Tiers 1",60,"Building",null,1300,"https://cardbase.skylords.eu/lrms/GetMediaData?id=57b76b501f73e816c7115476",null,1,{"$f":"SUM(BDD[[#This Row],[PVP]],BDD[[#This Row],[PVE]])","v":2},{"$f":"SUM(BDD[[#This Row],[BAD HARVEST]:[TITANS Support]])","v":2},{"$f":"SUM(BDD[[#This Row],[Pure Fire]:[Nature/Frost]])","v":0},null,null,null,null,null,null,null,null,null,null,null,null,null,null,null,null,null,null,null,null,null,null,null,null,null,null,null,null,1,null,null,null,null,null,null,null,null,null,null,null,null,null,null,null,null,null,null,null,null,null,null,null,null,null,null,1]
["Frenetic Assault (Nature)","BAD HARVEST","Shadow","Tiers 3",90,"Spell",null,null,"https://cardbase.skylords.eu/lrms/GetMediaData?id=57b76b501f73e816c7115478",null,1,{"$f":"SUM(BDD[[#This Row],[PVP]],BDD[[#This Row],[PVE]])","v":5},{"$f":"SUM(BDD[[#This Row],[BAD HARVEST]:[TITANS Support]])","v":5},{"$f":"SUM(BDD[[#This Row],[Pure Fire]:[Nature/Frost]])","v":0},null,null,null,null,null,null,null,null,null,null,null,null,null,null,null,null,null,null,null,null,null,1,null,null,null,null,null,1,null,null,null,null,null,null,null,null,null,null,null,null,null,1,null,null,null,null,1,null,null,null,1]
["Frenetic Assault (Shadow)","THE INSANE GOD","Shadow","Tiers 3",90,"Spell",null,null,"https://cardbase.skylords.eu/lrms/GetMediaData?id=57b76b501f73e816c711547a",null,1,{"$f":"SUM(BDD[[#This Row],[PVP]],BDD[[#This Row],[PVE]])","v":16},{"$f":"SUM(BDD[[#This Row],[BAD HARVEST]:[TITANS Support]])","v":16},{"$f":"SUM(BDD[[#This Row],[Pure Fire]:[Nature/Frost]])","v":0},null,null,null,null,null,null,null,null,null,null,null,null,null,null,null,null,null,null,null,1,null,1,null,1,null,null,null,1,null,1,1,null,null,1,null,null,null,1,null,1,1,1,1,null,null,1,1,null,1,null,1]
["Frontier Keep (Fire)","DEFENDING HOPE","Frost","Tiers 3",250,"Building",null,2100,"https://cardbase.skylords.eu/lrms/GetMediaData?id=57b76b501f73e816c711547e",null,1,{"$f":"SUM(BDD[[#This Row],[PVP]],BDD[[#This Row],[PVE]])","v":0},{"$f":"SUM(BDD[[#This Row],[BAD HARVEST]:[TITANS Support]])","v":0},{"$f":"SUM(BDD[[#This Row],[Pure Fire]:[Nature/Frost]])","v":0}]
["Frontier Keep (Frost)","THE SOULTREE","Frost","Tiers 3",250,"Building",null,2100,"https://cardbase.skylords.eu/lrms/GetMediaData?id=57b76b501f73e816c711547c",null,1,{"$f":"SUM(BDD[[#This Row],[PVP]],BDD[[#This Row],[PVE]])","v":0},{"$f":"SUM(BDD[[#This Row],[BAD HARVEST]:[TITANS Support]])","v":0},{"$f":"SUM(BDD[[#This Row],[Pure Fire]:[Nature/Frost]])","v":0}]
["Frost Bite (Fire)","BAD HARVEST","Frost","Tiers 1",25,"Spell",null,null,"https://cardbase.skylords.eu/lrms/GetMediaData?id=57b76b501f73e816c7115482",null,1,{"$f":"SUM(BDD[[#This Row],[PVP]],BDD[[#This Row],[PVE]])","v":0},{"$f":"SUM(BDD[[#This Row],[BAD HARVEST]:[TITANS Support]])","v":0},{"$f":"SUM(BDD[[#This Row],[Pure Fire]:[Nature/Frost]])","v":0}]
["Frost Bite (Shadow)","ENCOUNTERS WITH TWILIGHT","Frost","Tiers 1",25,"Spell",null,null,"https://cardbase.skylords.eu/lrms/GetMediaData?id=57b76b501f73e816c7115480",null,1,{"$f":"SUM(BDD[[#This Row],[PVP]],BDD[[#This Row],[PVE]])","v":7},{"$f":"SUM(BDD[[#This Row],[BAD HARVEST]:[TITANS Support]])","v":3},{"$f":"SUM(BDD[[#This Row],[Pure Fire]:[Nature/Frost]])","v":4},null,null,1,null,null,null,1,null,null,1,null,null,1,null,null,null,null,null,null,null,null,null,null,null,1,1,null,null,null,null,null,null,null,null,null,null,null,null,null,null,null,null,null,1]
["Frost Crystal","DEFENDING HOPE","Frost","Tiers 2",70,"Building",900,1460,"https://cardbase.skylords.eu/lrms/GetMediaData?id=57b76b501f73e816c7115484",null,1,{"$f":"SUM(BDD[[#This Row],[PVP]],BDD[[#This Row],[PVE]])","v":0},{"$f":"SUM(BDD[[#This Row],[BAD HARVEST]:[TITANS Support]])","v":0},{"$f":"SUM(BDD[[#This Row],[Pure Fire]:[Nature/Frost]])","v":0}]
["Frost Mage","THE GUNS OF LYR","Frost","Tiers 1",60,"Unit",355,570,"https://cardbase.skylords.eu/lrms/GetMediaData?id=57b76b501f73e816c7115486",null,1,{"$f":"SUM(BDD[[#This Row],[PVP]],BDD[[#This Row],[PVE]])","v":4},{"$f":"SUM(BDD[[#This Row],[BAD HARVEST]:[TITANS Support]])","v":1},{"$f":"SUM(BDD[[#This Row],[Pure Fire]:[Nature/Frost]])","v":3},null,null,1,null,null,null,1,null,null,null,null,1,null,null,null,null,null,null,null,null,null,null,null,null,null,null,null,null,null,null,null,null,null,null,null,null,null,null,null,null,null,null,null,1]
["Frost Shard","THE GUNS OF LYR","Frost","Tiers 3",150,"Spell",null,null,"https://cardbase.skylords.eu/lrms/GetMediaData?id=57b76b501f73e816c7115488",null,1,{"$f":"SUM(BDD[[#This Row],[PVP]],BDD[[#This Row],[PVE]])","v":0},{"$f":"SUM(BDD[[#This Row],[BAD HARVEST]:[TITANS Support]])","v":0},{"$f":"SUM(BDD[[#This Row],[Pure Fire]:[Nature/Frost]])","v":0}]
["Frost Sorceress","EMPIRE","Frost","Tiers 1",60,"Unit",210,600,"https://cardbase.skylords.eu/lrms/GetMediaData?id=57b76b501f73e816c711548a",null,1,{"$f":"SUM(BDD[[#This Row],[PVP]],BDD[[#This Row],[PVE]])","v":3},{"$f":"SUM(BDD[[#This Row],[BAD HARVEST]:[TITANS Support]])","v":0},{"$f":"SUM(BDD[[#This Row],[Pure Fire]:[Nature/Frost]])","v":3},null,null,1,null,null,1,1]
["Furnace of Flesh","OCEAN","Shadow","Tiers 2",75,"Building",null,1900,"https://cardbase.skylords.eu/lrms/GetMediaData?id=57b76b501f73e816c711548c",null,1,{"$f":"SUM(BDD[[#This Row],[PVP]],BDD[[#This Row],[PVE]])","v":24},{"$f":"SUM(BDD[[#This Row],[BAD HARVEST]:[TITANS Support]])","v":24},{"$f":"SUM(BDD[[#This Row],[Pure Fire]:[Nature/Frost]])","v":0},null,null,null,null,null,null,null,null,null,null,null,null,null,null,null,null,1,null,null,1,null,1,null,1,1,1,null,1,null,1,1,null,1,1,1,1,null,1,null,1,null,1,1,null,null,null,1,null,1,null,1,null,1,1,1,1]
["Gemeye (Nature)","KING OF THE GIANTS","Stonekin","Tiers 4",270,"Unit",2460,4500,"https://cardbase.skylords.eu/lrms/GetMediaData?id=57b76b501f73e816c7115490",null,1,{"$f":"SUM(BDD[[#This Row],[PVP]],BDD[[#This Row],[PVE]])","v":0},{"$f":"SUM(BDD[[#This Row],[BAD HARVEST]:[TITANS Support]])","v":0},{"$f":"SUM(BDD[[#This Row],[Pure Fire]:[Nature/Frost]])","v":0}]
["Gemeye (Shadow)","CONVOY","Stonekin","Tiers 4",270,"Unit",2460,4500,"https://cardbase.skylords.eu/lrms/GetMediaData?id=57b76b501f73e816c711548e",null,1,{"$f":"SUM(BDD[[#This Row],[PVP]],BDD[[#This Row],[PVE]])","v":0},{"$f":"SUM(BDD[[#This Row],[BAD HARVEST]:[TITANS Support]])","v":0},{"$f":"SUM(BDD[[#This Row],[Pure Fire]:[Nature/Frost]])","v":0}]
["Ghostspears","THE SOULTREE","Nature","Tiers 2",70,"Unit",900,780,"https://cardbase.skylords.eu/lrms/GetMediaData?id=57b76b501f73e816c7115492",null,1,{"$f":"SUM(BDD[[#This Row],[PVP]],BDD[[#This Row],[PVE]])","v":2},{"$f":"SUM(BDD[[#This Row],[BAD HARVEST]:[TITANS Support]])","v":0},{"$f":"SUM(BDD[[#This Row],[Pure Fire]:[Nature/Frost]])","v":2},null,null,null,1,null,null,null,1]
["Giant Slayer","KING OF THE GIANTS","Fire","Tiers 3",80,"Unit",520,980,"https://cardbase.skylords.eu/lrms/GetMediaData?id=57b76b501f73e816c7115494",null,1,{"$f":"SUM(BDD[[#This Row],[PVP]],BDD[[#This Row],[PVE]])","v":5},{"$f":"SUM(BDD[[#This Row],[BAD HARVEST]:[TITANS Support]])","v":0},{"$f":"SUM(BDD[[#This Row],[Pure Fire]:[Nature/Frost]])","v":5},1,null,null,null,1,null,1,1,1]
["Giant Wyrm","ENCOUNTERS WITH TWILIGHT","Nature","Tiers 4",300,"Unit",4000,6800,"https://cardbase.skylords.eu/lrms/GetMediaData?id=57b76b501f73e816c7115496",null,1,{"$f":"SUM(BDD[[#This Row],[PVP]],BDD[[#This Row],[PVE]])","v":6},{"$f":"SUM(BDD[[#This Row],[BAD HARVEST]:[TITANS Support]])","v":6},{"$f":"SUM(BDD[[#This Row],[Pure Fire]:[Nature/Frost]])","v":0},null,null,null,null,null,null,null,null,null,null,null,null,null,null,null,null,null,1,null,null,null,null,null,null,null,null,null,null,null,null,1,null,null,null,1,null,null,1,1,null,null,null,null,null,null,null,1]
["Girl Power (Frost)","ORACLE","Fire","Tiers 2",50,"Spell",null,null,"https://cardbase.skylords.eu/lrms/GetMediaData?id=57b76b501f73e816c7115498",null,1,{"$f":"SUM(BDD[[#This Row],[PVP]],BDD[[#This Row],[PVE]])","v":3},{"$f":"SUM(BDD[[#This Row],[BAD HARVEST]:[TITANS Support]])","v":3},{"$f":"SUM(BDD[[#This Row],[Pure Fire]:[Nature/Frost]])","v":0},null,null,null,null,null,null,null,null,null,null,null,null,null,null,null,null,null,null,null,1,null,null,null,null,null,null,null,null,null,null,null,null,null,null,null,null,null,null,null,1,1]
["Girl Power (Nature)","THE SOULTREE","Fire","Tiers 2",50,"Spell",null,null,"https://cardbase.skylords.eu/lrms/GetMediaData?id=57b76b501f73e816c711549a",null,1,{"$f":"SUM(BDD[[#This Row],[PVP]],BDD[[#This Row],[PVE]])","v":0},{"$f":"SUM(BDD[[#This Row],[BAD HARVEST]:[TITANS Support]])","v":0},{"$f":"SUM(BDD[[#This Row],[Pure Fire]:[Nature/Frost]])","v":0}]
["Glaciation (Fire)","SIEGE OF HOPE","Frost","Tiers 1",40,"Spell",null,null,"https://cardbase.skylords.eu/lrms/GetMediaData?id=57b76b501f73e816c711549e",null,1,{"$f":"SUM(BDD[[#This Row],[PVP]],BDD[[#This Row],[PVE]])","v":0},{"$f":"SUM(BDD[[#This Row],[BAD HARVEST]:[TITANS Support]])","v":0},{"$f":"SUM(BDD[[#This Row],[Pure Fire]:[Nature/Frost]])","v":0}]
["Glaciation (Frost)","BAD HARVEST","Frost","Tiers 1",40,"Spell",null,null,"https://cardbase.skylords.eu/lrms/GetMediaData?id=57b76b501f73e816c711549c",null,1,{"$f":"SUM(BDD[[#This Row],[PVP]],BDD[[#This Row],[PVE]])","v":1},{"$f":"SUM(BDD[[#This Row],[BAD HARVEST]:[TITANS Support]])","v":1},{"$f":"SUM(BDD[[#This Row],[Pure Fire]:[Nature/Frost]])","v":0},null,null,null,null,null,null,null,null,null,null,null,null,null,null,null,null,null,null,null,null,null,null,null,null,null,null,null,null,null,null,null,null,null,null,null,null,null,null,null,null,null,null,null,null,null,null,null,null,1]
["Glacier Shell","SIEGE OF HOPE","Frost","Tiers 1",50,"Spell",null,null,"https://cardbase.skylords.eu/lrms/GetMediaData?id=57b76b501f73e816c71154a0",null,1,{"$f":"SUM(BDD[[#This Row],[PVP]],BDD[[#This Row],[PVE]])","v":6},{"$f":"SUM(BDD[[#This Row],[BAD HARVEST]:[TITANS Support]])","v":0},{"$f":"SUM(BDD[[#This Row],[Pure Fire]:[Nature/Frost]])","v":6},null,null,1,null,null,1,1,null,null,1,null,1,1]
["Gladiatrix (Nature)","BLIGHT","Fire","Tiers 2",70,"Unit",840,450,"https://cardbase.skylords.eu/lrms/GetMediaData?id=57b76b501f73e816c71154a4",null,1,{"$f":"SUM(BDD[[#This Row],[PVP]],BDD[[#This Row],[PVE]])","v":3},{"$f":"SUM(BDD[[#This Row],[BAD HARVEST]:[TITANS Support]])","v":0},{"$f":"SUM(BDD[[#This Row],[Pure Fire]:[Nature/Frost]])","v":3},1,null,null,null,null,1,null,1]
["Gladiatrix (Shadow)","SLAVE MASTER","Fire","Tiers 2",70,"Unit",840,450,"https://cardbase.skylords.eu/lrms/GetMediaData?id=57b76b501f73e816c71154a2",null,1,{"$f":"SUM(BDD[[#This Row],[PVP]],BDD[[#This Row],[PVE]])","v":0},{"$f":"SUM(BDD[[#This Row],[BAD HARVEST]:[TITANS Support]])","v":0},{"$f":"SUM(BDD[[#This Row],[Pure Fire]:[Nature/Frost]])","v":0}]
["Global Warming (Fire)","OCEAN","Fire","Tiers 2",70,"Spell",null,null,"https://cardbase.skylords.eu/lrms/GetMediaData?id=57b76b501f73e816c71154a8",null,1,{"$f":"SUM(BDD[[#This Row],[PVP]],BDD[[#This Row],[PVE]])","v":0},{"$f":"SUM(BDD[[#This Row],[BAD HARVEST]:[TITANS Support]])","v":0},{"$f":"SUM(BDD[[#This Row],[Pure Fire]:[Nature/Frost]])","v":0}]
["Global Warming (Frost)","THE TITANS","Fire","Tiers 2",70,"Spell",null,null,"https://cardbase.skylords.eu/lrms/GetMediaData?id=57b76b501f73e816c71154a6",null,1,{"$f":"SUM(BDD[[#This Row],[PVP]],BDD[[#This Row],[PVE]])","v":0},{"$f":"SUM(BDD[[#This Row],[BAD HARVEST]:[TITANS Support]])","v":0},{"$f":"SUM(BDD[[#This Row],[Pure Fire]:[Nature/Frost]])","v":0}]
["Glyph of Frost","THE DWARVEN RIDDLE","Frost","Tiers 1",50,"Spell",null,null,"https://cardbase.skylords.eu/lrms/GetMediaData?id=57b76b501f73e816c71154aa",null,1,{"$f":"SUM(BDD[[#This Row],[PVP]],BDD[[#This Row],[PVE]])","v":0},{"$f":"SUM(BDD[[#This Row],[BAD HARVEST]:[TITANS Support]])","v":0},{"$f":"SUM(BDD[[#This Row],[Pure Fire]:[Nature/Frost]])","v":0}]
["Gravity Surge (Frost)","SIEGE OF HOPE","Frost","Tiers 2",65,"Spell",null,null,"https://cardbase.skylords.eu/lrms/GetMediaData?id=57b76b501f73e816c71154ac",null,1,{"$f":"SUM(BDD[[#This Row],[PVP]],BDD[[#This Row],[PVE]])","v":0},{"$f":"SUM(BDD[[#This Row],[BAD HARVEST]:[TITANS Support]])","v":0},{"$f":"SUM(BDD[[#This Row],[Pure Fire]:[Nature/Frost]])","v":0}]
["Gravity Surge (Shadow)","RAVEN'S END","Frost","Tiers 2",65,"Spell",null,null,"https://cardbase.skylords.eu/lrms/GetMediaData?id=57b76b501f73e816c71154ae",null,1,{"$f":"SUM(BDD[[#This Row],[PVP]],BDD[[#This Row],[PVE]])","v":0},{"$f":"SUM(BDD[[#This Row],[BAD HARVEST]:[TITANS Support]])","v":0},{"$f":"SUM(BDD[[#This Row],[Pure Fire]:[Nature/Frost]])","v":0}]
["Green Peace (Fire)","RAVEN'S END","Nature","Tiers 4",100,"Spell",null,null,"https://cardbase.skylords.eu/lrms/GetMediaData?id=57b76b501f73e816c71154b0",null,1,{"$f":"SUM(BDD[[#This Row],[PVP]],BDD[[#This Row],[PVE]])","v":3},{"$f":"SUM(BDD[[#This Row],[BAD HARVEST]:[TITANS Support]])","v":3},{"$f":"SUM(BDD[[#This Row],[Pure Fire]:[Nature/Frost]])","v":0},null,null,null,null,null,null,null,null,null,null,null,null,null,null,null,null,1,null,null,null,null,null,null,null,null,null,null,null,null,null,null,null,null,null,1,null,null,null,null,null,null,null,null,null,1]
["Green Peace (Frost)","EMPIRE","Nature","Tiers 4",100,"Spell",null,null,"https://cardbase.skylords.eu/lrms/GetMediaData?id=57b76b501f73e816c71154b2",null,1,{"$f":"SUM(BDD[[#This Row],[PVP]],BDD[[#This Row],[PVE]])","v":3},{"$f":"SUM(BDD[[#This Row],[BAD HARVEST]:[TITANS Support]])","v":3},{"$f":"SUM(BDD[[#This Row],[Pure Fire]:[Nature/Frost]])","v":0},null,null,null,null,null,null,null,null,null,null,null,null,null,null,null,null,1,null,null,null,null,null,null,null,null,null,null,null,null,null,null,null,null,null,1,null,null,null,null,null,null,null,null,null,1]
["Grim Bahir (Fire)","THE INSANE GOD","Shadow","Tiers 4",230,"Unit",3333.333333333333,2710,"https://cardbase.skylords.eu/lrms/GetMediaData?id=57b76b501f73e816c71154b6",null,1,{"$f":"SUM(BDD[[#This Row],[PVP]],BDD[[#This Row],[PVE]])","v":0},{"$f":"SUM(BDD[[#This Row],[BAD HARVEST]:[TITANS Support]])","v":0},{"$f":"SUM(BDD[[#This Row],[Pure Fire]:[Nature/Frost]])","v":0}]
["Grim Bahir (Nature)","NIGHTMARE'S END","Shadow","Tiers 4",230,"Unit",3333.333333333333,2710,"https://cardbase.skylords.eu/lrms/GetMediaData?id=57b76b501f73e816c71154b4",null,1,{"$f":"SUM(BDD[[#This Row],[PVP]],BDD[[#This Row],[PVE]])","v":0},{"$f":"SUM(BDD[[#This Row],[BAD HARVEST]:[TITANS Support]])","v":0},{"$f":"SUM(BDD[[#This Row],[Pure Fire]:[Nature/Frost]])","v":0}]
["Grimvine","CRUSADE","Nature","Tiers 4",260,"Unit",5800,5000,"https://cardbase.skylords.eu/lrms/GetMediaData?id=57b76b501f73e816c71154b8",null,1,{"$f":"SUM(BDD[[#This Row],[PVP]],BDD[[#This Row],[PVE]])","v":0},{"$f":"SUM(BDD[[#This Row],[BAD HARVEST]:[TITANS Support]])","v":0},{"$f":"SUM(BDD[[#This Row],[Pure Fire]:[Nature/Frost]])","v":0}]
["Grinder (Fire)","RAVEN'S END","Stonekin","Tiers 4",260,"Unit",5000,4500,"https://cardbase.skylords.eu/lrms/GetMediaData?id=57b76b501f73e816c71154bc",null,1,{"$f":"SUM(BDD[[#This Row],[PVP]],BDD[[#This Row],[PVE]])","v":0},{"$f":"SUM(BDD[[#This Row],[BAD HARVEST]:[TITANS Support]])","v":0},{"$f":"SUM(BDD[[#This Row],[Pure Fire]:[Nature/Frost]])","v":0}]
["Grinder (promo)","THE TITANS","Stonekin","Tiers 4",260,"Unit",5000,4500,"https://cardbase.skylords.eu/lrms/GetMediaData?id=57b77f631f73e825237afcc0",null,1,{"$f":"SUM(BDD[[#This Row],[PVP]],BDD[[#This Row],[PVE]])","v":0},{"$f":"SUM(BDD[[#This Row],[BAD HARVEST]:[TITANS Support]])","v":0},{"$f":"SUM(BDD[[#This Row],[Pure Fire]:[Nature/Frost]])","v":0}]
["Grinder (Shadow)","THE TITANS","Stonekin","Tiers 4",260,"Unit",5000,4500,"https://cardbase.skylords.eu/lrms/GetMediaData?id=57b76b501f73e816c71154ba",null,1,{"$f":"SUM(BDD[[#This Row],[PVP]],BDD[[#This Row],[PVE]])","v":0},{"$f":"SUM(BDD[[#This Row],[BAD HARVEST]:[TITANS Support]])","v":0},{"$f":"SUM(BDD[[#This Row],[Pure Fire]:[Nature/Frost]])","v":0}]
["Grove Spirit","SUNBRIDGE","Nature","Tiers 4",70,"Unit",null,1100,"https://cardbase.skylords.eu/lrms/GetMediaData?id=57b76b501f73e816c71154bf",null,1,{"$f":"SUM(BDD[[#This Row],[PVP]],BDD[[#This Row],[PVE]])","v":0},{"$f":"SUM(BDD[[#This Row],[BAD HARVEST]:[TITANS Support]])","v":0},{"$f":"SUM(BDD[[#This Row],[Pure Fire]:[Nature/Frost]])","v":0}]
["Gunner (Fire)","CONVOY","Bandits","Tiers 3",110,"Unit",900,1320,"https://cardbase.skylords.eu/lrms/GetMediaData?id=57b76b501f73e816c71154c1",null,1,{"$f":"SUM(BDD[[#This Row],[PVP]],BDD[[#This Row],[PVE]])","v":1},{"$f":"SUM(BDD[[#This Row],[BAD HARVEST]:[TITANS Support]])","v":0},{"$f":"SUM(BDD[[#This Row],[Pure Fire]:[Nature/Frost]])","v":1},null,null,null,null,1]
["Gunner (Shadow)","MO","Bandits","Tiers 3",110,"Unit",900,1320,"https://cardbase.skylords.eu/lrms/GetMediaData?id=57b76b501f73e816c71154c3",null,1,{"$f":"SUM(BDD[[#This Row],[PVP]],BDD[[#This Row],[PVE]])","v":0},{"$f":"SUM(BDD[[#This Row],[BAD HARVEST]:[TITANS Support]])","v":0},{"$f":"SUM(BDD[[#This Row],[Pure Fire]:[Nature/Frost]])","v":0}]
["Hammerfall (Frost)","KING OF THE GIANTS","Stonekin","Tiers 3",150,"Unit",1600,2800,"https://cardbase.skylords.eu/lrms/GetMediaData?id=57b76b501f73e816c71154c5",null,1,{"$f":"SUM(BDD[[#This Row],[PVP]],BDD[[#This Row],[PVE]])","v":0},{"$f":"SUM(BDD[[#This Row],[BAD HARVEST]:[TITANS Support]])","v":0},{"$f":"SUM(BDD[[#This Row],[Pure Fire]:[Nature/Frost]])","v":0}]
["Hammerfall (Nature)","CONVOY","Stonekin","Tiers 3",150,"Unit",1600,2800,"https://cardbase.skylords.eu/lrms/GetMediaData?id=57b76b501f73e816c71154c7",null,1,{"$f":"SUM(BDD[[#This Row],[PVP]],BDD[[#This Row],[PVE]])","v":0},{"$f":"SUM(BDD[[#This Row],[BAD HARVEST]:[TITANS Support]])","v":0},{"$f":"SUM(BDD[[#This Row],[Pure Fire]:[Nature/Frost]])","v":0}]
["Harvester","BAD HARVEST","Shadow","Tiers 2",300,"Unit",2700,2800,"https://cardbase.skylords.eu/lrms/GetMediaData?id=57b76b501f73e816c71154c9",null,1,{"$f":"SUM(BDD[[#This Row],[PVP]],BDD[[#This Row],[PVE]])","v":0},{"$f":"SUM(BDD[[#This Row],[BAD HARVEST]:[TITANS Support]])","v":0},{"$f":"SUM(BDD[[#This Row],[Pure Fire]:[Nature/Frost]])","v":0}]
["Harvester (promo)","BAD HARVEST","Shadow","Tiers 2",300,"Unit",2700,2800,"https://cardbase.skylords.eu/lrms/GetMediaData?id=57b77f6f1f73e825237afcc1",null,1,{"$f":"SUM(BDD[[#This Row],[PVP]],BDD[[#This Row],[PVE]])","v":1},{"$f":"SUM(BDD[[#This Row],[BAD HARVEST]:[TITANS Support]])","v":0},{"$f":"SUM(BDD[[#This Row],[Pure Fire]:[Nature/Frost]])","v":1},null,1]
["Hatecaster (Nature)","SUNBRIDGE","Twilight","Tiers 4",100,"Unit",2762.5,3050,"https://cardbase.skylords.eu/lrms/GetMediaData?id=57b76b501f73e816c71154cc",null,1,{"$f":"SUM(BDD[[#This Row],[PVP]],BDD[[#This Row],[PVE]])","v":0},{"$f":"SUM(BDD[[#This Row],[BAD HARVEST]:[TITANS Support]])","v":0},{"$f":"SUM(BDD[[#This Row],[Pure Fire]:[Nature/Frost]])","v":0}]
["Hatecaster (Shadow)","NIGHTMARE SHARD","Twilight","Tiers 4",100,"Unit",2762.5,3050,"https://cardbase.skylords.eu/lrms/GetMediaData?id=57b76b501f73e816c71154ce",null,1,{"$f":"SUM(BDD[[#This Row],[PVP]],BDD[[#This Row],[PVE]])","v":0},{"$f":"SUM(BDD[[#This Row],[BAD HARVEST]:[TITANS Support]])","v":0},{"$f":"SUM(BDD[[#This Row],[Pure Fire]:[Nature/Frost]])","v":0}]
["Healing Gardens","BEHIND ENEMY LINES","Nature","Tiers 3",120,"Building",null,2100,"https://cardbase.skylords.eu/lrms/GetMediaData?id=57b76b501f73e816c71154d0",null,1,{"$f":"SUM(BDD[[#This Row],[PVP]],BDD[[#This Row],[PVE]])","v":5},{"$f":"SUM(BDD[[#This Row],[BAD HARVEST]:[TITANS Support]])","v":5},{"$f":"SUM(BDD[[#This Row],[Pure Fire]:[Nature/Frost]])","v":0},null,null,null,null,null,null,null,null,null,null,null,null,null,null,null,null,null,null,null,null,null,null,null,null,1,1,null,null,null,null,null,null,null,null,null,null,null,1,1,null,null,null,null,null,null,null,null,null,null,null,null,null,null,null,1]
["Healing Well","MO","Nature","Tiers 2",60,"Building",null,950,"https://cardbase.skylords.eu/lrms/GetMediaData?id=57b76b501f73e816c71154d2",null,1,{"$f":"SUM(BDD[[#This Row],[PVP]],BDD[[#This Row],[PVE]])","v":0},{"$f":"SUM(BDD[[#This Row],[BAD HARVEST]:[TITANS Support]])","v":0},{"$f":"SUM(BDD[[#This Row],[Pure Fire]:[Nature/Frost]])","v":0}]
["Home Soil","THE GUNS OF LYR","Frost","Tiers 1",40,"Spell",null,null,"https://cardbase.skylords.eu/lrms/GetMediaData?id=57b76b501f73e816c71154d4",null,1,{"$f":"SUM(BDD[[#This Row],[PVP]],BDD[[#This Row],[PVE]])","v":8},{"$f":"SUM(BDD[[#This Row],[BAD HARVEST]:[TITANS Support]])","v":4},{"$f":"SUM(BDD[[#This Row],[Pure Fire]:[Nature/Frost]])","v":4},null,null,1,null,null,null,1,null,null,1,null,1,null,null,null,null,null,1,null,null,null,null,null,null,1,1,null,null,null,null,null,null,null,null,null,null,null,null,null,null,null,null,null,1]
["Howling Shrine (Nature)","SUNBRIDGE","Nature","Tiers 4",200,"Building",3000,2800,"https://cardbase.skylords.eu/lrms/GetMediaData?id=57b76b501f73e816c71154d8",null,1,{"$f":"SUM(BDD[[#This Row],[PVP]],BDD[[#This Row],[PVE]])","v":0},{"$f":"SUM(BDD[[#This Row],[BAD HARVEST]:[TITANS Support]])","v":0},{"$f":"SUM(BDD[[#This Row],[Pure Fire]:[Nature/Frost]])","v":0}]
["Howling Shrine (Shadow)","THE DWARVEN RIDDLE","Nature","Tiers 4",200,"Building",3000,280,"https://cardbase.skylords.eu/lrms/GetMediaData?id=57b76b501f73e816c71154d6",null,1,{"$f":"SUM(BDD[[#This Row],[PVP]],BDD[[#This Row],[PVE]])","v":0},{"$f":"SUM(BDD[[#This Row],[BAD HARVEST]:[TITANS Support]])","v":0},{"$f":"SUM(BDD[[#This Row],[Pure Fire]:[Nature/Frost]])","v":0}]
["Hurricane","SLAVE MASTER","Nature","Tiers 1",70,"Spell",null,null,"https://cardbase.skylords.eu/lrms/GetMediaData?id=57b76b501f73e816c71154da",null,1,{"$f":"SUM(BDD[[#This Row],[PVP]],BDD[[#This Row],[PVE]])","v":10},{"$f":"SUM(BDD[[#This Row],[BAD HARVEST]:[TITANS Support]])","v":5},{"$f":"SUM(BDD[[#This Row],[Pure Fire]:[Nature/Frost]])","v":5},null,null,null,1,null,null,null,1,null,null,1,1,1,null,null,null,null,null,null,null,null,null,null,null,null,1,null,null,null,null,null,null,null,null,null,null,null,null,null,null,null,null,null,null,1,1,null,null,null,null,null,null,null,1,null,1]
["Ice Age (Frost)","NIGHTMARE SHARD","Frost","Tiers 2",100,"Spell",null,null,"https://cardbase.skylords.eu/lrms/GetMediaData?id=57b76b501f73e816c71154de",null,1,{"$f":"SUM(BDD[[#This Row],[PVP]],BDD[[#This Row],[PVE]])","v":0},{"$f":"SUM(BDD[[#This Row],[BAD HARVEST]:[TITANS Support]])","v":0},{"$f":"SUM(BDD[[#This Row],[Pure Fire]:[Nature/Frost]])","v":0}]
["Ice Age (Nature)","EMPIRE","Frost","Tiers 2",100,"Spell",null,null,"https://cardbase.skylords.eu/lrms/GetMediaData?id=57b76b501f73e816c71154dc",null,1,{"$f":"SUM(BDD[[#This Row],[PVP]],BDD[[#This Row],[PVE]])","v":0},{"$f":"SUM(BDD[[#This Row],[BAD HARVEST]:[TITANS Support]])","v":0},{"$f":"SUM(BDD[[#This Row],[Pure Fire]:[Nature/Frost]])","v":0}]
["Ice Barrier","KING OF THE GIANTS","Frost","Tiers 1",20,"Building",null,510,"https://cardbase.skylords.eu/lrms/GetMediaData?id=57b76b501f73e816c71154e0",null,1,{"$f":"SUM(BDD[[#This Row],[PVP]],BDD[[#This Row],[PVE]])","v":5},{"$f":"SUM(BDD[[#This Row],[BAD HARVEST]:[TITANS Support]])","v":1},{"$f":"SUM(BDD[[#This Row],[Pure Fire]:[Nature/Frost]])","v":4},null,null,1,null,null,null,1,null,null,1,null,1,null,null,null,null,null,null,null,null,null,null,null,null,null,null,null,null,null,null,null,null,null,null,null,null,null,null,null,null,null,null,null,1]
["Ice Crystal","THE DWARVEN RIDDLE","Neutral","Tiers 2",100,"Building",null,680,"https://cardbase.skylords.eu/lrms/GetMediaData?id=57b76b501f73e816c71154e2",null,1,{"$f":"SUM(BDD[[#This Row],[PVP]],BDD[[#This Row],[PVE]])","v":0},{"$f":"SUM(BDD[[#This Row],[BAD HARVEST]:[TITANS Support]])","v":0},{"$f":"SUM(BDD[[#This Row],[Pure Fire]:[Nature/Frost]])","v":0}]
["Ice Guardian","DEFENDING HOPE","Frost","Tiers 1",50,"Unit",500,400,"https://cardbase.skylords.eu/lrms/GetMediaData?id=57b76b501f73e816c71154e4",null,1,{"$f":"SUM(BDD[[#This Row],[PVP]],BDD[[#This Row],[PVE]])","v":2},{"$f":"SUM(BDD[[#This Row],[BAD HARVEST]:[TITANS Support]])","v":0},{"$f":"SUM(BDD[[#This Row],[Pure Fire]:[Nature/Frost]])","v":2},null,null,null,null,null,null,1,null,null,null,null,1]
["Ice Shield Tower","BEHIND ENEMY LINES","Frost","Tiers 1",50,"Building",625,1100,"https://cardbase.skylords.eu/lrms/GetMediaData?id=57b76b501f73e816c71154e6",null,1,{"$f":"SUM(BDD[[#This Row],[PVP]],BDD[[#This Row],[PVE]])","v":0},{"$f":"SUM(BDD[[#This Row],[BAD HARVEST]:[TITANS Support]])","v":0},{"$f":"SUM(BDD[[#This Row],[Pure Fire]:[Nature/Frost]])","v":0}]
["Ice Tornado","EMPIRE","Frost","Tiers 4",200,"Spell",null,null,"https://cardbase.skylords.eu/lrms/GetMediaData?id=57b76b501f73e816c71154e8",null,1,{"$f":"SUM(BDD[[#This Row],[PVP]],BDD[[#This Row],[PVE]])","v":0},{"$f":"SUM(BDD[[#This Row],[BAD HARVEST]:[TITANS Support]])","v":0},{"$f":"SUM(BDD[[#This Row],[Pure Fire]:[Nature/Frost]])","v":0}]
["Icefang Raptor (Fire)","THE DWARVEN RIDDLE","Frost","Tiers 2",70,"Unit",680,895,"https://cardbase.skylords.eu/lrms/GetMediaData?id=57b76b501f73e816c71154ec",null,1,{"$f":"SUM(BDD[[#This Row],[PVP]],BDD[[#This Row],[PVE]])","v":0},{"$f":"SUM(BDD[[#This Row],[BAD HARVEST]:[TITANS Support]])","v":0},{"$f":"SUM(BDD[[#This Row],[Pure Fire]:[Nature/Frost]])","v":0}]
["Icefang Raptor (Frost)","NIGHTMARE'S END","Frost","Tiers 2",70,"Unit",680,895,"https://cardbase.skylords.eu/lrms/GetMediaData?id=57b76b501f73e816c71154ea",null,1,{"$f":"SUM(BDD[[#This Row],[PVP]],BDD[[#This Row],[PVE]])","v":0},{"$f":"SUM(BDD[[#This Row],[BAD HARVEST]:[TITANS Support]])","v":0},{"$f":"SUM(BDD[[#This Row],[Pure Fire]:[Nature/Frost]])","v":0}]
["Imperials","SIEGE OF HOPE","Frost","Tiers 1",70,"Unit",660,690,"https://cardbase.skylords.eu/lrms/GetMediaData?id=57b76b501f73e816c71154ee",null,1,{"$f":"SUM(BDD[[#This Row],[PVP]],BDD[[#This Row],[PVE]])","v":0},{"$f":"SUM(BDD[[#This Row],[BAD HARVEST]:[TITANS Support]])","v":0},{"$f":"SUM(BDD[[#This Row],[Pure Fire]:[Nature/Frost]])","v":0}]
["Incubator (Fire)","THE SOULTREE","Shadow","Tiers 4",100,"Building",null,2730,"https://cardbase.skylords.eu/lrms/GetMediaData?id=57b76b511f73e816c71154f0",null,1,{"$f":"SUM(BDD[[#This Row],[PVP]],BDD[[#This Row],[PVE]])","v":1},{"$f":"SUM(BDD[[#This Row],[BAD HARVEST]:[TITANS Support]])","v":1},{"$f":"SUM(BDD[[#This Row],[Pure Fire]:[Nature/Frost]])","v":0},null,null,null,null,null,null,null,null,null,null,null,null,null,null,null,null,null,null,null,null,null,null,null,null,null,null,null,null,null,null,null,null,null,null,null,null,null,null,null,null,null,null,null,null,null,null,null,null,null,null,1]
["Incubator (Shadow)","NIGHTMARE SHARD","Shadow","Tiers 4",100,"Building",null,2730,"https://cardbase.skylords.eu/lrms/GetMediaData?id=57b76b511f73e816c71154f2",null,1,{"$f":"SUM(BDD[[#This Row],[PVP]],BDD[[#This Row],[PVE]])","v":0},{"$f":"SUM(BDD[[#This Row],[BAD HARVEST]:[TITANS Support]])","v":0},{"$f":"SUM(BDD[[#This Row],[Pure Fire]:[Nature/Frost]])","v":0}]
["Infect","SUNBRIDGE","Shadow","Tiers 3",100,"Spell",null,null,"https://cardbase.skylords.eu/lrms/GetMediaData?id=57b76b511f73e816c71154f4",null,1,{"$f":"SUM(BDD[[#This Row],[PVP]],BDD[[#This Row],[PVE]])","v":14},{"$f":"SUM(BDD[[#This Row],[BAD HARVEST]:[TITANS Support]])","v":14},{"$f":"SUM(BDD[[#This Row],[Pure Fire]:[Nature/Frost]])","v":0},null,null,null,null,null,null,null,null,null,null,null,null,null,null,null,null,null,null,null,null,null,1,null,1,null,null,null,1,null,1,1,null,null,1,null,null,null,null,null,1,1,1,1,null,null,1,1,null,1,null,1]
["Infected Tower (Fire)","NIGHTMARE'S END","Twilight","Tiers 2",70,"Building",750,1570,"https://cardbase.skylords.eu/lrms/GetMediaData?id=57b76b511f73e816c71154f8",null,1,{"$f":"SUM(BDD[[#This Row],[PVP]],BDD[[#This Row],[PVE]])","v":0},{"$f":"SUM(BDD[[#This Row],[BAD HARVEST]:[TITANS Support]])","v":0},{"$f":"SUM(BDD[[#This Row],[Pure Fire]:[Nature/Frost]])","v":0}]
["Infected Tower (Frost)","THE TREASURE FLEET","Twilight","Tiers 2",70,"Building",750,1570,"https://cardbase.skylords.eu/lrms/GetMediaData?id=57b76b511f73e816c71154f6",null,1,{"$f":"SUM(BDD[[#This Row],[PVP]],BDD[[#This Row],[PVE]])","v":0},{"$f":"SUM(BDD[[#This Row],[BAD HARVEST]:[TITANS Support]])","v":0},{"$f":"SUM(BDD[[#This Row],[Pure Fire]:[Nature/Frost]])","v":0}]
["Infernal Chain (Frost)","EMPIRE","Shadow","Tiers 4",165,"Spell",null,null,"https://cardbase.skylords.eu/lrms/GetMediaData?id=57b76b511f73e816c71154fc",null,1,{"$f":"SUM(BDD[[#This Row],[PVP]],BDD[[#This Row],[PVE]])","v":0},{"$f":"SUM(BDD[[#This Row],[BAD HARVEST]:[TITANS Support]])","v":0},{"$f":"SUM(BDD[[#This Row],[Pure Fire]:[Nature/Frost]])","v":0}]
["Infernal Chain (Nature)","BLIGHT","Shadow","Tiers 4",165,"Spell",null,null,"https://cardbase.skylords.eu/lrms/GetMediaData?id=57b76b511f73e816c71154fa",null,1,{"$f":"SUM(BDD[[#This Row],[PVP]],BDD[[#This Row],[PVE]])","v":0},{"$f":"SUM(BDD[[#This Row],[BAD HARVEST]:[TITANS Support]])","v":0},{"$f":"SUM(BDD[[#This Row],[Pure Fire]:[Nature/Frost]])","v":0}]
["Infernal Machine (Fire)","KING OF THE GIANTS","Fire","Tiers 3",260,"Building",null,1800,"https://cardbase.skylords.eu/lrms/GetMediaData?id=57b76b511f73e816c7115500",null,1,{"$f":"SUM(BDD[[#This Row],[PVP]],BDD[[#This Row],[PVE]])","v":0},{"$f":"SUM(BDD[[#This Row],[BAD HARVEST]:[TITANS Support]])","v":0},{"$f":"SUM(BDD[[#This Row],[Pure Fire]:[Nature/Frost]])","v":0}]
["Infernal Machine (Shadow)","ORACLE","Fire","Tiers 3",260,"Building",null,1800,"https://cardbase.skylords.eu/lrms/GetMediaData?id=57b76b511f73e816c71154fe",null,1,{"$f":"SUM(BDD[[#This Row],[PVP]],BDD[[#This Row],[PVE]])","v":0},{"$f":"SUM(BDD[[#This Row],[BAD HARVEST]:[TITANS Support]])","v":0},{"$f":"SUM(BDD[[#This Row],[Pure Fire]:[Nature/Frost]])","v":0}]
["Inferno","THE GUNS OF LYR","Fire","Tiers 3",300,"Spell",null,null,"https://cardbase.skylords.eu/lrms/GetMediaData?id=57b76b511f73e816c7115502",null,1,{"$f":"SUM(BDD[[#This Row],[PVP]],BDD[[#This Row],[PVE]])","v":0},{"$f":"SUM(BDD[[#This Row],[BAD HARVEST]:[TITANS Support]])","v":0},{"$f":"SUM(BDD[[#This Row],[Pure Fire]:[Nature/Frost]])","v":0}]
["Ironclad (Fire)","THE INSANE GOD","Frost","Tiers 4",280,"Unit",3510,4980,"https://cardbase.skylords.eu/lrms/GetMediaData?id=57b76b511f73e816c7115504",null,1,{"$f":"SUM(BDD[[#This Row],[PVP]],BDD[[#This Row],[PVE]])","v":0},{"$f":"SUM(BDD[[#This Row],[BAD HARVEST]:[TITANS Support]])","v":0},{"$f":"SUM(BDD[[#This Row],[Pure Fire]:[Nature/Frost]])","v":0}]
["Ironclad (Frost)","THE GUNS OF LYR","Frost","Tiers 4",280,"Unit",3510,4980,"https://cardbase.skylords.eu/lrms/GetMediaData?id=57b76b511f73e816c7115506",null,1,{"$f":"SUM(BDD[[#This Row],[PVP]],BDD[[#This Row],[PVE]])","v":0},{"$f":"SUM(BDD[[#This Row],[BAD HARVEST]:[TITANS Support]])","v":0},{"$f":"SUM(BDD[[#This Row],[Pure Fire]:[Nature/Frost]])","v":0}]
["Jorne","KING OF THE GIANTS","Neutral","Tiers 4",300,"Unit",6350,5490,"https://cardbase.skylords.eu/lrms/GetMediaData?id=57b8d17b1f73e82f8ff28f05",null,1,{"$f":"SUM(BDD[[#This Row],[PVP]],BDD[[#This Row],[PVE]])","v":0},{"$f":"SUM(BDD[[#This Row],[BAD HARVEST]:[TITANS Support]])","v":0},{"$f":"SUM(BDD[[#This Row],[Pure Fire]:[Nature/Frost]])","v":0}]
["Juggernaut","NIGHTMARE SHARD","Fire ","Tiers 3",220,"Unit",3750,3550,"https://cardbase.skylords.eu/lrms/GetMediaData?id=57b76b511f73e816c7115509",null,1,{"$f":"SUM(BDD[[#This Row],[PVP]],BDD[[#This Row],[PVE]])","v":0},{"$f":"SUM(BDD[[#This Row],[BAD HARVEST]:[TITANS Support]])","v":0},{"$f":"SUM(BDD[[#This Row],[Pure Fire]:[Nature/Frost]])","v":0}]
["Juggernaut (promo)","NIGHTMARE SHARD","Fire","Tiers 3",220,"Unit",4745,3550,"https://cardbase.skylords.eu/lrms/GetMediaData?id=57b77f9f1f73e825237afcc2",null,1,{"$f":"SUM(BDD[[#This Row],[PVP]],BDD[[#This Row],[PVE]])","v":1},{"$f":"SUM(BDD[[#This Row],[BAD HARVEST]:[TITANS Support]])","v":0},{"$f":"SUM(BDD[[#This Row],[Pure Fire]:[Nature/Frost]])","v":1},1]
["Juice Tank","THE TREASURE FLEET","Frost","Tiers 2",50,"Building",null,1550,"https://cardbase.skylords.eu/lrms/GetMediaData?id=57b76b511f73e816c711550c",null,1,{"$f":"SUM(BDD[[#This Row],[PVP]],BDD[[#This Row],[PVE]])","v":1},{"$f":"SUM(BDD[[#This Row],[BAD HARVEST]:[TITANS Support]])","v":1},{"$f":"SUM(BDD[[#This Row],[Pure Fire]:[Nature/Frost]])","v":0},null,null,null,null,null,null,null,null,null,null,null,null,null,null,null,null,null,null,null,null,null,null,null,null,null,null,null,null,null,null,null,null,1]
["Knight of Chaos (Frost)","MO","Shadow","Tiers 2",70,"Unit",880,900,"https://cardbase.skylords.eu/lrms/GetMediaData?id=57b76b511f73e816c7115510",null,1,{"$f":"SUM(BDD[[#This Row],[PVP]],BDD[[#This Row],[PVE]])","v":2},{"$f":"SUM(BDD[[#This Row],[BAD HARVEST]:[TITANS Support]])","v":1},{"$f":"SUM(BDD[[#This Row],[Pure Fire]:[Nature/Frost]])","v":1},null,1,null,null,null,null,null,null,null,null,null,null,null,null,null,null,null,null,null,null,1]
["Knight of Chaos (Shadow)","NIGHTMARE'S END","Shadow","Tiers 2",70,"Unit",880,900,"https://cardbase.skylords.eu/lrms/GetMediaData?id=57b76b511f73e816c711550e",null,1,{"$f":"SUM(BDD[[#This Row],[PVP]],BDD[[#This Row],[PVE]])","v":0},{"$f":"SUM(BDD[[#This Row],[BAD HARVEST]:[TITANS Support]])","v":0},{"$f":"SUM(BDD[[#This Row],[Pure Fire]:[Nature/Frost]])","v":0}]
["Kobold Engineer","THE GUNS OF LYR","Frost","Tiers 3",100,"Unit",950,2000,"https://cardbase.skylords.eu/lrms/GetMediaData?id=57b76b511f73e816c7115512",null,1,{"$f":"SUM(BDD[[#This Row],[PVP]],BDD[[#This Row],[PVE]])","v":1},{"$f":"SUM(BDD[[#This Row],[BAD HARVEST]:[TITANS Support]])","v":1},{"$f":"SUM(BDD[[#This Row],[Pure Fire]:[Nature/Frost]])","v":0},null,null,null,null,null,null,null,null,null,null,null,null,null,null,null,null,null,null,null,null,null,null,null,null,null,null,null,null,null,null,null,null,null,null,null,null,null,null,null,null,null,null,null,null,null,null,null,null,1]
["Kobold Inc. (Frost)","THE DWARVEN RIDDLE","Frost","Tiers 4",120,"Spell",null,null,"https://cardbase.skylords.eu/lrms/GetMediaData?id=57b76b511f73e816c7115516",null,1,{"$f":"SUM(BDD[[#This Row],[PVP]],BDD[[#This Row],[PVE]])","v":0},{"$f":"SUM(BDD[[#This Row],[BAD HARVEST]:[TITANS Support]])","v":0},{"$f":"SUM(BDD[[#This Row],[Pure Fire]:[Nature/Frost]])","v":0}]
["Kobold Inc. (Shadow)","EMPIRE","Frost","Tiers 4",120,"Spell",null,null,"https://cardbase.skylords.eu/lrms/GetMediaData?id=57b76b511f73e816c7115514",null,1,{"$f":"SUM(BDD[[#This Row],[PVP]],BDD[[#This Row],[PVE]])","v":0},{"$f":"SUM(BDD[[#This Row],[BAD HARVEST]:[TITANS Support]])","v":0},{"$f":"SUM(BDD[[#This Row],[Pure Fire]:[Nature/Frost]])","v":0}]
["Kobold Laboratory","DEFENDING HOPE","Frost","Tiers 2",50,"Building",null,1300,"https://cardbase.skylords.eu/lrms/GetMediaData?id=57b76b511f73e816c7115518",null,1,{"$f":"SUM(BDD[[#This Row],[PVP]],BDD[[#This Row],[PVE]])","v":0},{"$f":"SUM(BDD[[#This Row],[BAD HARVEST]:[TITANS Support]])","v":0},{"$f":"SUM(BDD[[#This Row],[Pure Fire]:[Nature/Frost]])","v":0}]
["Kobold Trick","ENCOUNTERS WITH TWILIGHT","Frost","Tiers 2",50,"Spell",null,null,"https://cardbase.skylords.eu/lrms/GetMediaData?id=57b76b511f73e816c711551a",null,1,{"$f":"SUM(BDD[[#This Row],[PVP]],BDD[[#This Row],[PVE]])","v":6},{"$f":"SUM(BDD[[#This Row],[BAD HARVEST]:[TITANS Support]])","v":0},{"$f":"SUM(BDD[[#This Row],[Pure Fire]:[Nature/Frost]])","v":6},null,null,1,null,null,1,1,null,null,1,null,1,1]
["Lava Field","OCEAN","Fire","Tiers 2",120,"Spell",null,null,"https://cardbase.skylords.eu/lrms/GetMediaData?id=57b76b511f73e816c711551c",null,1,{"$f":"SUM(BDD[[#This Row],[PVP]],BDD[[#This Row],[PVE]])","v":8},{"$f":"SUM(BDD[[#This Row],[BAD HARVEST]:[TITANS Support]])","v":2},{"$f":"SUM(BDD[[#This Row],[Pure Fire]:[Nature/Frost]])","v":6},1,null,null,null,1,1,1,1,1,null,null,null,null,null,null,null,null,null,null,null,null,null,null,null,null,null,null,null,null,null,null,null,null,null,null,1,null,null,null,null,null,null,null,null,null,null,null,null,null,null,null,null,1]
["Life Weaving","THE SOULTREE","Shadow","Tiers 1",75,"Spell",null,null,"https://cardbase.skylords.eu/lrms/GetMediaData?id=57b76b511f73e816c711551e",null,1,{"$f":"SUM(BDD[[#This Row],[PVP]],BDD[[#This Row],[PVE]])","v":19},{"$f":"SUM(BDD[[#This Row],[BAD HARVEST]:[TITANS Support]])","v":17},{"$f":"SUM(BDD[[#This Row],[Pure Fire]:[Nature/Frost]])","v":2},null,null,null,null,1,null,null,null,1,null,null,null,null,null,null,null,1,1,null,1,null,1,null,null,null,null,null,1,null,1,1,1,null,null,1,null,null,1,null,1,1,null,1,null,1,1,1,null,null,null,null,null,null,null,1]
["Lifestealer","CRUSADE","Shadow","Tiers 1",50,"Building",1080,1200,"https://cardbase.skylords.eu/lrms/GetMediaData?id=57b76b511f73e816c7115520",null,1,{"$f":"SUM(BDD[[#This Row],[PVP]],BDD[[#This Row],[PVE]])","v":1},{"$f":"SUM(BDD[[#This Row],[BAD HARVEST]:[TITANS Support]])","v":1},{"$f":"SUM(BDD[[#This Row],[Pure Fire]:[Nature/Frost]])","v":0},null,null,null,null,null,null,null,null,null,null,null,null,null,null,null,null,null,null,null,null,null,null,null,null,null,null,null,null,null,null,null,null,null,null,null,null,null,null,null,null,null,null,null,null,null,null,null,null,null,null,null,null,null,null,1]
["Lifestream","THE INSANE GOD","Nature","Tiers 4",250,"Building",null,5500,"https://cardbase.skylords.eu/lrms/GetMediaData?id=57b76b511f73e816c7115522",null,1,{"$f":"SUM(BDD[[#This Row],[PVP]],BDD[[#This Row],[PVE]])","v":0},{"$f":"SUM(BDD[[#This Row],[BAD HARVEST]:[TITANS Support]])","v":0},{"$f":"SUM(BDD[[#This Row],[Pure Fire]:[Nature/Frost]])","v":0}]
["Lightblade (Fire)","CONVOY","Frost","Tiers 1",75,"Unit",420,1050,"https://cardbase.skylords.eu/lrms/GetMediaData?id=57b76b511f73e816c7115526",null,1,{"$f":"SUM(BDD[[#This Row],[PVP]],BDD[[#This Row],[PVE]])","v":0},{"$f":"SUM(BDD[[#This Row],[BAD HARVEST]:[TITANS Support]])","v":0},{"$f":"SUM(BDD[[#This Row],[Pure Fire]:[Nature/Frost]])","v":0}]
["Lightblade (Shadow)","BLIGHT","Frost","Tiers 1",75,"Unit",420,1050,"https://cardbase.skylords.eu/lrms/GetMediaData?id=57b76b511f73e816c7115524",null,1,{"$f":"SUM(BDD[[#This Row],[PVP]],BDD[[#This Row],[PVE]])","v":3},{"$f":"SUM(BDD[[#This Row],[BAD HARVEST]:[TITANS Support]])","v":0},{"$f":"SUM(BDD[[#This Row],[Pure Fire]:[Nature/Frost]])","v":3},null,null,1,null,null,null,1,null,null,null,null,1]
["Living Tower","THE INSANE GOD","Nature","Tiers 2",70,"Building",685,1200,"https://cardbase.skylords.eu/lrms/GetMediaData?id=57b76b511f73e816c7115528",null,1,{"$f":"SUM(BDD[[#This Row],[PVP]],BDD[[#This Row],[PVE]])","v":0},{"$f":"SUM(BDD[[#This Row],[BAD HARVEST]:[TITANS Support]])","v":0},{"$f":"SUM(BDD[[#This Row],[Pure Fire]:[Nature/Frost]])","v":0}]
["Lord Cyrian (promo)","NONE","Neutral","Tiers 3",380,"Unit",5250,5250,"https://cardbase.skylords.eu/lrms/GetMediaData?id=57b780ab1f73e825237afcc3",null,1,{"$f":"SUM(BDD[[#This Row],[PVP]],BDD[[#This Row],[PVE]])","v":0},{"$f":"SUM(BDD[[#This Row],[BAD HARVEST]:[TITANS Support]])","v":0},{"$f":"SUM(BDD[[#This Row],[Pure Fire]:[Nature/Frost]])","v":0}]
["Lost Banestone (Frost)","EMPIRE","Lost Souls","Tiers 3",60,"Building",null,1430,"https://cardbase.skylords.eu/lrms/GetMediaData?id=57b76b511f73e816c711552d",null,1,{"$f":"SUM(BDD[[#This Row],[PVP]],BDD[[#This Row],[PVE]])","v":1},{"$f":"SUM(BDD[[#This Row],[BAD HARVEST]:[TITANS Support]])","v":1},{"$f":"SUM(BDD[[#This Row],[Pure Fire]:[Nature/Frost]])","v":0},null,null,null,null,null,null,null,null,null,null,null,null,null,null,null,null,null,null,null,null,null,null,null,null,null,null,null,null,null,null,null,null,null,null,null,null,null,null,null,null,null,1]
["Lost Banestone (Nature)","NIGHTMARE'S END","Lost Souls","Tiers 3",60,"Building",null,1430,"https://cardbase.skylords.eu/lrms/GetMediaData?id=57b76b511f73e816c711552b",null,1,{"$f":"SUM(BDD[[#This Row],[PVP]],BDD[[#This Row],[PVE]])","v":0},{"$f":"SUM(BDD[[#This Row],[BAD HARVEST]:[TITANS Support]])","v":0},{"$f":"SUM(BDD[[#This Row],[Pure Fire]:[Nature/Frost]])","v":0}]
["Lost Converter (Frost)","SIEGE OF HOPE","Lost Souls","Tiers 2",55,"Building",null,1470,"https://cardbase.skylords.eu/lrms/GetMediaData?id=57b76b511f73e816c711552f",null,1,{"$f":"SUM(BDD[[#This Row],[PVP]],BDD[[#This Row],[PVE]])","v":0},{"$f":"SUM(BDD[[#This Row],[BAD HARVEST]:[TITANS Support]])","v":0},{"$f":"SUM(BDD[[#This Row],[Pure Fire]:[Nature/Frost]])","v":0}]
["Lost Converter (Shadow)","THE TREASURE FLEET","Lost Souls","Tiers 2",55,"Building",null,1470,"https://cardbase.skylords.eu/lrms/GetMediaData?id=57b76b511f73e816c7115531",null,1,{"$f":"SUM(BDD[[#This Row],[PVP]],BDD[[#This Row],[PVE]])","v":0},{"$f":"SUM(BDD[[#This Row],[BAD HARVEST]:[TITANS Support]])","v":0},{"$f":"SUM(BDD[[#This Row],[Pure Fire]:[Nature/Frost]])","v":0}]
["Lost Dancer (Fire)","MO","Lost Souls","Tiers 2",70,"Unit",666.66666666666674,620,"https://cardbase.skylords.eu/lrms/GetMediaData?id=57b76b511f73e816c7115533",null,1,{"$f":"SUM(BDD[[#This Row],[PVP]],BDD[[#This Row],[PVE]])","v":0},{"$f":"SUM(BDD[[#This Row],[BAD HARVEST]:[TITANS Support]])","v":0},{"$f":"SUM(BDD[[#This Row],[Pure Fire]:[Nature/Frost]])","v":0}]
["Lost Dancer (Shadow)","CONVOY","Lost Souls","Tiers 2",70,"Unit",666.66666666666674,620,"https://cardbase.skylords.eu/lrms/GetMediaData?id=57b76b511f73e816c7115535",null,1,{"$f":"SUM(BDD[[#This Row],[PVP]],BDD[[#This Row],[PVE]])","v":0},{"$f":"SUM(BDD[[#This Row],[BAD HARVEST]:[TITANS Support]])","v":0},{"$f":"SUM(BDD[[#This Row],[Pure Fire]:[Nature/Frost]])","v":0}]
["Lost Disruptor (Nature)","CRUSADE","Lost Souls","Tiers 3",75,"Building",2450,2070,"https://cardbase.skylords.eu/lrms/GetMediaData?id=57b76b511f73e816c7115537",null,1,{"$f":"SUM(BDD[[#This Row],[PVP]],BDD[[#This Row],[PVE]])","v":0},{"$f":"SUM(BDD[[#This Row],[BAD HARVEST]:[TITANS Support]])","v":0},{"$f":"SUM(BDD[[#This Row],[Pure Fire]:[Nature/Frost]])","v":0}]
["Lost Disruptor (Shadow)","BLIGHT","Lost Souls","Tiers 3",75,"Building",2450,2070,"https://cardbase.skylords.eu/lrms/GetMediaData?id=57b76b511f73e816c7115539",null,1,{"$f":"SUM(BDD[[#This Row],[PVP]],BDD[[#This Row],[PVE]])","v":0},{"$f":"SUM(BDD[[#This Row],[BAD HARVEST]:[TITANS Support]])","v":0},{"$f":"SUM(BDD[[#This Row],[Pure Fire]:[Nature/Frost]])","v":0}]
["Lost Dragon (Nature)","EMPIRE","Lost Souls","Tiers 4",250,"Unit",2790,3120,"https://cardbase.skylords.eu/lrms/GetMediaData?id=57b76b511f73e816c711553b",null,1,{"$f":"SUM(BDD[[#This Row],[PVP]],BDD[[#This Row],[PVE]])","v":0},{"$f":"SUM(BDD[[#This Row],[BAD HARVEST]:[TITANS Support]])","v":0},{"$f":"SUM(BDD[[#This Row],[Pure Fire]:[Nature/Frost]])","v":0}]
["Lost Dragon (Shadow)","THE TREASURE FLEET","Lost Souls","Tiers 4",250,"Unit",2790,3120,"https://cardbase.skylords.eu/lrms/GetMediaData?id=57b76b511f73e816c711553d",null,1,{"$f":"SUM(BDD[[#This Row],[PVP]],BDD[[#This Row],[PVE]])","v":0},{"$f":"SUM(BDD[[#This Row],[BAD HARVEST]:[TITANS Support]])","v":0},{"$f":"SUM(BDD[[#This Row],[Pure Fire]:[Nature/Frost]])","v":0}]
["Lost Evocation (Fire)","BLIGHT","Lost Souls","Tiers 4",150,"Spell",null,null,"https://cardbase.skylords.eu/lrms/GetMediaData?id=57b76b511f73e816c711553f",null,1,{"$f":"SUM(BDD[[#This Row],[PVP]],BDD[[#This Row],[PVE]])","v":0},{"$f":"SUM(BDD[[#This Row],[BAD HARVEST]:[TITANS Support]])","v":0},{"$f":"SUM(BDD[[#This Row],[Pure Fire]:[Nature/Frost]])","v":0}]
["Lost Evocation (Frost)","BEHIND ENEMY LINES","Lost Souls","Tiers 4",150,"Spell",null,null,"https://cardbase.skylords.eu/lrms/GetMediaData?id=57b76b511f73e816c7115541",null,1,{"$f":"SUM(BDD[[#This Row],[PVP]],BDD[[#This Row],[PVE]])","v":0},{"$f":"SUM(BDD[[#This Row],[BAD HARVEST]:[TITANS Support]])","v":0},{"$f":"SUM(BDD[[#This Row],[Pure Fire]:[Nature/Frost]])","v":0}]
["Lost Grigori (Fire)","RAVEN'S END","Lost Souls","Tiers 3",200,"Unit",3000,2800,"https://cardbase.skylords.eu/lrms/GetMediaData?id=57b76b511f73e816c7115543",null,1,{"$f":"SUM(BDD[[#This Row],[PVP]],BDD[[#This Row],[PVE]])","v":0},{"$f":"SUM(BDD[[#This Row],[BAD HARVEST]:[TITANS Support]])","v":0},{"$f":"SUM(BDD[[#This Row],[Pure Fire]:[Nature/Frost]])","v":0}]
["Lost Grigori (Shadow)","BEHIND ENEMY LINES","Lost Souls","Tiers 3",200,"Unit",3000,2800,"https://cardbase.skylords.eu/lrms/GetMediaData?id=57b76b511f73e816c7115545",null,1,{"$f":"SUM(BDD[[#This Row],[PVP]],BDD[[#This Row],[PVE]])","v":2},{"$f":"SUM(BDD[[#This Row],[BAD HARVEST]:[TITANS Support]])","v":0},{"$f":"SUM(BDD[[#This Row],[Pure Fire]:[Nature/Frost]])","v":2},null,1,null,null,null,null,null,null,null,1]
["Lost Horror (Fire)","EMPIRE","Lost Souls","Tiers 3",230,"Unit",1875,3310,"https://cardbase.skylords.eu/lrms/GetMediaData?id=57b76b511f73e816c7115547",null,1,{"$f":"SUM(BDD[[#This Row],[PVP]],BDD[[#This Row],[PVE]])","v":0},{"$f":"SUM(BDD[[#This Row],[BAD HARVEST]:[TITANS Support]])","v":0},{"$f":"SUM(BDD[[#This Row],[Pure Fire]:[Nature/Frost]])","v":0}]
["Lost Horror (Nature)","NIGHTMARE'S END","Lost Souls","Tiers 3",230,"Unit",1875,3310,"https://cardbase.skylords.eu/lrms/GetMediaData?id=57b76b511f73e816c7115549",null,1,{"$f":"SUM(BDD[[#This Row],[PVP]],BDD[[#This Row],[PVE]])","v":0},{"$f":"SUM(BDD[[#This Row],[BAD HARVEST]:[TITANS Support]])","v":0},{"$f":"SUM(BDD[[#This Row],[Pure Fire]:[Nature/Frost]])","v":0}]
["Lost Launcher (Fire)","THE TREASURE FLEET","Lost Souls","Tiers 2",70,"Building",1500,1120,"https://cardbase.skylords.eu/lrms/GetMediaData?id=57b76b511f73e816c711554b",null,1,{"$f":"SUM(BDD[[#This Row],[PVP]],BDD[[#This Row],[PVE]])","v":0},{"$f":"SUM(BDD[[#This Row],[BAD HARVEST]:[TITANS Support]])","v":0},{"$f":"SUM(BDD[[#This Row],[Pure Fire]:[Nature/Frost]])","v":0}]
["Lost Launcher (Frost)","ORACLE","Lost Souls","Tiers 2",70,"Building",1500,1120,"https://cardbase.skylords.eu/lrms/GetMediaData?id=57b76b511f73e816c711554d",null,1,{"$f":"SUM(BDD[[#This Row],[PVP]],BDD[[#This Row],[PVE]])","v":0},{"$f":"SUM(BDD[[#This Row],[BAD HARVEST]:[TITANS Support]])","v":0},{"$f":"SUM(BDD[[#This Row],[Pure Fire]:[Nature/Frost]])","v":0}]
["Lost Priest (Fire)","ORACLE","Lost Souls","Tiers 2",60,"Unit",466.66666666666663,590,"https://cardbase.skylords.eu/lrms/GetMediaData?id=57b76b511f73e816c7115551",null,1,{"$f":"SUM(BDD[[#This Row],[PVP]],BDD[[#This Row],[PVE]])","v":0},{"$f":"SUM(BDD[[#This Row],[BAD HARVEST]:[TITANS Support]])","v":0},{"$f":"SUM(BDD[[#This Row],[Pure Fire]:[Nature/Frost]])","v":0}]
["Lost Priest (Shadow)","THE INSANE GOD","Lost Souls","Tiers 2",60,"Unit",466.66666666666663,590,"https://cardbase.skylords.eu/lrms/GetMediaData?id=57b76b511f73e816c711554f",null,1,{"$f":"SUM(BDD[[#This Row],[PVP]],BDD[[#This Row],[PVE]])","v":0},{"$f":"SUM(BDD[[#This Row],[BAD HARVEST]:[TITANS Support]])","v":0},{"$f":"SUM(BDD[[#This Row],[Pure Fire]:[Nature/Frost]])","v":0}]
["Lost Reaver (Fire)","ENCOUNTERS WITH TWILIGHT","Lost Souls","Tiers 2",120,"Unit",1200,1500,"https://cardbase.skylords.eu/lrms/GetMediaData?id=57b76b511f73e816c7115555",null,1,{"$f":"SUM(BDD[[#This Row],[PVP]],BDD[[#This Row],[PVE]])","v":0},{"$f":"SUM(BDD[[#This Row],[BAD HARVEST]:[TITANS Support]])","v":0},{"$f":"SUM(BDD[[#This Row],[Pure Fire]:[Nature/Frost]])","v":0}]
["Lost Reaver (Shadow)","EMPIRE","Lost Souls","Tiers 2",120,"Unit",1200,1500,"https://cardbase.skylords.eu/lrms/GetMediaData?id=57b76b511f73e816c7115553",null,1,{"$f":"SUM(BDD[[#This Row],[PVP]],BDD[[#This Row],[PVE]])","v":0},{"$f":"SUM(BDD[[#This Row],[BAD HARVEST]:[TITANS Support]])","v":0},{"$f":"SUM(BDD[[#This Row],[Pure Fire]:[Nature/Frost]])","v":0}]
["Lost Shade (Frost)","THE TITANS","Lost Souls","Tiers 2",70,"Unit",940,800,"https://cardbase.skylords.eu/lrms/GetMediaData?id=57b76b511f73e816c7115559",null,1,{"$f":"SUM(BDD[[#This Row],[PVP]],BDD[[#This Row],[PVE]])","v":0},{"$f":"SUM(BDD[[#This Row],[BAD HARVEST]:[TITANS Support]])","v":0},{"$f":"SUM(BDD[[#This Row],[Pure Fire]:[Nature/Frost]])","v":0}]
["Lost Shade (Shadow)","NIGHTMARE SHARD","Lost Souls","Tiers 2",70,"Unit",940,800,"https://cardbase.skylords.eu/lrms/GetMediaData?id=57b76b511f73e816c7115557",null,1,{"$f":"SUM(BDD[[#This Row],[PVP]],BDD[[#This Row],[PVE]])","v":0},{"$f":"SUM(BDD[[#This Row],[BAD HARVEST]:[TITANS Support]])","v":0},{"$f":"SUM(BDD[[#This Row],[Pure Fire]:[Nature/Frost]])","v":0}]
["Lost Spirit Ship (Fire)","EMPIRE","Lost Souls","Tiers 4",240,"Unit",10200,3120,"https://cardbase.skylords.eu/lrms/GetMediaData?id=57b76b511f73e816c711555b",null,1,{"$f":"SUM(BDD[[#This Row],[PVP]],BDD[[#This Row],[PVE]])","v":5},{"$f":"SUM(BDD[[#This Row],[BAD HARVEST]:[TITANS Support]])","v":5},{"$f":"SUM(BDD[[#This Row],[Pure Fire]:[Nature/Frost]])","v":0},null,null,null,null,null,null,null,null,null,null,null,null,null,null,null,null,null,null,null,null,null,null,null,null,null,null,null,null,null,null,null,null,1,1,null,1,null,null,null,null,null,1,null,null,null,null,null,null,null,null,null,null,null,1]
["Lost Spirit Ship (Nature)","BEHIND ENEMY LINES","Lost Souls","Tiers 4",240,"Unit",10200,3120,"https://cardbase.skylords.eu/lrms/GetMediaData?id=57b76b511f73e816c711555d",null,1,{"$f":"SUM(BDD[[#This Row],[PVP]],BDD[[#This Row],[PVE]])","v":5},{"$f":"SUM(BDD[[#This Row],[BAD HARVEST]:[TITANS Support]])","v":5},{"$f":"SUM(BDD[[#This Row],[Pure Fire]:[Nature/Frost]])","v":0},null,null,null,null,null,null,null,null,null,null,null,null,null,null,null,null,null,null,null,null,null,null,null,null,null,null,null,null,null,null,null,null,1,1,null,1,null,null,null,null,null,1,null,null,null,null,null,null,null,null,null,null,null,1]
["Lost Vigil (Nature)","DEFENDING HOPE","Lost Souls","Tiers 3",160,"Unit",1125,960,"https://cardbase.skylords.eu/lrms/GetMediaData?id=57b76b511f73e816c7115561",null,1,{"$f":"SUM(BDD[[#This Row],[PVP]],BDD[[#This Row],[PVE]])","v":0},{"$f":"SUM(BDD[[#This Row],[BAD HARVEST]:[TITANS Support]])","v":0},{"$f":"SUM(BDD[[#This Row],[Pure Fire]:[Nature/Frost]])","v":0}]
["Lost Vigil (Shadow)","THE GUNS OF LYR","Lost Souls","Tiers 3",160,"Unit",1125,960,"https://cardbase.skylords.eu/lrms/GetMediaData?id=57b76b511f73e816c711555f",null,1,{"$f":"SUM(BDD[[#This Row],[PVP]],BDD[[#This Row],[PVE]])","v":0},{"$f":"SUM(BDD[[#This Row],[BAD HARVEST]:[TITANS Support]])","v":0},{"$f":"SUM(BDD[[#This Row],[Pure Fire]:[Nature/Frost]])","v":0}]
["Lost Wanderer (Frost)","KING OF THE GIANTS","Lost Souls","Tiers 2",80,"Unit",745,1340,"https://cardbase.skylords.eu/lrms/GetMediaData?id=57b76b511f73e816c7115565",null,1,{"$f":"SUM(BDD[[#This Row],[PVP]],BDD[[#This Row],[PVE]])","v":0},{"$f":"SUM(BDD[[#This Row],[BAD HARVEST]:[TITANS Support]])","v":0},{"$f":"SUM(BDD[[#This Row],[Pure Fire]:[Nature/Frost]])","v":0}]
["Lost Wanderer (Nature)","MO","Lost Souls","Tiers 2",80,"Unit",745,1340,"https://cardbase.skylords.eu/lrms/GetMediaData?id=57b76b511f73e816c7115563",null,1,{"$f":"SUM(BDD[[#This Row],[PVP]],BDD[[#This Row],[PVE]])","v":0},{"$f":"SUM(BDD[[#This Row],[BAD HARVEST]:[TITANS Support]])","v":0},{"$f":"SUM(BDD[[#This Row],[Pure Fire]:[Nature/Frost]])","v":0}]
["Lost Warlord (Fire)","THE INSANE GOD","Lost Souls","Tiers 4",260,"Unit",4640,5820,"https://cardbase.skylords.eu/lrms/GetMediaData?id=57b76b511f73e816c7115569",null,1,{"$f":"SUM(BDD[[#This Row],[PVP]],BDD[[#This Row],[PVE]])","v":0},{"$f":"SUM(BDD[[#This Row],[BAD HARVEST]:[TITANS Support]])","v":0},{"$f":"SUM(BDD[[#This Row],[Pure Fire]:[Nature/Frost]])","v":0}]
["Lost Warlord (Frost)","EMPIRE","Lost Souls","Tiers 4",260,"Unit",4640,5820,"https://cardbase.skylords.eu/lrms/GetMediaData?id=57b76b511f73e816c7115567",null,1,{"$f":"SUM(BDD[[#This Row],[PVP]],BDD[[#This Row],[PVE]])","v":0},{"$f":"SUM(BDD[[#This Row],[BAD HARVEST]:[TITANS Support]])","v":0},{"$f":"SUM(BDD[[#This Row],[Pure Fire]:[Nature/Frost]])","v":0}]
["Lyrish Knight","SIEGE OF HOPE","Frost","Tiers 2",60,"Unit",400,775,"https://cardbase.skylords.eu/lrms/GetMediaData?id=57b76b511f73e816c711556b",null,1,{"$f":"SUM(BDD[[#This Row],[PVP]],BDD[[#This Row],[PVE]])","v":0},{"$f":"SUM(BDD[[#This Row],[BAD HARVEST]:[TITANS Support]])","v":0},{"$f":"SUM(BDD[[#This Row],[Pure Fire]:[Nature/Frost]])","v":0}]
["Lyrish Knight (promo)","SIEGE OF HOPE","Frost","Tiers 2",60,"Unit",400,775,"https://cardbase.skylords.eu/lrms/GetMediaData?id=57b781211f73e825237afcc4",null,1,{"$f":"SUM(BDD[[#This Row],[PVP]],BDD[[#This Row],[PVE]])","v":1},{"$f":"SUM(BDD[[#This Row],[BAD HARVEST]:[TITANS Support]])","v":0},{"$f":"SUM(BDD[[#This Row],[Pure Fire]:[Nature/Frost]])","v":1},null,null,1]
["Maelstrom","NIGHTMARE'S END","Frost","Tiers 4",240,"Spell",null,null,"https://cardbase.skylords.eu/lrms/GetMediaData?id=57b76b511f73e816c711556e",null,1,{"$f":"SUM(BDD[[#This Row],[PVP]],BDD[[#This Row],[PVE]])","v":0},{"$f":"SUM(BDD[[#This Row],[BAD HARVEST]:[TITANS Support]])","v":0},{"$f":"SUM(BDD[[#This Row],[Pure Fire]:[Nature/Frost]])","v":0}]
["Magma Fiend","ORACLE","Fire ","Tiers 4",250,"Unit",5400,3170,"https://cardbase.skylords.eu/lrms/GetMediaData?id=57b76b511f73e816c7115570",null,1,{"$f":"SUM(BDD[[#This Row],[PVP]],BDD[[#This Row],[PVE]])","v":0},{"$f":"SUM(BDD[[#This Row],[BAD HARVEST]:[TITANS Support]])","v":0},{"$f":"SUM(BDD[[#This Row],[Pure Fire]:[Nature/Frost]])","v":0}]
["Magma Hurler","SIEGE OF HOPE","Fire ","Tiers 3",100,"Unit",1500,975,"https://cardbase.skylords.eu/lrms/GetMediaData?id=57b76b511f73e816c7115572",null,1,{"$f":"SUM(BDD[[#This Row],[PVP]],BDD[[#This Row],[PVE]])","v":1},{"$f":"SUM(BDD[[#This Row],[BAD HARVEST]:[TITANS Support]])","v":1},{"$f":"SUM(BDD[[#This Row],[Pure Fire]:[Nature/Frost]])","v":0},null,null,null,null,null,null,null,null,null,null,null,null,null,null,null,null,null,null,null,null,null,null,null,null,null,null,1]
["Magma Spore","CRUSADE","Fire ","Tiers 3",50,"Unit",1800,470,"https://cardbase.skylords.eu/lrms/GetMediaData?id=57b76b511f73e816c7115574",null,1,{"$f":"SUM(BDD[[#This Row],[PVP]],BDD[[#This Row],[PVE]])","v":0},{"$f":"SUM(BDD[[#This Row],[BAD HARVEST]:[TITANS Support]])","v":0},{"$f":"SUM(BDD[[#This Row],[Pure Fire]:[Nature/Frost]])","v":0}]
["Makeshift Tower","CRUSADE","Fire","Tiers 1",60,"Building",345,800,"https://cardbase.skylords.eu/lrms/GetMediaData?id=57b76b511f73e816c7115576",null,1,{"$f":"SUM(BDD[[#This Row],[PVP]],BDD[[#This Row],[PVE]])","v":2},{"$f":"SUM(BDD[[#This Row],[BAD HARVEST]:[TITANS Support]])","v":2},{"$f":"SUM(BDD[[#This Row],[Pure Fire]:[Nature/Frost]])","v":0},null,null,null,null,null,null,null,null,null,null,null,null,null,null,null,null,null,null,null,null,null,null,null,null,null,null,null,null,null,null,null,null,null,null,null,1,null,null,null,null,null,null,null,null,null,null,null,null,null,null,null,null,null,null,null,1]
["Mana Wing","NIGHTMARE SHARD","Nature","Tiers 1",60,"Unit",500,260,"https://cardbase.skylords.eu/lrms/GetMediaData?id=57b76b511f73e816c7115578",null,1,{"$f":"SUM(BDD[[#This Row],[PVP]],BDD[[#This Row],[PVE]])","v":6},{"$f":"SUM(BDD[[#This Row],[BAD HARVEST]:[TITANS Support]])","v":6},{"$f":"SUM(BDD[[#This Row],[Pure Fire]:[Nature/Frost]])","v":0},null,null,null,null,null,null,null,null,null,null,null,null,null,null,null,null,null,null,null,null,null,null,null,null,1,null,null,1,1,null,1,null,null,null,null,null,null,null,1,null,null,null,null,null,null,null,null,null,null,1]
["Mark of the Keeper","BEHIND ENEMY LINES","Nature","Tiers 1",70,"Building",null,1120,"https://cardbase.skylords.eu/lrms/GetMediaData?id=57b76b511f73e816c711557a",null,1,{"$f":"SUM(BDD[[#This Row],[PVP]],BDD[[#This Row],[PVE]])","v":7},{"$f":"SUM(BDD[[#This Row],[BAD HARVEST]:[TITANS Support]])","v":7},{"$f":"SUM(BDD[[#This Row],[Pure Fire]:[Nature/Frost]])","v":0},null,null,null,null,null,null,null,null,null,null,null,null,null,null,null,null,null,1,null,null,null,null,1,null,null,1,null,null,null,null,null,null,null,1,null,null,null,null,1,null,null,null,null,null,null,null,null,null,null,1,null,null,null,null,null,1]
["Master Archers","ENCOUNTERS WITH TWILIGHT","Frost","Tiers 1",50,"Unit",300,600,"https://cardbase.skylords.eu/lrms/GetMediaData?id=57b76b511f73e816c711557c",null,1,{"$f":"SUM(BDD[[#This Row],[PVP]],BDD[[#This Row],[PVE]])","v":5},{"$f":"SUM(BDD[[#This Row],[BAD HARVEST]:[TITANS Support]])","v":2},{"$f":"SUM(BDD[[#This Row],[Pure Fire]:[Nature/Frost]])","v":3},null,null,1,null,null,null,1,null,null,null,null,1,null,null,null,null,null,null,null,null,null,null,null,null,null,null,1,null,null,null,null,null,null,null,null,null,null,null,null,null,null,null,null,1]
["Matter Mastery (Nature)","THE DWARVEN RIDDLE","Stonekin","Tiers 2",165,"Spell",null,null,"https://cardbase.skylords.eu/lrms/GetMediaData?id=57b76b511f73e816c7115580",null,1,{"$f":"SUM(BDD[[#This Row],[PVP]],BDD[[#This Row],[PVE]])","v":3},{"$f":"SUM(BDD[[#This Row],[BAD HARVEST]:[TITANS Support]])","v":3},{"$f":"SUM(BDD[[#This Row],[Pure Fire]:[Nature/Frost]])","v":0},null,null,null,null,null,null,null,null,null,null,null,null,null,null,null,null,null,null,null,null,null,null,null,null,null,null,null,null,null,null,null,null,1,1,null,null,null,null,null,null,null,null,null,null,null,null,null,null,null,null,null,null,null,1]
["Matter Mastery (Shadow)","CONVOY","Stonekin","Tiers 2",165,"Spell",null,null,"https://cardbase.skylords.eu/lrms/GetMediaData?id=57b76b511f73e816c711557e",null,1,{"$f":"SUM(BDD[[#This Row],[PVP]],BDD[[#This Row],[PVE]])","v":0},{"$f":"SUM(BDD[[#This Row],[BAD HARVEST]:[TITANS Support]])","v":0},{"$f":"SUM(BDD[[#This Row],[Pure Fire]:[Nature/Frost]])","v":0}]
["Mauler","MO","Nature","Tiers 2",75,"Unit",710,830,"https://cardbase.skylords.eu/lrms/GetMediaData?id=57b76b511f73e816c7115582",null,1,{"$f":"SUM(BDD[[#This Row],[PVP]],BDD[[#This Row],[PVE]])","v":0},{"$f":"SUM(BDD[[#This Row],[BAD HARVEST]:[TITANS Support]])","v":0},{"$f":"SUM(BDD[[#This Row],[Pure Fire]:[Nature/Frost]])","v":0}]
["Mind Control","THE INSANE GOD","Nature","Tiers 4",300,"Spell",null,null,"https://cardbase.skylords.eu/lrms/GetMediaData?id=57b76b511f73e816c7115584",null,1,{"$f":"SUM(BDD[[#This Row],[PVP]],BDD[[#This Row],[PVE]])","v":0},{"$f":"SUM(BDD[[#This Row],[BAD HARVEST]:[TITANS Support]])","v":0},{"$f":"SUM(BDD[[#This Row],[Pure Fire]:[Nature/Frost]])","v":0}]
["Mindweaver","SUNBRIDGE","Nature","Tiers 3",120,"Building",1724,2500,"https://cardbase.skylords.eu/lrms/GetMediaData?id=57b76b511f73e816c7115586",null,1,{"$f":"SUM(BDD[[#This Row],[PVP]],BDD[[#This Row],[PVE]])","v":0},{"$f":"SUM(BDD[[#This Row],[BAD HARVEST]:[TITANS Support]])","v":0},{"$f":"SUM(BDD[[#This Row],[Pure Fire]:[Nature/Frost]])","v":0}]
["Mine","RAVEN'S END","Fire","Tiers 1",80,"Spell",null,null,"https://cardbase.skylords.eu/lrms/GetMediaData?id=57b76b511f73e816c7115588",null,1,{"$f":"SUM(BDD[[#This Row],[PVP]],BDD[[#This Row],[PVE]])","v":8},{"$f":"SUM(BDD[[#This Row],[BAD HARVEST]:[TITANS Support]])","v":8},{"$f":"SUM(BDD[[#This Row],[Pure Fire]:[Nature/Frost]])","v":0},null,null,null,null,null,null,null,null,null,null,null,null,null,null,null,null,null,null,null,null,null,null,null,1,null,null,null,null,null,null,null,null,null,null,null,1,null,null,null,null,1,null,null,null,1,1,null,null,null,null,null,1,1,null,null,1]
["Mo","MO","Neutral","Tiers 3",350,"Unit",4700,5000,"https://cardbase.skylords.eu/lrms/GetMediaData?id=57b76b511f73e816c711558a",null,1,{"$f":"SUM(BDD[[#This Row],[PVP]],BDD[[#This Row],[PVE]])","v":0},{"$f":"SUM(BDD[[#This Row],[BAD HARVEST]:[TITANS Support]])","v":0},{"$f":"SUM(BDD[[#This Row],[Pure Fire]:[Nature/Frost]])","v":0}]
["Mo (promo)","MO","Neutral","Tiers 3",350,"Unit",4700,5000,"https://cardbase.skylords.eu/lrms/GetMediaData?id=57b781291f73e825237afcc5",null,1,{"$f":"SUM(BDD[[#This Row],[PVP]],BDD[[#This Row],[PVE]])","v":1},{"$f":"SUM(BDD[[#This Row],[BAD HARVEST]:[TITANS Support]])","v":0},{"$f":"SUM(BDD[[#This Row],[Pure Fire]:[Nature/Frost]])","v":1},null,null,null,null,null,null,null,null,null,null,1]
["Moloch","OCEAN","Fire ","Tiers 4",350,"Unit",5000,5000,"https://cardbase.skylords.eu/lrms/GetMediaData?id=57b76b511f73e816c711558d",null,1,{"$f":"SUM(BDD[[#This Row],[PVP]],BDD[[#This Row],[PVE]])","v":0},{"$f":"SUM(BDD[[#This Row],[BAD HARVEST]:[TITANS Support]])","v":0},{"$f":"SUM(BDD[[#This Row],[Pure Fire]:[Nature/Frost]])","v":0}]
["Moon","ORACLE","Neutral","Tiers 2",100,"Unit",1170,900,"https://cardbase.skylords.eu/lrms/GetMediaData?id=57b76b511f73e816c711558f",null,1,{"$f":"SUM(BDD[[#This Row],[PVP]],BDD[[#This Row],[PVE]])","v":0},{"$f":"SUM(BDD[[#This Row],[BAD HARVEST]:[TITANS Support]])","v":0},{"$f":"SUM(BDD[[#This Row],[Pure Fire]:[Nature/Frost]])","v":0}]
["Morklay Trap","BAD HARVEST","Fire","Tiers 2",50,"Building",null,1200,"https://cardbase.skylords.eu/lrms/GetMediaData?id=57b76b511f73e816c7115591",null,1,{"$f":"SUM(BDD[[#This Row],[PVP]],BDD[[#This Row],[PVE]])","v":0},{"$f":"SUM(BDD[[#This Row],[BAD HARVEST]:[TITANS Support]])","v":0},{"$f":"SUM(BDD[[#This Row],[Pure Fire]:[Nature/Frost]])","v":0}]
["Mortar Tower","BLIGHT","Fire","Tiers 1",50,"Building",null,700,"https://cardbase.skylords.eu/lrms/GetMediaData?id=57b76b511f73e816c7115593",null,1,{"$f":"SUM(BDD[[#This Row],[PVP]],BDD[[#This Row],[PVE]])","v":3},{"$f":"SUM(BDD[[#This Row],[BAD HARVEST]:[TITANS Support]])","v":0},{"$f":"SUM(BDD[[#This Row],[Pure Fire]:[Nature/Frost]])","v":3},1,null,null,null,null,1,null,1]
["Motivate","BEHIND ENEMY LINES","Shadow","Tiers 1",25,"Spell",null,null,"https://cardbase.skylords.eu/lrms/GetMediaData?id=57b76b511f73e816c7115595",null,1,{"$f":"SUM(BDD[[#This Row],[PVP]],BDD[[#This Row],[PVE]])","v":5},{"$f":"SUM(BDD[[#This Row],[BAD HARVEST]:[TITANS Support]])","v":1},{"$f":"SUM(BDD[[#This Row],[Pure Fire]:[Nature/Frost]])","v":4},null,1,null,null,null,null,null,null,1,1,1,null,null,null,null,null,null,null,null,null,null,1]
["Mountain Rowdy (Frost)","THE TITANS","Frost","Tiers 2",60,"Unit",585,680,"https://cardbase.skylords.eu/lrms/GetMediaData?id=57b76b511f73e816c7115597",null,1,{"$f":"SUM(BDD[[#This Row],[PVP]],BDD[[#This Row],[PVE]])","v":0},{"$f":"SUM(BDD[[#This Row],[BAD HARVEST]:[TITANS Support]])","v":0},{"$f":"SUM(BDD[[#This Row],[Pure Fire]:[Nature/Frost]])","v":0}]
["Mountain Rowdy (Shadow)","NIGHTMARE SHARD","Frost","Tiers 2",60,"Unit",585,680,"https://cardbase.skylords.eu/lrms/GetMediaData?id=57b76b511f73e816c7115599",null,1,{"$f":"SUM(BDD[[#This Row],[PVP]],BDD[[#This Row],[PVE]])","v":0},{"$f":"SUM(BDD[[#This Row],[BAD HARVEST]:[TITANS Support]])","v":0},{"$f":"SUM(BDD[[#This Row],[Pure Fire]:[Nature/Frost]])","v":0}]
["Mountaineer","THE DWARVEN RIDDLE","Frost","Tiers 2",150,"Unit",1075,1350,"https://cardbase.skylords.eu/lrms/GetMediaData?id=57b76b511f73e816c711559b",null,1,{"$f":"SUM(BDD[[#This Row],[PVP]],BDD[[#This Row],[PVE]])","v":3},{"$f":"SUM(BDD[[#This Row],[BAD HARVEST]:[TITANS Support]])","v":0},{"$f":"SUM(BDD[[#This Row],[Pure Fire]:[Nature/Frost]])","v":3},null,null,null,null,null,1,1,null,null,1]
["Mumbo Jumbo (Fire)","ENCOUNTERS WITH TWILIGHT","Nature","Tiers 1",40,"Spell",null,null,"https://cardbase.skylords.eu/lrms/GetMediaData?id=57b76b511f73e816c711559f",null,1,{"$f":"SUM(BDD[[#This Row],[PVP]],BDD[[#This Row],[PVE]])","v":6},{"$f":"SUM(BDD[[#This Row],[BAD HARVEST]:[TITANS Support]])","v":6},{"$f":"SUM(BDD[[#This Row],[Pure Fire]:[Nature/Frost]])","v":0},null,null,null,null,null,null,null,null,null,null,null,null,null,null,null,null,null,null,null,1,null,null,null,null,1,1,null,null,null,null,null,null,null,null,null,null,null,null,1,null,null,null,1,null,null,1]
["Mumbo Jumbo (Shadow)","CRUSADE","Nature","Tiers 1",40,"Spell",null,null,"https://cardbase.skylords.eu/lrms/GetMediaData?id=57b76b511f73e816c711559d",null,1,{"$f":"SUM(BDD[[#This Row],[PVP]],BDD[[#This Row],[PVE]])","v":0},{"$f":"SUM(BDD[[#This Row],[BAD HARVEST]:[TITANS Support]])","v":0},{"$f":"SUM(BDD[[#This Row],[Pure Fire]:[Nature/Frost]])","v":0}]
["Mutating Frenzy","BAD HARVEST","Shadow","Tiers 3",120,"Unit",1630,1900,"https://cardbase.skylords.eu/lrms/GetMediaData?id=57b76b511f73e816c71155a1",null,1,{"$f":"SUM(BDD[[#This Row],[PVP]],BDD[[#This Row],[PVE]])","v":3},{"$f":"SUM(BDD[[#This Row],[BAD HARVEST]:[TITANS Support]])","v":3},{"$f":"SUM(BDD[[#This Row],[Pure Fire]:[Nature/Frost]])","v":0},null,null,null,null,null,null,null,null,null,null,null,null,null,null,null,null,1,null,null,null,null,null,null,null,null,null,null,null,null,null,null,null,null,null,null,null,null,null,null,null,null,null,null,null,null,null,null,null,null,null,null,null,1,null,1]
["Mutating Maniac (Fire)","BEHIND ENEMY LINES","Twilight","Tiers 3",140,"Unit",2380,1980,"https://cardbase.skylords.eu/lrms/GetMediaData?id=57b76b511f73e816c71155a3",null,1,{"$f":"SUM(BDD[[#This Row],[PVP]],BDD[[#This Row],[PVE]])","v":0},{"$f":"SUM(BDD[[#This Row],[BAD HARVEST]:[TITANS Support]])","v":0},{"$f":"SUM(BDD[[#This Row],[Pure Fire]:[Nature/Frost]])","v":0}]
["Mutating Maniac (Nature)","ENCOUNTERS WITH TWILIGHT","Twilight","Tiers 3",140,"Unit",2380,1980,"https://cardbase.skylords.eu/lrms/GetMediaData?id=57b76b511f73e816c71155a5",null,1,{"$f":"SUM(BDD[[#This Row],[PVP]],BDD[[#This Row],[PVE]])","v":0},{"$f":"SUM(BDD[[#This Row],[BAD HARVEST]:[TITANS Support]])","v":0},{"$f":"SUM(BDD[[#This Row],[Pure Fire]:[Nature/Frost]])","v":0}]
["Nasty Surprise","CONVOY","Shadow","Tiers 1",60,"Spell",null,null,"https://cardbase.skylords.eu/lrms/GetMediaData?id=57b76b511f73e816c71155a7",null,1,{"$f":"SUM(BDD[[#This Row],[PVP]],BDD[[#This Row],[PVE]])","v":4},{"$f":"SUM(BDD[[#This Row],[BAD HARVEST]:[TITANS Support]])","v":0},{"$f":"SUM(BDD[[#This Row],[Pure Fire]:[Nature/Frost]])","v":4},null,1,null,null,null,null,null,null,1,1,1]
["Necroblaster (Nature)","BAD HARVEST","Shadow","Tiers 3",100,"Building",2942,2360,"https://cardbase.skylords.eu/lrms/GetMediaData?id=57b76b511f73e816c71155ab",null,1,{"$f":"SUM(BDD[[#This Row],[PVP]],BDD[[#This Row],[PVE]])","v":8},{"$f":"SUM(BDD[[#This Row],[BAD HARVEST]:[TITANS Support]])","v":8},{"$f":"SUM(BDD[[#This Row],[Pure Fire]:[Nature/Frost]])","v":0},null,null,null,null,null,null,null,null,null,null,null,null,null,null,null,null,null,null,null,null,null,null,null,1,1,1,null,null,null,1,null,null,1,1,null,1,null,null,null,null,null,null,null,null,null,null,1]
["Necroblaster (Shadow)","THE TREASURE FLEET","Shadow","Tiers 3",100,"Building",2942,2360,"https://cardbase.skylords.eu/lrms/GetMediaData?id=57b76b511f73e816c71155a9",null,1,{"$f":"SUM(BDD[[#This Row],[PVP]],BDD[[#This Row],[PVE]])","v":1},{"$f":"SUM(BDD[[#This Row],[BAD HARVEST]:[TITANS Support]])","v":1},{"$f":"SUM(BDD[[#This Row],[Pure Fire]:[Nature/Frost]])","v":0},null,null,null,null,null,null,null,null,null,null,null,null,null,null,null,null,null,null,null,null,null,null,null,1]
["Necrofury","NIGHTMARE SHARD","Shadow","Tiers 4",220,"Unit",4025,3570,"https://cardbase.skylords.eu/lrms/GetMediaData?id=57b76b511f73e816c71155ad",null,1,{"$f":"SUM(BDD[[#This Row],[PVP]],BDD[[#This Row],[PVE]])","v":5},{"$f":"SUM(BDD[[#This Row],[BAD HARVEST]:[TITANS Support]])","v":5},{"$f":"SUM(BDD[[#This Row],[Pure Fire]:[Nature/Frost]])","v":0},null,null,null,null,null,null,null,null,null,null,null,null,null,null,null,null,null,null,null,null,null,null,null,null,1,1,null,null,null,null,null,null,null,null,null,null,null,null,null,null,null,1,null,null,null,1,null,null,null,null,1]
["Nether Warp (Frost)","RAVEN'S END","Shadow","Tiers 2",80,"Spell",null,null,"https://cardbase.skylords.eu/lrms/GetMediaData?id=57b76b511f73e816c71155b1",null,1,{"$f":"SUM(BDD[[#This Row],[PVP]],BDD[[#This Row],[PVE]])","v":1},{"$f":"SUM(BDD[[#This Row],[BAD HARVEST]:[TITANS Support]])","v":1},{"$f":"SUM(BDD[[#This Row],[Pure Fire]:[Nature/Frost]])","v":0},null,null,null,null,null,null,null,null,null,null,null,null,null,null,null,null,null,null,null,null,null,null,null,1]
["Nether Warp (Nature)","BEHIND ENEMY LINES","Shadow","Tiers 2",80,"Spell",null,null,"https://cardbase.skylords.eu/lrms/GetMediaData?id=57b76b511f73e816c71155af",null,1,{"$f":"SUM(BDD[[#This Row],[PVP]],BDD[[#This Row],[PVE]])","v":10},{"$f":"SUM(BDD[[#This Row],[BAD HARVEST]:[TITANS Support]])","v":9},{"$f":"SUM(BDD[[#This Row],[Pure Fire]:[Nature/Frost]])","v":1},null,1,null,null,null,null,null,null,null,null,null,null,null,null,null,null,1,null,null,1,null,null,null,1,null,null,null,1,null,null,1,null,null,null,null,null,null,1,null,1,null,null,1,null,null,null,null,null,null,null,1]
["Nightcrawler","ENCOUNTERS WITH TWILIGHT","Shadow","Tiers 2",60,"Unit",640,745,"https://cardbase.skylords.eu/lrms/GetMediaData?id=57b76b511f73e816c71155b3",null,1,{"$f":"SUM(BDD[[#This Row],[PVP]],BDD[[#This Row],[PVE]])","v":5},{"$f":"SUM(BDD[[#This Row],[BAD HARVEST]:[TITANS Support]])","v":0},{"$f":"SUM(BDD[[#This Row],[Pure Fire]:[Nature/Frost]])","v":5},null,1,null,null,1,null,null,null,1,1,1]
["Nightguard (Nature)","NIGHTMARE'S END","Shadow","Tiers 1",65,"Unit",600,400,"https://cardbase.skylords.eu/lrms/GetMediaData?id=57b76b511f73e816c71155b5",null,1,{"$f":"SUM(BDD[[#This Row],[PVP]],BDD[[#This Row],[PVE]])","v":9},{"$f":"SUM(BDD[[#This Row],[BAD HARVEST]:[TITANS Support]])","v":6},{"$f":"SUM(BDD[[#This Row],[Pure Fire]:[Nature/Frost]])","v":3},null,1,null,null,null,null,null,null,1,null,1,null,null,null,null,null,null,1,null,null,1,null,null,null,null,null,null,null,null,null,null,1,null,null,null,null,null,1,null,null,null,null,null,null,null,null,null,null,null,null,null,null,null,null,1,1]
["Nightguard (Shadow)","SUNBRIDGE","Shadow","Tiers 1",65,"Unit",600,400,"https://cardbase.skylords.eu/lrms/GetMediaData?id=57b76b511f73e816c71155b7",null,1,{"$f":"SUM(BDD[[#This Row],[PVP]],BDD[[#This Row],[PVE]])","v":1},{"$f":"SUM(BDD[[#This Row],[BAD HARVEST]:[TITANS Support]])","v":1},{"$f":"SUM(BDD[[#This Row],[Pure Fire]:[Nature/Frost]])","v":0},null,null,null,null,null,null,null,null,null,null,null,null,null,null,null,null,null,null,null,null,null,null,null,null,null,null,null,null,null,null,null,1]
["Nightshade Plant (Nature)","BEHIND ENEMY LINES","Twilight","Tiers 4",260,"Unit",4920,5300,"https://cardbase.skylords.eu/lrms/GetMediaData?id=57b76b511f73e816c71155b9",null,1,{"$f":"SUM(BDD[[#This Row],[PVP]],BDD[[#This Row],[PVE]])","v":0},{"$f":"SUM(BDD[[#This Row],[BAD HARVEST]:[TITANS Support]])","v":0},{"$f":"SUM(BDD[[#This Row],[Pure Fire]:[Nature/Frost]])","v":0}]
["Nightshade Plant (Shadow)","THE INSANE GOD","Twilight","Tiers 4",260,"Unit",4920,5300,"https://cardbase.skylords.eu/lrms/GetMediaData?id=57b76b511f73e816c71155bb",null,1,{"$f":"SUM(BDD[[#This Row],[PVP]],BDD[[#This Row],[PVE]])","v":0},{"$f":"SUM(BDD[[#This Row],[BAD HARVEST]:[TITANS Support]])","v":0},{"$f":"SUM(BDD[[#This Row],[Pure Fire]:[Nature/Frost]])","v":0}]
["Nomad (Fire)","BLIGHT","Fire","Tiers 1",75,"Unit",675,460,"https://cardbase.skylords.eu/lrms/GetMediaData?id=57b76b511f73e816c71155bf",null,1,{"$f":"SUM(BDD[[#This Row],[PVP]],BDD[[#This Row],[PVE]])","v":3},{"$f":"SUM(BDD[[#This Row],[BAD HARVEST]:[TITANS Support]])","v":3},{"$f":"SUM(BDD[[#This Row],[Pure Fire]:[Nature/Frost]])","v":0},null,null,null,null,null,null,null,null,null,null,null,null,null,null,null,null,null,null,null,1,null,null,null,null,null,null,null,null,null,null,null,null,null,null,null,null,null,null,null,null,null,null,null,null,null,null,null,1,null,null,null,1]
["Nomad (Nature)","MO","Fire","Tiers 1",75,"Unit",675,460,"https://cardbase.skylords.eu/lrms/GetMediaData?id=57b76b511f73e816c71155bd",null,1,{"$f":"SUM(BDD[[#This Row],[PVP]],BDD[[#This Row],[PVE]])","v":7},{"$f":"SUM(BDD[[#This Row],[BAD HARVEST]:[TITANS Support]])","v":7},{"$f":"SUM(BDD[[#This Row],[Pure Fire]:[Nature/Frost]])","v":0},null,null,null,null,null,null,null,null,null,null,null,null,null,null,null,null,null,null,null,null,null,null,null,null,null,null,null,null,null,null,null,null,null,null,null,1,null,null,null,null,1,null,null,null,1,1,null,1,null,null,null,1,null,null,null,1]
["Northern Keep (Fire)","BAD HARVEST","Frost","Tiers 1",70,"Building",900,1300,"https://cardbase.skylords.eu/lrms/GetMediaData?id=57b76b511f73e816c71155c1",null,1,{"$f":"SUM(BDD[[#This Row],[PVP]],BDD[[#This Row],[PVE]])","v":0},{"$f":"SUM(BDD[[#This Row],[BAD HARVEST]:[TITANS Support]])","v":0},{"$f":"SUM(BDD[[#This Row],[Pure Fire]:[Nature/Frost]])","v":0}]
["Northern Keep (Frost)","SIEGE OF HOPE","Frost","Tiers 1",70,"Building",900,1300,"https://cardbase.skylords.eu/lrms/GetMediaData?id=57b76b511f73e816c71155c3",null,1,{"$f":"SUM(BDD[[#This Row],[PVP]],BDD[[#This Row],[PVE]])","v":0},{"$f":"SUM(BDD[[#This Row],[BAD HARVEST]:[TITANS Support]])","v":0},{"$f":"SUM(BDD[[#This Row],[Pure Fire]:[Nature/Frost]])","v":0}]
["Northguards","SIEGE OF HOPE","Frost","Tiers 1",50,"Unit",450,720,"https://cardbase.skylords.eu/lrms/GetMediaData?id=57b76b511f73e816c71155c5",null,1,{"$f":"SUM(BDD[[#This Row],[PVP]],BDD[[#This Row],[PVE]])","v":2},{"$f":"SUM(BDD[[#This Row],[BAD HARVEST]:[TITANS Support]])","v":2},{"$f":"SUM(BDD[[#This Row],[Pure Fire]:[Nature/Frost]])","v":0},null,null,null,null,null,null,null,null,null,null,null,null,null,null,null,null,null,null,null,null,null,null,null,null,null,null,1,null,null,null,null,null,null,null,null,null,null,null,null,null,null,null,null,1]
["Northland Drake (Fire)","KING OF THE GIANTS","Frost","Tiers 3",240,"Unit",2210,2435,"https://cardbase.skylords.eu/lrms/GetMediaData?id=57b76b511f73e816c71155c7",null,1,{"$f":"SUM(BDD[[#This Row],[PVP]],BDD[[#This Row],[PVE]])","v":0},{"$f":"SUM(BDD[[#This Row],[BAD HARVEST]:[TITANS Support]])","v":0},{"$f":"SUM(BDD[[#This Row],[Pure Fire]:[Nature/Frost]])","v":0}]
["Northland Drake (Frost)","DEFENDING HOPE","Frost","Tiers 3",240,"Unit",2210,2435,"https://cardbase.skylords.eu/lrms/GetMediaData?id=57b76b511f73e816c71155c9",null,1,{"$f":"SUM(BDD[[#This Row],[PVP]],BDD[[#This Row],[PVE]])","v":0},{"$f":"SUM(BDD[[#This Row],[BAD HARVEST]:[TITANS Support]])","v":0},{"$f":"SUM(BDD[[#This Row],[Pure Fire]:[Nature/Frost]])","v":0}]
["Northstar (Frost)","THE TITANS","Frost","Tiers 2",40,"Building",null,1000,"https://cardbase.skylords.eu/lrms/GetMediaData?id=57b76b511f73e816c71155cd",null,1,{"$f":"SUM(BDD[[#This Row],[PVP]],BDD[[#This Row],[PVE]])","v":0},{"$f":"SUM(BDD[[#This Row],[BAD HARVEST]:[TITANS Support]])","v":0},{"$f":"SUM(BDD[[#This Row],[Pure Fire]:[Nature/Frost]])","v":0}]
["Northstar (Nature)","DEFENDING HOPE","Frost","Tiers 2",40,"Building",null,1000,"https://cardbase.skylords.eu/lrms/GetMediaData?id=57b76b511f73e816c71155cb",null,1,{"$f":"SUM(BDD[[#This Row],[PVP]],BDD[[#This Row],[PVE]])","v":0},{"$f":"SUM(BDD[[#This Row],[BAD HARVEST]:[TITANS Support]])","v":0},{"$f":"SUM(BDD[[#This Row],[Pure Fire]:[Nature/Frost]])","v":0}]
["Nox Carrier (Fire)","BAD HARVEST","Shadow","Tiers 3",180,"Unit",null,1500,"https://cardbase.skylords.eu/lrms/GetMediaData?id=57b76b511f73e816c71155cf",null,1,{"$f":"SUM(BDD[[#This Row],[PVP]],BDD[[#This Row],[PVE]])","v":0},{"$f":"SUM(BDD[[#This Row],[BAD HARVEST]:[TITANS Support]])","v":0},{"$f":"SUM(BDD[[#This Row],[Pure Fire]:[Nature/Frost]])","v":0}]
["Nox Carrier (Shadow)","THE TREASURE FLEET","Shadow","Tiers 3",180,"Unit",null,1500,"https://cardbase.skylords.eu/lrms/GetMediaData?id=57b76b511f73e816c71155d1",null,1,{"$f":"SUM(BDD[[#This Row],[PVP]],BDD[[#This Row],[PVE]])","v":0},{"$f":"SUM(BDD[[#This Row],[BAD HARVEST]:[TITANS Support]])","v":0},{"$f":"SUM(BDD[[#This Row],[Pure Fire]:[Nature/Frost]])","v":0}]
["Nox Trooper","SLAVE MASTER","Shadow","Tiers 1",50,"Unit",400,450,"https://cardbase.skylords.eu/lrms/GetMediaData?id=57b76b511f73e816c71155d3",null,1,{"$f":"SUM(BDD[[#This Row],[PVP]],BDD[[#This Row],[PVE]])","v":5},{"$f":"SUM(BDD[[#This Row],[BAD HARVEST]:[TITANS Support]])","v":1},{"$f":"SUM(BDD[[#This Row],[Pure Fire]:[Nature/Frost]])","v":4},null,1,null,null,null,null,null,null,1,1,1,null,null,null,null,null,null,null,null,null,null,null,null,null,null,null,null,null,null,null,null,1]
["Noxious Cloud","THE SOULTREE","Nature","Tiers 4",250,"Spell",null,null,"https://cardbase.skylords.eu/lrms/GetMediaData?id=57b76b511f73e816c71155d5",null,1,{"$f":"SUM(BDD[[#This Row],[PVP]],BDD[[#This Row],[PVE]])","v":1},{"$f":"SUM(BDD[[#This Row],[BAD HARVEST]:[TITANS Support]])","v":1},{"$f":"SUM(BDD[[#This Row],[Pure Fire]:[Nature/Frost]])","v":0},null,null,null,null,null,null,null,null,null,null,null,null,null,null,null,null,1]
["Offering (Frost)","THE TITANS","Shadow","Tiers 1",75,"Spell",null,null,"https://cardbase.skylords.eu/lrms/GetMediaData?id=57b76b511f73e816c71155d7",null,1,{"$f":"SUM(BDD[[#This Row],[PVP]],BDD[[#This Row],[PVE]])","v":0},{"$f":"SUM(BDD[[#This Row],[BAD HARVEST]:[TITANS Support]])","v":0},{"$f":"SUM(BDD[[#This Row],[Pure Fire]:[Nature/Frost]])","v":0}]
["Offering (Nature)","BAD HARVEST","Shadow","Tiers 1",75,"Spell",null,null,"https://cardbase.skylords.eu/lrms/GetMediaData?id=57b76b511f73e816c71155d9",null,1,{"$f":"SUM(BDD[[#This Row],[PVP]],BDD[[#This Row],[PVE]])","v":1},{"$f":"SUM(BDD[[#This Row],[BAD HARVEST]:[TITANS Support]])","v":1},{"$f":"SUM(BDD[[#This Row],[Pure Fire]:[Nature/Frost]])","v":0},null,null,null,null,null,null,null,null,null,null,null,null,null,null,null,null,null,null,null,null,null,null,null,null,null,null,null,null,null,null,null,null,1]
["Oracle Mask (Fire)","THE DWARVEN RIDDLE","Fire","Tiers 3",100,"Building",2250,1700,"https://cardbase.skylords.eu/lrms/GetMediaData?id=57b76b511f73e816c71155db",null,1,{"$f":"SUM(BDD[[#This Row],[PVP]],BDD[[#This Row],[PVE]])","v":0},{"$f":"SUM(BDD[[#This Row],[BAD HARVEST]:[TITANS Support]])","v":0},{"$f":"SUM(BDD[[#This Row],[Pure Fire]:[Nature/Frost]])","v":0}]
["Oracle Mask (Nature)","ORACLE","Fire","Tiers 3",100,"Building",2250,1700,"https://cardbase.skylords.eu/lrms/GetMediaData?id=57b76b511f73e816c71155dd",null,1,{"$f":"SUM(BDD[[#This Row],[PVP]],BDD[[#This Row],[PVE]])","v":0},{"$f":"SUM(BDD[[#This Row],[BAD HARVEST]:[TITANS Support]])","v":0},{"$f":"SUM(BDD[[#This Row],[Pure Fire]:[Nature/Frost]])","v":0}]
["Overlord","THE INSANE GOD","Shadow","Tiers 4",220,"Unit",3450,4000,"https://cardbase.skylords.eu/lrms/GetMediaData?id=57b76b511f73e816c71155df",null,1,{"$f":"SUM(BDD[[#This Row],[PVP]],BDD[[#This Row],[PVE]])","v":0},{"$f":"SUM(BDD[[#This Row],[BAD HARVEST]:[TITANS Support]])","v":0},{"$f":"SUM(BDD[[#This Row],[Pure Fire]:[Nature/Frost]])","v":0}]
["Parasite","THE INSANE GOD","Nature","Tiers 2",100,"Spell",null,null,"https://cardbase.skylords.eu/lrms/GetMediaData?id=57b76b511f73e816c71155e1",null,1,{"$f":"SUM(BDD[[#This Row],[PVP]],BDD[[#This Row],[PVE]])","v":0},{"$f":"SUM(BDD[[#This Row],[BAD HARVEST]:[TITANS Support]])","v":0},{"$f":"SUM(BDD[[#This Row],[Pure Fire]:[Nature/Frost]])","v":0}]
["Parasite Swarm","BEHIND ENEMY LINES","Nature","Tiers 2",100,"Unit",800,330,"https://cardbase.skylords.eu/lrms/GetMediaData?id=57b76b511f73e816c71155e3",null,1,{"$f":"SUM(BDD[[#This Row],[PVP]],BDD[[#This Row],[PVE]])","v":1},{"$f":"SUM(BDD[[#This Row],[BAD HARVEST]:[TITANS Support]])","v":0},{"$f":"SUM(BDD[[#This Row],[Pure Fire]:[Nature/Frost]])","v":1},null,null,null,1]
["Phalanx","CRUSADE","Frost","Tiers 2",80,"Unit",750,1320,"https://cardbase.skylords.eu/lrms/GetMediaData?id=57b76b511f73e816c71155e5",null,1,{"$f":"SUM(BDD[[#This Row],[PVP]],BDD[[#This Row],[PVE]])","v":0},{"$f":"SUM(BDD[[#This Row],[BAD HARVEST]:[TITANS Support]])","v":0},{"$f":"SUM(BDD[[#This Row],[Pure Fire]:[Nature/Frost]])","v":0}]
["Phase Tower","THE DWARVEN RIDDLE","Shadow","Tiers 1",60,"Building",900,950,"https://cardbase.skylords.eu/lrms/GetMediaData?id=57b76b511f73e816c71155e7",null,1,{"$f":"SUM(BDD[[#This Row],[PVP]],BDD[[#This Row],[PVE]])","v":7},{"$f":"SUM(BDD[[#This Row],[BAD HARVEST]:[TITANS Support]])","v":4},{"$f":"SUM(BDD[[#This Row],[Pure Fire]:[Nature/Frost]])","v":3},null,1,null,null,null,null,null,null,1,null,1,null,null,null,null,null,null,1,null,null,null,null,null,null,null,null,null,null,null,1,1,1]
["Plague","SUNBRIDGE","Shadow","Tiers 4",150,"Spell",null,null,"https://cardbase.skylords.eu/lrms/GetMediaData?id=57b76b511f73e816c71155e9",null,1,{"$f":"SUM(BDD[[#This Row],[PVP]],BDD[[#This Row],[PVE]])","v":0},{"$f":"SUM(BDD[[#This Row],[BAD HARVEST]:[TITANS Support]])","v":0},{"$f":"SUM(BDD[[#This Row],[Pure Fire]:[Nature/Frost]])","v":0}]
["Portal Nexus","OCEAN","Shadow","Tiers 2",50,"Building",null,1500,"https://cardbase.skylords.eu/lrms/GetMediaData?id=57b76b511f73e816c71155eb",null,1,{"$f":"SUM(BDD[[#This Row],[PVP]],BDD[[#This Row],[PVE]])","v":2},{"$f":"SUM(BDD[[#This Row],[BAD HARVEST]:[TITANS Support]])","v":2},{"$f":"SUM(BDD[[#This Row],[Pure Fire]:[Nature/Frost]])","v":0},null,null,null,null,null,null,null,null,null,null,null,null,null,null,null,null,1,null,null,null,null,null,null,null,null,null,null,null,null,null,null,null,null,null,null,null,null,null,null,null,1]
["Primal Defender","CRUSADE","Nature","Tiers 1",60,"Building",835,1300,"https://cardbase.skylords.eu/lrms/GetMediaData?id=57b76b511f73e816c71155ed",null,1,{"$f":"SUM(BDD[[#This Row],[PVP]],BDD[[#This Row],[PVE]])","v":1},{"$f":"SUM(BDD[[#This Row],[BAD HARVEST]:[TITANS Support]])","v":0},{"$f":"SUM(BDD[[#This Row],[Pure Fire]:[Nature/Frost]])","v":1},null,null,null,1]
["Primeval Watcher","ORACLE","Nature","Tiers 4",260,"Unit",1200,3650,"https://cardbase.skylords.eu/lrms/GetMediaData?id=57b76b511f73e816c71155ef",null,1,{"$f":"SUM(BDD[[#This Row],[PVP]],BDD[[#This Row],[PVE]])","v":0},{"$f":"SUM(BDD[[#This Row],[BAD HARVEST]:[TITANS Support]])","v":0},{"$f":"SUM(BDD[[#This Row],[Pure Fire]:[Nature/Frost]])","v":0}]
["Promise of Life (Frost)","THE TITANS","Nature","Tiers 4",180,"Spell",null,null,"https://cardbase.skylords.eu/lrms/GetMediaData?id=57b76b511f73e816c71155f1",null,1,{"$f":"SUM(BDD[[#This Row],[PVP]],BDD[[#This Row],[PVE]])","v":0},{"$f":"SUM(BDD[[#This Row],[BAD HARVEST]:[TITANS Support]])","v":0},{"$f":"SUM(BDD[[#This Row],[Pure Fire]:[Nature/Frost]])","v":0}]
["Promise of Life (Nature)","THE SOULTREE","Nature","Tiers 4",180,"Spell",null,null,"https://cardbase.skylords.eu/lrms/GetMediaData?id=57b76b511f73e816c71155f3",null,1,{"$f":"SUM(BDD[[#This Row],[PVP]],BDD[[#This Row],[PVE]])","v":0},{"$f":"SUM(BDD[[#This Row],[BAD HARVEST]:[TITANS Support]])","v":0},{"$f":"SUM(BDD[[#This Row],[Pure Fire]:[Nature/Frost]])","v":0}]
["Protector's seal (lost souls)","NIGHTMARE'S END","Lost Souls","Tiers 3",165,"Spell",null,null,"https://cardbase.skylords.eu/lrms/GetMediaData?id=57b8d6ee1f73e82f8ff28f0a",null,1,{"$f":"SUM(BDD[[#This Row],[PVP]],BDD[[#This Row],[PVE]])","v":4},{"$f":"SUM(BDD[[#This Row],[BAD HARVEST]:[TITANS Support]])","v":4},{"$f":"SUM(BDD[[#This Row],[Pure Fire]:[Nature/Frost]])","v":0},null,null,null,null,null,null,null,null,null,null,null,null,null,null,null,null,null,null,null,null,null,null,null,null,null,null,null,null,null,null,null,null,1,1,null,null,null,null,null,null,null,null,null,null,null,null,null,null,1,null,1]
["Protector's seal (twilight)","EMPIRE","Twilight","Tiers 3",165,"Spell",null,null,"https://cardbase.skylords.eu/lrms/GetMediaData?id=57b8d6dd1f73e82f8ff28f09",null,1,{"$f":"SUM(BDD[[#This Row],[PVP]],BDD[[#This Row],[PVE]])","v":0},{"$f":"SUM(BDD[[#This Row],[BAD HARVEST]:[TITANS Support]])","v":0},{"$f":"SUM(BDD[[#This Row],[Pure Fire]:[Nature/Frost]])","v":0}]
["Pyromaniac (Fire)","THE TITANS","Fire","Tiers 2",100,"Building",1880,1290,"https://cardbase.skylords.eu/lrms/GetMediaData?id=57b76b511f73e816c71155f9",null,1,{"$f":"SUM(BDD[[#This Row],[PVP]],BDD[[#This Row],[PVE]])","v":1},{"$f":"SUM(BDD[[#This Row],[BAD HARVEST]:[TITANS Support]])","v":1},{"$f":"SUM(BDD[[#This Row],[Pure Fire]:[Nature/Frost]])","v":0},null,null,null,null,null,null,null,null,null,null,null,null,null,null,null,null,null,null,null,null,null,null,null,null,null,null,null,null,null,null,null,null,null,null,null,1]
["Pyromaniac (Frost)","OCEAN","Fire","Tiers 2",100,"Building",1880,1290,"https://cardbase.skylords.eu/lrms/GetMediaData?id=57b76b511f73e816c71155f7",null,1,{"$f":"SUM(BDD[[#This Row],[PVP]],BDD[[#This Row],[PVE]])","v":0},{"$f":"SUM(BDD[[#This Row],[BAD HARVEST]:[TITANS Support]])","v":0},{"$f":"SUM(BDD[[#This Row],[Pure Fire]:[Nature/Frost]])","v":0}]
["QueekQueek","CONVOY","Neutral","Tiers 3",120,"Unit",660,550,"https://cardbase.skylords.eu/lrms/GetMediaData?id=57b76b511f73e816c71155fb",null,1,{"$f":"SUM(BDD[[#This Row],[PVP]],BDD[[#This Row],[PVE]])","v":0},{"$f":"SUM(BDD[[#This Row],[BAD HARVEST]:[TITANS Support]])","v":0},{"$f":"SUM(BDD[[#This Row],[Pure Fire]:[Nature/Frost]])","v":0}]
["Rageclaws","NIGHTMARE SHARD","Fire","Tiers 2",70,"Unit",360,960,"https://cardbase.skylords.eu/lrms/GetMediaData?id=57b76b511f73e816c71155fd",null,1,{"$f":"SUM(BDD[[#This Row],[PVP]],BDD[[#This Row],[PVE]])","v":0},{"$f":"SUM(BDD[[#This Row],[BAD HARVEST]:[TITANS Support]])","v":0},{"$f":"SUM(BDD[[#This Row],[Pure Fire]:[Nature/Frost]])","v":0}]
["Rageflame (Fire)","RAVEN'S END","Stonekin","Tiers 3",130,"Unit",1300,1600,"https://cardbase.skylords.eu/lrms/GetMediaData?id=57b76b511f73e816c7115601",null,1,{"$f":"SUM(BDD[[#This Row],[PVP]],BDD[[#This Row],[PVE]])","v":0},{"$f":"SUM(BDD[[#This Row],[BAD HARVEST]:[TITANS Support]])","v":0},{"$f":"SUM(BDD[[#This Row],[Pure Fire]:[Nature/Frost]])","v":0}]
["Rageflame (Frost)","THE TITANS","Stonekin","Tiers 3",130,"Unit",1300,1600,"https://cardbase.skylords.eu/lrms/GetMediaData?id=57b76b511f73e816c71155ff",null,1,{"$f":"SUM(BDD[[#This Row],[PVP]],BDD[[#This Row],[PVE]])","v":0},{"$f":"SUM(BDD[[#This Row],[BAD HARVEST]:[TITANS Support]])","v":0},{"$f":"SUM(BDD[[#This Row],[Pure Fire]:[Nature/Frost]])","v":0}]
["Rallying Banner","BLIGHT","Fire","Tiers 2",50,"Building",null,560,"https://cardbase.skylords.eu/lrms/GetMediaData?id=57b76b511f73e816c7115603",null,1,{"$f":"SUM(BDD[[#This Row],[PVP]],BDD[[#This Row],[PVE]])","v":4},{"$f":"SUM(BDD[[#This Row],[BAD HARVEST]:[TITANS Support]])","v":1},{"$f":"SUM(BDD[[#This Row],[Pure Fire]:[Nature/Frost]])","v":3},1,null,null,null,1,null,null,null,1,null,null,null,null,null,null,null,null,null,null,null,null,null,null,null,null,null,null,null,null,1]
["Ravage","ENCOUNTERS WITH TWILIGHT","Fire","Tiers 2",50,"Spell",null,null,"https://cardbase.skylords.eu/lrms/GetMediaData?id=57b76b511f73e816c7115605",null,1,{"$f":"SUM(BDD[[#This Row],[PVP]],BDD[[#This Row],[PVE]])","v":6},{"$f":"SUM(BDD[[#This Row],[BAD HARVEST]:[TITANS Support]])","v":0},{"$f":"SUM(BDD[[#This Row],[Pure Fire]:[Nature/Frost]])","v":6},1,null,null,null,1,1,1,1,1]
["Ravenheart","RAVEN'S END","Neutral","Tiers 4",350,"Unit",5000,4050,"https://cardbase.skylords.eu/lrms/GetMediaData?id=57b76b511f73e816c7115607",null,1,{"$f":"SUM(BDD[[#This Row],[PVP]],BDD[[#This Row],[PVE]])","v":0},{"$f":"SUM(BDD[[#This Row],[BAD HARVEST]:[TITANS Support]])","v":0},{"$f":"SUM(BDD[[#This Row],[Pure Fire]:[Nature/Frost]])","v":0}]
["Ravenheart (promo)","RAVEN'S END","Neutral","Tiers 4",350,"Unit",5000,4050,"https://cardbase.skylords.eu/lrms/GetMediaData?id=57b781311f73e825237afcc6",null,1,{"$f":"SUM(BDD[[#This Row],[PVP]],BDD[[#This Row],[PVE]])","v":0},{"$f":"SUM(BDD[[#This Row],[BAD HARVEST]:[TITANS Support]])","v":0},{"$f":"SUM(BDD[[#This Row],[Pure Fire]:[Nature/Frost]])","v":0}]
["Ray of Light","SUNBRIDGE","Nature","Tiers 2",100,"Spell",null,null,"https://cardbase.skylords.eu/lrms/GetMediaData?id=57b76b511f73e816c711560a",null,1,{"$f":"SUM(BDD[[#This Row],[PVP]],BDD[[#This Row],[PVE]])","v":0},{"$f":"SUM(BDD[[#This Row],[BAD HARVEST]:[TITANS Support]])","v":0},{"$f":"SUM(BDD[[#This Row],[Pure Fire]:[Nature/Frost]])","v":0}]
["Razorleaf","BEHIND ENEMY LINES","Nature","Tiers 3",260,"Unit",2550,2760,"https://cardbase.skylords.eu/lrms/GetMediaData?id=57b76b511f73e816c711560c",null,1,{"$f":"SUM(BDD[[#This Row],[PVP]],BDD[[#This Row],[PVE]])","v":0},{"$f":"SUM(BDD[[#This Row],[BAD HARVEST]:[TITANS Support]])","v":0},{"$f":"SUM(BDD[[#This Row],[Pure Fire]:[Nature/Frost]])","v":0}]
["Razorleaf (promo)","BEHIND ENEMY LINES","Nature","Tiers 3",260,"Unit",2550,3420,"https://cardbase.skylords.eu/lrms/GetMediaData?id=57b7813b1f73e825237afcc7",null,1,{"$f":"SUM(BDD[[#This Row],[PVP]],BDD[[#This Row],[PVE]])","v":0},{"$f":"SUM(BDD[[#This Row],[BAD HARVEST]:[TITANS Support]])","v":0},{"$f":"SUM(BDD[[#This Row],[Pure Fire]:[Nature/Frost]])","v":0}]
["Razorshard (Fire)","RAVEN'S END","Stonekin","Tiers 2",80,"Unit",600,600,"https://cardbase.skylords.eu/lrms/GetMediaData?id=57b76b511f73e816c711560f",null,1,{"$f":"SUM(BDD[[#This Row],[PVP]],BDD[[#This Row],[PVE]])","v":0},{"$f":"SUM(BDD[[#This Row],[BAD HARVEST]:[TITANS Support]])","v":0},{"$f":"SUM(BDD[[#This Row],[Pure Fire]:[Nature/Frost]])","v":0}]
["Razorshard (Nature)","KING OF THE GIANTS","Stonekin","Tiers 2",80,"Unit",600,600,"https://cardbase.skylords.eu/lrms/GetMediaData?id=57b76b511f73e816c7115611",null,1,{"$f":"SUM(BDD[[#This Row],[PVP]],BDD[[#This Row],[PVE]])","v":0},{"$f":"SUM(BDD[[#This Row],[BAD HARVEST]:[TITANS Support]])","v":0},{"$f":"SUM(BDD[[#This Row],[Pure Fire]:[Nature/Frost]])","v":0}]
["Regrowth","CRUSADE","Nature","Tiers 4",150,"Spell",null,null,"https://cardbase.skylords.eu/lrms/GetMediaData?id=57b76b511f73e816c7115613",null,1,{"$f":"SUM(BDD[[#This Row],[PVP]],BDD[[#This Row],[PVE]])","v":23},{"$f":"SUM(BDD[[#This Row],[BAD HARVEST]:[TITANS Support]])","v":23},{"$f":"SUM(BDD[[#This Row],[Pure Fire]:[Nature/Frost]])","v":0},null,null,null,null,null,null,null,null,null,null,null,null,null,null,null,null,1,1,null,1,null,null,null,null,1,1,null,1,null,1,1,null,1,1,1,1,null,1,1,1,1,1,1,null,1,1,1,null,null,null,null,null,null,1,1]
["Resource Booster","THE DWARVEN RIDDLE","Shadow","Tiers 2",50,"Building",null,1000,"https://cardbase.skylords.eu/lrms/GetMediaData?id=57b76b511f73e816c7115615",null,1,{"$f":"SUM(BDD[[#This Row],[PVP]],BDD[[#This Row],[PVE]])","v":4},{"$f":"SUM(BDD[[#This Row],[BAD HARVEST]:[TITANS Support]])","v":4},{"$f":"SUM(BDD[[#This Row],[Pure Fire]:[Nature/Frost]])","v":0},null,null,null,null,null,null,null,null,null,null,null,null,null,null,null,null,null,null,null,null,null,1,null,null,null,null,null,null,null,null,null,null,null,null,null,null,null,null,null,1,1,null,null,null,null,null,null,null,null,null,null,null,null,null,1]
["Retreating Circle","THE TITANS","Frost","Tiers 3",60,"Spell",null,null,"https://cardbase.skylords.eu/lrms/GetMediaData?id=57b76b511f73e816c7115617",null,1,{"$f":"SUM(BDD[[#This Row],[PVP]],BDD[[#This Row],[PVE]])","v":0},{"$f":"SUM(BDD[[#This Row],[BAD HARVEST]:[TITANS Support]])","v":0},{"$f":"SUM(BDD[[#This Row],[Pure Fire]:[Nature/Frost]])","v":0}]
["Revenant's Blessing (Fire)","THE SOULTREE","Lost Souls","Tiers 2",90,"Spell",null,null,"https://cardbase.skylords.eu/lrms/GetMediaData?id=57b76b511f73e816c711561a",null,1,{"$f":"SUM(BDD[[#This Row],[PVP]],BDD[[#This Row],[PVE]])","v":0},{"$f":"SUM(BDD[[#This Row],[BAD HARVEST]:[TITANS Support]])","v":0},{"$f":"SUM(BDD[[#This Row],[Pure Fire]:[Nature/Frost]])","v":0}]
["Revenant's Blessing (Nature)","EMPIRE","Lost Souls","Tiers 2",90,"Spell",null,null,"https://cardbase.skylords.eu/lrms/GetMediaData?id=57b8d6011f73e82f8ff28f07",null,1,{"$f":"SUM(BDD[[#This Row],[PVP]],BDD[[#This Row],[PVE]])","v":0},{"$f":"SUM(BDD[[#This Row],[BAD HARVEST]:[TITANS Support]])","v":0},{"$f":"SUM(BDD[[#This Row],[Pure Fire]:[Nature/Frost]])","v":0}]
["Revenge","THE SOULTREE","Nature","Tiers 3",100,"Spell",null,null,"https://cardbase.skylords.eu/lrms/GetMediaData?id=57b76b511f73e816c711561c",null,1,{"$f":"SUM(BDD[[#This Row],[PVP]],BDD[[#This Row],[PVE]])","v":3},{"$f":"SUM(BDD[[#This Row],[BAD HARVEST]:[TITANS Support]])","v":3},{"$f":"SUM(BDD[[#This Row],[Pure Fire]:[Nature/Frost]])","v":0},null,null,null,null,null,null,null,null,null,null,null,null,null,null,null,null,null,null,null,null,null,null,null,null,null,null,null,null,null,null,null,null,null,null,null,null,null,null,1,null,1,null,null,null,1]
["Rifle Cultists","CRUSADE","Shadow","Tiers 4",50,"Unit",960,810,"https://cardbase.skylords.eu/lrms/GetMediaData?id=57b76b511f73e816c711561e",null,1,{"$f":"SUM(BDD[[#This Row],[PVP]],BDD[[#This Row],[PVE]])","v":5},{"$f":"SUM(BDD[[#This Row],[BAD HARVEST]:[TITANS Support]])","v":5},{"$f":"SUM(BDD[[#This Row],[Pure Fire]:[Nature/Frost]])","v":0},null,null,null,null,null,null,null,null,null,null,null,null,null,null,null,null,null,1,null,null,null,null,null,null,null,null,null,null,null,null,null,null,1,null,1,null,null,null,null,null,null,null,null,null,null,null,1,null,null,null,1]
["Rioter's Retreat (Frost)","OCEAN","Bandits","Tiers 2",80,"Building",1400,1350,"https://cardbase.skylords.eu/lrms/GetMediaData?id=57b76b511f73e816c7115622",null,1,{"$f":"SUM(BDD[[#This Row],[PVP]],BDD[[#This Row],[PVE]])","v":0},{"$f":"SUM(BDD[[#This Row],[BAD HARVEST]:[TITANS Support]])","v":0},{"$f":"SUM(BDD[[#This Row],[Pure Fire]:[Nature/Frost]])","v":0}]
["Rioter's Retreat (Nature)","MO","Bandits","Tiers 2",80,"Building",1400,1350,"https://cardbase.skylords.eu/lrms/GetMediaData?id=57b76b511f73e816c7115620",null,1,{"$f":"SUM(BDD[[#This Row],[PVP]],BDD[[#This Row],[PVE]])","v":0},{"$f":"SUM(BDD[[#This Row],[BAD HARVEST]:[TITANS Support]])","v":0},{"$f":"SUM(BDD[[#This Row],[Pure Fire]:[Nature/Frost]])","v":0}]
["Ripper","BAD HARVEST","Shadow","Tiers 2",70,"Unit",840,660,"https://cardbase.skylords.eu/lrms/GetMediaData?id=57b76b511f73e816c7115624",null,1,{"$f":"SUM(BDD[[#This Row],[PVP]],BDD[[#This Row],[PVE]])","v":0},{"$f":"SUM(BDD[[#This Row],[BAD HARVEST]:[TITANS Support]])","v":0},{"$f":"SUM(BDD[[#This Row],[Pure Fire]:[Nature/Frost]])","v":0}]
["Rocket Tower","SUNBRIDGE","Fire","Tiers 2",80,"Building",1700,2000,"https://cardbase.skylords.eu/lrms/GetMediaData?id=57b76b511f73e816c7115626",null,1,{"$f":"SUM(BDD[[#This Row],[PVP]],BDD[[#This Row],[PVE]])","v":0},{"$f":"SUM(BDD[[#This Row],[BAD HARVEST]:[TITANS Support]])","v":0},{"$f":"SUM(BDD[[#This Row],[Pure Fire]:[Nature/Frost]])","v":0}]
["Rogan Kayle","THE DWARVEN RIDDLE","Neutral","Tiers 2",90,"Unit",790,1000,"https://cardbase.skylords.eu/lrms/GetMediaData?id=57b76b511f73e816c7115628",null,1,{"$f":"SUM(BDD[[#This Row],[PVP]],BDD[[#This Row],[PVE]])","v":0},{"$f":"SUM(BDD[[#This Row],[BAD HARVEST]:[TITANS Support]])","v":0},{"$f":"SUM(BDD[[#This Row],[Pure Fire]:[Nature/Frost]])","v":0}]
["Rogan Kayle (promo)","THE DWARVEN RIDDLE","Neutral","Tiers 2",90,"Unit",990,1000,"https://cardbase.skylords.eu/lrms/GetMediaData?id=57b7815d1f73e825237afcc8",null,1,{"$f":"SUM(BDD[[#This Row],[PVP]],BDD[[#This Row],[PVE]])","v":0},{"$f":"SUM(BDD[[#This Row],[BAD HARVEST]:[TITANS Support]])","v":0},{"$f":"SUM(BDD[[#This Row],[Pure Fire]:[Nature/Frost]])","v":0}]
["Root Nexus (Frost)","CRUSADE","Nature","Tiers 2",30,"Building",null,780,"https://cardbase.skylords.eu/lrms/GetMediaData?id=57b76b511f73e816c711562d",null,1,{"$f":"SUM(BDD[[#This Row],[PVP]],BDD[[#This Row],[PVE]])","v":0},{"$f":"SUM(BDD[[#This Row],[BAD HARVEST]:[TITANS Support]])","v":0},{"$f":"SUM(BDD[[#This Row],[Pure Fire]:[Nature/Frost]])","v":0}]
["Root Nexus (Nature)","THE TREASURE FLEET","Nature","Tiers 2",30,"Building",null,780,"https://cardbase.skylords.eu/lrms/GetMediaData?id=57b76b511f73e816c711562b",null,1,{"$f":"SUM(BDD[[#This Row],[PVP]],BDD[[#This Row],[PVE]])","v":0},{"$f":"SUM(BDD[[#This Row],[BAD HARVEST]:[TITANS Support]])","v":0},{"$f":"SUM(BDD[[#This Row],[Pure Fire]:[Nature/Frost]])","v":0}]
["Sandstorm (Fire)","BLIGHT","Bandits","Tiers 3",230,"Spell",null,null,"https://cardbase.skylords.eu/lrms/GetMediaData?id=57b76b511f73e816c711562f",null,1,{"$f":"SUM(BDD[[#This Row],[PVP]],BDD[[#This Row],[PVE]])","v":1},{"$f":"SUM(BDD[[#This Row],[BAD HARVEST]:[TITANS Support]])","v":0},{"$f":"SUM(BDD[[#This Row],[Pure Fire]:[Nature/Frost]])","v":1},null,null,null,null,null,null,null,null,1]
["Sandstorm (Shadow)","SLAVE MASTER","Bandits","Tiers 3",230,"Spell",null,null,"https://cardbase.skylords.eu/lrms/GetMediaData?id=57b76b511f73e816c7115631",null,1,{"$f":"SUM(BDD[[#This Row],[PVP]],BDD[[#This Row],[PVE]])","v":0},{"$f":"SUM(BDD[[#This Row],[BAD HARVEST]:[TITANS Support]])","v":0},{"$f":"SUM(BDD[[#This Row],[Pure Fire]:[Nature/Frost]])","v":0}]
["Santa Claus (promo)","NONE","Neutral","Tiers 3",200,"Unit",2000,2000,"https://cardbase.skylords.eu/lrms/GetMediaData?id=57b781671f73e825237afcc9",null,1,{"$f":"SUM(BDD[[#This Row],[PVP]],BDD[[#This Row],[PVE]])","v":0},{"$f":"SUM(BDD[[#This Row],[BAD HARVEST]:[TITANS Support]])","v":0},{"$f":"SUM(BDD[[#This Row],[Pure Fire]:[Nature/Frost]])","v":0}]
["Satanael (Fire)","RAVEN'S END","Shadow","Tiers 3",220,"Unit",3100,2500,"https://cardbase.skylords.eu/lrms/GetMediaData?id=57b76b511f73e816c7115637",null,1,{"$f":"SUM(BDD[[#This Row],[PVP]],BDD[[#This Row],[PVE]])","v":0},{"$f":"SUM(BDD[[#This Row],[BAD HARVEST]:[TITANS Support]])","v":0},{"$f":"SUM(BDD[[#This Row],[Pure Fire]:[Nature/Frost]])","v":0}]
["Satanael (Shadow)","SLAVE MASTER","Shadow","Tiers 3",220,"Unit",3100,2500,"https://cardbase.skylords.eu/lrms/GetMediaData?id=57b76b511f73e816c7115635",null,1,{"$f":"SUM(BDD[[#This Row],[PVP]],BDD[[#This Row],[PVE]])","v":0},{"$f":"SUM(BDD[[#This Row],[BAD HARVEST]:[TITANS Support]])","v":0},{"$f":"SUM(BDD[[#This Row],[Pure Fire]:[Nature/Frost]])","v":0}]
["Scavenger","THE TREASURE FLEET","Fire","Tiers 1",60,"Unit",570,540,"https://cardbase.skylords.eu/lrms/GetMediaData?id=57b76b511f73e816c7115639",null,1,{"$f":"SUM(BDD[[#This Row],[PVP]],BDD[[#This Row],[PVE]])","v":4},{"$f":"SUM(BDD[[#This Row],[BAD HARVEST]:[TITANS Support]])","v":0},{"$f":"SUM(BDD[[#This Row],[Pure Fire]:[Nature/Frost]])","v":4},1,null,null,null,1,1,null,1]
["Scorched Earth (Fire)","SLAVE MASTER","Fire","Tiers 1",80,"Spell",null,null,"https://cardbase.skylords.eu/lrms/GetMediaData?id=57b76b511f73e816c711563d",null,1,{"$f":"SUM(BDD[[#This Row],[PVP]],BDD[[#This Row],[PVE]])","v":0},{"$f":"SUM(BDD[[#This Row],[BAD HARVEST]:[TITANS Support]])","v":0},{"$f":"SUM(BDD[[#This Row],[Pure Fire]:[Nature/Frost]])","v":0}]
["Scorched Earth (Shadow)","OCEAN","Fire","Tiers 1",80,"Spell",null,null,"https://cardbase.skylords.eu/lrms/GetMediaData?id=57b76b511f73e816c711563b",null,1,{"$f":"SUM(BDD[[#This Row],[PVP]],BDD[[#This Row],[PVE]])","v":0},{"$f":"SUM(BDD[[#This Row],[BAD HARVEST]:[TITANS Support]])","v":0},{"$f":"SUM(BDD[[#This Row],[Pure Fire]:[Nature/Frost]])","v":0}]
["Scythe Fiends","SUNBRIDGE","Fire","Tiers 2",100,"Unit",1100,1040,"https://cardbase.skylords.eu/lrms/GetMediaData?id=57b76b511f73e816c711563f",null,1,{"$f":"SUM(BDD[[#This Row],[PVP]],BDD[[#This Row],[PVE]])","v":6},{"$f":"SUM(BDD[[#This Row],[BAD HARVEST]:[TITANS Support]])","v":2},{"$f":"SUM(BDD[[#This Row],[Pure Fire]:[Nature/Frost]])","v":4},1,null,null,null,null,1,1,1,null,null,null,null,null,null,null,null,null,null,null,1,null,null,null,null,null,null,null,null,null,null,null,null,null,null,null,null,null,null,null,null,null,null,null,null,null,null,null,null,null,null,1]
["Second Chance (Nature)","THE SOULTREE","Shadow","Tiers 4",220,"Spell",null,null,"https://cardbase.skylords.eu/lrms/GetMediaData?id=57b76b511f73e816c7115643",null,1,{"$f":"SUM(BDD[[#This Row],[PVP]],BDD[[#This Row],[PVE]])","v":0},{"$f":"SUM(BDD[[#This Row],[BAD HARVEST]:[TITANS Support]])","v":0},{"$f":"SUM(BDD[[#This Row],[Pure Fire]:[Nature/Frost]])","v":0}]
["Second Chance (Shadow)","THE GUNS OF LYR","Shadow","Tiers 4",220,"Spell",null,null,"https://cardbase.skylords.eu/lrms/GetMediaData?id=57b76b511f73e816c7115641",null,1,{"$f":"SUM(BDD[[#This Row],[PVP]],BDD[[#This Row],[PVE]])","v":0},{"$f":"SUM(BDD[[#This Row],[BAD HARVEST]:[TITANS Support]])","v":0},{"$f":"SUM(BDD[[#This Row],[Pure Fire]:[Nature/Frost]])","v":0}]
["Shadow Insect","NIGHTMARE SHARD","Shadow","Tiers 3",100,"Unit",1200,1030,"https://cardbase.skylords.eu/lrms/GetMediaData?id=57b76b511f73e816c7115645",null,1,{"$f":"SUM(BDD[[#This Row],[PVP]],BDD[[#This Row],[PVE]])","v":0},{"$f":"SUM(BDD[[#This Row],[BAD HARVEST]:[TITANS Support]])","v":0},{"$f":"SUM(BDD[[#This Row],[Pure Fire]:[Nature/Frost]])","v":0}]
["Shadow Mage","NIGHTMARE'S END","Shadow","Tiers 2",50,"Unit",1437.5,560,"https://cardbase.skylords.eu/lrms/GetMediaData?id=57b76b511f73e816c7115647",null,1,{"$f":"SUM(BDD[[#This Row],[PVP]],BDD[[#This Row],[PVE]])","v":1},{"$f":"SUM(BDD[[#This Row],[BAD HARVEST]:[TITANS Support]])","v":0},{"$f":"SUM(BDD[[#This Row],[Pure Fire]:[Nature/Frost]])","v":1},null,1]
["Shadow Phoenix","MO","Shadow","Tiers 2",100,"Unit",1500,645,"https://cardbase.skylords.eu/lrms/GetMediaData?id=57b76b511f73e816c7115649",null,1,{"$f":"SUM(BDD[[#This Row],[PVP]],BDD[[#This Row],[PVE]])","v":13},{"$f":"SUM(BDD[[#This Row],[BAD HARVEST]:[TITANS Support]])","v":10},{"$f":"SUM(BDD[[#This Row],[Pure Fire]:[Nature/Frost]])","v":3},null,1,null,null,1,null,null,null,null,null,1,null,null,null,null,null,null,1,null,null,null,null,null,null,1,null,null,null,null,null,null,null,null,null,null,null,null,1,null,1,1,1,null,null,null,1,null,null,1,null,null,null,1,null,null,1]
["Shadow Worm","THE DWARVEN RIDDLE","Shadow","Tiers 4",250,"Unit",3333.333333333333,3000,"https://cardbase.skylords.eu/lrms/GetMediaData?id=57b76b511f73e816c711564b",null,1,{"$f":"SUM(BDD[[#This Row],[PVP]],BDD[[#This Row],[PVE]])","v":0},{"$f":"SUM(BDD[[#This Row],[BAD HARVEST]:[TITANS Support]])","v":0},{"$f":"SUM(BDD[[#This Row],[Pure Fire]:[Nature/Frost]])","v":0}]
["Shaman","ENCOUNTERS WITH TWILIGHT","Nature","Tiers 1",70,"Unit",483.33333333333337,410,"https://cardbase.skylords.eu/lrms/GetMediaData?id=57b76b511f73e816c711564d",null,1,{"$f":"SUM(BDD[[#This Row],[PVP]],BDD[[#This Row],[PVE]])","v":10},{"$f":"SUM(BDD[[#This Row],[BAD HARVEST]:[TITANS Support]])","v":8},{"$f":"SUM(BDD[[#This Row],[Pure Fire]:[Nature/Frost]])","v":2},null,null,null,1,null,null,null,null,null,null,null,null,1,null,null,null,null,null,null,null,null,null,null,null,1,1,null,1,1,null,null,null,1,1,1,null,null,null,1]
["Shatter Ice","THE GUNS OF LYR","Frost","Tiers 4",100,"Spell",null,null,"https://cardbase.skylords.eu/lrms/GetMediaData?id=57b76b511f73e816c711564f",null,1,{"$f":"SUM(BDD[[#This Row],[PVP]],BDD[[#This Row],[PVE]])","v":0},{"$f":"SUM(BDD[[#This Row],[BAD HARVEST]:[TITANS Support]])","v":0},{"$f":"SUM(BDD[[#This Row],[Pure Fire]:[Nature/Frost]])","v":0}]
["Shield Building","BAD HARVEST","Frost","Tiers 3",50,"Spell",null,null,"https://cardbase.skylords.eu/lrms/GetMediaData?id=57b76b511f73e816c7115651",null,1,{"$f":"SUM(BDD[[#This Row],[PVP]],BDD[[#This Row],[PVE]])","v":1},{"$f":"SUM(BDD[[#This Row],[BAD HARVEST]:[TITANS Support]])","v":0},{"$f":"SUM(BDD[[#This Row],[Pure Fire]:[Nature/Frost]])","v":1},null,1]
["Shrine of Greed","BLIGHT","Shadow","Tiers 2",100,"Building",null,1400,"https://cardbase.skylords.eu/lrms/GetMediaData?id=57b76b511f73e816c7115653",null,1,{"$f":"SUM(BDD[[#This Row],[PVP]],BDD[[#This Row],[PVE]])","v":0},{"$f":"SUM(BDD[[#This Row],[BAD HARVEST]:[TITANS Support]])","v":0},{"$f":"SUM(BDD[[#This Row],[Pure Fire]:[Nature/Frost]])","v":0}]
["Shrine of Martyrs","KING OF THE GIANTS","Frost","Tiers 3",125,"Building",null,1800,"https://cardbase.skylords.eu/lrms/GetMediaData?id=57b76b511f73e816c7115655",null,1,{"$f":"SUM(BDD[[#This Row],[PVP]],BDD[[#This Row],[PVE]])","v":0},{"$f":"SUM(BDD[[#This Row],[BAD HARVEST]:[TITANS Support]])","v":0},{"$f":"SUM(BDD[[#This Row],[Pure Fire]:[Nature/Frost]])","v":0}]
["Shrine of Memory","BAD HARVEST","Nature","Tiers 2",100,"Building",null,1800,"https://cardbase.skylords.eu/lrms/GetMediaData?id=57b76b511f73e816c7115657",null,1,{"$f":"SUM(BDD[[#This Row],[PVP]],BDD[[#This Row],[PVE]])","v":1},{"$f":"SUM(BDD[[#This Row],[BAD HARVEST]:[TITANS Support]])","v":0},{"$f":"SUM(BDD[[#This Row],[Pure Fire]:[Nature/Frost]])","v":1},null,null,null,1]
["Shrine of War","THE GUNS OF LYR","Fire","Tiers 3",150,"Building",null,1600,"https://cardbase.skylords.eu/lrms/GetMediaData?id=57b76b511f73e816c7115659",null,1,{"$f":"SUM(BDD[[#This Row],[PVP]],BDD[[#This Row],[PVE]])","v":2},{"$f":"SUM(BDD[[#This Row],[BAD HARVEST]:[TITANS Support]])","v":2},{"$f":"SUM(BDD[[#This Row],[Pure Fire]:[Nature/Frost]])","v":0},null,null,null,null,null,null,null,null,null,null,null,null,null,null,null,null,null,null,null,null,null,null,null,null,null,null,null,null,null,null,null,null,null,null,null,null,null,null,1,null,1]
["Silverwind Lancers","KING OF THE GIANTS","Frost","Tiers 3",80,"Unit",1040,1680,"https://cardbase.skylords.eu/lrms/GetMediaData?id=57b76b511f73e816c711565b",null,1,{"$f":"SUM(BDD[[#This Row],[PVP]],BDD[[#This Row],[PVE]])","v":6},{"$f":"SUM(BDD[[#This Row],[BAD HARVEST]:[TITANS Support]])","v":2},{"$f":"SUM(BDD[[#This Row],[Pure Fire]:[Nature/Frost]])","v":4},null,1,1,null,null,1,null,null,null,1,null,null,null,null,null,null,null,1,null,null,null,null,null,null,null,1]
["Skeleton Warriors","DEFENDING HOPE","Shadow","Tiers 1",50,"Unit",600,510,"https://cardbase.skylords.eu/lrms/GetMediaData?id=57b76b511f73e816c711565d",null,1,{"$f":"SUM(BDD[[#This Row],[PVP]],BDD[[#This Row],[PVE]])","v":0},{"$f":"SUM(BDD[[#This Row],[BAD HARVEST]:[TITANS Support]])","v":0},{"$f":"SUM(BDD[[#This Row],[Pure Fire]:[Nature/Frost]])","v":0}]
["Skycatcher (Frost)","THE INSANE GOD","Twilight","Tiers 4",250,"Unit",4333.333333333333,5300,"https://cardbase.skylords.eu/lrms/GetMediaData?id=57b76b511f73e816c7115661",null,1,{"$f":"SUM(BDD[[#This Row],[PVP]],BDD[[#This Row],[PVE]])","v":0},{"$f":"SUM(BDD[[#This Row],[BAD HARVEST]:[TITANS Support]])","v":0},{"$f":"SUM(BDD[[#This Row],[Pure Fire]:[Nature/Frost]])","v":0}]
["Skycatcher (Nature)","BEHIND ENEMY LINES","Twilight","Tiers 4",250,"Unit",4333.333333333333,5300,"https://cardbase.skylords.eu/lrms/GetMediaData?id=57b76b511f73e816c711565f",null,1,{"$f":"SUM(BDD[[#This Row],[PVP]],BDD[[#This Row],[PVE]])","v":1},{"$f":"SUM(BDD[[#This Row],[BAD HARVEST]:[TITANS Support]])","v":1},{"$f":"SUM(BDD[[#This Row],[Pure Fire]:[Nature/Frost]])","v":0},null,null,null,null,null,null,null,null,null,null,null,null,null,null,null,null,null,null,null,null,null,null,null,null,null,null,null,null,null,null,null,null,null,null,1]
["Skydefender (Nature)","CONVOY","Bandits","Tiers 2",80,"Building",873.33333333333326,1400,"https://cardbase.skylords.eu/lrms/GetMediaData?id=57b76b511f73e816c7115663",null,1,{"$f":"SUM(BDD[[#This Row],[PVP]],BDD[[#This Row],[PVE]])","v":0},{"$f":"SUM(BDD[[#This Row],[BAD HARVEST]:[TITANS Support]])","v":0},{"$f":"SUM(BDD[[#This Row],[Pure Fire]:[Nature/Frost]])","v":0}]
["Skydefender (Shadow)","MO","Bandits","Tiers 2",80,"Building",873.33333333333326,1400,"https://cardbase.skylords.eu/lrms/GetMediaData?id=57b76b511f73e816c7115665",null,1,{"$f":"SUM(BDD[[#This Row],[PVP]],BDD[[#This Row],[PVE]])","v":0},{"$f":"SUM(BDD[[#This Row],[BAD HARVEST]:[TITANS Support]])","v":0},{"$f":"SUM(BDD[[#This Row],[Pure Fire]:[Nature/Frost]])","v":0}]
["Skyelf Commander","THE GUNS OF LYR","Frost","Tiers 4",100,"Unit",1325,1230,"https://cardbase.skylords.eu/lrms/GetMediaData?id=57b76b511f73e816c7115667",null,1,{"$f":"SUM(BDD[[#This Row],[PVP]],BDD[[#This Row],[PVE]])","v":0},{"$f":"SUM(BDD[[#This Row],[BAD HARVEST]:[TITANS Support]])","v":0},{"$f":"SUM(BDD[[#This Row],[Pure Fire]:[Nature/Frost]])","v":0}]
["Skyelf Sage","THE GUNS OF LYR","Frost","Tiers 3",200,"Unit",1030,975,"https://cardbase.skylords.eu/lrms/GetMediaData?id=57b76b511f73e816c7115669",null,1,{"$f":"SUM(BDD[[#This Row],[PVP]],BDD[[#This Row],[PVE]])","v":2},{"$f":"SUM(BDD[[#This Row],[BAD HARVEST]:[TITANS Support]])","v":2},{"$f":"SUM(BDD[[#This Row],[Pure Fire]:[Nature/Frost]])","v":0},null,null,null,null,null,null,null,null,null,null,null,null,null,null,null,null,null,1,null,null,null,null,null,null,null,null,null,null,null,null,null,null,null,null,null,null,null,null,null,null,null,null,null,null,null,null,null,null,1]
["Skyelf Templar","THE GUNS OF LYR","Frost","Tiers 2",100,"Unit",1350,645,"https://cardbase.skylords.eu/lrms/GetMediaData?id=57b76b511f73e816c711566b",null,1,{"$f":"SUM(BDD[[#This Row],[PVP]],BDD[[#This Row],[PVE]])","v":2},{"$f":"SUM(BDD[[#This Row],[BAD HARVEST]:[TITANS Support]])","v":1},{"$f":"SUM(BDD[[#This Row],[Pure Fire]:[Nature/Frost]])","v":1},null,null,1,null,null,null,null,null,null,null,null,null,null,null,null,null,null,null,null,null,null,null,null,null,null,null,null,null,null,null,null,null,null,null,null,null,null,null,null,null,null,null,null,null,null,null,null,null,1]
["Skyfire Drake","DEFENDING HOPE","Fire","Tiers 2",110,"Unit",1266.6666666666667,390,"https://cardbase.skylords.eu/lrms/GetMediaData?id=57b76b511f73e816c711566d",null,1,{"$f":"SUM(BDD[[#This Row],[PVP]],BDD[[#This Row],[PVE]])","v":6},{"$f":"SUM(BDD[[#This Row],[BAD HARVEST]:[TITANS Support]])","v":0},{"$f":"SUM(BDD[[#This Row],[Pure Fire]:[Nature/Frost]])","v":6},1,null,null,null,1,1,1,1,1]
["Slaver (Fire)","THE TREASURE FLEET","Twilight","Tiers 2",80,"Unit",770,710,"https://cardbase.skylords.eu/lrms/GetMediaData?id=57b76b511f73e816c711566f",null,1,{"$f":"SUM(BDD[[#This Row],[PVP]],BDD[[#This Row],[PVE]])","v":0},{"$f":"SUM(BDD[[#This Row],[BAD HARVEST]:[TITANS Support]])","v":0},{"$f":"SUM(BDD[[#This Row],[Pure Fire]:[Nature/Frost]])","v":0}]
["Slaver (Shadow)","SLAVE MASTER","Twilight","Tiers 2",80,"Unit",770,710,"https://cardbase.skylords.eu/lrms/GetMediaData?id=57b76b511f73e816c7115671",null,1,{"$f":"SUM(BDD[[#This Row],[PVP]],BDD[[#This Row],[PVE]])","v":0},{"$f":"SUM(BDD[[#This Row],[BAD HARVEST]:[TITANS Support]])","v":0},{"$f":"SUM(BDD[[#This Row],[Pure Fire]:[Nature/Frost]])","v":0}]
["Snapjaws (Fire)","BLIGHT","Shadow","Tiers 1",70,"Unit",420,520,"https://cardbase.skylords.eu/lrms/GetMediaData?id=57b76b511f73e816c7115675",null,1,{"$f":"SUM(BDD[[#This Row],[PVP]],BDD[[#This Row],[PVE]])","v":2},{"$f":"SUM(BDD[[#This Row],[BAD HARVEST]:[TITANS Support]])","v":2},{"$f":"SUM(BDD[[#This Row],[Pure Fire]:[Nature/Frost]])","v":0},null,null,null,null,null,null,null,null,null,null,null,null,null,null,null,null,null,null,null,null,1,null,null,null,null,null,null,null,null,null,null,1]
["Snapjaws (Shadow)","EMPIRE","Shadow","Tiers 1",70,"Unit",420,520,"https://cardbase.skylords.eu/lrms/GetMediaData?id=57b76b511f73e816c7115673",null,1,{"$f":"SUM(BDD[[#This Row],[PVP]],BDD[[#This Row],[PVE]])","v":0},{"$f":"SUM(BDD[[#This Row],[BAD HARVEST]:[TITANS Support]])","v":0},{"$f":"SUM(BDD[[#This Row],[Pure Fire]:[Nature/Frost]])","v":0}]
["Soul Splicer (Fire)","NIGHTMARE'S END","Shadow","Tiers 1",60,"Building",null,1250,"https://cardbase.skylords.eu/lrms/GetMediaData?id=57b76b511f73e816c7115677",null,1,{"$f":"SUM(BDD[[#This Row],[PVP]],BDD[[#This Row],[PVE]])","v":0},{"$f":"SUM(BDD[[#This Row],[BAD HARVEST]:[TITANS Support]])","v":0},{"$f":"SUM(BDD[[#This Row],[Pure Fire]:[Nature/Frost]])","v":0}]
["Soul Splicer (Nature)","RAVEN'S END","Shadow","Tiers 1",60,"Building",null,1250,"https://cardbase.skylords.eu/lrms/GetMediaData?id=57b76b511f73e816c7115679",null,1,{"$f":"SUM(BDD[[#This Row],[PVP]],BDD[[#This Row],[PVE]])","v":3},{"$f":"SUM(BDD[[#This Row],[BAD HARVEST]:[TITANS Support]])","v":3},{"$f":"SUM(BDD[[#This Row],[Pure Fire]:[Nature/Frost]])","v":0},null,null,null,null,null,null,null,null,null,null,null,null,null,null,null,null,null,null,null,null,null,null,null,null,null,null,null,null,null,null,null,1,null,null,null,null,null,null,null,1,null,null,null,null,null,null,null,null,null,null,null,null,null,null,1]
["Soulhunter (Frost)","RAVEN'S END","Bandits","Tiers 3",260,"Unit",4500,3400,"https://cardbase.skylords.eu/lrms/GetMediaData?id=57b76b511f73e816c711567b",null,1,{"$f":"SUM(BDD[[#This Row],[PVP]],BDD[[#This Row],[PVE]])","v":1},{"$f":"SUM(BDD[[#This Row],[BAD HARVEST]:[TITANS Support]])","v":0},{"$f":"SUM(BDD[[#This Row],[Pure Fire]:[Nature/Frost]])","v":1},null,null,null,null,null,null,null,null,1]
["Soulhunter (Shadow)","SLAVE MASTER","Bandits","Tiers 3",260,"Unit",4500,3400,"https://cardbase.skylords.eu/lrms/GetMediaData?id=57b76b511f73e816c711567d",null,1,{"$f":"SUM(BDD[[#This Row],[PVP]],BDD[[#This Row],[PVE]])","v":0},{"$f":"SUM(BDD[[#This Row],[BAD HARVEST]:[TITANS Support]])","v":0},{"$f":"SUM(BDD[[#This Row],[Pure Fire]:[Nature/Frost]])","v":0}]
["Soulshatter","THE GUNS OF LYR","Shadow","Tiers 3",150,"Spell",null,null,"https://cardbase.skylords.eu/lrms/GetMediaData?id=57b76b511f73e816c711567f",null,1,{"$f":"SUM(BDD[[#This Row],[PVP]],BDD[[#This Row],[PVE]])","v":1},{"$f":"SUM(BDD[[#This Row],[BAD HARVEST]:[TITANS Support]])","v":1},{"$f":"SUM(BDD[[#This Row],[Pure Fire]:[Nature/Frost]])","v":0},null,null,null,null,null,null,null,null,null,null,null,null,null,null,null,null,null,null,null,null,null,null,null,null,null,null,null,null,null,null,null,null,null,null,null,null,null,null,null,null,null,null,null,null,null,null,null,null,1]
["Spearmen","DEFENDING HOPE","Nature","Tiers 1",70,"Unit",600,720,"https://cardbase.skylords.eu/lrms/GetMediaData?id=57b76b511f73e816c7115681",null,1,{"$f":"SUM(BDD[[#This Row],[PVP]],BDD[[#This Row],[PVE]])","v":2},{"$f":"SUM(BDD[[#This Row],[BAD HARVEST]:[TITANS Support]])","v":0},{"$f":"SUM(BDD[[#This Row],[Pure Fire]:[Nature/Frost]])","v":2},null,null,null,1,null,null,null,null,null,null,null,null,1]
["Spikeroot","OCEAN","Nature","Tiers 2",120,"Unit",500,1000,"https://cardbase.skylords.eu/lrms/GetMediaData?id=57b76b511f73e816c7115683",null,1,{"$f":"SUM(BDD[[#This Row],[PVP]],BDD[[#This Row],[PVE]])","v":0},{"$f":"SUM(BDD[[#This Row],[BAD HARVEST]:[TITANS Support]])","v":0},{"$f":"SUM(BDD[[#This Row],[Pure Fire]:[Nature/Frost]])","v":0}]
["Spirit Hunters (Nature)","KING OF THE GIANTS","Nature","Tiers 2",75,"Unit",792,510,"https://cardbase.skylords.eu/lrms/GetMediaData?id=57b76b511f73e816c7115685",null,1,{"$f":"SUM(BDD[[#This Row],[PVP]],BDD[[#This Row],[PVE]])","v":3},{"$f":"SUM(BDD[[#This Row],[BAD HARVEST]:[TITANS Support]])","v":0},{"$f":"SUM(BDD[[#This Row],[Pure Fire]:[Nature/Frost]])","v":3},null,null,null,1,null,null,null,null,null,null,null,1,1]
["Spirit Hunters (Shadow)","SIEGE OF HOPE","Nature","Tiers 2",75,"Unit",792,510,"https://cardbase.skylords.eu/lrms/GetMediaData?id=57b76b511f73e816c7115687",null,1,{"$f":"SUM(BDD[[#This Row],[PVP]],BDD[[#This Row],[PVE]])","v":0},{"$f":"SUM(BDD[[#This Row],[BAD HARVEST]:[TITANS Support]])","v":0},{"$f":"SUM(BDD[[#This Row],[Pure Fire]:[Nature/Frost]])","v":0}]
["Spitfire","OCEAN","Fire ","Tiers 3",220,"Unit",1725,1900,"https://cardbase.skylords.eu/lrms/GetMediaData?id=57b76b511f73e816c7115689",null,1,{"$f":"SUM(BDD[[#This Row],[PVP]],BDD[[#This Row],[PVE]])","v":0},{"$f":"SUM(BDD[[#This Row],[BAD HARVEST]:[TITANS Support]])","v":0},{"$f":"SUM(BDD[[#This Row],[Pure Fire]:[Nature/Frost]])","v":0}]
["Spore Launcher","THE INSANE GOD","Nature","Tiers 4",260,"Unit",1250,6500,"https://cardbase.skylords.eu/lrms/GetMediaData?id=57b76b511f73e816c711568b",null,1,{"$f":"SUM(BDD[[#This Row],[PVP]],BDD[[#This Row],[PVE]])","v":0},{"$f":"SUM(BDD[[#This Row],[BAD HARVEST]:[TITANS Support]])","v":0},{"$f":"SUM(BDD[[#This Row],[Pure Fire]:[Nature/Frost]])","v":0}]
["Stone Hurler (Fire)","RAVEN'S END","Stonekin","Tiers 2",75,"Building",1000,1530,"https://cardbase.skylords.eu/lrms/GetMediaData?id=57b76b511f73e816c711568f",null,1,{"$f":"SUM(BDD[[#This Row],[PVP]],BDD[[#This Row],[PVE]])","v":0},{"$f":"SUM(BDD[[#This Row],[BAD HARVEST]:[TITANS Support]])","v":0},{"$f":"SUM(BDD[[#This Row],[Pure Fire]:[Nature/Frost]])","v":0}]
["Stone Hurler (Shadow)","KING OF THE GIANTS","Stonekin","Tiers 2",75,"Building",1000,1530,"https://cardbase.skylords.eu/lrms/GetMediaData?id=57b76b511f73e816c711568d",null,1,{"$f":"SUM(BDD[[#This Row],[PVP]],BDD[[#This Row],[PVE]])","v":0},{"$f":"SUM(BDD[[#This Row],[BAD HARVEST]:[TITANS Support]])","v":0},{"$f":"SUM(BDD[[#This Row],[Pure Fire]:[Nature/Frost]])","v":0}]
["Stone Launcher (Frost)","BAD HARVEST","Stonekin","Tiers 3",70,"Building",2250,1700,"https://cardbase.skylords.eu/lrms/GetMediaData?id=57b76b511f73e816c7115691",null,1,{"$f":"SUM(BDD[[#This Row],[PVP]],BDD[[#This Row],[PVE]])","v":0},{"$f":"SUM(BDD[[#This Row],[BAD HARVEST]:[TITANS Support]])","v":0},{"$f":"SUM(BDD[[#This Row],[Pure Fire]:[Nature/Frost]])","v":0}]
["Stone Launcher (Shadow)","THE TITANS","Stonekin","Tiers 3",70,"Building",2250,1700,"https://cardbase.skylords.eu/lrms/GetMediaData?id=57b76b511f73e816c7115693",null,1,{"$f":"SUM(BDD[[#This Row],[PVP]],BDD[[#This Row],[PVE]])","v":0},{"$f":"SUM(BDD[[#This Row],[BAD HARVEST]:[TITANS Support]])","v":0},{"$f":"SUM(BDD[[#This Row],[Pure Fire]:[Nature/Frost]])","v":0}]
["Stone of Torment","OCEAN","Shadow","Tiers 2",90,"Building",800,1500,"https://cardbase.skylords.eu/lrms/GetMediaData?id=57b76b511f73e816c7115695",null,1,{"$f":"SUM(BDD[[#This Row],[PVP]],BDD[[#This Row],[PVE]])","v":2},{"$f":"SUM(BDD[[#This Row],[BAD HARVEST]:[TITANS Support]])","v":2},{"$f":"SUM(BDD[[#This Row],[Pure Fire]:[Nature/Frost]])","v":0},null,null,null,null,null,null,null,null,null,null,null,null,null,null,null,null,null,null,null,null,null,null,null,null,null,null,null,null,null,null,null,null,null,1,null,null,null,null,null,null,null,null,null,null,null,null,null,null,null,null,null,null,1]
["Stone Shards (Fire)","NIGHTMARE SHARD","Stonekin","Tiers 2",60,"Unit",660,840,"https://cardbase.skylords.eu/lrms/GetMediaData?id=57b76b511f73e816c7115697",null,1,{"$f":"SUM(BDD[[#This Row],[PVP]],BDD[[#This Row],[PVE]])","v":2},{"$f":"SUM(BDD[[#This Row],[BAD HARVEST]:[TITANS Support]])","v":0},{"$f":"SUM(BDD[[#This Row],[Pure Fire]:[Nature/Frost]])","v":2},null,null,null,null,null,null,null,null,null,null,null,1,1]
["Stone Shards (Frost)","KING OF THE GIANTS","Stonekin","Tiers 2",60,"Unit",660,840,"https://cardbase.skylords.eu/lrms/GetMediaData?id=57b76b511f73e816c7115699",null,1,{"$f":"SUM(BDD[[#This Row],[PVP]],BDD[[#This Row],[PVE]])","v":0},{"$f":"SUM(BDD[[#This Row],[BAD HARVEST]:[TITANS Support]])","v":0},{"$f":"SUM(BDD[[#This Row],[Pure Fire]:[Nature/Frost]])","v":0}]
["Stone Shell (Nature)","RAVEN'S END","Stonekin","Tiers 3",70,"Spell",null,null,"https://cardbase.skylords.eu/lrms/GetMediaData?id=57b76b511f73e816c711569b",null,1,{"$f":"SUM(BDD[[#This Row],[PVP]],BDD[[#This Row],[PVE]])","v":0},{"$f":"SUM(BDD[[#This Row],[BAD HARVEST]:[TITANS Support]])","v":0},{"$f":"SUM(BDD[[#This Row],[Pure Fire]:[Nature/Frost]])","v":0}]
["Stone Shell (Shadow)","ENCOUNTERS WITH TWILIGHT","Stonekin","Tiers 3",70,"Spell",null,null,"https://cardbase.skylords.eu/lrms/GetMediaData?id=57b76b511f73e816c711569d",null,1,{"$f":"SUM(BDD[[#This Row],[PVP]],BDD[[#This Row],[PVE]])","v":0},{"$f":"SUM(BDD[[#This Row],[BAD HARVEST]:[TITANS Support]])","v":0},{"$f":"SUM(BDD[[#This Row],[Pure Fire]:[Nature/Frost]])","v":0}]
["Stone Tempest (Frost)","CONVOY","Stonekin","Tiers 2",110,"Unit",750,1500,"https://cardbase.skylords.eu/lrms/GetMediaData?id=57b76b511f73e816c711569f",null,1,{"$f":"SUM(BDD[[#This Row],[PVP]],BDD[[#This Row],[PVE]])","v":0},{"$f":"SUM(BDD[[#This Row],[BAD HARVEST]:[TITANS Support]])","v":0},{"$f":"SUM(BDD[[#This Row],[Pure Fire]:[Nature/Frost]])","v":0}]
["Stone Tempest (Shadow)","SIEGE OF HOPE","Stonekin","Tiers 2",110,"Unit",750,1500,"https://cardbase.skylords.eu/lrms/GetMediaData?id=57b76b511f73e816c71156a1",null,1,{"$f":"SUM(BDD[[#This Row],[PVP]],BDD[[#This Row],[PVE]])","v":0},{"$f":"SUM(BDD[[#This Row],[BAD HARVEST]:[TITANS Support]])","v":0},{"$f":"SUM(BDD[[#This Row],[Pure Fire]:[Nature/Frost]])","v":0}]
["Stone Warrior (Frost)","CONVOY","Stonekin","Tiers 3",120,"Unit",1700,1950,"https://cardbase.skylords.eu/lrms/GetMediaData?id=57b76b511f73e816c71156a5",null,1,{"$f":"SUM(BDD[[#This Row],[PVP]],BDD[[#This Row],[PVE]])","v":2},{"$f":"SUM(BDD[[#This Row],[BAD HARVEST]:[TITANS Support]])","v":0},{"$f":"SUM(BDD[[#This Row],[Pure Fire]:[Nature/Frost]])","v":2},null,null,null,null,null,null,null,null,null,null,null,1,1]
["Stone Warrior (Nature)","ENCOUNTERS WITH TWILIGHT","Stonekin","Tiers 3",120,"Unit",1700,1950,"https://cardbase.skylords.eu/lrms/GetMediaData?id=57b76b511f73e816c71156a3",null,1,{"$f":"SUM(BDD[[#This Row],[PVP]],BDD[[#This Row],[PVE]])","v":0},{"$f":"SUM(BDD[[#This Row],[BAD HARVEST]:[TITANS Support]])","v":0},{"$f":"SUM(BDD[[#This Row],[Pure Fire]:[Nature/Frost]])","v":0}]
["Stormsinger (Fire)","CONVOY","Frost","Tiers 2",60,"Unit",538.46153846153845,650,"https://cardbase.skylords.eu/lrms/GetMediaData?id=57b76b511f73e816c71156a9",null,1,{"$f":"SUM(BDD[[#This Row],[PVP]],BDD[[#This Row],[PVE]])","v":0},{"$f":"SUM(BDD[[#This Row],[BAD HARVEST]:[TITANS Support]])","v":0},{"$f":"SUM(BDD[[#This Row],[Pure Fire]:[Nature/Frost]])","v":0}]
["Stormsinger (Nature)","THE GUNS OF LYR","Frost","Tiers 2",60,"Unit",538.46153846153845,650,"https://cardbase.skylords.eu/lrms/GetMediaData?id=57b76b511f73e816c71156a7",null,1,{"$f":"SUM(BDD[[#This Row],[PVP]],BDD[[#This Row],[PVE]])","v":6},{"$f":"SUM(BDD[[#This Row],[BAD HARVEST]:[TITANS Support]])","v":0},{"$f":"SUM(BDD[[#This Row],[Pure Fire]:[Nature/Frost]])","v":6},null,null,1,null,null,1,1,null,null,1,null,1,1]
["Stranglehold (Nature)","BLIGHT","Nature","Tiers 1",60,"Building",null,1200,"https://cardbase.skylords.eu/lrms/GetMediaData?id=57b76b511f73e816c71156ad",null,1,{"$f":"SUM(BDD[[#This Row],[PVP]],BDD[[#This Row],[PVE]])","v":1},{"$f":"SUM(BDD[[#This Row],[BAD HARVEST]:[TITANS Support]])","v":1},{"$f":"SUM(BDD[[#This Row],[Pure Fire]:[Nature/Frost]])","v":0},null,null,null,null,null,null,null,null,null,null,null,null,null,null,null,null,null,null,null,null,null,null,null,null,null,null,null,null,null,null,null,null,1]
["Stranglehold (Shadow)","SUNBRIDGE","Nature","Tiers 1",60,"Building",null,1200,"https://cardbase.skylords.eu/lrms/GetMediaData?id=57b76b511f73e816c71156ab",null,1,{"$f":"SUM(BDD[[#This Row],[PVP]],BDD[[#This Row],[PVE]])","v":0},{"$f":"SUM(BDD[[#This Row],[BAD HARVEST]:[TITANS Support]])","v":0},{"$f":"SUM(BDD[[#This Row],[Pure Fire]:[Nature/Frost]])","v":0}]
["Strikers","DEFENDING HOPE","Fire","Tiers 1",90,"Unit",600,600,"https://cardbase.skylords.eu/lrms/GetMediaData?id=57b76b511f73e816c71156af",null,1,{"$f":"SUM(BDD[[#This Row],[PVP]],BDD[[#This Row],[PVE]])","v":0},{"$f":"SUM(BDD[[#This Row],[BAD HARVEST]:[TITANS Support]])","v":0},{"$f":"SUM(BDD[[#This Row],[Pure Fire]:[Nature/Frost]])","v":0}]
["Stronghold","THE GUNS OF LYR","Frost","Tiers 3",150,"Building",2155,3600,"https://cardbase.skylords.eu/lrms/GetMediaData?id=57b76b511f73e816c71156b1",null,1,{"$f":"SUM(BDD[[#This Row],[PVP]],BDD[[#This Row],[PVE]])","v":0},{"$f":"SUM(BDD[[#This Row],[BAD HARVEST]:[TITANS Support]])","v":0},{"$f":"SUM(BDD[[#This Row],[Pure Fire]:[Nature/Frost]])","v":0}]
["Sun Reaver (Fire)","BLIGHT","Fire ","Tiers 3",120,"Unit",1481.4814814814815,1560,"https://cardbase.skylords.eu/lrms/GetMediaData?id=57b76b511f73e816c71156b3",null,1,{"$f":"SUM(BDD[[#This Row],[PVP]],BDD[[#This Row],[PVE]])","v":0},{"$f":"SUM(BDD[[#This Row],[BAD HARVEST]:[TITANS Support]])","v":0},{"$f":"SUM(BDD[[#This Row],[Pure Fire]:[Nature/Frost]])","v":0}]
["Sun Reaver (Nature)","THE SOULTREE","Fire ","Tiers 3",120,"Unit",1481.4814814814815,1560,"https://cardbase.skylords.eu/lrms/GetMediaData?id=57b76b511f73e816c71156b5",null,1,{"$f":"SUM(BDD[[#This Row],[PVP]],BDD[[#This Row],[PVE]])","v":0},{"$f":"SUM(BDD[[#This Row],[BAD HARVEST]:[TITANS Support]])","v":0},{"$f":"SUM(BDD[[#This Row],[Pure Fire]:[Nature/Frost]])","v":0}]
["Sunderer","THE TREASURE FLEET","Fire","Tiers 1",110,"Unit",1100,800,"https://cardbase.skylords.eu/lrms/GetMediaData?id=57b76b511f73e816c71156b7",null,1,{"$f":"SUM(BDD[[#This Row],[PVP]],BDD[[#This Row],[PVE]])","v":4},{"$f":"SUM(BDD[[#This Row],[BAD HARVEST]:[TITANS Support]])","v":1},{"$f":"SUM(BDD[[#This Row],[Pure Fire]:[Nature/Frost]])","v":3},1,null,null,null,1,null,null,1,null,null,null,null,null,null,null,null,null,null,null,null,null,null,null,null,null,null,null,null,null,null,null,null,null,null,null,null,null,null,null,null,null,null,null,null,null,null,null,null,null,null,null,null,null,null,null,1]
["Sunken Temple (Nature)","SUNBRIDGE","Nature","Tiers 2",120,"Spell",null,null,"https://cardbase.skylords.eu/lrms/GetMediaData?id=57b76b511f73e816c71156b9",null,1,{"$f":"SUM(BDD[[#This Row],[PVP]],BDD[[#This Row],[PVE]])","v":0},{"$f":"SUM(BDD[[#This Row],[BAD HARVEST]:[TITANS Support]])","v":0},{"$f":"SUM(BDD[[#This Row],[Pure Fire]:[Nature/Frost]])","v":0}]
["Sunken Temple (Shadow)","THE INSANE GOD","Nature","Tiers 2",120,"Spell",null,null,"https://cardbase.skylords.eu/lrms/GetMediaData?id=57b76b511f73e816c71156bb",null,1,{"$f":"SUM(BDD[[#This Row],[PVP]],BDD[[#This Row],[PVE]])","v":0},{"$f":"SUM(BDD[[#This Row],[BAD HARVEST]:[TITANS Support]])","v":0},{"$f":"SUM(BDD[[#This Row],[Pure Fire]:[Nature/Frost]])","v":0}]
["Sunstriders","ENCOUNTERS WITH TWILIGHT","Fire","Tiers 1",50,"Unit",432,360,"https://cardbase.skylords.eu/lrms/GetMediaData?id=57b76b511f73e816c71156bd",null,1,{"$f":"SUM(BDD[[#This Row],[PVP]],BDD[[#This Row],[PVE]])","v":8},{"$f":"SUM(BDD[[#This Row],[BAD HARVEST]:[TITANS Support]])","v":4},{"$f":"SUM(BDD[[#This Row],[Pure Fire]:[Nature/Frost]])","v":4},1,null,null,null,1,1,null,1,null,null,null,null,null,null,null,null,null,null,null,null,null,null,null,1,null,null,null,null,null,null,null,null,null,null,null,null,null,null,null,null,null,null,null,null,1,null,null,1,null,null,null,null,1]
["Suppression","SLAVE MASTER","Fire","Tiers 1",40,"Spell",null,null,"https://cardbase.skylords.eu/lrms/GetMediaData?id=57b76b511f73e816c71156bf",null,1,{"$f":"SUM(BDD[[#This Row],[PVP]],BDD[[#This Row],[PVE]])","v":5},{"$f":"SUM(BDD[[#This Row],[BAD HARVEST]:[TITANS Support]])","v":5},{"$f":"SUM(BDD[[#This Row],[Pure Fire]:[Nature/Frost]])","v":0},null,null,null,null,null,null,null,null,null,null,null,null,null,null,null,null,null,null,null,null,null,null,null,null,null,null,null,null,null,null,null,null,null,null,null,1,null,null,1,null,null,null,null,null,1,1,null,null,null,null,null,null,null,null,null,1]
["Surge of Light","SIEGE OF HOPE","Nature","Tiers 1",80,"Spell",null,null,"https://cardbase.skylords.eu/lrms/GetMediaData?id=57b76b511f73e816c71156c1",null,1,{"$f":"SUM(BDD[[#This Row],[PVP]],BDD[[#This Row],[PVE]])","v":25},{"$f":"SUM(BDD[[#This Row],[BAD HARVEST]:[TITANS Support]])","v":20},{"$f":"SUM(BDD[[#This Row],[Pure Fire]:[Nature/Frost]])","v":5},null,null,null,1,null,null,null,1,null,null,1,1,1,null,null,null,1,null,null,1,null,1,1,null,1,1,null,1,1,1,1,null,null,null,1,null,null,null,null,null,null,1,1,null,1,1,1,null,null,1,null,null,null,1,1,1]
["Swamp Drake","CRUSADE","Nature","Tiers 3",120,"Unit",1500,845,"https://cardbase.skylords.eu/lrms/GetMediaData?id=57b76b511f73e816c71156c3",null,1,{"$f":"SUM(BDD[[#This Row],[PVP]],BDD[[#This Row],[PVE]])","v":0},{"$f":"SUM(BDD[[#This Row],[BAD HARVEST]:[TITANS Support]])","v":0},{"$f":"SUM(BDD[[#This Row],[Pure Fire]:[Nature/Frost]])","v":0}]
["Swamp Drake (promo)","CRUSADE","Nature","Tiers 3",120,"Unit",1500,845,"https://cardbase.skylords.eu/lrms/GetMediaData?id=57b7816e1f73e825237afcca",null,1,{"$f":"SUM(BDD[[#This Row],[PVP]],BDD[[#This Row],[PVE]])","v":0},{"$f":"SUM(BDD[[#This Row],[BAD HARVEST]:[TITANS Support]])","v":0},{"$f":"SUM(BDD[[#This Row],[Pure Fire]:[Nature/Frost]])","v":0}]
["Swiftclaw","BEHIND ENEMY LINES","Nature","Tiers 1",80,"Unit",990,510,"https://cardbase.skylords.eu/lrms/GetMediaData?id=57b76b511f73e816c71156c6",null,1,{"$f":"SUM(BDD[[#This Row],[PVP]],BDD[[#This Row],[PVE]])","v":4},{"$f":"SUM(BDD[[#This Row],[BAD HARVEST]:[TITANS Support]])","v":2},{"$f":"SUM(BDD[[#This Row],[Pure Fire]:[Nature/Frost]])","v":2},null,null,null,1,null,null,null,null,null,null,null,null,1,null,null,null,null,null,null,null,null,null,null,null,null,null,null,null,1,null,null,null,null,null,null,null,null,null,null,null,null,null,null,null,null,null,1]
["Sylvan Gate (Fire)","ORACLE","Nature","Tiers 3",110,"Building",null,2460,"https://cardbase.skylords.eu/lrms/GetMediaData?id=57b76b511f73e816c71156ca",null,1,{"$f":"SUM(BDD[[#This Row],[PVP]],BDD[[#This Row],[PVE]])","v":0},{"$f":"SUM(BDD[[#This Row],[BAD HARVEST]:[TITANS Support]])","v":0},{"$f":"SUM(BDD[[#This Row],[Pure Fire]:[Nature/Frost]])","v":0}]
["Sylvan Gate (Frost)","BEHIND ENEMY LINES","Nature","Tiers 3",110,"Building",null,2460,"https://cardbase.skylords.eu/lrms/GetMediaData?id=57b76b511f73e816c71156c8",null,1,{"$f":"SUM(BDD[[#This Row],[PVP]],BDD[[#This Row],[PVE]])","v":0},{"$f":"SUM(BDD[[#This Row],[BAD HARVEST]:[TITANS Support]])","v":0},{"$f":"SUM(BDD[[#This Row],[Pure Fire]:[Nature/Frost]])","v":0}]
["Tempest","BAD HARVEST","Frost","Tiers 4",90,"Unit",860,1850,"https://cardbase.skylords.eu/lrms/GetMediaData?id=57b76b511f73e816c71156cc",null,1,{"$f":"SUM(BDD[[#This Row],[PVP]],BDD[[#This Row],[PVE]])","v":0},{"$f":"SUM(BDD[[#This Row],[BAD HARVEST]:[TITANS Support]])","v":0},{"$f":"SUM(BDD[[#This Row],[Pure Fire]:[Nature/Frost]])","v":0}]
["Termite Hill","MO","Fire","Tiers 2",40,"Building",2600,860,"https://cardbase.skylords.eu/lrms/GetMediaData?id=57b76b511f73e816c71156ce",null,1,{"$f":"SUM(BDD[[#This Row],[PVP]],BDD[[#This Row],[PVE]])","v":1},{"$f":"SUM(BDD[[#This Row],[BAD HARVEST]:[TITANS Support]])","v":1},{"$f":"SUM(BDD[[#This Row],[Pure Fire]:[Nature/Frost]])","v":0},null,null,null,null,null,null,null,null,null,null,null,null,null,null,null,null,null,null,null,null,null,null,null,null,null,null,null,null,null,null,null,null,null,null,null,1]
["The Incredible Mo","ORACLE","Neutral","Tiers 3",100,"Building",null,2460,"https://cardbase.skylords.eu/lrms/GetMediaData?id=57b76b511f73e816c71156d0",null,1,{"$f":"SUM(BDD[[#This Row],[PVP]],BDD[[#This Row],[PVE]])","v":0},{"$f":"SUM(BDD[[#This Row],[BAD HARVEST]:[TITANS Support]])","v":0},{"$f":"SUM(BDD[[#This Row],[Pure Fire]:[Nature/Frost]])","v":0}]
["Thornbark","BEHIND ENEMY LINES","Nature","Tiers 3",120,"Unit",1020,1300,"https://cardbase.skylords.eu/lrms/GetMediaData?id=57b76b511f73e816c71156d2",null,1,{"$f":"SUM(BDD[[#This Row],[PVP]],BDD[[#This Row],[PVE]])","v":0},{"$f":"SUM(BDD[[#This Row],[BAD HARVEST]:[TITANS Support]])","v":0},{"$f":"SUM(BDD[[#This Row],[Pure Fire]:[Nature/Frost]])","v":0}]
["Thugs","BLIGHT","Fire","Tiers 1",60,"Unit",660,450,"https://cardbase.skylords.eu/lrms/GetMediaData?id=57b76b511f73e816c71156d4",null,1,{"$f":"SUM(BDD[[#This Row],[PVP]],BDD[[#This Row],[PVE]])","v":4},{"$f":"SUM(BDD[[#This Row],[BAD HARVEST]:[TITANS Support]])","v":0},{"$f":"SUM(BDD[[#This Row],[Pure Fire]:[Nature/Frost]])","v":4},1,null,null,null,1,1,null,1]
["Thunder Wagon (Fire)","THE GUNS OF LYR","Fire ","Tiers 4",260,"Unit",4325,4200,"https://cardbase.skylords.eu/lrms/GetMediaData?id=57b76b511f73e816c71156d8",null,1,{"$f":"SUM(BDD[[#This Row],[PVP]],BDD[[#This Row],[PVE]])","v":0},{"$f":"SUM(BDD[[#This Row],[BAD HARVEST]:[TITANS Support]])","v":0},{"$f":"SUM(BDD[[#This Row],[Pure Fire]:[Nature/Frost]])","v":0}]
["Thunder Wagon (Shadow)","BEHIND ENEMY LINES","Fire ","Tiers 4",260,"Unit",4325,4200,"https://cardbase.skylords.eu/lrms/GetMediaData?id=57b76b511f73e816c71156d6",null,1,{"$f":"SUM(BDD[[#This Row],[PVP]],BDD[[#This Row],[PVE]])","v":0},{"$f":"SUM(BDD[[#This Row],[BAD HARVEST]:[TITANS Support]])","v":0},{"$f":"SUM(BDD[[#This Row],[Pure Fire]:[Nature/Frost]])","v":0}]
["Thunderstorm","NIGHTMARE'S END","Nature","Tiers 3",150,"Spell",null,null,"https://cardbase.skylords.eu/lrms/GetMediaData?id=57b76b511f73e816c71156da",null,1,{"$f":"SUM(BDD[[#This Row],[PVP]],BDD[[#This Row],[PVE]])","v":5},{"$f":"SUM(BDD[[#This Row],[BAD HARVEST]:[TITANS Support]])","v":5},{"$f":"SUM(BDD[[#This Row],[Pure Fire]:[Nature/Frost]])","v":0},null,null,null,null,null,null,null,null,null,null,null,null,null,null,null,null,null,null,null,null,null,1,null,null,null,null,null,null,null,null,null,null,null,1,1,null,null,null,1,null,1]
["Time Vortex (Frost)","EMPIRE","Shadow","Tiers 2",100,"Building",1037.5,2830,"https://cardbase.skylords.eu/lrms/GetMediaData?id=57b76b511f73e816c71156dc",null,1,{"$f":"SUM(BDD[[#This Row],[PVP]],BDD[[#This Row],[PVE]])","v":0},{"$f":"SUM(BDD[[#This Row],[BAD HARVEST]:[TITANS Support]])","v":0},{"$f":"SUM(BDD[[#This Row],[Pure Fire]:[Nature/Frost]])","v":0}]
["Time Vortex (Shadow)","NIGHTMARE SHARD","Shadow","Tiers 2",100,"Building",1037.5,2830,"https://cardbase.skylords.eu/lrms/GetMediaData?id=57b76b511f73e816c71156de",null,1,{"$f":"SUM(BDD[[#This Row],[PVP]],BDD[[#This Row],[PVE]])","v":0},{"$f":"SUM(BDD[[#This Row],[BAD HARVEST]:[TITANS Support]])","v":0},{"$f":"SUM(BDD[[#This Row],[Pure Fire]:[Nature/Frost]])","v":0}]
["Timeless One","KING OF THE GIANTS","Frost","Tiers 3",55,"Unit",383.33333333333337,850,"https://cardbase.skylords.eu/lrms/GetMediaData?id=57b76b511f73e816c71156e0",null,1,{"$f":"SUM(BDD[[#This Row],[PVP]],BDD[[#This Row],[PVE]])","v":5},{"$f":"SUM(BDD[[#This Row],[BAD HARVEST]:[TITANS Support]])","v":0},{"$f":"SUM(BDD[[#This Row],[Pure Fire]:[Nature/Frost]])","v":5},null,null,1,null,null,1,null,null,null,1,null,1,1]
["Timeshifter Spirit","THE DWARVEN RIDDLE","Nature","Tiers 3",100,"Unit",null,775,"https://cardbase.skylords.eu/lrms/GetMediaData?id=57b76b511f73e816c71156e2",null,1,{"$f":"SUM(BDD[[#This Row],[PVP]],BDD[[#This Row],[PVE]])","v":0},{"$f":"SUM(BDD[[#This Row],[BAD HARVEST]:[TITANS Support]])","v":0},{"$f":"SUM(BDD[[#This Row],[Pure Fire]:[Nature/Frost]])","v":0}]
["Tortugun (Fire)","OCEAN","Bandits","Tiers 4",240,"Unit",8400,3200,"https://cardbase.skylords.eu/lrms/GetMediaData?id=57b76b511f73e816c71156e6",null,1,{"$f":"SUM(BDD[[#This Row],[PVP]],BDD[[#This Row],[PVE]])","v":0},{"$f":"SUM(BDD[[#This Row],[BAD HARVEST]:[TITANS Support]])","v":0},{"$f":"SUM(BDD[[#This Row],[Pure Fire]:[Nature/Frost]])","v":0}]
["Tortugun (Frost)","RAVEN'S END","Bandits","Tiers 4",240,"Unit",8400,3200,"https://cardbase.skylords.eu/lrms/GetMediaData?id=57b76b511f73e816c71156e4",null,1,{"$f":"SUM(BDD[[#This Row],[PVP]],BDD[[#This Row],[PVE]])","v":0},{"$f":"SUM(BDD[[#This Row],[BAD HARVEST]:[TITANS Support]])","v":0},{"$f":"SUM(BDD[[#This Row],[Pure Fire]:[Nature/Frost]])","v":0}]
["Tower of Flames","MO","Frost","Tiers 3",120,"Unit",2700,2100,"https://cardbase.skylords.eu/lrms/GetMediaData?id=57b76b511f73e816c71156e8",null,1,{"$f":"SUM(BDD[[#This Row],[PVP]],BDD[[#This Row],[PVE]])","v":0},{"$f":"SUM(BDD[[#This Row],[BAD HARVEST]:[TITANS Support]])","v":0},{"$f":"SUM(BDD[[#This Row],[Pure Fire]:[Nature/Frost]])","v":0}]
["Treefiend (Nature)","SIEGE OF HOPE","Twilight","Tiers 3",150,"Unit",1200,1530,"https://cardbase.skylords.eu/lrms/GetMediaData?id=57b76b511f73e816c71156ea",null,1,{"$f":"SUM(BDD[[#This Row],[PVP]],BDD[[#This Row],[PVE]])","v":0},{"$f":"SUM(BDD[[#This Row],[BAD HARVEST]:[TITANS Support]])","v":0},{"$f":"SUM(BDD[[#This Row],[Pure Fire]:[Nature/Frost]])","v":0}]
["Treefiend (Shadow)","SUNBRIDGE","Twilight","Tiers 3",150,"Unit",1200,1530,"https://cardbase.skylords.eu/lrms/GetMediaData?id=57b76b511f73e816c71156ec",null,1,{"$f":"SUM(BDD[[#This Row],[PVP]],BDD[[#This Row],[PVE]])","v":0},{"$f":"SUM(BDD[[#This Row],[BAD HARVEST]:[TITANS Support]])","v":0},{"$f":"SUM(BDD[[#This Row],[Pure Fire]:[Nature/Frost]])","v":0}]
["Treespirit (Nature)","DEFENDING HOPE","Nature","Tiers 1",60,"Unit",248,680,"https://cardbase.skylords.eu/lrms/GetMediaData?id=57b76b511f73e816c71156f0",null,1,{"$f":"SUM(BDD[[#This Row],[PVP]],BDD[[#This Row],[PVE]])","v":2},{"$f":"SUM(BDD[[#This Row],[BAD HARVEST]:[TITANS Support]])","v":2},{"$f":"SUM(BDD[[#This Row],[Pure Fire]:[Nature/Frost]])","v":0},null,null,null,null,null,null,null,null,null,null,null,null,null,null,null,null,null,null,null,null,null,null,1,null,null,null,null,null,null,null,null,null,null,null,null,null,null,null,null,null,null,null,null,null,null,null,null,null,null,1]
["Treespirit (Shadow)","SLAVE MASTER","Nature","Tiers 1",60,"Unit",248,680,"https://cardbase.skylords.eu/lrms/GetMediaData?id=57b76b511f73e816c71156ee",null,1,{"$f":"SUM(BDD[[#This Row],[PVP]],BDD[[#This Row],[PVE]])","v":3},{"$f":"SUM(BDD[[#This Row],[BAD HARVEST]:[TITANS Support]])","v":3},{"$f":"SUM(BDD[[#This Row],[Pure Fire]:[Nature/Frost]])","v":0},null,null,null,null,null,null,null,null,null,null,null,null,null,null,null,null,null,null,null,null,null,null,1,null,null,null,null,null,null,null,null,null,null,null,null,null,null,null,1,null,null,null,null,null,null,null,null,null,null,1]
["Tremor","SIEGE OF HOPE","Frost","Tiers 3",100,"Unit",1700,1800,"https://cardbase.skylords.eu/lrms/GetMediaData?id=57b76b511f73e816c71156f2",null,1,{"$f":"SUM(BDD[[#This Row],[PVP]],BDD[[#This Row],[PVE]])","v":1},{"$f":"SUM(BDD[[#This Row],[BAD HARVEST]:[TITANS Support]])","v":1},{"$f":"SUM(BDD[[#This Row],[Pure Fire]:[Nature/Frost]])","v":0},null,null,null,null,null,null,null,null,null,null,null,null,null,null,null,null,null,null,null,null,null,null,null,null,null,null,1]
["Tunnel","CRUSADE","Nature","Tiers 1",40,"Building",null,690,"https://cardbase.skylords.eu/lrms/GetMediaData?id=57b76b511f73e816c71156f4",null,1,{"$f":"SUM(BDD[[#This Row],[PVP]],BDD[[#This Row],[PVE]])","v":6},{"$f":"SUM(BDD[[#This Row],[BAD HARVEST]:[TITANS Support]])","v":6},{"$f":"SUM(BDD[[#This Row],[Pure Fire]:[Nature/Frost]])","v":0},null,null,null,null,null,null,null,null,null,null,null,null,null,null,null,null,null,null,null,null,null,1,1,null,null,null,null,1,1,null,null,null,null,null,null,null,null,null,null,null,null,null,null,null,null,null,null,null,null,null,null,null,null,1,1]
["Twilight Bombard (Fire)","THE TREASURE FLEET","Twilight","Tiers 3",100,"Building",2100,2045,"https://cardbase.skylords.eu/lrms/GetMediaData?id=57b76b511f73e816c71156f8",null,1,{"$f":"SUM(BDD[[#This Row],[PVP]],BDD[[#This Row],[PVE]])","v":0},{"$f":"SUM(BDD[[#This Row],[BAD HARVEST]:[TITANS Support]])","v":0},{"$f":"SUM(BDD[[#This Row],[Pure Fire]:[Nature/Frost]])","v":0}]
["Twilight Bombard (Frost)","NIGHTMARE'S END","Twilight","Tiers 3",100,"Building",2100,2045,"https://cardbase.skylords.eu/lrms/GetMediaData?id=57b76b511f73e816c71156f6",null,1,{"$f":"SUM(BDD[[#This Row],[PVP]],BDD[[#This Row],[PVE]])","v":0},{"$f":"SUM(BDD[[#This Row],[BAD HARVEST]:[TITANS Support]])","v":0},{"$f":"SUM(BDD[[#This Row],[Pure Fire]:[Nature/Frost]])","v":0}]
["Twilight Brute (Fire)","SIEGE OF HOPE","Twilight","Tiers 2",60,"Unit",755,780,"https://cardbase.skylords.eu/lrms/GetMediaData?id=57b76b511f73e816c71156fc",null,1,{"$f":"SUM(BDD[[#This Row],[PVP]],BDD[[#This Row],[PVE]])","v":0},{"$f":"SUM(BDD[[#This Row],[BAD HARVEST]:[TITANS Support]])","v":0},{"$f":"SUM(BDD[[#This Row],[Pure Fire]:[Nature/Frost]])","v":0}]
["Twilight Brute (Nature)","ENCOUNTERS WITH TWILIGHT","Twilight","Tiers 2",60,"Unit",755,780,"https://cardbase.skylords.eu/lrms/GetMediaData?id=57b76b511f73e816c71156fa",null,1,{"$f":"SUM(BDD[[#This Row],[PVP]],BDD[[#This Row],[PVE]])","v":0},{"$f":"SUM(BDD[[#This Row],[BAD HARVEST]:[TITANS Support]])","v":0},{"$f":"SUM(BDD[[#This Row],[Pure Fire]:[Nature/Frost]])","v":0}]
["Twilight Creeper (Fire)","THE SOULTREE","Twilight","Tiers 3",100,"Unit",1500,1550,"https://cardbase.skylords.eu/lrms/GetMediaData?id=57b76b511f73e816c7115700",null,1,{"$f":"SUM(BDD[[#This Row],[PVP]],BDD[[#This Row],[PVE]])","v":0},{"$f":"SUM(BDD[[#This Row],[BAD HARVEST]:[TITANS Support]])","v":0},{"$f":"SUM(BDD[[#This Row],[Pure Fire]:[Nature/Frost]])","v":0}]
["Twilight Creeper (Shadow)","THE INSANE GOD","Twilight","Tiers 3",100,"Unit",1500,1550,"https://cardbase.skylords.eu/lrms/GetMediaData?id=57b76b511f73e816c71156fe",null,1,{"$f":"SUM(BDD[[#This Row],[PVP]],BDD[[#This Row],[PVE]])","v":0},{"$f":"SUM(BDD[[#This Row],[BAD HARVEST]:[TITANS Support]])","v":0},{"$f":"SUM(BDD[[#This Row],[Pure Fire]:[Nature/Frost]])","v":0}]
["Twilight Curse (Fire)","ENCOUNTERS WITH TWILIGHT","Twilight","Tiers 3",110,"Spell",null,null,"https://cardbase.skylords.eu/lrms/GetMediaData?id=57b76b511f73e816c7115702",null,1,{"$f":"SUM(BDD[[#This Row],[PVP]],BDD[[#This Row],[PVE]])","v":0},{"$f":"SUM(BDD[[#This Row],[BAD HARVEST]:[TITANS Support]])","v":0},{"$f":"SUM(BDD[[#This Row],[Pure Fire]:[Nature/Frost]])","v":0}]
["Twilight Curse (Shadow)","NIGHTMARE SHARD","Twilight","Tiers 3",110,"Spell",null,null,"https://cardbase.skylords.eu/lrms/GetMediaData?id=57b76b511f73e816c7115704",null,1,{"$f":"SUM(BDD[[#This Row],[PVP]],BDD[[#This Row],[PVE]])","v":0},{"$f":"SUM(BDD[[#This Row],[BAD HARVEST]:[TITANS Support]])","v":0},{"$f":"SUM(BDD[[#This Row],[Pure Fire]:[Nature/Frost]])","v":0}]
["Twilight Hag (Fire)","NIGHTMARE SHARD","Twilight","Tiers 3",75,"Unit",850,585,"https://cardbase.skylords.eu/lrms/GetMediaData?id=57b76b511f73e816c7115708",null,1,{"$f":"SUM(BDD[[#This Row],[PVP]],BDD[[#This Row],[PVE]])","v":0},{"$f":"SUM(BDD[[#This Row],[BAD HARVEST]:[TITANS Support]])","v":0},{"$f":"SUM(BDD[[#This Row],[Pure Fire]:[Nature/Frost]])","v":0}]
["Twilight Hag (Nature)","THE INSANE GOD","Twilight","Tiers 3",75,"Unit",850,585,"https://cardbase.skylords.eu/lrms/GetMediaData?id=57b76b511f73e816c7115706",null,1,{"$f":"SUM(BDD[[#This Row],[PVP]],BDD[[#This Row],[PVE]])","v":0},{"$f":"SUM(BDD[[#This Row],[BAD HARVEST]:[TITANS Support]])","v":0},{"$f":"SUM(BDD[[#This Row],[Pure Fire]:[Nature/Frost]])","v":0}]
["Twilight Minions (Fire)","KING OF THE GIANTS","Twilight","Tiers 2",60,"Unit",900,780,"https://cardbase.skylords.eu/lrms/GetMediaData?id=57b76b511f73e816c711570a",null,1,{"$f":"SUM(BDD[[#This Row],[PVP]],BDD[[#This Row],[PVE]])","v":0},{"$f":"SUM(BDD[[#This Row],[BAD HARVEST]:[TITANS Support]])","v":0},{"$f":"SUM(BDD[[#This Row],[Pure Fire]:[Nature/Frost]])","v":0}]
["Twilight Minions (Nature)","ENCOUNTERS WITH TWILIGHT","Twilight","Tiers 2",60,"Unit",900,780,"https://cardbase.skylords.eu/lrms/GetMediaData?id=57b76b511f73e816c711570c",null,1,{"$f":"SUM(BDD[[#This Row],[PVP]],BDD[[#This Row],[PVE]])","v":0},{"$f":"SUM(BDD[[#This Row],[BAD HARVEST]:[TITANS Support]])","v":0},{"$f":"SUM(BDD[[#This Row],[Pure Fire]:[Nature/Frost]])","v":0}]
["Twilight Pestilence (Frost)","THE TITANS","Twilight","Tiers 4",150,"Spell",null,null,"https://cardbase.skylords.eu/lrms/GetMediaData?id=57b76b511f73e816c711570e",null,1,{"$f":"SUM(BDD[[#This Row],[PVP]],BDD[[#This Row],[PVE]])","v":0},{"$f":"SUM(BDD[[#This Row],[BAD HARVEST]:[TITANS Support]])","v":0},{"$f":"SUM(BDD[[#This Row],[Pure Fire]:[Nature/Frost]])","v":0}]
["Twilight Pestilence (Nature)","NIGHTMARE'S END","Twilight","Tiers 4",150,"Spell",null,null,"https://cardbase.skylords.eu/lrms/GetMediaData?id=57b76b511f73e816c7115710",null,1,{"$f":"SUM(BDD[[#This Row],[PVP]],BDD[[#This Row],[PVE]])","v":0},{"$f":"SUM(BDD[[#This Row],[BAD HARVEST]:[TITANS Support]])","v":0},{"$f":"SUM(BDD[[#This Row],[Pure Fire]:[Nature/Frost]])","v":0}]
["Twilight Warfare (Fire)","THE SOULTREE","Twilight","Tiers 3",55,"Spell",null,null,"https://cardbase.skylords.eu/lrms/GetMediaData?id=57b76b511f73e816c7115712",null,1,{"$f":"SUM(BDD[[#This Row],[PVP]],BDD[[#This Row],[PVE]])","v":0},{"$f":"SUM(BDD[[#This Row],[BAD HARVEST]:[TITANS Support]])","v":0},{"$f":"SUM(BDD[[#This Row],[Pure Fire]:[Nature/Frost]])","v":0}]
["Twilight Warfare (Shadow)","SUNBRIDGE","Twilight","Tiers 3",55,"Spell",null,null,"https://cardbase.skylords.eu/lrms/GetMediaData?id=57b76b511f73e816c7115714",null,1,{"$f":"SUM(BDD[[#This Row],[PVP]],BDD[[#This Row],[PVE]])","v":0},{"$f":"SUM(BDD[[#This Row],[BAD HARVEST]:[TITANS Support]])","v":0},{"$f":"SUM(BDD[[#This Row],[Pure Fire]:[Nature/Frost]])","v":0}]
["Undead Army","CRUSADE","Shadow","Tiers 2",110,"Spell",null,null,"https://cardbase.skylords.eu/lrms/GetMediaData?id=57b76b511f73e816c7115716",null,1,{"$f":"SUM(BDD[[#This Row],[PVP]],BDD[[#This Row],[PVE]])","v":2},{"$f":"SUM(BDD[[#This Row],[BAD HARVEST]:[TITANS Support]])","v":2},{"$f":"SUM(BDD[[#This Row],[Pure Fire]:[Nature/Frost]])","v":0},null,null,null,null,null,null,null,null,null,null,null,null,null,null,null,null,null,null,null,null,1,null,null,null,null,null,null,null,null,null,null,null,null,null,null,null,null,null,null,null,null,null,null,null,null,null,null,null,null,null,1]
["Unholy Hero","KING OF THE GIANTS","Shadow","Tiers 4",80,"Spell",null,null,"https://cardbase.skylords.eu/lrms/GetMediaData?id=57b76b511f73e816c7115718",null,1,{"$f":"SUM(BDD[[#This Row],[PVP]],BDD[[#This Row],[PVE]])","v":17},{"$f":"SUM(BDD[[#This Row],[BAD HARVEST]:[TITANS Support]])","v":17},{"$f":"SUM(BDD[[#This Row],[Pure Fire]:[Nature/Frost]])","v":0},null,null,null,null,null,null,null,null,null,null,null,null,null,null,null,null,1,1,null,1,null,null,null,null,null,1,null,1,null,1,1,null,null,null,1,null,null,1,null,1,1,1,1,null,1,1,1,null,null,null,1]
["Unholy Power","SIEGE OF HOPE","Shadow","Tiers 2",100,"Spell",null,null,"https://cardbase.skylords.eu/lrms/GetMediaData?id=57b76b511f73e816c711571a",null,1,{"$f":"SUM(BDD[[#This Row],[PVP]],BDD[[#This Row],[PVE]])","v":19},{"$f":"SUM(BDD[[#This Row],[BAD HARVEST]:[TITANS Support]])","v":18},{"$f":"SUM(BDD[[#This Row],[Pure Fire]:[Nature/Frost]])","v":1},null,1,null,null,null,null,null,null,null,null,null,null,null,null,null,null,1,1,null,1,null,1,null,null,null,1,null,1,null,1,1,null,null,null,1,null,null,1,null,1,1,1,1,null,1,1,1,null,null,null,1]
["Unity (Frost)","DEFENDING HOPE","Fire","Tiers 3",110,"Spell",null,null,"https://cardbase.skylords.eu/lrms/GetMediaData?id=57b76b511f73e816c711571e",null,1,{"$f":"SUM(BDD[[#This Row],[PVP]],BDD[[#This Row],[PVE]])","v":0},{"$f":"SUM(BDD[[#This Row],[BAD HARVEST]:[TITANS Support]])","v":0},{"$f":"SUM(BDD[[#This Row],[Pure Fire]:[Nature/Frost]])","v":0}]
["Unity (Nature)","ORACLE","Fire","Tiers 3",110,"Spell",null,null,"https://cardbase.skylords.eu/lrms/GetMediaData?id=57b76b511f73e816c711571c",null,1,{"$f":"SUM(BDD[[#This Row],[PVP]],BDD[[#This Row],[PVE]])","v":0},{"$f":"SUM(BDD[[#This Row],[BAD HARVEST]:[TITANS Support]])","v":0},{"$f":"SUM(BDD[[#This Row],[Pure Fire]:[Nature/Frost]])","v":0}]
["Unstable Demon","CONVOY","Shadow","Tiers 3",100,"Unit",2000,1800,"https://cardbase.skylords.eu/lrms/GetMediaData?id=57b76b511f73e816c7115720",null,1,{"$f":"SUM(BDD[[#This Row],[PVP]],BDD[[#This Row],[PVE]])","v":0},{"$f":"SUM(BDD[[#This Row],[BAD HARVEST]:[TITANS Support]])","v":0},{"$f":"SUM(BDD[[#This Row],[Pure Fire]:[Nature/Frost]])","v":0}]
["Vileblood (Fire)","THE TREASURE FLEET","Twilight","Tiers 2",130,"Unit",1330,1350,"https://cardbase.skylords.eu/lrms/GetMediaData?id=57b76b511f73e816c7115724",null,1,{"$f":"SUM(BDD[[#This Row],[PVP]],BDD[[#This Row],[PVE]])","v":0},{"$f":"SUM(BDD[[#This Row],[BAD HARVEST]:[TITANS Support]])","v":0},{"$f":"SUM(BDD[[#This Row],[Pure Fire]:[Nature/Frost]])","v":0}]
["Vileblood (Nature)","NIGHTMARE SHARD","Twilight","Tiers 2",130,"Unit",1330,1350,"https://cardbase.skylords.eu/lrms/GetMediaData?id=57b76b511f73e816c7115722",null,1,{"$f":"SUM(BDD[[#This Row],[PVP]],BDD[[#This Row],[PVE]])","v":0},{"$f":"SUM(BDD[[#This Row],[BAD HARVEST]:[TITANS Support]])","v":0},{"$f":"SUM(BDD[[#This Row],[Pure Fire]:[Nature/Frost]])","v":0}]
["Viridya","THE SOULTREE","Neutral","Tiers 2",90,"Unit",750,560,"https://cardbase.skylords.eu/lrms/GetMediaData?id=57b76b511f73e816c7115726",null,1,{"$f":"SUM(BDD[[#This Row],[PVP]],BDD[[#This Row],[PVE]])","v":0},{"$f":"SUM(BDD[[#This Row],[BAD HARVEST]:[TITANS Support]])","v":0},{"$f":"SUM(BDD[[#This Row],[Pure Fire]:[Nature/Frost]])","v":0}]
["Viridya (promo)","THE SOULTREE","Neutral","Tiers 2",90,"Unit",750,640,"https://cardbase.skylords.eu/lrms/GetMediaData?id=57b781781f73e825237afccb",null,1,{"$f":"SUM(BDD[[#This Row],[PVP]],BDD[[#This Row],[PVE]])","v":1},{"$f":"SUM(BDD[[#This Row],[BAD HARVEST]:[TITANS Support]])","v":1},{"$f":"SUM(BDD[[#This Row],[Pure Fire]:[Nature/Frost]])","v":0},null,null,null,null,null,null,null,null,null,null,null,null,null,null,null,null,null,null,null,null,null,null,null,null,null,null,null,null,null,1]
["Virtuoso","MO","Fire","Tiers 3",120,"Unit",1790,1700,"https://cardbase.skylords.eu/lrms/GetMediaData?id=57b76b511f73e816c7115729",null,1,{"$f":"SUM(BDD[[#This Row],[PVP]],BDD[[#This Row],[PVE]])","v":2},{"$f":"SUM(BDD[[#This Row],[BAD HARVEST]:[TITANS Support]])","v":0},{"$f":"SUM(BDD[[#This Row],[Pure Fire]:[Nature/Frost]])","v":2},1,null,null,null,null,null,1]
["Void Maw","EMPIRE","Shadow","Tiers 4",100,"Unit",1875,1640,"https://cardbase.skylords.eu/lrms/GetMediaData?id=57b76b511f73e816c711572b",null,1,{"$f":"SUM(BDD[[#This Row],[PVP]],BDD[[#This Row],[PVE]])","v":0},{"$f":"SUM(BDD[[#This Row],[BAD HARVEST]:[TITANS Support]])","v":0},{"$f":"SUM(BDD[[#This Row],[Pure Fire]:[Nature/Frost]])","v":0}]
["Voidstorm","CONVOY","Shadow","Tiers 3",220,"Spell",null,null,"https://cardbase.skylords.eu/lrms/GetMediaData?id=57b76b511f73e816c711572d",null,1,{"$f":"SUM(BDD[[#This Row],[PVP]],BDD[[#This Row],[PVE]])","v":0},{"$f":"SUM(BDD[[#This Row],[BAD HARVEST]:[TITANS Support]])","v":0},{"$f":"SUM(BDD[[#This Row],[Pure Fire]:[Nature/Frost]])","v":0}]
["Volcano (Fire)","THE GUNS OF LYR","Fire","Tiers 4",150,"Building",4150,3450,"https://cardbase.skylords.eu/lrms/GetMediaData?id=57b76b511f73e816c711572f",null,1,{"$f":"SUM(BDD[[#This Row],[PVP]],BDD[[#This Row],[PVE]])","v":0},{"$f":"SUM(BDD[[#This Row],[BAD HARVEST]:[TITANS Support]])","v":0},{"$f":"SUM(BDD[[#This Row],[Pure Fire]:[Nature/Frost]])","v":0}]
["Volcano (Nature)","OCEAN","Fire","Tiers 4",150,"Building",4150,3450,"https://cardbase.skylords.eu/lrms/GetMediaData?id=57b76b511f73e816c7115731",null,1,{"$f":"SUM(BDD[[#This Row],[PVP]],BDD[[#This Row],[PVE]])","v":0},{"$f":"SUM(BDD[[#This Row],[BAD HARVEST]:[TITANS Support]])","v":0},{"$f":"SUM(BDD[[#This Row],[Pure Fire]:[Nature/Frost]])","v":0}]
["Voodoo Shack","SLAVE MASTER","Fire","Tiers 3",50,"Building",null,1700,"https://cardbase.skylords.eu/lrms/GetMediaData?id=57b76b511f73e816c7115733",null,1,{"$f":"SUM(BDD[[#This Row],[PVP]],BDD[[#This Row],[PVE]])","v":0},{"$f":"SUM(BDD[[#This Row],[BAD HARVEST]:[TITANS Support]])","v":0},{"$f":"SUM(BDD[[#This Row],[Pure Fire]:[Nature/Frost]])","v":0}]
["Vulcan","THE TITANS","Fire ","Tiers 3",120,"Unit",2400,950,"https://cardbase.skylords.eu/lrms/GetMediaData?id=57b76b511f73e816c7115735",null,1,{"$f":"SUM(BDD[[#This Row],[PVP]],BDD[[#This Row],[PVE]])","v":0},{"$f":"SUM(BDD[[#This Row],[BAD HARVEST]:[TITANS Support]])","v":0},{"$f":"SUM(BDD[[#This Row],[Pure Fire]:[Nature/Frost]])","v":0}]
["Wallbreaker","THE SOULTREE","Fire","Tiers 2",30,"Spell",null,null,"https://cardbase.skylords.eu/lrms/GetMediaData?id=57b76b511f73e816c7115737",null,1,{"$f":"SUM(BDD[[#This Row],[PVP]],BDD[[#This Row],[PVE]])","v":1},{"$f":"SUM(BDD[[#This Row],[BAD HARVEST]:[TITANS Support]])","v":1},{"$f":"SUM(BDD[[#This Row],[Pure Fire]:[Nature/Frost]])","v":0},null,null,null,null,null,null,null,null,null,null,null,null,null,null,null,null,null,null,null,null,null,null,null,null,null,null,null,null,null,null,null,null,null,null,null,null,null,null,null,null,null,null,null,null,null,null,null,null,null,null,null,null,null,null,null,1]
["War Eagle","SUNBRIDGE","Frost","Tiers 2",100,"Unit",1400,650,"https://cardbase.skylords.eu/lrms/GetMediaData?id=57b76b511f73e816c7115739",null,1,{"$f":"SUM(BDD[[#This Row],[PVP]],BDD[[#This Row],[PVE]])","v":1},{"$f":"SUM(BDD[[#This Row],[BAD HARVEST]:[TITANS Support]])","v":0},{"$f":"SUM(BDD[[#This Row],[Pure Fire]:[Nature/Frost]])","v":1},null,null,1]
["Ward of the North","THE DWARVEN RIDDLE","Frost","Tiers 3",100,"Spell",null,null,"https://cardbase.skylords.eu/lrms/GetMediaData?id=57b76b511f73e816c711573b",null,1,{"$f":"SUM(BDD[[#This Row],[PVP]],BDD[[#This Row],[PVE]])","v":1},{"$f":"SUM(BDD[[#This Row],[BAD HARVEST]:[TITANS Support]])","v":0},{"$f":"SUM(BDD[[#This Row],[Pure Fire]:[Nature/Frost]])","v":1},null,null,1]
["Warden's Sigil (Frost)","DEFENDING HOPE","Frost","Tiers 1",30,"Building",null,560,"https://cardbase.skylords.eu/lrms/GetMediaData?id=57b76b511f73e816c711573d",null,1,{"$f":"SUM(BDD[[#This Row],[PVP]],BDD[[#This Row],[PVE]])","v":0},{"$f":"SUM(BDD[[#This Row],[BAD HARVEST]:[TITANS Support]])","v":0},{"$f":"SUM(BDD[[#This Row],[Pure Fire]:[Nature/Frost]])","v":0}]
["Warden's Sigil (Nature)","SIEGE OF HOPE","Frost","Tiers 1",30,"Building",null,560,"https://cardbase.skylords.eu/lrms/GetMediaData?id=57b76b511f73e816c711573f",null,1,{"$f":"SUM(BDD[[#This Row],[PVP]],BDD[[#This Row],[PVE]])","v":0},{"$f":"SUM(BDD[[#This Row],[BAD HARVEST]:[TITANS Support]])","v":0},{"$f":"SUM(BDD[[#This Row],[Pure Fire]:[Nature/Frost]])","v":0}]
["Warlock (Fire)","OCEAN","Fire","Tiers 2",65,"Unit",433.33333333333337,510,"https://cardbase.skylords.eu/lrms/GetMediaData?id=57b76b511f73e816c7115743",null,1,{"$f":"SUM(BDD[[#This Row],[PVP]],BDD[[#This Row],[PVE]])","v":0},{"$f":"SUM(BDD[[#This Row],[BAD HARVEST]:[TITANS Support]])","v":0},{"$f":"SUM(BDD[[#This Row],[Pure Fire]:[Nature/Frost]])","v":0}]
["Warlock (Frost)","ORACLE","Fire","Tiers 2",65,"Unit",433.33333333333337,510,"https://cardbase.skylords.eu/lrms/GetMediaData?id=57b76b511f73e816c7115741",null,1,{"$f":"SUM(BDD[[#This Row],[PVP]],BDD[[#This Row],[PVE]])","v":0},{"$f":"SUM(BDD[[#This Row],[BAD HARVEST]:[TITANS Support]])","v":0},{"$f":"SUM(BDD[[#This Row],[Pure Fire]:[Nature/Frost]])","v":0}]
["Warrior's Death (Fire)","SLAVE MASTER","Bandits","Tiers 2",90,"Spell",null,null,"https://cardbase.skylords.eu/lrms/GetMediaData?id=57b76b511f73e816c7115745",null,1,{"$f":"SUM(BDD[[#This Row],[PVP]],BDD[[#This Row],[PVE]])","v":0},{"$f":"SUM(BDD[[#This Row],[BAD HARVEST]:[TITANS Support]])","v":0},{"$f":"SUM(BDD[[#This Row],[Pure Fire]:[Nature/Frost]])","v":0}]
["Warrior's Death (Frost)","RAVEN'S END","Bandits","Tiers 2",90,"Spell",null,null,"https://cardbase.skylords.eu/lrms/GetMediaData?id=57b76b511f73e816c7115747",null,1,{"$f":"SUM(BDD[[#This Row],[PVP]],BDD[[#This Row],[PVE]])","v":0},{"$f":"SUM(BDD[[#This Row],[BAD HARVEST]:[TITANS Support]])","v":0},{"$f":"SUM(BDD[[#This Row],[Pure Fire]:[Nature/Frost]])","v":0}]
["Waystation (Fire)","MO","Bandits","Tiers 3",50,"Building",null,1590,"https://cardbase.skylords.eu/lrms/GetMediaData?id=57b76b511f73e816c711574b",null,1,{"$f":"SUM(BDD[[#This Row],[PVP]],BDD[[#This Row],[PVE]])","v":0},{"$f":"SUM(BDD[[#This Row],[BAD HARVEST]:[TITANS Support]])","v":0},{"$f":"SUM(BDD[[#This Row],[Pure Fire]:[Nature/Frost]])","v":0}]
["Waystation (Shadow)","BLIGHT","Bandits","Tiers 3",50,"Building",null,1590,"https://cardbase.skylords.eu/lrms/GetMediaData?id=57b76b511f73e816c7115749",null,1,{"$f":"SUM(BDD[[#This Row],[PVP]],BDD[[#This Row],[PVE]])","v":0},{"$f":"SUM(BDD[[#This Row],[BAD HARVEST]:[TITANS Support]])","v":0},{"$f":"SUM(BDD[[#This Row],[Pure Fire]:[Nature/Frost]])","v":0}]
["Werebeasts","CRUSADE","Nature","Tiers 1",75,"Unit",600,700,"https://cardbase.skylords.eu/lrms/GetMediaData?id=57b76b511f73e816c711574d",null,1,{"$f":"SUM(BDD[[#This Row],[PVP]],BDD[[#This Row],[PVE]])","v":4},{"$f":"SUM(BDD[[#This Row],[BAD HARVEST]:[TITANS Support]])","v":4},{"$f":"SUM(BDD[[#This Row],[Pure Fire]:[Nature/Frost]])","v":0},null,null,null,null,null,null,null,null,null,null,null,null,null,null,null,null,null,null,null,null,null,null,null,null,null,null,null,null,null,null,1,null,1,1,null,null,null,null,null,null,null,1]
["Wheel of Gifts","THE GUNS OF LYR","Nature","Tiers 3",200,"Building",null,1810,"https://cardbase.skylords.eu/lrms/GetMediaData?id=57b76b511f73e816c711574f",null,1,{"$f":"SUM(BDD[[#This Row],[PVP]],BDD[[#This Row],[PVE]])","v":0},{"$f":"SUM(BDD[[#This Row],[BAD HARVEST]:[TITANS Support]])","v":0},{"$f":"SUM(BDD[[#This Row],[Pure Fire]:[Nature/Frost]])","v":0}]
["White Rangers","DEFENDING HOPE","Frost","Tiers 2",70,"Unit",440,780,"https://cardbase.skylords.eu/lrms/GetMediaData?id=57b76b511f73e816c7115751",null,1,{"$f":"SUM(BDD[[#This Row],[PVP]],BDD[[#This Row],[PVE]])","v":0},{"$f":"SUM(BDD[[#This Row],[BAD HARVEST]:[TITANS Support]])","v":0},{"$f":"SUM(BDD[[#This Row],[Pure Fire]:[Nature/Frost]])","v":0}]
["Wildfire","THE TITANS","Fire","Tiers 2",80,"Spell",null,null,"https://cardbase.skylords.eu/lrms/GetMediaData?id=57b76b511f73e816c7115753",null,1,{"$f":"SUM(BDD[[#This Row],[PVP]],BDD[[#This Row],[PVE]])","v":1},{"$f":"SUM(BDD[[#This Row],[BAD HARVEST]:[TITANS Support]])","v":0},{"$f":"SUM(BDD[[#This Row],[Pure Fire]:[Nature/Frost]])","v":1},1]
["Willzapper (Fire)","THE TREASURE FLEET","Twilight","Tiers 2",70,"Building",null,1235,"https://cardbase.skylords.eu/lrms/GetMediaData?id=57b76b511f73e816c7115755",null,1,{"$f":"SUM(BDD[[#This Row],[PVP]],BDD[[#This Row],[PVE]])","v":0},{"$f":"SUM(BDD[[#This Row],[BAD HARVEST]:[TITANS Support]])","v":0},{"$f":"SUM(BDD[[#This Row],[Pure Fire]:[Nature/Frost]])","v":0}]
["Willzapper (Shadow)","CRUSADE","Twilight","Tiers 2",70,"Building",null,1235,"https://cardbase.skylords.eu/lrms/GetMediaData?id=57b76b511f73e816c7115757",null,1,{"$f":"SUM(BDD[[#This Row],[PVP]],BDD[[#This Row],[PVE]])","v":0},{"$f":"SUM(BDD[[#This Row],[BAD HARVEST]:[TITANS Support]])","v":0},{"$f":"SUM(BDD[[#This Row],[Pure Fire]:[Nature/Frost]])","v":0}]
["Windhunter (Nature)","OCEAN","Bandits","Tiers 2",120,"Unit",1143.3333333333333,400,"https://cardbase.skylords.eu/lrms/GetMediaData?id=57b76b511f73e816c7115759",null,1,{"$f":"SUM(BDD[[#This Row],[PVP]],BDD[[#This Row],[PVE]])","v":1},{"$f":"SUM(BDD[[#This Row],[BAD HARVEST]:[TITANS Support]])","v":0},{"$f":"SUM(BDD[[#This Row],[Pure Fire]:[Nature/Frost]])","v":1},null,null,null,null,1]
["Windhunter (Shadow)","BLIGHT","Bandits","Tiers 2",120,"Unit",1143.3333333333333,400,"https://cardbase.skylords.eu/lrms/GetMediaData?id=57b76b511f73e816c711575b",null,1,{"$f":"SUM(BDD[[#This Row],[PVP]],BDD[[#This Row],[PVE]])","v":0},{"$f":"SUM(BDD[[#This Row],[BAD HARVEST]:[TITANS Support]])","v":0},{"$f":"SUM(BDD[[#This Row],[Pure Fire]:[Nature/Frost]])","v":0}]
["Windweavers","ENCOUNTERS WITH TWILIGHT","Nature","Tiers 1",70,"Unit",1200,420,"https://cardbase.skylords.eu/lrms/GetMediaData?id=57b76b511f73e816c711575d",null,1,{"$f":"SUM(BDD[[#This Row],[PVP]],BDD[[#This Row],[PVE]])","v":11},{"$f":"SUM(BDD[[#This Row],[BAD HARVEST]:[TITANS Support]])","v":9},{"$f":"SUM(BDD[[#This Row],[Pure Fire]:[Nature/Frost]])","v":2},null,null,null,1,null,null,null,null,null,null,null,null,1,null,null,null,null,null,null,null,null,null,null,null,1,1,null,null,null,null,null,null,1,1,1,null,null,null,1,null,null,null,null,null,null,null,1,null,null,1,null,null,null,1]
["Winter Witch","THE DWARVEN RIDDLE","Frost","Tiers 4",60,"Unit",null,1160,"https://cardbase.skylords.eu/lrms/GetMediaData?id=57b76b511f73e816c711575f",null,1,{"$f":"SUM(BDD[[#This Row],[PVP]],BDD[[#This Row],[PVE]])","v":0},{"$f":"SUM(BDD[[#This Row],[BAD HARVEST]:[TITANS Support]])","v":0},{"$f":"SUM(BDD[[#This Row],[Pure Fire]:[Nature/Frost]])","v":0}]
["Wintertide (Fire)","NIGHTMARE'S END","Frost","Tiers 1",60,"Spell",null,null,"https://cardbase.skylords.eu/lrms/GetMediaData?id=57b76b511f73e816c7115761",null,1,{"$f":"SUM(BDD[[#This Row],[PVP]],BDD[[#This Row],[PVE]])","v":0},{"$f":"SUM(BDD[[#This Row],[BAD HARVEST]:[TITANS Support]])","v":0},{"$f":"SUM(BDD[[#This Row],[Pure Fire]:[Nature/Frost]])","v":0}]
["Wintertide (Frost)","EMPIRE","Frost","Tiers 1",60,"Spell",null,null,"https://cardbase.skylords.eu/lrms/GetMediaData?id=57b76b511f73e816c7115763",null,1,{"$f":"SUM(BDD[[#This Row],[PVP]],BDD[[#This Row],[PVE]])","v":0},{"$f":"SUM(BDD[[#This Row],[BAD HARVEST]:[TITANS Support]])","v":0},{"$f":"SUM(BDD[[#This Row],[Pure Fire]:[Nature/Frost]])","v":0}]
["Witchclaws (Fire)","THE TREASURE FLEET","Shadow","Tiers 1",65,"Unit",630,540,"https://cardbase.skylords.eu/lrms/GetMediaData?id=57b76b511f73e816c7115765",null,1,{"$f":"SUM(BDD[[#This Row],[PVP]],BDD[[#This Row],[PVE]])","v":0},{"$f":"SUM(BDD[[#This Row],[BAD HARVEST]:[TITANS Support]])","v":0},{"$f":"SUM(BDD[[#This Row],[Pure Fire]:[Nature/Frost]])","v":0}]
["Witchclaws (Shadow)","BAD HARVEST","Shadow","Tiers 1",65,"Unit",630,540,"https://cardbase.skylords.eu/lrms/GetMediaData?id=57b76b511f73e816c7115767",null,1,{"$f":"SUM(BDD[[#This Row],[PVP]],BDD[[#This Row],[PVE]])","v":0},{"$f":"SUM(BDD[[#This Row],[BAD HARVEST]:[TITANS Support]])","v":0},{"$f":"SUM(BDD[[#This Row],[Pure Fire]:[Nature/Frost]])","v":0}]
["Worldbreaker Gun","THE GUNS OF LYR","Frost","Tiers 4",250,"Building",6900,4500,"https://cardbase.skylords.eu/lrms/GetMediaData?id=57b76b511f73e816c7115769",null,1,{"$f":"SUM(BDD[[#This Row],[PVP]],BDD[[#This Row],[PVE]])","v":2},{"$f":"SUM(BDD[[#This Row],[BAD HARVEST]:[TITANS Support]])","v":2},{"$f":"SUM(BDD[[#This Row],[Pure Fire]:[Nature/Frost]])","v":0},null,null,null,null,null,null,null,null,null,null,null,null,null,null,null,null,null,1,null,null,null,null,null,null,null,null,null,null,null,null,null,null,null,null,null,null,null,null,null,null,null,null,null,null,null,null,null,null,1]
["Wrathblades","SLAVE MASTER","Shadow","Tiers 1",50,"Unit",510,600,"https://cardbase.skylords.eu/lrms/GetMediaData?id=57b76b511f73e816c711576b",null,1,{"$f":"SUM(BDD[[#This Row],[PVP]],BDD[[#This Row],[PVE]])","v":0},{"$f":"SUM(BDD[[#This Row],[BAD HARVEST]:[TITANS Support]])","v":0},{"$f":"SUM(BDD[[#This Row],[Pure Fire]:[Nature/Frost]])","v":0}]
["Wrathgazer","THE INSANE GOD","Shadow","Tiers 3",220,"Unit",null,2000,"https://cardbase.skylords.eu/lrms/GetMediaData?id=57b76b511f73e816c711576d",null,1,{"$f":"SUM(BDD[[#This Row],[PVP]],BDD[[#This Row],[PVE]])","v":0},{"$f":"SUM(BDD[[#This Row],[BAD HARVEST]:[TITANS Support]])","v":0},{"$f":"SUM(BDD[[#This Row],[Pure Fire]:[Nature/Frost]])","v":0}]
["Wrecker","SUNBRIDGE","Fire","Tiers 1",50,"Unit",570,540,"https://cardbase.skylords.eu/lrms/GetMediaData?id=57b76b511f73e816c711576f",null,1,{"$f":"SUM(BDD[[#This Row],[PVP]],BDD[[#This Row],[PVE]])","v":0},{"$f":"SUM(BDD[[#This Row],[BAD HARVEST]:[TITANS Support]])","v":0},{"$f":"SUM(BDD[[#This Row],[Pure Fire]:[Nature/Frost]])","v":0}]

{"sheet":"Maps","index":1,"n_rows":46,"n_cols":19,"rows_kept":46,"cut":false,"hidden":false,"merged":[]}
["Deck","Orbes","1","2","3","4","Position","Maps","Fond","Players","PlayersNum","Name EN","Nom FR","Our Best Time","Best Time","When","Summary","URL Replay","URL My Replay"]
["ALL",null,{"$f":"IF(MID(Map[[#This Row],[Orbes]],1,1)=\"S\",\"https://allcards.skylords.eu/imgs/purple.png\",\nIF(MID(Map[[#This Row],[Orbes]],1,1)=\"F\",\"https://allcards.skylords.eu/imgs/red.png\",\nIF(MID(Map[[#This Row],[Orbes]],1,1)=\"N\",\"https://allcards.skylords.eu/imgs/green.png\",\nIF(MID(Map[[#This Row],[Orbes]],1,1)=\"G\",\"https://allcards.skylords.eu/imgs/blue.png\",\"\"))))","v":""},{"$f":"IF(MID(Map[[#This Row],[Orbes]],2,1)=\"S\",\"https://allcards.skylords.eu/imgs/purple.png\",\nIF(MID(Map[[#This Row],[Orbes]],2,1)=\"F\",\"https://allcards.skylords.eu/imgs/red.png\",\nIF(MID(Map[[#This Row],[Orbes]],2,1)=\"N\",\"https://allcards.skylords.eu/imgs/green.png\",\nIF(MID(Map[[#This Row],[Orbes]],2,1)=\"G\",\"https://allcards.skylords.eu/imgs/blue.png\",\"\"))))","v":""},{"$f":"IF(MID(Map[[#This Row],[Orbes]],3,1)=\"S\",\"https://allcards.skylords.eu/imgs/purple.png\",\nIF(MID(Map[[#This Row],[Orbes]],3,1)=\"F\",\"https://allcards.skylords.eu/imgs/red.png\",\nIF(MID(Map[[#This Row],[Orbes]],3,1)=\"N\",\"https://allcards.skylords.eu/imgs/green.png\",\nIF(MID(Map[[#This Row],[Orbes]],3,1)=\"G\",\"https://allcards.skylords.eu/imgs/blue.png\",\"\"))))","v":""},{"$f":"IF(MID(Map[[#This Row],[Orbes]],4,1)=\"S\",\"https://allcards.skylords.eu/imgs/purple.png\",\nIF(MID(Map[[#This Row],[Orbes]],4,1)=\"F\",\"https://allcards.skylords.eu/imgs/red.png\",\nIF(MID(Map[[#This Row],[Orbes]],4,1)=\"N\",\"https://allcards.skylords.eu/imgs/green.png\",\nIF(MID(Map[[#This Row],[Orbes]],4,1)=\"G\",\"https://allcards.skylords.eu/imgs/blue.png\",\"\"))))","v":""},"Main","ALL","Lyrish Knight","1 Player",1,"All","Toutes","00:00.0","00:00.0"]
["ASCENSION Map 1",null,{"$f":"IF(MID(Map[[#This Row],[Orbes]],1,1)=\"S\",\"https://allcards.skylords.eu/imgs/purple.png\",\nIF(MID(Map[[#This Row],[Orbes]],1,1)=\"F\",\"https://allcards.skylords.eu/imgs/red.png\",\nIF(MID(Map[[#This Row],[Orbes]],1,1)=\"N\",\"https://allcards.skylords.eu/imgs/green.png\",\nIF(MID(Map[[#This Row],[Orbes]],1,1)=\"G\",\"https://allcards.skylords.eu/imgs/blue.png\",\"\"))))","v":""},{"$f":"IF(MID(Map[[#This Row],[Orbes]],2,1)=\"S\",\"https://allcards.skylords.eu/imgs/purple.png\",\nIF(MID(Map[[#This Row],[Orbes]],2,1)=\"F\",\"https://allcards.skylords.eu/imgs/red.png\",\nIF(MID(Map[[#This Row],[Orbes]],2,1)=\"N\",\"https://allcards.skylords.eu/imgs/green.png\",\nIF(MID(Map[[#This Row],[Orbes]],2,1)=\"G\",\"https://allcards.skylords.eu/imgs/blue.png\",\"\"))))","v":""},{"$f":"IF(MID(Map[[#This Row],[Orbes]],3,1)=\"S\",\"https://allcards.skylords.eu/imgs/purple.png\",\nIF(MID(Map[[#This Row],[Orbes]],3,1)=\"F\",\"https://allcards.skylords.eu/imgs/red.png\",\nIF(MID(Map[[#This Row],[Orbes]],3,1)=\"N\",\"https://allcards.skylords.eu/imgs/green.png\",\nIF(MID(Map[[#This Row],[Orbes]],3,1)=\"G\",\"https://allcards.skylords.eu/imgs/blue.png\",\"\"))))","v":""},{"$f":"IF(MID(Map[[#This Row],[Orbes]],4,1)=\"S\",\"https://allcards.skylords.eu/imgs/purple.png\",\nIF(MID(Map[[#This Row],[Orbes]],4,1)=\"F\",\"https://allcards.skylords.eu/imgs/red.png\",\nIF(MID(Map[[#This Row],[Orbes]],4,1)=\"N\",\"https://allcards.skylords.eu/imgs/green.png\",\nIF(MID(Map[[#This Row],[Orbes]],4,1)=\"G\",\"https://allcards.skylords.eu/imgs/blue.png\",\"\"))))","v":""},"Main","ASCENSION Map 1","Ascension","12 Players",12,"Ascension","Ascension","00:00.0","19:13.3","April 2013","Viridya's spirit is driving nature itself insane. Fight a nature goddess and protect the King of the Giants.","https://www.youtube.com/watch?v=q5I1ltoP-NQ"," "]
["ASCENSION Map 2",null,{"$f":"IF(MID(Map[[#This Row],[Orbes]],1,1)=\"S\",\"https://allcards.skylords.eu/imgs/purple.png\",\nIF(MID(Map[[#This Row],[Orbes]],1,1)=\"F\",\"https://allcards.skylords.eu/imgs/red.png\",\nIF(MID(Map[[#This Row],[Orbes]],1,1)=\"N\",\"https://allcards.skylords.eu/imgs/green.png\",\nIF(MID(Map[[#This Row],[Orbes]],1,1)=\"G\",\"https://allcards.skylords.eu/imgs/blue.png\",\"\"))))","v":""},{"$f":"IF(MID(Map[[#This Row],[Orbes]],2,1)=\"S\",\"https://allcards.skylords.eu/imgs/purple.png\",\nIF(MID(Map[[#This Row],[Orbes]],2,1)=\"F\",\"https://allcards.skylords.eu/imgs/red.png\",\nIF(MID(Map[[#This Row],[Orbes]],2,1)=\"N\",\"https://allcards.skylords.eu/imgs/green.png\",\nIF(MID(Map[[#This Row],[Orbes]],2,1)=\"G\",\"https://allcards.skylords.eu/imgs/blue.png\",\"\"))))","v":""},{"$f":"IF(MID(Map[[#This Row],[Orbes]],3,1)=\"S\",\"https://allcards.skylords.eu/imgs/purple.png\",\nIF(MID(Map[[#This Row],[Orbes]],3,1)=\"F\",\"https://allcards.skylords.eu/imgs/red.png\",\nIF(MID(Map[[#This Row],[Orbes]],3,1)=\"N\",\"https://allcards.skylords.eu/imgs/green.png\",\nIF(MID(Map[[#This Row],[Orbes]],3,1)=\"G\",\"https://allcards.skylords.eu/imgs/blue.png\",\"\"))))","v":""},{"$f":"IF(MID(Map[[#This Row],[Orbes]],4,1)=\"S\",\"https://allcards.skylords.eu/imgs/purple.png\",\nIF(MID(Map[[#This Row],[Orbes]],4,1)=\"F\",\"https://allcards.skylords.eu/imgs/red.png\",\nIF(MID(Map[[#This Row],[Orbes]],4,1)=\"N\",\"https://allcards.skylords.eu/imgs/green.png\",\nIF(MID(Map[[#This Row],[Orbes]],4,1)=\"G\",\"https://allcards.skylords.eu/imgs/blue.png\",\"\"))))","v":""},"Main","ASCENSION Map 2",{"$f":"I3","v":"Ascension"},"12 Players",12,"Ascension",{"$f":"M3","v":"Ascension"},{"$f":"N3","v":"00:00.0"},{"$f":"O3","v":"19:13.3"},{"$f":"P3","v":"April 2013"},{"$f":"Q3","v":"Viridya's spirit is driving nature itself insane. Fight a nature goddess and protect the King of the Giants."},{"$f":"R3","v":"https://www.youtube.com/watch?v=q5I1ltoP-NQ"}," "]
["ASCENSION Map 3",null,{"$f":"IF(MID(Map[[#This Row],[Orbes]],1,1)=\"S\",\"https://allcards.skylords.eu/imgs/purple.png\",\nIF(MID(Map[[#This Row],[Orbes]],1,1)=\"F\",\"https://allcards.skylords.eu/imgs/red.png\",\nIF(MID(Map[[#This Row],[Orbes]],1,1)=\"N\",\"https://allcards.skylords.eu/imgs/green.png\",\nIF(MID(Map[[#This Row],[Orbes]],1,1)=\"G\",\"https://allcards.skylords.eu/imgs/blue.png\",\"\"))))","v":""},{"$f":"IF(MID(Map[[#This Row],[Orbes]],2,1)=\"S\",\"https://allcards.skylords.eu/imgs/purple.png\",\nIF(MID(Map[[#This Row],[Orbes]],2,1)=\"F\",\"https://allcards.skylords.eu/imgs/red.png\",\nIF(MID(Map[[#This Row],[Orbes]],2,1)=\"N\",\"https://allcards.skylords.eu/imgs/green.png\",\nIF(MID(Map[[#This Row],[Orbes]],2,1)=\"G\",\"https://allcards.skylords.eu/imgs/blue.png\",\"\"))))","v":""},{"$f":"IF(MID(Map[[#This Row],[Orbes]],3,1)=\"S\",\"https://allcards.skylords.eu/imgs/purple.png\",\nIF(MID(Map[[#This Row],[Orbes]],3,1)=\"F\",\"https://allcards.skylords.eu/imgs/red.png\",\nIF(MID(Map[[#This Row],[Orbes]],3,1)=\"N\",\"https://allcards.skylords.eu/imgs/green.png\",\nIF(MID(Map[[#This Row],[Orbes]],3,1)=\"G\",\"https://allcards.skylords.eu/imgs/blue.png\",\"\"))))","v":""},{"$f":"IF(MID(Map[[#This Row],[Orbes]],4,1)=\"S\",\"https://allcards.skylords.eu/imgs/purple.png\",\nIF(MID(Map[[#This Row],[Orbes]],4,1)=\"F\",\"https://allcards.skylords.eu/imgs/red.png\",\nIF(MID(Map[[#This Row],[Orbes]],4,1)=\"N\",\"https://allcards.skylords.eu/imgs/green.png\",\nIF(MID(Map[[#This Row],[Orbes]],4,1)=\"G\",\"https://allcards.skylords.eu/imgs/blue.png\",\"\"))))","v":""},"Main","ASCENSION Map 3","Ascension","12 Players",12,"Ascension","Ascension","00:00.0","19:13.3","April 2013","Viridya's spirit is driving nature itself insane. Fight a nature goddess and protect the King of the Giants.","https://www.youtube.com/watch?v=q5I1ltoP-NQ"," "]
["BAD HARVEST","SNNS",{"$f":"IF(MID(Map[[#This Row],[Orbes]],1,1)=\"S\",\"https://allcards.skylords.eu/imgs/purple.png\",\nIF(MID(Map[[#This Row],[Orbes]],1,1)=\"F\",\"https://allcards.skylords.eu/imgs/red.png\",\nIF(MID(Map[[#This Row],[Orbes]],1,1)=\"N\",\"https://allcards.skylords.eu/imgs/green.png\",\nIF(MID(Map[[#This Row],[Orbes]],1,1)=\"G\",\"https://allcards.skylords.eu/imgs/blue.png\",\"\"))))","v":"https://allcards.skylords.eu/imgs/purple.png"},{"$f":"IF(MID(Map[[#This Row],[Orbes]],2,1)=\"S\",\"https://allcards.skylords.eu/imgs/purple.png\",\nIF(MID(Map[[#This Row],[Orbes]],2,1)=\"F\",\"https://allcards.skylords.eu/imgs/red.png\",\nIF(MID(Map[[#This Row],[Orbes]],2,1)=\"N\",\"https://allcards.skylords.eu/imgs/green.png\",\nIF(MID(Map[[#This Row],[Orbes]],2,1)=\"G\",\"https://allcards.skylords.eu/imgs/blue.png\",\"\"))))","v":"https://allcards.skylords.eu/imgs/green.png"},{"$f":"IF(MID(Map[[#This Row],[Orbes]],3,1)=\"S\",\"https://allcards.skylords.eu/imgs/purple.png\",\nIF(MID(Map[[#This Row],[Orbes]],3,1)=\"F\",\"https://allcards.skylords.eu/imgs/red.png\",\nIF(MID(Map[[#This Row],[Orbes]],3,1)=\"N\",\"https://allcards.skylords.eu/imgs/green.png\",\nIF(MID(Map[[#This Row],[Orbes]],3,1)=\"G\",\"https://allcards.skylords.eu/imgs/blue.png\",\"\"))))","v":"https://allcards.skylords.eu/imgs/green.png"},{"$f":"IF(MID(Map[[#This Row],[Orbes]],4,1)=\"S\",\"https://allcards.skylords.eu/imgs/purple.png\",\nIF(MID(Map[[#This Row],[Orbes]],4,1)=\"F\",\"https://allcards.skylords.eu/imgs/red.png\",\nIF(MID(Map[[#This Row],[Orbes]],4,1)=\"N\",\"https://allcards.skylords.eu/imgs/green.png\",\nIF(MID(Map[[#This Row],[Orbes]],4,1)=\"G\",\"https://allcards.skylords.eu/imgs/blue.png\",\"\"))))","v":"https://allcards.skylords.eu/imgs/purple.png"},"Main","BAD HARVEST","Bad Harvest","4 Players",4,"Bad Harvest","Mauvaise récolte","03:36.4","02:54.4","August 2013","Protect one piece of an unimaginable treasure and face the wrath of a giant.","https://www.youtube.com/watch?v=M54qssuYV2E","https://drive.google.com/open?id=1LZpujaDZNJEzKNXsCChqSQWbVgu95yso"]
["BEHIND ENEMY LINES","SNGG",{"$f":"IF(MID(Map[[#This Row],[Orbes]],1,1)=\"S\",\"https://allcards.skylords.eu/imgs/purple.png\",\nIF(MID(Map[[#This Row],[Orbes]],1,1)=\"F\",\"https://allcards.skylords.eu/imgs/red.png\",\nIF(MID(Map[[#This Row],[Orbes]],1,1)=\"N\",\"https://allcards.skylords.eu/imgs/green.png\",\nIF(MID(Map[[#This Row],[Orbes]],1,1)=\"G\",\"https://allcards.skylords.eu/imgs/blue.png\",\"\"))))","v":"https://allcards.skylords.eu/imgs/purple.png"},{"$f":"IF(MID(Map[[#This Row],[Orbes]],2,1)=\"S\",\"https://allcards.skylords.eu/imgs/purple.png\",\nIF(MID(Map[[#This Row],[Orbes]],2,1)=\"F\",\"https://allcards.skylords.eu/imgs/red.png\",\nIF(MID(Map[[#This Row],[Orbes]],2,1)=\"N\",\"https://allcards.skylords.eu/imgs/green.png\",\nIF(MID(Map[[#This Row],[Orbes]],2,1)=\"G\",\"https://allcards.skylords.eu/imgs/blue.png\",\"\"))))","v":"https://allcards.skylords.eu/imgs/green.png"},{"$f":"IF(MID(Map[[#This Row],[Orbes]],3,1)=\"S\",\"https://allcards.skylords.eu/imgs/purple.png\",\nIF(MID(Map[[#This Row],[Orbes]],3,1)=\"F\",\"https://allcards.skylords.eu/imgs/red.png\",\nIF(MID(Map[[#This Row],[Orbes]],3,1)=\"N\",\"https://allcards.skylords.eu/imgs/green.png\",\nIF(MID(Map[[#This Row],[Orbes]],3,1)=\"G\",\"https://allcards.skylords.eu/imgs/blue.png\",\"\"))))","v":"https://allcards.skylords.eu/imgs/blue.png"},{"$f":"IF(MID(Map[[#This Row],[Orbes]],4,1)=\"S\",\"https://allcards.skylords.eu/imgs/purple.png\",\nIF(MID(Map[[#This Row],[Orbes]],4,1)=\"F\",\"https://allcards.skylords.eu/imgs/red.png\",\nIF(MID(Map[[#This Row],[Orbes]],4,1)=\"N\",\"https://allcards.skylords.eu/imgs/green.png\",\nIF(MID(Map[[#This Row],[Orbes]],4,1)=\"G\",\"https://allcards.skylords.eu/imgs/blue.png\",\"\"))))","v":"https://allcards.skylords.eu/imgs/blue.png"},"Main","BEHIND ENEMY LINES","Behind Enemy Lines","1 Player",1,"Behind Enemy Lines","Derrière les lignes ennemies","16:44.5","12:05.6","Febuary 2019","A new religion is infecting its followers with the Twilight. Interrupt the transformation of the Twilight disciples before they turn into monsters.","https://www.youtube.com/watch?v=mbYthoOR2Lc","https://drive.google.com/open?id=1tGsgerX4vs6kLxRx69Bnm-SZq1IzvErh"]
["BLIGHT",null,{"$f":"IF(MID(Map[[#This Row],[Orbes]],1,1)=\"S\",\"https://allcards.skylords.eu/imgs/purple.png\",\nIF(MID(Map[[#This Row],[Orbes]],1,1)=\"F\",\"https://allcards.skylords.eu/imgs/red.png\",\nIF(MID(Map[[#This Row],[Orbes]],1,1)=\"N\",\"https://allcards.skylords.eu/imgs/green.png\",\nIF(MID(Map[[#This Row],[Orbes]],1,1)=\"G\",\"https://allcards.skylords.eu/imgs/blue.png\",\"\"))))","v":""},{"$f":"IF(MID(Map[[#This Row],[Orbes]],2,1)=\"S\",\"https://allcards.skylords.eu/imgs/purple.png\",\nIF(MID(Map[[#This Row],[Orbes]],2,1)=\"F\",\"https://allcards.skylords.eu/imgs/red.png\",\nIF(MID(Map[[#This Row],[Orbes]],2,1)=\"N\",\"https://allcards.skylords.eu/imgs/green.png\",\nIF(MID(Map[[#This Row],[Orbes]],2,1)=\"G\",\"https://allcards.skylords.eu/imgs/blue.png\",\"\"))))","v":""},{"$f":"IF(MID(Map[[#This Row],[Orbes]],3,1)=\"S\",\"https://allcards.skylords.eu/imgs/purple.png\",\nIF(MID(Map[[#This Row],[Orbes]],3,1)=\"F\",\"https://allcards.skylords.eu/imgs/red.png\",\nIF(MID(Map[[#This Row],[Orbes]],3,1)=\"N\",\"https://allcards.skylords.eu/imgs/green.png\",\nIF(MID(Map[[#This Row],[Orbes]],3,1)=\"G\",\"https://allcards.skylords.eu/imgs/blue.png\",\"\"))))","v":""},{"$f":"IF(MID(Map[[#This Row],[Orbes]],4,1)=\"S\",\"https://allcards.skylords.eu/imgs/purple.png\",\nIF(MID(Map[[#This Row],[Orbes]],4,1)=\"F\",\"https://allcards.skylords.eu/imgs/red.png\",\nIF(MID(Map[[#This Row],[Orbes]],4,1)=\"N\",\"https://allcards.skylords.eu/imgs/green.png\",\nIF(MID(Map[[#This Row],[Orbes]],4,1)=\"G\",\"https://allcards.skylords.eu/imgs/blue.png\",\"\"))))","v":""},"Main","BLIGHT","Blight","4 Players",4,"Blight","Blight","18:24.1","14:10.3","August 2013","Free the mortal prisoners from the bandit garrison and be prepared for the unexpected.","https://www.youtube.com/watch?v=klube1lbxK4","https://drive.google.com/open?id=1l2020C8G41x56xMkRLkUc6VVsycyQjlE"]
["CONVOY","FSSN",{"$f":"IF(MID(Map[[#This Row],[Orbes]],1,1)=\"S\",\"https://allcards.skylords.eu/imgs/purple.png\",\nIF(MID(Map[[#This Row],[Orbes]],1,1)=\"F\",\"https://allcards.skylords.eu/imgs/red.png\",\nIF(MID(Map[[#This Row],[Orbes]],1,1)=\"N\",\"https://allcards.skylords.eu/imgs/green.png\",\nIF(MID(Map[[#This Row],[Orbes]],1,1)=\"G\",\"https://allcards.skylords.eu/imgs/blue.png\",\"\"))))","v":"https://allcards.skylords.eu/imgs/red.png"},{"$f":"IF(MID(Map[[#This Row],[Orbes]],2,1)=\"S\",\"https://allcards.skylords.eu/imgs/purple.png\",\nIF(MID(Map[[#This Row],[Orbes]],2,1)=\"F\",\"https://allcards.skylords.eu/imgs/red.png\",\nIF(MID(Map[[#This Row],[Orbes]],2,1)=\"N\",\"https://allcards.skylords.eu/imgs/green.png\",\nIF(MID(Map[[#This Row],[Orbes]],2,1)=\"G\",\"https://allcards.skylords.eu/imgs/blue.png\",\"\"))))","v":"https://allcards.skylords.eu/imgs/purple.png"},{"$f":"IF(MID(Map[[#This Row],[Orbes]],3,1)=\"S\",\"https://allcards.skylords.eu/imgs/purple.png\",\nIF(MID(Map[[#This Row],[Orbes]],3,1)=\"F\",\"https://allcards.skylords.eu/imgs/red.png\",\nIF(MID(Map[[#This Row],[Orbes]],3,1)=\"N\",\"https://allcards.skylords.eu/imgs/green.png\",\nIF(MID(Map[[#This Row],[Orbes]],3,1)=\"G\",\"https://allcards.skylords.eu/imgs/blue.png\",\"\"))))","v":"https://allcards.skylords.eu/imgs/purple.png"},{"$f":"IF(MID(Map[[#This Row],[Orbes]],4,1)=\"S\",\"https://allcards.skylords.eu/imgs/purple.png\",\nIF(MID(Map[[#This Row],[Orbes]],4,1)=\"F\",\"https://allcards.skylords.eu/imgs/red.png\",\nIF(MID(Map[[#This Row],[Orbes]],4,1)=\"N\",\"https://allcards.skylords.eu/imgs/green.png\",\nIF(MID(Map[[#This Row],[Orbes]],4,1)=\"G\",\"https://allcards.skylords.eu/imgs/blue.png\",\"\"))))","v":"https://allcards.skylords.eu/imgs/green.png"},"Main","CONVOY","Convoy","2 Players",2,"Convoy","Convoi","06:52.0","05:52.9","July 2013","Support a convoy of Raven Walkers and break through the ranks of a Stonekin army","http://www.youtube.com/watch?v=DzEa1SFHDS4","https://drive.google.com/open?id=1kZ_ogpm1AERy3ApEtkYepS6ULFw2mCIk"]
["CONVOY Support","SS",{"$f":"IF(MID(Map[[#This Row],[Orbes]],1,1)=\"S\",\"https://allcards.skylords.eu/imgs/purple.png\",\nIF(MID(Map[[#This Row],[Orbes]],1,1)=\"F\",\"https://allcards.skylords.eu/imgs/red.png\",\nIF(MID(Map[[#This Row],[Orbes]],1,1)=\"N\",\"https://allcards.skylords.eu/imgs/green.png\",\nIF(MID(Map[[#This Row],[Orbes]],1,1)=\"G\",\"https://allcards.skylords.eu/imgs/blue.png\",\"\"))))","v":"https://allcards.skylords.eu/imgs/purple.png"},{"$f":"IF(MID(Map[[#This Row],[Orbes]],2,1)=\"S\",\"https://allcards.skylords.eu/imgs/purple.png\",\nIF(MID(Map[[#This Row],[Orbes]],2,1)=\"F\",\"https://allcards.skylords.eu/imgs/red.png\",\nIF(MID(Map[[#This Row],[Orbes]],2,1)=\"N\",\"https://allcards.skylords.eu/imgs/green.png\",\nIF(MID(Map[[#This Row],[Orbes]],2,1)=\"G\",\"https://allcards.skylords.eu/imgs/blue.png\",\"\"))))","v":"https://allcards.skylords.eu/imgs/purple.png"},{"$f":"IF(MID(Map[[#This Row],[Orbes]],3,1)=\"S\",\"https://allcards.skylords.eu/imgs/purple.png\",\nIF(MID(Map[[#This Row],[Orbes]],3,1)=\"F\",\"https://allcards.skylords.eu/imgs/red.png\",\nIF(MID(Map[[#This Row],[Orbes]],3,1)=\"N\",\"https://allcards.skylords.eu/imgs/green.png\",\nIF(MID(Map[[#This Row],[Orbes]],3,1)=\"G\",\"https://allcards.skylords.eu/imgs/blue.png\",\"\"))))","v":""},{"$f":"IF(MID(Map[[#This Row],[Orbes]],4,1)=\"S\",\"https://allcards.skylords.eu/imgs/purple.png\",\nIF(MID(Map[[#This Row],[Orbes]],4,1)=\"F\",\"https://allcards.skylords.eu/imgs/red.png\",\nIF(MID(Map[[#This Row],[Orbes]],4,1)=\"N\",\"https://allcards.skylords.eu/imgs/green.png\",\nIF(MID(Map[[#This Row],[Orbes]],4,1)=\"G\",\"https://allcards.skylords.eu/imgs/blue.png\",\"\"))))","v":""},"Support",{"$f":"H9","v":"CONVOY"},{"$f":"I9","v":"Convoy"},{"$f":"J9","v":"2 Players"},{"$f":"K9","v":2},{"$f":"L9","v":"Convoy"},{"$f":"M9","v":"Convoi"},{"$f":"N9","v":"06:52.0"},{"$f":"O9","v":"05:52.9"},{"$f":"P9","v":"July 2013"},{"$f":"Q9","v":"Support a convoy of Raven Walkers and break through the ranks of a Stonekin army"},{"$f":"R9","v":"http://www.youtube.com/watch?v=DzEa1SFHDS4"},"https://drive.google.com/open?id=1kZ_ogpm1AERy3ApEtkYepS6ULFw2mCIk"]
["CRUSADE","SNN",{"$f":"IF(MID(Map[[#This Row],[Orbes]],1,1)=\"S\",\"https://allcards.skylords.eu/imgs/purple.png\",\nIF(MID(Map[[#This Row],[Orbes]],1,1)=\"F\",\"https://allcards.skylords.eu/imgs/red.png\",\nIF(MID(Map[[#This Row],[Orbes]],1,1)=\"N\",\"https://allcards.skylords.eu/imgs/green.png\",\nIF(MID(Map[[#This Row],[Orbes]],1,1)=\"G\",\"https://allcards.skylords.eu/imgs/blue.png\",\"\"))))","v":"https://allcards.skylords.eu/imgs/purple.png"},{"$f":"IF(MID(Map[[#This Row],[Orbes]],2,1)=\"S\",\"https://allcards.skylords.eu/imgs/purple.png\",\nIF(MID(Map[[#This Row],[Orbes]],2,1)=\"F\",\"https://allcards.skylords.eu/imgs/red.png\",\nIF(MID(Map[[#This Row],[Orbes]],2,1)=\"N\",\"https://allcards.skylords.eu/imgs/green.png\",\nIF(MID(Map[[#This Row],[Orbes]],2,1)=\"G\",\"https://allcards.skylords.eu/imgs/blue.png\",\"\"))))","v":"https://allcards.skylords.eu/imgs/green.png"},{"$f":"IF(MID(Map[[#This Row],[Orbes]],3,1)=\"S\",\"https://allcards.skylords.eu/imgs/purple.png\",\nIF(MID(Map[[#This Row],[Orbes]],3,1)=\"F\",\"https://allcards.skylords.eu/imgs/red.png\",\nIF(MID(Map[[#This Row],[Orbes]],3,1)=\"N\",\"https://allcards.skylords.eu/imgs/green.png\",\nIF(MID(Map[[#This Row],[Orbes]],3,1)=\"G\",\"https://allcards.skylords.eu/imgs/blue.png\",\"\"))))","v":"https://allcards.skylords.eu/imgs/green.png"},{"$f":"IF(MID(Map[[#This Row],[Orbes]],4,1)=\"S\",\"https://allcards.skylords.eu/imgs/purple.png\",\nIF(MID(Map[[#This Row],[Orbes]],4,1)=\"F\",\"https://allcards.skylords.eu/imgs/red.png\",\nIF(MID(Map[[#This Row],[Orbes]],4,1)=\"N\",\"https://allcards.skylords.eu/imgs/green.png\",\nIF(MID(Map[[#This Row],[Orbes]],4,1)=\"G\",\"https://allcards.skylords.eu/imgs/blue.png\",\"\"))))","v":""},"Main","CRUSADE","Crusade","2 Players",2,"Crusade","Croisade","09:43.6","09:41.2","Many players","Defend the search expedition that has found a trace of the missing gods.","http://www.youtube.com/watch?v=bJbwIB3eoho","https://drive.google.com/open?id=1NUKe-JLKGr1p7bVSQCo6IkI3zJoTYrIv"]
["CRUSADE Support","N",{"$f":"IF(MID(Map[[#This Row],[Orbes]],1,1)=\"S\",\"https://allcards.skylords.eu/imgs/purple.png\",\nIF(MID(Map[[#This Row],[Orbes]],1,1)=\"F\",\"https://allcards.skylords.eu/imgs/red.png\",\nIF(MID(Map[[#This Row],[Orbes]],1,1)=\"N\",\"https://allcards.skylords.eu/imgs/green.png\",\nIF(MID(Map[[#This Row],[Orbes]],1,1)=\"G\",\"https://allcards.skylords.eu/imgs/blue.png\",\"\"))))","v":"https://allcards.skylords.eu/imgs/green.png"},{"$f":"IF(MID(Map[[#This Row],[Orbes]],2,1)=\"S\",\"https://allcards.skylords.eu/imgs/purple.png\",\nIF(MID(Map[[#This Row],[Orbes]],2,1)=\"F\",\"https://allcards.skylords.eu/imgs/red.png\",\nIF(MID(Map[[#This Row],[Orbes]],2,1)=\"N\",\"https://allcards.skylords.eu/imgs/green.png\",\nIF(MID(Map[[#This Row],[Orbes]],2,1)=\"G\",\"https://allcards.skylords.eu/imgs/blue.png\",\"\"))))","v":""},{"$f":"IF(MID(Map[[#This Row],[Orbes]],3,1)=\"S\",\"https://allcards.skylords.eu/imgs/purple.png\",\nIF(MID(Map[[#This Row],[Orbes]],3,1)=\"F\",\"https://allcards.skylords.eu/imgs/red.png\",\nIF(MID(Map[[#This Row],[Orbes]],3,1)=\"N\",\"https://allcards.skylords.eu/imgs/green.png\",\nIF(MID(Map[[#This Row],[Orbes]],3,1)=\"G\",\"https://allcards.skylords.eu/imgs/blue.png\",\"\"))))","v":""},{"$f":"IF(MID(Map[[#This Row],[Orbes]],4,1)=\"S\",\"https://allcards.skylords.eu/imgs/purple.png\",\nIF(MID(Map[[#This Row],[Orbes]],4,1)=\"F\",\"https://allcards.skylords.eu/imgs/red.png\",\nIF(MID(Map[[#This Row],[Orbes]],4,1)=\"N\",\"https://allcards.skylords.eu/imgs/green.png\",\nIF(MID(Map[[#This Row],[Orbes]],4,1)=\"G\",\"https://allcards.skylords.eu/imgs/blue.png\",\"\"))))","v":""},"Support",{"$f":"H11","v":"CRUSADE"},{"$f":"I11","v":"Crusade"},{"$f":"J11","v":"2 Players"},2,{"$f":"L11","v":"Crusade"},{"$f":"M11","v":"Croisade"},"09:43.6","09:41.2","Many players","Defend the search expedition that has found a trace of the missing gods.","http://www.youtube.com/watch?v=bJbwIB3eoho",{"$f":"S11","v":"https://drive.google.com/open?id=1NUKe-JLKGr1p7bVSQCo6IkI3zJoTYrIv"}]
["DEFENDING HOPE","SGGS",{"$f":"IF(MID(Map[[#This Row],[Orbes]],1,1)=\"S\",\"https://allcards.skylords.eu/imgs/purple.png\",\nIF(MID(Map[[#This Row],[Orbes]],1,1)=\"F\",\"https://allcards.skylords.eu/imgs/red.png\",\nIF(MID(Map[[#This Row],[Orbes]],1,1)=\"N\",\"https://allcards.skylords.eu/imgs/green.png\",\nIF(MID(Map[[#This Row],[Orbes]],1,1)=\"G\",\"https://allcards.skylords.eu/imgs/blue.png\",\"\"))))","v":"https://allcards.skylords.eu/imgs/purple.png"},{"$f":"IF(MID(Map[[#This Row],[Orbes]],2,1)=\"S\",\"https://allcards.skylords.eu/imgs/purple.png\",\nIF(MID(Map[[#This Row],[Orbes]],2,1)=\"F\",\"https://allcards.skylords.eu/imgs/red.png\",\nIF(MID(Map[[#This Row],[Orbes]],2,1)=\"N\",\"https://allcards.skylords.eu/imgs/green.png\",\nIF(MID(Map[[#This Row],[Orbes]],2,1)=\"G\",\"https://allcards.skylords.eu/imgs/blue.png\",\"\"))))","v":"https://allcards.skylords.eu/imgs/blue.png"},{"$f":"IF(MID(Map[[#This Row],[Orbes]],3,1)=\"S\",\"https://allcards.skylords.eu/imgs/purple.png\",\nIF(MID(Map[[#This Row],[Orbes]],3,1)=\"F\",\"https://allcards.skylords.eu/imgs/red.png\",\nIF(MID(Map[[#This Row],[Orbes]],3,1)=\"N\",\"https://allcards.skylords.eu/imgs/green.png\",\nIF(MID(Map[[#This Row],[Orbes]],3,1)=\"G\",\"https://allcards.skylords.eu/imgs/blue.png\",\"\"))))","v":"https://allcards.skylords.eu/imgs/blue.png"},{"$f":"IF(MID(Map[[#This Row],[Orbes]],4,1)=\"S\",\"https://allcards.skylords.eu/imgs/purple.png\",\nIF(MID(Map[[#This Row],[Orbes]],4,1)=\"F\",\"https://allcards.skylords.eu/imgs/red.png\",\nIF(MID(Map[[#This Row],[Orbes]],4,1)=\"N\",\"https://allcards.skylords.eu/imgs/green.png\",\nIF(MID(Map[[#This Row],[Orbes]],4,1)=\"G\",\"https://allcards.skylords.eu/imgs/blue.png\",\"\"))))","v":"https://allcards.skylords.eu/imgs/purple.png"},"Main","DEFENDING HOPE","Defending Hope","1 Player",1,"Defending Hope","La défense de Hope","20:36.7","20:35.5","Many Players","Defend the city Hope against a massive Twilight attack.","https://www.youtube.com/watch?v=BBJW2_2gf6o","https://drive.google.com/open?id=1xgz5HEA8gKgusVKWdRbbSKKibK56YD4t"]
["EMPIRE","NSSG",{"$f":"IF(MID(Map[[#This Row],[Orbes]],1,1)=\"S\",\"https://allcards.skylords.eu/imgs/purple.png\",\nIF(MID(Map[[#This Row],[Orbes]],1,1)=\"F\",\"https://allcards.skylords.eu/imgs/red.png\",\nIF(MID(Map[[#This Row],[Orbes]],1,1)=\"N\",\"https://allcards.skylords.eu/imgs/green.png\",\nIF(MID(Map[[#This Row],[Orbes]],1,1)=\"G\",\"https://allcards.skylords.eu/imgs/blue.png\",\"\"))))","v":"https://allcards.skylords.eu/imgs/green.png"},{"$f":"IF(MID(Map[[#This Row],[Orbes]],2,1)=\"S\",\"https://allcards.skylords.eu/imgs/purple.png\",\nIF(MID(Map[[#This Row],[Orbes]],2,1)=\"F\",\"https://allcards.skylords.eu/imgs/red.png\",\nIF(MID(Map[[#This Row],[Orbes]],2,1)=\"N\",\"https://allcards.skylords.eu/imgs/green.png\",\nIF(MID(Map[[#This Row],[Orbes]],2,1)=\"G\",\"https://allcards.skylords.eu/imgs/blue.png\",\"\"))))","v":"https://allcards.skylords.eu/imgs/purple.png"},{"$f":"IF(MID(Map[[#This Row],[Orbes]],3,1)=\"S\",\"https://allcards.skylords.eu/imgs/purple.png\",\nIF(MID(Map[[#This Row],[Orbes]],3,1)=\"F\",\"https://allcards.skylords.eu/imgs/red.png\",\nIF(MID(Map[[#This Row],[Orbes]],3,1)=\"N\",\"https://allcards.skylords.eu/imgs/green.png\",\nIF(MID(Map[[#This Row],[Orbes]],3,1)=\"G\",\"https://allcards.skylords.eu/imgs/blue.png\",\"\"))))","v":"https://allcards.skylords.eu/imgs/purple.png"},{"$f":"IF(MID(Map[[#This Row],[Orbes]],4,1)=\"S\",\"https://allcards.skylords.eu/imgs/purple.png\",\nIF(MID(Map[[#This Row],[Orbes]],4,1)=\"F\",\"https://allcards.skylords.eu/imgs/red.png\",\nIF(MID(Map[[#This Row],[Orbes]],4,1)=\"N\",\"https://allcards.skylords.eu/imgs/green.png\",\nIF(MID(Map[[#This Row],[Orbes]],4,1)=\"G\",\"https://allcards.skylords.eu/imgs/blue.png\",\"\"))))","v":"https://allcards.skylords.eu/imgs/blue.png"},"Main","EMPIRE","Empire","4 Players",4,"Empire","Empire","19:04.6","13:45.1","July 2013","Fight in the past and in the present of Lyr to undo an invasion of the Lost Souls.","https://www.youtube.com/watch?v=de6YUBWWBTs","https://drive.google.com/open?id=1d_fEw_ulouVT-JA4A9Eijmn47sXqs22v"]
["ENCOUNTERS WITH TWILIGHT","NSGS",{"$f":"IF(MID(Map[[#This Row],[Orbes]],1,1)=\"S\",\"https://allcards.skylords.eu/imgs/purple.png\",\nIF(MID(Map[[#This Row],[Orbes]],1,1)=\"F\",\"https://allcards.skylords.eu/imgs/red.png\",\nIF(MID(Map[[#This Row],[Orbes]],1,1)=\"N\",\"https://allcards.skylords.eu/imgs/green.png\",\nIF(MID(Map[[#This Row],[Orbes]],1,1)=\"G\",\"https://allcards.skylords.eu/imgs/blue.png\",\"\"))))","v":"https://allcards.skylords.eu/imgs/green.png"},{"$f":"IF(MID(Map[[#This Row],[Orbes]],2,1)=\"S\",\"https://allcards.skylords.eu/imgs/purple.png\",\nIF(MID(Map[[#This Row],[Orbes]],2,1)=\"F\",\"https://allcards.skylords.eu/imgs/red.png\",\nIF(MID(Map[[#This Row],[Orbes]],2,1)=\"N\",\"https://allcards.skylords.eu/imgs/green.png\",\nIF(MID(Map[[#This Row],[Orbes]],2,1)=\"G\",\"https://allcards.skylords.eu/imgs/blue.png\",\"\"))))","v":"https://allcards.skylords.eu/imgs/purple.png"},{"$f":"IF(MID(Map[[#This Row],[Orbes]],3,1)=\"S\",\"https://allcards.skylords.eu/imgs/purple.png\",\nIF(MID(Map[[#This Row],[Orbes]],3,1)=\"F\",\"https://allcards.skylords.eu/imgs/red.png\",\nIF(MID(Map[[#This Row],[Orbes]],3,1)=\"N\",\"https://allcards.skylords.eu/imgs/green.png\",\nIF(MID(Map[[#This Row],[Orbes]],3,1)=\"G\",\"https://allcards.skylords.eu/imgs/blue.png\",\"\"))))","v":"https://allcards.skylords.eu/imgs/blue.png"},{"$f":"IF(MID(Map[[#This Row],[Orbes]],4,1)=\"S\",\"https://allcards.skylords.eu/imgs/purple.png\",\nIF(MID(Map[[#This Row],[Orbes]],4,1)=\"F\",\"https://allcards.skylords.eu/imgs/red.png\",\nIF(MID(Map[[#This Row],[Orbes]],4,1)=\"N\",\"https://allcards.skylords.eu/imgs/green.png\",\nIF(MID(Map[[#This Row],[Orbes]],4,1)=\"G\",\"https://allcards.skylords.eu/imgs/blue.png\",\"\"))))","v":"https://allcards.skylords.eu/imgs/purple.png"},"Main","ENCOUNTERS WITH TWILIGHT","Encounters with Twilight","1 Player",1,"Encounters with Twilight","Rencontre du crépuscule","16:45.2","12:20.2","January 2019","Aid Rogan Kayle and a ragtag band of human refugees in their clash with an unknown evil.","http://www.youtube.com/watch?v=7R20MPl3rzU","https://drive.google.com/open?id=1pRWeNtTd1qWm0aWJZQGnUs5wjvOtXkCa"]
["INTRODUCTION","GFFG",{"$f":"IF(MID(Map[[#This Row],[Orbes]],1,1)=\"S\",\"https://allcards.skylords.eu/imgs/purple.png\",\nIF(MID(Map[[#This Row],[Orbes]],1,1)=\"F\",\"https://allcards.skylords.eu/imgs/red.png\",\nIF(MID(Map[[#This Row],[Orbes]],1,1)=\"N\",\"https://allcards.skylords.eu/imgs/green.png\",\nIF(MID(Map[[#This Row],[Orbes]],1,1)=\"G\",\"https://allcards.skylords.eu/imgs/blue.png\",\"\"))))","v":"https://allcards.skylords.eu/imgs/blue.png"},{"$f":"IF(MID(Map[[#This Row],[Orbes]],2,1)=\"S\",\"https://allcards.skylords.eu/imgs/purple.png\",\nIF(MID(Map[[#This Row],[Orbes]],2,1)=\"F\",\"https://allcards.skylords.eu/imgs/red.png\",\nIF(MID(Map[[#This Row],[Orbes]],2,1)=\"N\",\"https://allcards.skylords.eu/imgs/green.png\",\nIF(MID(Map[[#This Row],[Orbes]],2,1)=\"G\",\"https://allcards.skylords.eu/imgs/blue.png\",\"\"))))","v":"https://allcards.skylords.eu/imgs/red.png"},{"$f":"IF(MID(Map[[#This Row],[Orbes]],3,1)=\"S\",\"https://allcards.skylords.eu/imgs/purple.png\",\nIF(MID(Map[[#This Row],[Orbes]],3,1)=\"F\",\"https://allcards.skylords.eu/imgs/red.png\",\nIF(MID(Map[[#This Row],[Orbes]],3,1)=\"N\",\"https://allcards.skylords.eu/imgs/green.png\",\nIF(MID(Map[[#This Row],[Orbes]],3,1)=\"G\",\"https://allcards.skylords.eu/imgs/blue.png\",\"\"))))","v":"https://allcards.skylords.eu/imgs/red.png"},{"$f":"IF(MID(Map[[#This Row],[Orbes]],4,1)=\"S\",\"https://allcards.skylords.eu/imgs/purple.png\",\nIF(MID(Map[[#This Row],[Orbes]],4,1)=\"F\",\"https://allcards.skylords.eu/imgs/red.png\",\nIF(MID(Map[[#This Row],[Orbes]],4,1)=\"N\",\"https://allcards.skylords.eu/imgs/green.png\",\nIF(MID(Map[[#This Row],[Orbes]],4,1)=\"G\",\"https://allcards.skylords.eu/imgs/blue.png\",\"\"))))","v":"https://allcards.skylords.eu/imgs/blue.png"},"Main","INTRODUCTION","Introduction","1 Player",1,"Introduction","Introduction","00:00.0","00:00.0",null,"An introduction into playing BattleForge.","https://www.youtube.com/watch?v=iy195P_Pff0"]
["KING OF THE GIANTS","NSN",{"$f":"IF(MID(Map[[#This Row],[Orbes]],1,1)=\"S\",\"https://allcards.skylords.eu/imgs/purple.png\",\nIF(MID(Map[[#This Row],[Orbes]],1,1)=\"F\",\"https://allcards.skylords.eu/imgs/red.png\",\nIF(MID(Map[[#This Row],[Orbes]],1,1)=\"N\",\"https://allcards.skylords.eu/imgs/green.png\",\nIF(MID(Map[[#This Row],[Orbes]],1,1)=\"G\",\"https://allcards.skylords.eu/imgs/blue.png\",\"\"))))","v":"https://allcards.skylords.eu/imgs/green.png"},{"$f":"IF(MID(Map[[#This Row],[Orbes]],2,1)=\"S\",\"https://allcards.skylords.eu/imgs/purple.png\",\nIF(MID(Map[[#This Row],[Orbes]],2,1)=\"F\",\"https://allcards.skylords.eu/imgs/red.png\",\nIF(MID(Map[[#This Row],[Orbes]],2,1)=\"N\",\"https://allcards.skylords.eu/imgs/green.png\",\nIF(MID(Map[[#This Row],[Orbes]],2,1)=\"G\",\"https://allcards.skylords.eu/imgs/blue.png\",\"\"))))","v":"https://allcards.skylords.eu/imgs/purple.png"},{"$f":"IF(MID(Map[[#This Row],[Orbes]],3,1)=\"S\",\"https://allcards.skylords.eu/imgs/purple.png\",\nIF(MID(Map[[#This Row],[Orbes]],3,1)=\"F\",\"https://allcards.skylords.eu/imgs/red.png\",\nIF(MID(Map[[#This Row],[Orbes]],3,1)=\"N\",\"https://allcards.skylords.eu/imgs/green.png\",\nIF(MID(Map[[#This Row],[Orbes]],3,1)=\"G\",\"https://allcards.skylords.eu/imgs/blue.png\",\"\"))))","v":"https://allcards.skylords.eu/imgs/green.png"},{"$f":"IF(MID(Map[[#This Row],[Orbes]],4,1)=\"S\",\"https://allcards.skylords.eu/imgs/purple.png\",\nIF(MID(Map[[#This Row],[Orbes]],4,1)=\"F\",\"https://allcards.skylords.eu/imgs/red.png\",\nIF(MID(Map[[#This Row],[Orbes]],4,1)=\"N\",\"https://allcards.skylords.eu/imgs/green.png\",\nIF(MID(Map[[#This Row],[Orbes]],4,1)=\"G\",\"https://allcards.skylords.eu/imgs/blue.png\",\"\"))))","v":""},"Main","KING OF THE GIANTS","King of the Giants","4 Players",4,"King of the Giants","Le roi des géants","10:04.1","07:49.3","July 2013","Help Rogan lure the king of the giants to Lyr. Face a lot of powerful Stonekin at the foot of the Giant Throne mountains.","https://www.youtube.com/watch?v=7jcMZWfvOak","https://drive.google.com/open?id=1BQle-DCCaV2Vwe1HEeriedwZTjp6NwNW"]
["KING OF THE GIANTS Support","N",{"$f":"IF(MID(Map[[#This Row],[Orbes]],1,1)=\"S\",\"https://allcards.skylords.eu/imgs/purple.png\",\nIF(MID(Map[[#This Row],[Orbes]],1,1)=\"F\",\"https://allcards.skylords.eu/imgs/red.png\",\nIF(MID(Map[[#This Row],[Orbes]],1,1)=\"N\",\"https://allcards.skylords.eu/imgs/green.png\",\nIF(MID(Map[[#This Row],[Orbes]],1,1)=\"G\",\"https://allcards.skylords.eu/imgs/blue.png\",\"\"))))","v":"https://allcards.skylords.eu/imgs/green.png"},{"$f":"IF(MID(Map[[#This Row],[Orbes]],2,1)=\"S\",\"https://allcards.skylords.eu/imgs/purple.png\",\nIF(MID(Map[[#This Row],[Orbes]],2,1)=\"F\",\"https://allcards.skylords.eu/imgs/red.png\",\nIF(MID(Map[[#This Row],[Orbes]],2,1)=\"N\",\"https://allcards.skylords.eu/imgs/green.png\",\nIF(MID(Map[[#This Row],[Orbes]],2,1)=\"G\",\"https://allcards.skylords.eu/imgs/blue.png\",\"\"))))","v":""},{"$f":"IF(MID(Map[[#This Row],[Orbes]],3,1)=\"S\",\"https://allcards.skylords.eu/imgs/purple.png\",\nIF(MID(Map[[#This Row],[Orbes]],3,1)=\"F\",\"https://allcards.skylords.eu/imgs/red.png\",\nIF(MID(Map[[#This Row],[Orbes]],3,1)=\"N\",\"https://allcards.skylords.eu/imgs/green.png\",\nIF(MID(Map[[#This Row],[Orbes]],3,1)=\"G\",\"https://allcards.skylords.eu/imgs/blue.png\",\"\"))))","v":""},{"$f":"IF(MID(Map[[#This Row],[Orbes]],4,1)=\"S\",\"https://allcards.skylords.eu/imgs/purple.png\",\nIF(MID(Map[[#This Row],[Orbes]],4,1)=\"F\",\"https://allcards.skylords.eu/imgs/red.png\",\nIF(MID(Map[[#This Row],[Orbes]],4,1)=\"N\",\"https://allcards.skylords.eu/imgs/green.png\",\nIF(MID(Map[[#This Row],[Orbes]],4,1)=\"G\",\"https://allcards.skylords.eu/imgs/blue.png\",\"\"))))","v":""},"Support",{"$f":"H17","v":"KING OF THE GIANTS"},{"$f":"I17","v":"King of the Giants"},{"$f":"J17","v":"4 Players"},{"$f":"K17","v":4},{"$f":"L17","v":"King of the Giants"},{"$f":"M17","v":"Le roi des géants"},{"$f":"N17","v":"10:04.1"},{"$f":"O17","v":"07:49.3"},{"$f":"P17","v":"July 2013"},{"$f":"Q17","v":"Help Rogan lure the king of the giants to Lyr. Face a lot of powerful Stonekin at the foot of the Giant Throne mountains."},{"$f":"R17","v":"https://www.youtube.com/watch?v=7jcMZWfvOak"},"https://drive.google.com/open?id=1BQle-DCCaV2Vwe1HEeriedwZTjp6NwNW"]
["MO","SNGG",{"$f":"IF(MID(Map[[#This Row],[Orbes]],1,1)=\"S\",\"https://allcards.skylords.eu/imgs/purple.png\",\nIF(MID(Map[[#This Row],[Orbes]],1,1)=\"F\",\"https://allcards.skylords.eu/imgs/red.png\",\nIF(MID(Map[[#This Row],[Orbes]],1,1)=\"N\",\"https://allcards.skylords.eu/imgs/green.png\",\nIF(MID(Map[[#This Row],[Orbes]],1,1)=\"G\",\"https://allcards.skylords.eu/imgs/blue.png\",\"\"))))","v":"https://allcards.skylords.eu/imgs/purple.png"},{"$f":"IF(MID(Map[[#This Row],[Orbes]],2,1)=\"S\",\"https://allcards.skylords.eu/imgs/purple.png\",\nIF(MID(Map[[#This Row],[Orbes]],2,1)=\"F\",\"https://allcards.skylords.eu/imgs/red.png\",\nIF(MID(Map[[#This Row],[Orbes]],2,1)=\"N\",\"https://allcards.skylords.eu/imgs/green.png\",\nIF(MID(Map[[#This Row],[Orbes]],2,1)=\"G\",\"https://allcards.skylords.eu/imgs/blue.png\",\"\"))))","v":"https://allcards.skylords.eu/imgs/green.png"},{"$f":"IF(MID(Map[[#This Row],[Orbes]],3,1)=\"S\",\"https://allcards.skylords.eu/imgs/purple.png\",\nIF(MID(Map[[#This Row],[Orbes]],3,1)=\"F\",\"https://allcards.skylords.eu/imgs/red.png\",\nIF(MID(Map[[#This Row],[Orbes]],3,1)=\"N\",\"https://allcards.skylords.eu/imgs/green.png\",\nIF(MID(Map[[#This Row],[Orbes]],3,1)=\"G\",\"https://allcards.skylords.eu/imgs/blue.png\",\"\"))))","v":"https://allcards.skylords.eu/imgs/blue.png"},{"$f":"IF(MID(Map[[#This Row],[Orbes]],4,1)=\"S\",\"https://allcards.skylords.eu/imgs/purple.png\",\nIF(MID(Map[[#This Row],[Orbes]],4,1)=\"F\",\"https://allcards.skylords.eu/imgs/red.png\",\nIF(MID(Map[[#This Row],[Orbes]],4,1)=\"N\",\"https://allcards.skylords.eu/imgs/green.png\",\nIF(MID(Map[[#This Row],[Orbes]],4,1)=\"G\",\"https://allcards.skylords.eu/imgs/blue.png\",\"\"))))","v":"https://allcards.skylords.eu/imgs/blue.png"},"Main","MO","Mo","1 Player",1,"Mo","Mo","17:46.8","11:29.8","May 2013","Guide the Juggernaut, Mo in his search for his friend, Twinaxe.","https://www.youtube.com/watch?v=7TZlvXz5fco","https://drive.google.com/open?id=1o2gM6SPHfmm2dlC3OXJRHGKFy5WWhVZv"]
["NIGHTMARE SHARD","NSSN",{"$f":"IF(MID(Map[[#This Row],[Orbes]],1,1)=\"S\",\"https://allcards.skylords.eu/imgs/purple.png\",\nIF(MID(Map[[#This Row],[Orbes]],1,1)=\"F\",\"https://allcards.skylords.eu/imgs/red.png\",\nIF(MID(Map[[#This Row],[Orbes]],1,1)=\"N\",\"https://allcards.skylords.eu/imgs/green.png\",\nIF(MID(Map[[#This Row],[Orbes]],1,1)=\"G\",\"https://allcards.skylords.eu/imgs/blue.png\",\"\"))))","v":"https://allcards.skylords.eu/imgs/green.png"},{"$f":"IF(MID(Map[[#This Row],[Orbes]],2,1)=\"S\",\"https://allcards.skylords.eu/imgs/purple.png\",\nIF(MID(Map[[#This Row],[Orbes]],2,1)=\"F\",\"https://allcards.skylords.eu/imgs/red.png\",\nIF(MID(Map[[#This Row],[Orbes]],2,1)=\"N\",\"https://allcards.skylords.eu/imgs/green.png\",\nIF(MID(Map[[#This Row],[Orbes]],2,1)=\"G\",\"https://allcards.skylords.eu/imgs/blue.png\",\"\"))))","v":"https://allcards.skylords.eu/imgs/purple.png"},{"$f":"IF(MID(Map[[#This Row],[Orbes]],3,1)=\"S\",\"https://allcards.skylords.eu/imgs/purple.png\",\nIF(MID(Map[[#This Row],[Orbes]],3,1)=\"F\",\"https://allcards.skylords.eu/imgs/red.png\",\nIF(MID(Map[[#This Row],[Orbes]],3,1)=\"N\",\"https://allcards.skylords.eu/imgs/green.png\",\nIF(MID(Map[[#This Row],[Orbes]],3,1)=\"G\",\"https://allcards.skylords.eu/imgs/blue.png\",\"\"))))","v":"https://allcards.skylords.eu/imgs/purple.png"},{"$f":"IF(MID(Map[[#This Row],[Orbes]],4,1)=\"S\",\"https://allcards.skylords.eu/imgs/purple.png\",\nIF(MID(Map[[#This Row],[Orbes]],4,1)=\"F\",\"https://allcards.skylords.eu/imgs/red.png\",\nIF(MID(Map[[#This Row],[Orbes]],4,1)=\"N\",\"https://allcards.skylords.eu/imgs/green.png\",\nIF(MID(Map[[#This Row],[Orbes]],4,1)=\"G\",\"https://allcards.skylords.eu/imgs/blue.png\",\"\"))))","v":"https://allcards.skylords.eu/imgs/green.png"},"Main","NIGHTMARE SHARD","Nightmare Shard","2 Players",2,"Nightmare Shard","Fragment du cauchemard","12:41.5","09:14.8","August 2013","Recover the Shard of the Forge that has crashed into the Shattered Lands.","https://www.youtube.com/watch?v=Y7hLz5McGd4","https://drive.google.com/open?id=1KGH4O0m5MJOgTeLiWlI_TF94-Dgx3eEk"]
["NIGHTMARE SHARD Support","S",{"$f":"IF(MID(Map[[#This Row],[Orbes]],1,1)=\"S\",\"https://allcards.skylords.eu/imgs/purple.png\",\nIF(MID(Map[[#This Row],[Orbes]],1,1)=\"F\",\"https://allcards.skylords.eu/imgs/red.png\",\nIF(MID(Map[[#This Row],[Orbes]],1,1)=\"N\",\"https://allcards.skylords.eu/imgs/green.png\",\nIF(MID(Map[[#This Row],[Orbes]],1,1)=\"G\",\"https://allcards.skylords.eu/imgs/blue.png\",\"\"))))","v":"https://allcards.skylords.eu/imgs/purple.png"},{"$f":"IF(MID(Map[[#This Row],[Orbes]],2,1)=\"S\",\"https://allcards.skylords.eu/imgs/purple.png\",\nIF(MID(Map[[#This Row],[Orbes]],2,1)=\"F\",\"https://allcards.skylords.eu/imgs/red.png\",\nIF(MID(Map[[#This Row],[Orbes]],2,1)=\"N\",\"https://allcards.skylords.eu/imgs/green.png\",\nIF(MID(Map[[#This Row],[Orbes]],2,1)=\"G\",\"https://allcards.skylords.eu/imgs/blue.png\",\"\"))))","v":""},{"$f":"IF(MID(Map[[#This Row],[Orbes]],3,1)=\"S\",\"https://allcards.skylords.eu/imgs/purple.png\",\nIF(MID(Map[[#This Row],[Orbes]],3,1)=\"F\",\"https://allcards.skylords.eu/imgs/red.png\",\nIF(MID(Map[[#This Row],[Orbes]],3,1)=\"N\",\"https://allcards.skylords.eu/imgs/green.png\",\nIF(MID(Map[[#This Row],[Orbes]],3,1)=\"G\",\"https://allcards.skylords.eu/imgs/blue.png\",\"\"))))","v":""},{"$f":"IF(MID(Map[[#This Row],[Orbes]],4,1)=\"S\",\"https://allcards.skylords.eu/imgs/purple.png\",\nIF(MID(Map[[#This Row],[Orbes]],4,1)=\"F\",\"https://allcards.skylords.eu/imgs/red.png\",\nIF(MID(Map[[#This Row],[Orbes]],4,1)=\"N\",\"https://allcards.skylords.eu/imgs/green.png\",\nIF(MID(Map[[#This Row],[Orbes]],4,1)=\"G\",\"https://allcards.skylords.eu/imgs/blue.png\",\"\"))))","v":""},"Support",{"$f":"H20","v":"NIGHTMARE SHARD"},{"$f":"I20","v":"Nightmare Shard"},{"$f":"J20","v":"2 Players"},{"$f":"K20","v":2},{"$f":"L20","v":"Nightmare Shard"},{"$f":"M20","v":"Fragment du cauchemard"},{"$f":"N20","v":"12:41.5"},{"$f":"O20","v":"09:14.8"},{"$f":"P20","v":"August 2013"},{"$f":"Q20","v":"Recover the Shard of the Forge that has crashed into the Shattered Lands."},{"$f":"R20","v":"https://www.youtube.com/watch?v=Y7hLz5McGd4"},"https://drive.google.com/open?id=1KGH4O0m5MJOgTeLiWlI_TF94-Dgx3eEk"]
["NIGHTMARE'S END","NSSG",{"$f":"IF(MID(Map[[#This Row],[Orbes]],1,1)=\"S\",\"https://allcards.skylords.eu/imgs/purple.png\",\nIF(MID(Map[[#This Row],[Orbes]],1,1)=\"F\",\"https://allcards.skylords.eu/imgs/red.png\",\nIF(MID(Map[[#This Row],[Orbes]],1,1)=\"N\",\"https://allcards.skylords.eu/imgs/green.png\",\nIF(MID(Map[[#This Row],[Orbes]],1,1)=\"G\",\"https://allcards.skylords.eu/imgs/blue.png\",\"\"))))","v":"https://allcards.skylords.eu/imgs/green.png"},{"$f":"IF(MID(Map[[#This Row],[Orbes]],2,1)=\"S\",\"https://allcards.skylords.eu/imgs/purple.png\",\nIF(MID(Map[[#This Row],[Orbes]],2,1)=\"F\",\"https://allcards.skylords.eu/imgs/red.png\",\nIF(MID(Map[[#This Row],[Orbes]],2,1)=\"N\",\"https://allcards.skylords.eu/imgs/green.png\",\nIF(MID(Map[[#This Row],[Orbes]],2,1)=\"G\",\"https://allcards.skylords.eu/imgs/blue.png\",\"\"))))","v":"https://allcards.skylords.eu/imgs/purple.png"},{"$f":"IF(MID(Map[[#This Row],[Orbes]],3,1)=\"S\",\"https://allcards.skylords.eu/imgs/purple.png\",\nIF(MID(Map[[#This Row],[Orbes]],3,1)=\"F\",\"https://allcards.skylords.eu/imgs/red.png\",\nIF(MID(Map[[#This Row],[Orbes]],3,1)=\"N\",\"https://allcards.skylords.eu/imgs/green.png\",\nIF(MID(Map[[#This Row],[Orbes]],3,1)=\"G\",\"https://allcards.skylords.eu/imgs/blue.png\",\"\"))))","v":"https://allcards.skylords.eu/imgs/purple.png"},{"$f":"IF(MID(Map[[#This Row],[Orbes]],4,1)=\"S\",\"https://allcards.skylords.eu/imgs/purple.png\",\nIF(MID(Map[[#This Row],[Orbes]],4,1)=\"F\",\"https://allcards.skylords.eu/imgs/red.png\",\nIF(MID(Map[[#This Row],[Orbes]],4,1)=\"N\",\"https://allcards.skylords.eu/imgs/green.png\",\nIF(MID(Map[[#This Row],[Orbes]],4,1)=\"G\",\"https://allcards.skylords.eu/imgs/blue.png\",\"\"))))","v":"https://allcards.skylords.eu/imgs/blue.png"},"Main","NIGHTMARE'S END","Nightmare's End","2 Players",2,"Nightmare's End","La fin du cauchemard","30:10.4","19:48.4","August 2013","The Shard's magic is too aggressive, you need to unlock the full power of the four elements to be able to destroy it.","https://www.youtube.com/watch?v=q1vIwYOhKgQ","https://drive.google.com/open?id=1iN4FnximWP_bTBGLG03HuvKJ12Aynoo8"]
["NIGHTMARE'S END Support","NSS",{"$f":"IF(MID(Map[[#This Row],[Orbes]],1,1)=\"S\",\"https://allcards.skylords.eu/imgs/purple.png\",\nIF(MID(Map[[#This Row],[Orbes]],1,1)=\"F\",\"https://allcards.skylords.eu/imgs/red.png\",\nIF(MID(Map[[#This Row],[Orbes]],1,1)=\"N\",\"https://allcards.skylords.eu/imgs/green.png\",\nIF(MID(Map[[#This Row],[Orbes]],1,1)=\"G\",\"https://allcards.skylords.eu/imgs/blue.png\",\"\"))))","v":"https://allcards.skylords.eu/imgs/green.png"},{"$f":"IF(MID(Map[[#This Row],[Orbes]],2,1)=\"S\",\"https://allcards.skylords.eu/imgs/purple.png\",\nIF(MID(Map[[#This Row],[Orbes]],2,1)=\"F\",\"https://allcards.skylords.eu/imgs/red.png\",\nIF(MID(Map[[#This Row],[Orbes]],2,1)=\"N\",\"https://allcards.skylords.eu/imgs/green.png\",\nIF(MID(Map[[#This Row],[Orbes]],2,1)=\"G\",\"https://allcards.skylords.eu/imgs/blue.png\",\"\"))))","v":"https://allcards.skylords.eu/imgs/purple.png"},{"$f":"IF(MID(Map[[#This Row],[Orbes]],3,1)=\"S\",\"https://allcards.skylords.eu/imgs/purple.png\",\nIF(MID(Map[[#This Row],[Orbes]],3,1)=\"F\",\"https://allcards.skylords.eu/imgs/red.png\",\nIF(MID(Map[[#This Row],[Orbes]],3,1)=\"N\",\"https://allcards.skylords.eu/imgs/green.png\",\nIF(MID(Map[[#This Row],[Orbes]],3,1)=\"G\",\"https://allcards.skylords.eu/imgs/blue.png\",\"\"))))","v":"https://allcards.skylords.eu/imgs/purple.png"},{"$f":"IF(MID(Map[[#This Row],[Orbes]],4,1)=\"S\",\"https://allcards.skylords.eu/imgs/purple.png\",\nIF(MID(Map[[#This Row],[Orbes]],4,1)=\"F\",\"https://allcards.skylords.eu/imgs/red.png\",\nIF(MID(Map[[#This Row],[Orbes]],4,1)=\"N\",\"https://allcards.skylords.eu/imgs/green.png\",\nIF(MID(Map[[#This Row],[Orbes]],4,1)=\"G\",\"https://allcards.skylords.eu/imgs/blue.png\",\"\"))))","v":""},"Support",{"$f":"H22","v":"NIGHTMARE'S END"},{"$f":"I22","v":"Nightmare's End"},{"$f":"J22","v":"2 Players"},{"$f":"K22","v":2},{"$f":"L22","v":"Nightmare's End"},{"$f":"M22","v":"La fin du cauchemard"},{"$f":"N22","v":"30:10.4"},{"$f":"O22","v":"19:48.4"},{"$f":"P22","v":"August 2013"},{"$f":"Q22","v":"The Shard's magic is too aggressive, you need to unlock the full power of the four elements to be able to destroy it."},{"$f":"R22","v":"https://www.youtube.com/watch?v=q1vIwYOhKgQ"},"https://drive.google.com/open?id=1iN4FnximWP_bTBGLG03HuvKJ12Aynoo8"]
["OCEAN","NSSF",{"$f":"IF(MID(Map[[#This Row],[Orbes]],1,1)=\"S\",\"https://allcards.skylords.eu/imgs/purple.png\",\nIF(MID(Map[[#This Row],[Orbes]],1,1)=\"F\",\"https://allcards.skylords.eu/imgs/red.png\",\nIF(MID(Map[[#This Row],[Orbes]],1,1)=\"N\",\"https://allcards.skylords.eu/imgs/green.png\",\nIF(MID(Map[[#This Row],[Orbes]],1,1)=\"G\",\"https://allcards.skylords.eu/imgs/blue.png\",\"\"))))","v":"https://allcards.skylords.eu/imgs/green.png"},{"$f":"IF(MID(Map[[#This Row],[Orbes]],2,1)=\"S\",\"https://allcards.skylords.eu/imgs/purple.png\",\nIF(MID(Map[[#This Row],[Orbes]],2,1)=\"F\",\"https://allcards.skylords.eu/imgs/red.png\",\nIF(MID(Map[[#This Row],[Orbes]],2,1)=\"N\",\"https://allcards.skylords.eu/imgs/green.png\",\nIF(MID(Map[[#This Row],[Orbes]],2,1)=\"G\",\"https://allcards.skylords.eu/imgs/blue.png\",\"\"))))","v":"https://allcards.skylords.eu/imgs/purple.png"},{"$f":"IF(MID(Map[[#This Row],[Orbes]],3,1)=\"S\",\"https://allcards.skylords.eu/imgs/purple.png\",\nIF(MID(Map[[#This Row],[Orbes]],3,1)=\"F\",\"https://allcards.skylords.eu/imgs/red.png\",\nIF(MID(Map[[#This Row],[Orbes]],3,1)=\"N\",\"https://allcards.skylords.eu/imgs/green.png\",\nIF(MID(Map[[#This Row],[Orbes]],3,1)=\"G\",\"https://allcards.skylords.eu/imgs/blue.png\",\"\"))))","v":"https://allcards.skylords.eu/imgs/purple.png"},{"$f":"IF(MID(Map[[#This Row],[Orbes]],4,1)=\"S\",\"https://allcards.skylords.eu/imgs/purple.png\",\nIF(MID(Map[[#This Row],[Orbes]],4,1)=\"F\",\"https://allcards.skylords.eu/imgs/red.png\",\nIF(MID(Map[[#This Row],[Orbes]],4,1)=\"N\",\"https://allcards.skylords.eu/imgs/green.png\",\nIF(MID(Map[[#This Row],[Orbes]],4,1)=\"G\",\"https://allcards.skylords.eu/imgs/blue.png\",\"\"))))","v":"https://allcards.skylords.eu/imgs/red.png"},"Main","OCEAN","Ocean","1 Player",1,"Ocean","Océan","20:41.7","16:06.1","May 2013","Rescue Mo from Blight's approaching fleet in a race across several small islands.","https://www.youtube.com/watch?v=uEBzl3iWW7k","https://drive.google.com/open?id=1SxOFQB7QTvLuyNO66bipHWZEsa7gZozJ"]
["ORACLE","FGSN",{"$f":"IF(MID(Map[[#This Row],[Orbes]],1,1)=\"S\",\"https://allcards.skylords.eu/imgs/purple.png\",\nIF(MID(Map[[#This Row],[Orbes]],1,1)=\"F\",\"https://allcards.skylords.eu/imgs/red.png\",\nIF(MID(Map[[#This Row],[Orbes]],1,1)=\"N\",\"https://allcards.skylords.eu/imgs/green.png\",\nIF(MID(Map[[#This Row],[Orbes]],1,1)=\"G\",\"https://allcards.skylords.eu/imgs/blue.png\",\"\"))))","v":"https://allcards.skylords.eu/imgs/red.png"},{"$f":"IF(MID(Map[[#This Row],[Orbes]],2,1)=\"S\",\"https://allcards.skylords.eu/imgs/purple.png\",\nIF(MID(Map[[#This Row],[Orbes]],2,1)=\"F\",\"https://allcards.skylords.eu/imgs/red.png\",\nIF(MID(Map[[#This Row],[Orbes]],2,1)=\"N\",\"https://allcards.skylords.eu/imgs/green.png\",\nIF(MID(Map[[#This Row],[Orbes]],2,1)=\"G\",\"https://allcards.skylords.eu/imgs/blue.png\",\"\"))))","v":"https://allcards.skylords.eu/imgs/blue.png"},{"$f":"IF(MID(Map[[#This Row],[Orbes]],3,1)=\"S\",\"https://allcards.skylords.eu/imgs/purple.png\",\nIF(MID(Map[[#This Row],[Orbes]],3,1)=\"F\",\"https://allcards.skylords.eu/imgs/red.png\",\nIF(MID(Map[[#This Row],[Orbes]],3,1)=\"N\",\"https://allcards.skylords.eu/imgs/green.png\",\nIF(MID(Map[[#This Row],[Orbes]],3,1)=\"G\",\"https://allcards.skylords.eu/imgs/blue.png\",\"\"))))","v":"https://allcards.skylords.eu/imgs/purple.png"},{"$f":"IF(MID(Map[[#This Row],[Orbes]],4,1)=\"S\",\"https://allcards.skylords.eu/imgs/purple.png\",\nIF(MID(Map[[#This Row],[Orbes]],4,1)=\"F\",\"https://allcards.skylords.eu/imgs/red.png\",\nIF(MID(Map[[#This Row],[Orbes]],4,1)=\"N\",\"https://allcards.skylords.eu/imgs/green.png\",\nIF(MID(Map[[#This Row],[Orbes]],4,1)=\"G\",\"https://allcards.skylords.eu/imgs/blue.png\",\"\"))))","v":"https://allcards.skylords.eu/imgs/green.png"},"Main","ORACLE","Oracle","1 Player",1,"Oracle","Oracle","00:00.0","18:27.4","April 2013","Assist Moon in performing as an ancient oracle and make a king.","https://www.youtube.com/watch?v=tGxbkr8ZSRQ"]
["PASSAGE TO DARKNESS",null,{"$f":"IF(MID(Map[[#This Row],[Orbes]],1,1)=\"S\",\"https://allcards.skylords.eu/imgs/purple.png\",\nIF(MID(Map[[#This Row],[Orbes]],1,1)=\"F\",\"https://allcards.skylords.eu/imgs/red.png\",\nIF(MID(Map[[#This Row],[Orbes]],1,1)=\"N\",\"https://allcards.skylords.eu/imgs/green.png\",\nIF(MID(Map[[#This Row],[Orbes]],1,1)=\"G\",\"https://allcards.skylords.eu/imgs/blue.png\",\"\"))))","v":""},{"$f":"IF(MID(Map[[#This Row],[Orbes]],2,1)=\"S\",\"https://allcards.skylords.eu/imgs/purple.png\",\nIF(MID(Map[[#This Row],[Orbes]],2,1)=\"F\",\"https://allcards.skylords.eu/imgs/red.png\",\nIF(MID(Map[[#This Row],[Orbes]],2,1)=\"N\",\"https://allcards.skylords.eu/imgs/green.png\",\nIF(MID(Map[[#This Row],[Orbes]],2,1)=\"G\",\"https://allcards.skylords.eu/imgs/blue.png\",\"\"))))","v":""},{"$f":"IF(MID(Map[[#This Row],[Orbes]],3,1)=\"S\",\"https://allcards.skylords.eu/imgs/purple.png\",\nIF(MID(Map[[#This Row],[Orbes]],3,1)=\"F\",\"https://allcards.skylords.eu/imgs/red.png\",\nIF(MID(Map[[#This Row],[Orbes]],3,1)=\"N\",\"https://allcards.skylords.eu/imgs/green.png\",\nIF(MID(Map[[#This Row],[Orbes]],3,1)=\"G\",\"https://allcards.skylords.eu/imgs/blue.png\",\"\"))))","v":""},{"$f":"IF(MID(Map[[#This Row],[Orbes]],4,1)=\"S\",\"https://allcards.skylords.eu/imgs/purple.png\",\nIF(MID(Map[[#This Row],[Orbes]],4,1)=\"F\",\"https://allcards.skylords.eu/imgs/red.png\",\nIF(MID(Map[[#This Row],[Orbes]],4,1)=\"N\",\"https://allcards.skylords.eu/imgs/green.png\",\nIF(MID(Map[[#This Row],[Orbes]],4,1)=\"G\",\"https://allcards.skylords.eu/imgs/blue.png\",\"\"))))","v":""},"Main","PASSAGE TO DARKNESS","Passage to Darkness","12 Players",12,"Passage to Darkness","Passage to Darkness","00:00.0","06:19.6","June 2013","Defeat all aspects of the Harbinger of the Lost Souls on the border to the land of the dead.","https://www.youtube.com/watch?v=K_E_TPO36x4"]
["RAVEN'S END","SNNS",{"$f":"IF(MID(Map[[#This Row],[Orbes]],1,1)=\"S\",\"https://allcards.skylords.eu/imgs/purple.png\",\nIF(MID(Map[[#This Row],[Orbes]],1,1)=\"F\",\"https://allcards.skylords.eu/imgs/red.png\",\nIF(MID(Map[[#This Row],[Orbes]],1,1)=\"N\",\"https://allcards.skylords.eu/imgs/green.png\",\nIF(MID(Map[[#This Row],[Orbes]],1,1)=\"G\",\"https://allcards.skylords.eu/imgs/blue.png\",\"\"))))","v":"https://allcards.skylords.eu/imgs/purple.png"},{"$f":"IF(MID(Map[[#This Row],[Orbes]],2,1)=\"S\",\"https://allcards.skylords.eu/imgs/purple.png\",\nIF(MID(Map[[#This Row],[Orbes]],2,1)=\"F\",\"https://allcards.skylords.eu/imgs/red.png\",\nIF(MID(Map[[#This Row],[Orbes]],2,1)=\"N\",\"https://allcards.skylords.eu/imgs/green.png\",\nIF(MID(Map[[#This Row],[Orbes]],2,1)=\"G\",\"https://allcards.skylords.eu/imgs/blue.png\",\"\"))))","v":"https://allcards.skylords.eu/imgs/green.png"},{"$f":"IF(MID(Map[[#This Row],[Orbes]],3,1)=\"S\",\"https://allcards.skylords.eu/imgs/purple.png\",\nIF(MID(Map[[#This Row],[Orbes]],3,1)=\"F\",\"https://allcards.skylords.eu/imgs/red.png\",\nIF(MID(Map[[#This Row],[Orbes]],3,1)=\"N\",\"https://allcards.skylords.eu/imgs/green.png\",\nIF(MID(Map[[#This Row],[Orbes]],3,1)=\"G\",\"https://allcards.skylords.eu/imgs/blue.png\",\"\"))))","v":"https://allcards.skylords.eu/imgs/green.png"},{"$f":"IF(MID(Map[[#This Row],[Orbes]],4,1)=\"S\",\"https://allcards.skylords.eu/imgs/purple.png\",\nIF(MID(Map[[#This Row],[Orbes]],4,1)=\"F\",\"https://allcards.skylords.eu/imgs/red.png\",\nIF(MID(Map[[#This Row],[Orbes]],4,1)=\"N\",\"https://allcards.skylords.eu/imgs/green.png\",\nIF(MID(Map[[#This Row],[Orbes]],4,1)=\"G\",\"https://allcards.skylords.eu/imgs/blue.png\",\"\"))))","v":"https://allcards.skylords.eu/imgs/purple.png"},"Main","RAVEN'S END","Raven's End","4 Players",4,"Raven's End","La fin du Corbeau","23:49.6","17:58.0","October 2013","Free the White Juggernaut Mo and assist him in the final clash with his arch enemy, Captain Blight.","https://www.youtube.com/watch?v=G_uEuoTWFIY","https://drive.google.com/open?id=1CZhHW1E6wMHE3ncM3UAEYGtdBeWrfGwm"]
["RAVEN'S END Support","NFFF",{"$f":"IF(MID(Map[[#This Row],[Orbes]],1,1)=\"S\",\"https://allcards.skylords.eu/imgs/purple.png\",\nIF(MID(Map[[#This Row],[Orbes]],1,1)=\"F\",\"https://allcards.skylords.eu/imgs/red.png\",\nIF(MID(Map[[#This Row],[Orbes]],1,1)=\"N\",\"https://allcards.skylords.eu/imgs/green.png\",\nIF(MID(Map[[#This Row],[Orbes]],1,1)=\"G\",\"https://allcards.skylords.eu/imgs/blue.png\",\"\"))))","v":"https://allcards.skylords.eu/imgs/green.png"},{"$f":"IF(MID(Map[[#This Row],[Orbes]],2,1)=\"S\",\"https://allcards.skylords.eu/imgs/purple.png\",\nIF(MID(Map[[#This Row],[Orbes]],2,1)=\"F\",\"https://allcards.skylords.eu/imgs/red.png\",\nIF(MID(Map[[#This Row],[Orbes]],2,1)=\"N\",\"https://allcards.skylords.eu/imgs/green.png\",\nIF(MID(Map[[#This Row],[Orbes]],2,1)=\"G\",\"https://allcards.skylords.eu/imgs/blue.png\",\"\"))))","v":"https://allcards.skylords.eu/imgs/red.png"},{"$f":"IF(MID(Map[[#This Row],[Orbes]],3,1)=\"S\",\"https://allcards.skylords.eu/imgs/purple.png\",\nIF(MID(Map[[#This Row],[Orbes]],3,1)=\"F\",\"https://allcards.skylords.eu/imgs/red.png\",\nIF(MID(Map[[#This Row],[Orbes]],3,1)=\"N\",\"https://allcards.skylords.eu/imgs/green.png\",\nIF(MID(Map[[#This Row],[Orbes]],3,1)=\"G\",\"https://allcards.skylords.eu/imgs/blue.png\",\"\"))))","v":"https://allcards.skylords.eu/imgs/red.png"},{"$f":"IF(MID(Map[[#This Row],[Orbes]],4,1)=\"S\",\"https://allcards.skylords.eu/imgs/purple.png\",\nIF(MID(Map[[#This Row],[Orbes]],4,1)=\"F\",\"https://allcards.skylords.eu/imgs/red.png\",\nIF(MID(Map[[#This Row],[Orbes]],4,1)=\"N\",\"https://allcards.skylords.eu/imgs/green.png\",\nIF(MID(Map[[#This Row],[Orbes]],4,1)=\"G\",\"https://allcards.skylords.eu/imgs/blue.png\",\"\"))))","v":"https://allcards.skylords.eu/imgs/red.png"},"Main",{"$f":"H27","v":"RAVEN'S END"},{"$f":"I27","v":"Raven's End"},{"$f":"J27","v":"4 Players"},4,{"$f":"L27","v":"Raven's End"},{"$f":"M27","v":"La fin du Corbeau"},{"$f":"N27","v":"23:49.6"},{"$f":"O27","v":"17:58.0"},{"$f":"P27","v":"October 2013"},{"$f":"Q27","v":"Free the White Juggernaut Mo and assist him in the final clash with his arch enemy, Captain Blight."},{"$f":"R27","v":"https://www.youtube.com/watch?v=G_uEuoTWFIY"},"https://drive.google.com/open?id=1CZhHW1E6wMHE3ncM3UAEYGtdBeWrfGwm"]
["RPVE Nature Batariel","NNSF",{"$f":"IF(MID(Map[[#This Row],[Orbes]],1,1)=\"S\",\"https://allcards.skylords.eu/imgs/purple.png\",\nIF(MID(Map[[#This Row],[Orbes]],1,1)=\"F\",\"https://allcards.skylords.eu/imgs/red.png\",\nIF(MID(Map[[#This Row],[Orbes]],1,1)=\"N\",\"https://allcards.skylords.eu/imgs/green.png\",\nIF(MID(Map[[#This Row],[Orbes]],1,1)=\"G\",\"https://allcards.skylords.eu/imgs/blue.png\",\"\"))))","v":"https://allcards.skylords.eu/imgs/green.png"},{"$f":"IF(MID(Map[[#This Row],[Orbes]],2,1)=\"S\",\"https://allcards.skylords.eu/imgs/purple.png\",\nIF(MID(Map[[#This Row],[Orbes]],2,1)=\"F\",\"https://allcards.skylords.eu/imgs/red.png\",\nIF(MID(Map[[#This Row],[Orbes]],2,1)=\"N\",\"https://allcards.skylords.eu/imgs/green.png\",\nIF(MID(Map[[#This Row],[Orbes]],2,1)=\"G\",\"https://allcards.skylords.eu/imgs/blue.png\",\"\"))))","v":"https://allcards.skylords.eu/imgs/green.png"},{"$f":"IF(MID(Map[[#This Row],[Orbes]],3,1)=\"S\",\"https://allcards.skylords.eu/imgs/purple.png\",\nIF(MID(Map[[#This Row],[Orbes]],3,1)=\"F\",\"https://allcards.skylords.eu/imgs/red.png\",\nIF(MID(Map[[#This Row],[Orbes]],3,1)=\"N\",\"https://allcards.skylords.eu/imgs/green.png\",\nIF(MID(Map[[#This Row],[Orbes]],3,1)=\"G\",\"https://allcards.skylords.eu/imgs/blue.png\",\"\"))))","v":"https://allcards.skylords.eu/imgs/purple.png"},{"$f":"IF(MID(Map[[#This Row],[Orbes]],4,1)=\"S\",\"https://allcards.skylords.eu/imgs/purple.png\",\nIF(MID(Map[[#This Row],[Orbes]],4,1)=\"F\",\"https://allcards.skylords.eu/imgs/red.png\",\nIF(MID(Map[[#This Row],[Orbes]],4,1)=\"N\",\"https://allcards.skylords.eu/imgs/green.png\",\nIF(MID(Map[[#This Row],[Orbes]],4,1)=\"G\",\"https://allcards.skylords.eu/imgs/blue.png\",\"\"))))","v":"https://allcards.skylords.eu/imgs/red.png"},"Main","RPVE Shadow BloodHorn","Shadow","1 Player",1,"Random PvE","PvE aléatoire","00:00.0","14:13.6","March 2019","A random generated map, that players have to finish in a limited time. You can do random PvE map in 1, 2 or 4 players."]
["RPVE Shadow BloodHorn","SSFN",{"$f":"IF(MID(Map[[#This Row],[Orbes]],1,1)=\"S\",\"https://allcards.skylords.eu/imgs/purple.png\",\nIF(MID(Map[[#This Row],[Orbes]],1,1)=\"F\",\"https://allcards.skylords.eu/imgs/red.png\",\nIF(MID(Map[[#This Row],[Orbes]],1,1)=\"N\",\"https://allcards.skylords.eu/imgs/green.png\",\nIF(MID(Map[[#This Row],[Orbes]],1,1)=\"G\",\"https://allcards.skylords.eu/imgs/blue.png\",\"\"))))","v":"https://allcards.skylords.eu/imgs/purple.png"},{"$f":"IF(MID(Map[[#This Row],[Orbes]],2,1)=\"S\",\"https://allcards.skylords.eu/imgs/purple.png\",\nIF(MID(Map[[#This Row],[Orbes]],2,1)=\"F\",\"https://allcards.skylords.eu/imgs/red.png\",\nIF(MID(Map[[#This Row],[Orbes]],2,1)=\"N\",\"https://allcards.skylords.eu/imgs/green.png\",\nIF(MID(Map[[#This Row],[Orbes]],2,1)=\"G\",\"https://allcards.skylords.eu/imgs/blue.png\",\"\"))))","v":"https://allcards.skylords.eu/imgs/purple.png"},{"$f":"IF(MID(Map[[#This Row],[Orbes]],3,1)=\"S\",\"https://allcards.skylords.eu/imgs/purple.png\",\nIF(MID(Map[[#This Row],[Orbes]],3,1)=\"F\",\"https://allcards.skylords.eu/imgs/red.png\",\nIF(MID(Map[[#This Row],[Orbes]],3,1)=\"N\",\"https://allcards.skylords.eu/imgs/green.png\",\nIF(MID(Map[[#This Row],[Orbes]],3,1)=\"G\",\"https://allcards.skylords.eu/imgs/blue.png\",\"\"))))","v":"https://allcards.skylords.eu/imgs/red.png"},{"$f":"IF(MID(Map[[#This Row],[Orbes]],4,1)=\"S\",\"https://allcards.skylords.eu/imgs/purple.png\",\nIF(MID(Map[[#This Row],[Orbes]],4,1)=\"F\",\"https://allcards.skylords.eu/imgs/red.png\",\nIF(MID(Map[[#This Row],[Orbes]],4,1)=\"N\",\"https://allcards.skylords.eu/imgs/green.png\",\nIF(MID(Map[[#This Row],[Orbes]],4,1)=\"G\",\"https://allcards.skylords.eu/imgs/blue.png\",\"\"))))","v":"https://allcards.skylords.eu/imgs/green.png"},"Main","RPVE Shadow BloodHorn","Shadow","2 Players",2,"Random PvE","PvE aléatoire","00:00.0","16:31.6","April 2013","A random generated map, that players have to finish in a limited time. You can do random PvE map in 1, 2 or 4 players.","https://www.youtube.com/watch?v=SDoQNj730OQ"]
["RPVE Fire BloodHorn","FSSN",{"$f":"IF(MID(Map[[#This Row],[Orbes]],1,1)=\"S\",\"https://allcards.skylords.eu/imgs/purple.png\",\nIF(MID(Map[[#This Row],[Orbes]],1,1)=\"F\",\"https://allcards.skylords.eu/imgs/red.png\",\nIF(MID(Map[[#This Row],[Orbes]],1,1)=\"N\",\"https://allcards.skylords.eu/imgs/green.png\",\nIF(MID(Map[[#This Row],[Orbes]],1,1)=\"G\",\"https://allcards.skylords.eu/imgs/blue.png\",\"\"))))","v":"https://allcards.skylords.eu/imgs/red.png"},{"$f":"IF(MID(Map[[#This Row],[Orbes]],2,1)=\"S\",\"https://allcards.skylords.eu/imgs/purple.png\",\nIF(MID(Map[[#This Row],[Orbes]],2,1)=\"F\",\"https://allcards.skylords.eu/imgs/red.png\",\nIF(MID(Map[[#This Row],[Orbes]],2,1)=\"N\",\"https://allcards.skylords.eu/imgs/green.png\",\nIF(MID(Map[[#This Row],[Orbes]],2,1)=\"G\",\"https://allcards.skylords.eu/imgs/blue.png\",\"\"))))","v":"https://allcards.skylords.eu/imgs/purple.png"},{"$f":"IF(MID(Map[[#This Row],[Orbes]],3,1)=\"S\",\"https://allcards.skylords.eu/imgs/purple.png\",\nIF(MID(Map[[#This Row],[Orbes]],3,1)=\"F\",\"https://allcards.skylords.eu/imgs/red.png\",\nIF(MID(Map[[#This Row],[Orbes]],3,1)=\"N\",\"https://allcards.skylords.eu/imgs/green.png\",\nIF(MID(Map[[#This Row],[Orbes]],3,1)=\"G\",\"https://allcards.skylords.eu/imgs/blue.png\",\"\"))))","v":"https://allcards.skylords.eu/imgs/purple.png"},{"$f":"IF(MID(Map[[#This Row],[Orbes]],4,1)=\"S\",\"https://allcards.skylords.eu/imgs/purple.png\",\nIF(MID(Map[[#This Row],[Orbes]],4,1)=\"F\",\"https://allcards.skylords.eu/imgs/red.png\",\nIF(MID(Map[[#This Row],[Orbes]],4,1)=\"N\",\"https://allcards.skylords.eu/imgs/green.png\",\nIF(MID(Map[[#This Row],[Orbes]],4,1)=\"G\",\"https://allcards.skylords.eu/imgs/blue.png\",\"\"))))","v":"https://allcards.skylords.eu/imgs/green.png"},"Main","RPVE Fire BloodHorn","Revenge","4 Players",4,"Random PvE","PvE aléatoire","20:55.3","10:02.8","March 2019","A random generated map, that players have to finish in a limited time. You can do random PvE map in 1, 2 or 4 players.","https://www.youtube.com/watch?v=SDoQNj730OQ"]
["SIEGE OF HOPE","NSFS",{"$f":"IF(MID(Map[[#This Row],[Orbes]],1,1)=\"S\",\"https://allcards.skylords.eu/imgs/purple.png\",\nIF(MID(Map[[#This Row],[Orbes]],1,1)=\"F\",\"https://allcards.skylords.eu/imgs/red.png\",\nIF(MID(Map[[#This Row],[Orbes]],1,1)=\"N\",\"https://allcards.skylords.eu/imgs/green.png\",\nIF(MID(Map[[#This Row],[Orbes]],1,1)=\"G\",\"https://allcards.skylords.eu/imgs/blue.png\",\"\"))))","v":"https://allcards.skylords.eu/imgs/green.png"},{"$f":"IF(MID(Map[[#This Row],[Orbes]],2,1)=\"S\",\"https://allcards.skylords.eu/imgs/purple.png\",\nIF(MID(Map[[#This Row],[Orbes]],2,1)=\"F\",\"https://allcards.skylords.eu/imgs/red.png\",\nIF(MID(Map[[#This Row],[Orbes]],2,1)=\"N\",\"https://allcards.skylords.eu/imgs/green.png\",\nIF(MID(Map[[#This Row],[Orbes]],2,1)=\"G\",\"https://allcards.skylords.eu/imgs/blue.png\",\"\"))))","v":"https://allcards.skylords.eu/imgs/purple.png"},{"$f":"IF(MID(Map[[#This Row],[Orbes]],3,1)=\"S\",\"https://allcards.skylords.eu/imgs/purple.png\",\nIF(MID(Map[[#This Row],[Orbes]],3,1)=\"F\",\"https://allcards.skylords.eu/imgs/red.png\",\nIF(MID(Map[[#This Row],[Orbes]],3,1)=\"N\",\"https://allcards.skylords.eu/imgs/green.png\",\nIF(MID(Map[[#This Row],[Orbes]],3,1)=\"G\",\"https://allcards.skylords.eu/imgs/blue.png\",\"\"))))","v":"https://allcards.skylords.eu/imgs/red.png"},{"$f":"IF(MID(Map[[#This Row],[Orbes]],4,1)=\"S\",\"https://allcards.skylords.eu/imgs/purple.png\",\nIF(MID(Map[[#This Row],[Orbes]],4,1)=\"F\",\"https://allcards.skylords.eu/imgs/red.png\",\nIF(MID(Map[[#This Row],[Orbes]],4,1)=\"N\",\"https://allcards.skylords.eu/imgs/green.png\",\nIF(MID(Map[[#This Row],[Orbes]],4,1)=\"G\",\"https://allcards.skylords.eu/imgs/blue.png\",\"\"))))","v":"https://allcards.skylords.eu/imgs/purple.png"},"Main","SIEGE OF HOPE","Siege of Hope","1 Player",1,"Siege of Hope","Le siège de Hope","21:56.8","21:56.5","Many Players","Break the siege around the first new human city.","https://www.youtube.com/watch?v=ebNr3BFd2E8","https://drive.google.com/open?id=1P30a7SdJgweJyay-8vvXxHBflgfaGp1T"]
["SLAVE MASTER","SNNS",{"$f":"IF(MID(Map[[#This Row],[Orbes]],1,1)=\"S\",\"https://allcards.skylords.eu/imgs/purple.png\",\nIF(MID(Map[[#This Row],[Orbes]],1,1)=\"F\",\"https://allcards.skylords.eu/imgs/red.png\",\nIF(MID(Map[[#This Row],[Orbes]],1,1)=\"N\",\"https://allcards.skylords.eu/imgs/green.png\",\nIF(MID(Map[[#This Row],[Orbes]],1,1)=\"G\",\"https://allcards.skylords.eu/imgs/blue.png\",\"\"))))","v":"https://allcards.skylords.eu/imgs/purple.png"},{"$f":"IF(MID(Map[[#This Row],[Orbes]],2,1)=\"S\",\"https://allcards.skylords.eu/imgs/purple.png\",\nIF(MID(Map[[#This Row],[Orbes]],2,1)=\"F\",\"https://allcards.skylords.eu/imgs/red.png\",\nIF(MID(Map[[#This Row],[Orbes]],2,1)=\"N\",\"https://allcards.skylords.eu/imgs/green.png\",\nIF(MID(Map[[#This Row],[Orbes]],2,1)=\"G\",\"https://allcards.skylords.eu/imgs/blue.png\",\"\"))))","v":"https://allcards.skylords.eu/imgs/green.png"},{"$f":"IF(MID(Map[[#This Row],[Orbes]],3,1)=\"S\",\"https://allcards.skylords.eu/imgs/purple.png\",\nIF(MID(Map[[#This Row],[Orbes]],3,1)=\"F\",\"https://allcards.skylords.eu/imgs/red.png\",\nIF(MID(Map[[#This Row],[Orbes]],3,1)=\"N\",\"https://allcards.skylords.eu/imgs/green.png\",\nIF(MID(Map[[#This Row],[Orbes]],3,1)=\"G\",\"https://allcards.skylords.eu/imgs/blue.png\",\"\"))))","v":"https://allcards.skylords.eu/imgs/green.png"},{"$f":"IF(MID(Map[[#This Row],[Orbes]],4,1)=\"S\",\"https://allcards.skylords.eu/imgs/purple.png\",\nIF(MID(Map[[#This Row],[Orbes]],4,1)=\"F\",\"https://allcards.skylords.eu/imgs/red.png\",\nIF(MID(Map[[#This Row],[Orbes]],4,1)=\"N\",\"https://allcards.skylords.eu/imgs/green.png\",\nIF(MID(Map[[#This Row],[Orbes]],4,1)=\"G\",\"https://allcards.skylords.eu/imgs/blue.png\",\"\"))))","v":"https://allcards.skylords.eu/imgs/purple.png"},"Main","SLAVE MASTER","Slave Master","2 Players",2,"Slave Master","Le maitre des Esclaves","15:12.9","11:47.5","July 2013","Use the battle between Twilight and bandits to your advantage and free tortured prisoners.","https://www.youtube.com/watch?v=do41qYouShw"," "]
["SLAVE MASTER Support","G",{"$f":"IF(MID(Map[[#This Row],[Orbes]],1,1)=\"S\",\"https://allcards.skylords.eu/imgs/purple.png\",\nIF(MID(Map[[#This Row],[Orbes]],1,1)=\"F\",\"https://allcards.skylords.eu/imgs/red.png\",\nIF(MID(Map[[#This Row],[Orbes]],1,1)=\"N\",\"https://allcards.skylords.eu/imgs/green.png\",\nIF(MID(Map[[#This Row],[Orbes]],1,1)=\"G\",\"https://allcards.skylords.eu/imgs/blue.png\",\"\"))))","v":"https://allcards.skylords.eu/imgs/blue.png"},{"$f":"IF(MID(Map[[#This Row],[Orbes]],2,1)=\"S\",\"https://allcards.skylords.eu/imgs/purple.png\",\nIF(MID(Map[[#This Row],[Orbes]],2,1)=\"F\",\"https://allcards.skylords.eu/imgs/red.png\",\nIF(MID(Map[[#This Row],[Orbes]],2,1)=\"N\",\"https://allcards.skylords.eu/imgs/green.png\",\nIF(MID(Map[[#This Row],[Orbes]],2,1)=\"G\",\"https://allcards.skylords.eu/imgs/blue.png\",\"\"))))","v":""},{"$f":"IF(MID(Map[[#This Row],[Orbes]],3,1)=\"S\",\"https://allcards.skylords.eu/imgs/purple.png\",\nIF(MID(Map[[#This Row],[Orbes]],3,1)=\"F\",\"https://allcards.skylords.eu/imgs/red.png\",\nIF(MID(Map[[#This Row],[Orbes]],3,1)=\"N\",\"https://allcards.skylords.eu/imgs/green.png\",\nIF(MID(Map[[#This Row],[Orbes]],3,1)=\"G\",\"https://allcards.skylords.eu/imgs/blue.png\",\"\"))))","v":""},{"$f":"IF(MID(Map[[#This Row],[Orbes]],4,1)=\"S\",\"https://allcards.skylords.eu/imgs/purple.png\",\nIF(MID(Map[[#This Row],[Orbes]],4,1)=\"F\",\"https://allcards.skylords.eu/imgs/red.png\",\nIF(MID(Map[[#This Row],[Orbes]],4,1)=\"N\",\"https://allcards.skylords.eu/imgs/green.png\",\nIF(MID(Map[[#This Row],[Orbes]],4,1)=\"G\",\"https://allcards.skylords.eu/imgs/blue.png\",\"\"))))","v":""},"Support",{"$f":"H33","v":"SLAVE MASTER"},{"$f":"I33","v":"Slave Master"},{"$f":"J33","v":"2 Players"},{"$f":"K33","v":2},{"$f":"L33","v":"Slave Master"},{"$f":"M33","v":"Le maitre des Esclaves"},{"$f":"N33","v":"15:12.9"},{"$f":"O33","v":"11:47.5"},{"$f":"P33","v":"July 2013"},{"$f":"Q33","v":"Use the battle between Twilight and bandits to your advantage and free tortured prisoners."},{"$f":"R33","v":"https://www.youtube.com/watch?v=do41qYouShw"}," "]
["SUNBRIDGE Left","NGSS",{"$f":"IF(MID(Map[[#This Row],[Orbes]],1,1)=\"S\",\"https://allcards.skylords.eu/imgs/purple.png\",\nIF(MID(Map[[#This Row],[Orbes]],1,1)=\"F\",\"https://allcards.skylords.eu/imgs/red.png\",\nIF(MID(Map[[#This Row],[Orbes]],1,1)=\"N\",\"https://allcards.skylords.eu/imgs/green.png\",\nIF(MID(Map[[#This Row],[Orbes]],1,1)=\"G\",\"https://allcards.skylords.eu/imgs/blue.png\",\"\"))))","v":"https://allcards.skylords.eu/imgs/green.png"},{"$f":"IF(MID(Map[[#This Row],[Orbes]],2,1)=\"S\",\"https://allcards.skylords.eu/imgs/purple.png\",\nIF(MID(Map[[#This Row],[Orbes]],2,1)=\"F\",\"https://allcards.skylords.eu/imgs/red.png\",\nIF(MID(Map[[#This Row],[Orbes]],2,1)=\"N\",\"https://allcards.skylords.eu/imgs/green.png\",\nIF(MID(Map[[#This Row],[Orbes]],2,1)=\"G\",\"https://allcards.skylords.eu/imgs/blue.png\",\"\"))))","v":"https://allcards.skylords.eu/imgs/blue.png"},{"$f":"IF(MID(Map[[#This Row],[Orbes]],3,1)=\"S\",\"https://allcards.skylords.eu/imgs/purple.png\",\nIF(MID(Map[[#This Row],[Orbes]],3,1)=\"F\",\"https://allcards.skylords.eu/imgs/red.png\",\nIF(MID(Map[[#This Row],[Orbes]],3,1)=\"N\",\"https://allcards.skylords.eu/imgs/green.png\",\nIF(MID(Map[[#This Row],[Orbes]],3,1)=\"G\",\"https://allcards.skylords.eu/imgs/blue.png\",\"\"))))","v":"https://allcards.skylords.eu/imgs/purple.png"},{"$f":"IF(MID(Map[[#This Row],[Orbes]],4,1)=\"S\",\"https://allcards.skylords.eu/imgs/purple.png\",\nIF(MID(Map[[#This Row],[Orbes]],4,1)=\"F\",\"https://allcards.skylords.eu/imgs/red.png\",\nIF(MID(Map[[#This Row],[Orbes]],4,1)=\"N\",\"https://allcards.skylords.eu/imgs/green.png\",\nIF(MID(Map[[#This Row],[Orbes]],4,1)=\"G\",\"https://allcards.skylords.eu/imgs/blue.png\",\"\"))))","v":"https://allcards.skylords.eu/imgs/purple.png"},"Main","SUNBRIDGE","Sunbridge","2 Players",2,"Sunbridge","Pont Solaire","12:33.1","10:10.3","July 2013","Face an insane god on top of the most sacred place of this world.","https://www.youtube.com/watch?v=obD88IsPlAs","https://drive.google.com/open?id=1pH10oQwWdXf6WlPGC9nrgcEJf_vUMRQz"]
["SUNBRIDGE Right","FSNS",{"$f":"IF(MID(Map[[#This Row],[Orbes]],1,1)=\"S\",\"https://allcards.skylords.eu/imgs/purple.png\",\nIF(MID(Map[[#This Row],[Orbes]],1,1)=\"F\",\"https://allcards.skylords.eu/imgs/red.png\",\nIF(MID(Map[[#This Row],[Orbes]],1,1)=\"N\",\"https://allcards.skylords.eu/imgs/green.png\",\nIF(MID(Map[[#This Row],[Orbes]],1,1)=\"G\",\"https://allcards.skylords.eu/imgs/blue.png\",\"\"))))","v":"https://allcards.skylords.eu/imgs/red.png"},{"$f":"IF(MID(Map[[#This Row],[Orbes]],2,1)=\"S\",\"https://allcards.skylords.eu/imgs/purple.png\",\nIF(MID(Map[[#This Row],[Orbes]],2,1)=\"F\",\"https://allcards.skylords.eu/imgs/red.png\",\nIF(MID(Map[[#This Row],[Orbes]],2,1)=\"N\",\"https://allcards.skylords.eu/imgs/green.png\",\nIF(MID(Map[[#This Row],[Orbes]],2,1)=\"G\",\"https://allcards.skylords.eu/imgs/blue.png\",\"\"))))","v":"https://allcards.skylords.eu/imgs/purple.png"},{"$f":"IF(MID(Map[[#This Row],[Orbes]],3,1)=\"S\",\"https://allcards.skylords.eu/imgs/purple.png\",\nIF(MID(Map[[#This Row],[Orbes]],3,1)=\"F\",\"https://allcards.skylords.eu/imgs/red.png\",\nIF(MID(Map[[#This Row],[Orbes]],3,1)=\"N\",\"https://allcards.skylords.eu/imgs/green.png\",\nIF(MID(Map[[#This Row],[Orbes]],3,1)=\"G\",\"https://allcards.skylords.eu/imgs/blue.png\",\"\"))))","v":"https://allcards.skylords.eu/imgs/green.png"},{"$f":"IF(MID(Map[[#This Row],[Orbes]],4,1)=\"S\",\"https://allcards.skylords.eu/imgs/purple.png\",\nIF(MID(Map[[#This Row],[Orbes]],4,1)=\"F\",\"https://allcards.skylords.eu/imgs/red.png\",\nIF(MID(Map[[#This Row],[Orbes]],4,1)=\"N\",\"https://allcards.skylords.eu/imgs/green.png\",\nIF(MID(Map[[#This Row],[Orbes]],4,1)=\"G\",\"https://allcards.skylords.eu/imgs/blue.png\",\"\"))))","v":"https://allcards.skylords.eu/imgs/purple.png"},"Support",{"$f":"H35","v":"SUNBRIDGE"},{"$f":"I35","v":"Sunbridge"},{"$f":"J35","v":"2 Players"},{"$f":"K35","v":2},{"$f":"L35","v":"Sunbridge"},{"$f":"M35","v":"Pont Solaire"},{"$f":"N35","v":"12:33.1"},{"$f":"O35","v":"10:10.3"},{"$f":"P35","v":"July 2013"},{"$f":"Q35","v":"Face an insane god on top of the most sacred place of this world."},{"$f":"R35","v":"https://www.youtube.com/watch?v=obD88IsPlAs"},"https://drive.google.com/open?id=1pH10oQwWdXf6WlPGC9nrgcEJf_vUMRQz"]
["THE DWARVEN RIDDLE","NGSS",{"$f":"IF(MID(Map[[#This Row],[Orbes]],1,1)=\"S\",\"https://allcards.skylords.eu/imgs/purple.png\",\nIF(MID(Map[[#This Row],[Orbes]],1,1)=\"F\",\"https://allcards.skylords.eu/imgs/red.png\",\nIF(MID(Map[[#This Row],[Orbes]],1,1)=\"N\",\"https://allcards.skylords.eu/imgs/green.png\",\nIF(MID(Map[[#This Row],[Orbes]],1,1)=\"G\",\"https://allcards.skylords.eu/imgs/blue.png\",\"\"))))","v":"https://allcards.skylords.eu/imgs/green.png"},{"$f":"IF(MID(Map[[#This Row],[Orbes]],2,1)=\"S\",\"https://allcards.skylords.eu/imgs/purple.png\",\nIF(MID(Map[[#This Row],[Orbes]],2,1)=\"F\",\"https://allcards.skylords.eu/imgs/red.png\",\nIF(MID(Map[[#This Row],[Orbes]],2,1)=\"N\",\"https://allcards.skylords.eu/imgs/green.png\",\nIF(MID(Map[[#This Row],[Orbes]],2,1)=\"G\",\"https://allcards.skylords.eu/imgs/blue.png\",\"\"))))","v":"https://allcards.skylords.eu/imgs/blue.png"},{"$f":"IF(MID(Map[[#This Row],[Orbes]],3,1)=\"S\",\"https://allcards.skylords.eu/imgs/purple.png\",\nIF(MID(Map[[#This Row],[Orbes]],3,1)=\"F\",\"https://allcards.skylords.eu/imgs/red.png\",\nIF(MID(Map[[#This Row],[Orbes]],3,1)=\"N\",\"https://allcards.skylords.eu/imgs/green.png\",\nIF(MID(Map[[#This Row],[Orbes]],3,1)=\"G\",\"https://allcards.skylords.eu/imgs/blue.png\",\"\"))))","v":"https://allcards.skylords.eu/imgs/purple.png"},{"$f":"IF(MID(Map[[#This Row],[Orbes]],4,1)=\"S\",\"https://allcards.skylords.eu/imgs/purple.png\",\nIF(MID(Map[[#This Row],[Orbes]],4,1)=\"F\",\"https://allcards.skylords.eu/imgs/red.png\",\nIF(MID(Map[[#This Row],[Orbes]],4,1)=\"N\",\"https://allcards.skylords.eu/imgs/green.png\",\nIF(MID(Map[[#This Row],[Orbes]],4,1)=\"G\",\"https://allcards.skylords.eu/imgs/blue.png\",\"\"))))","v":"https://allcards.skylords.eu/imgs/purple.png"},"Main","THE DWARVEN RIDDLE","The Dwarven Riddle","4 Players",4,"The Dwarven Riddle","L'énigme des Nains","09:52.3","05:54.1","March 2019","Unlock ancient secrets by destroying the right crystals before the enemies overwhelm you.","https://www.youtube.com/watch?v=tt8xcZ0M75E","https://drive.google.com/open?id=1iboWwOEZWxom5FfTHc_2wSz-LDCSnKAa"]
["THE DWARVEN RIDDLE Support","F",{"$f":"IF(MID(Map[[#This Row],[Orbes]],1,1)=\"S\",\"https://allcards.skylords.eu/imgs/purple.png\",\nIF(MID(Map[[#This Row],[Orbes]],1,1)=\"F\",\"https://allcards.skylords.eu/imgs/red.png\",\nIF(MID(Map[[#This Row],[Orbes]],1,1)=\"N\",\"https://allcards.skylords.eu/imgs/green.png\",\nIF(MID(Map[[#This Row],[Orbes]],1,1)=\"G\",\"https://allcards.skylords.eu/imgs/blue.png\",\"\"))))","v":"https://allcards.skylords.eu/imgs/red.png"},{"$f":"IF(MID(Map[[#This Row],[Orbes]],2,1)=\"S\",\"https://allcards.skylords.eu/imgs/purple.png\",\nIF(MID(Map[[#This Row],[Orbes]],2,1)=\"F\",\"https://allcards.skylords.eu/imgs/red.png\",\nIF(MID(Map[[#This Row],[Orbes]],2,1)=\"N\",\"https://allcards.skylords.eu/imgs/green.png\",\nIF(MID(Map[[#This Row],[Orbes]],2,1)=\"G\",\"https://allcards.skylords.eu/imgs/blue.png\",\"\"))))","v":""},{"$f":"IF(MID(Map[[#This Row],[Orbes]],3,1)=\"S\",\"https://allcards.skylords.eu/imgs/purple.png\",\nIF(MID(Map[[#This Row],[Orbes]],3,1)=\"F\",\"https://allcards.skylords.eu/imgs/red.png\",\nIF(MID(Map[[#This Row],[Orbes]],3,1)=\"N\",\"https://allcards.skylords.eu/imgs/green.png\",\nIF(MID(Map[[#This Row],[Orbes]],3,1)=\"G\",\"https://allcards.skylords.eu/imgs/blue.png\",\"\"))))","v":""},{"$f":"IF(MID(Map[[#This Row],[Orbes]],4,1)=\"S\",\"https://allcards.skylords.eu/imgs/purple.png\",\nIF(MID(Map[[#This Row],[Orbes]],4,1)=\"F\",\"https://allcards.skylords.eu/imgs/red.png\",\nIF(MID(Map[[#This Row],[Orbes]],4,1)=\"N\",\"https://allcards.skylords.eu/imgs/green.png\",\nIF(MID(Map[[#This Row],[Orbes]],4,1)=\"G\",\"https://allcards.skylords.eu/imgs/blue.png\",\"\"))))","v":""},"Support",{"$f":"H37","v":"THE DWARVEN RIDDLE"},{"$f":"I37","v":"The Dwarven Riddle"},{"$f":"J37","v":"4 Players"},4,{"$f":"L37","v":"The Dwarven Riddle"},{"$f":"M37","v":"L'énigme des Nains"},{"$f":"N37","v":"09:52.3"},{"$f":"O37","v":"05:54.1"},{"$f":"P37","v":"March 2019"},{"$f":"Q37","v":"Unlock ancient secrets by destroying the right crystals before the enemies overwhelm you."},{"$f":"R37","v":"https://www.youtube.com/watch?v=tt8xcZ0M75E"},"https://drive.google.com/open?id=1iboWwOEZWxom5FfTHc_2wSz-LDCSnKAa"]
["THE GUNS OF LYR","SSGG",{"$f":"IF(MID(Map[[#This Row],[Orbes]],1,1)=\"S\",\"https://allcards.skylords.eu/imgs/purple.png\",\nIF(MID(Map[[#This Row],[Orbes]],1,1)=\"F\",\"https://allcards.skylords.eu/imgs/red.png\",\nIF(MID(Map[[#This Row],[Orbes]],1,1)=\"N\",\"https://allcards.skylords.eu/imgs/green.png\",\nIF(MID(Map[[#This Row],[Orbes]],1,1)=\"G\",\"https://allcards.skylords.eu/imgs/blue.png\",\"\"))))","v":"https://allcards.skylords.eu/imgs/purple.png"},{"$f":"IF(MID(Map[[#This Row],[Orbes]],2,1)=\"S\",\"https://allcards.skylords.eu/imgs/purple.png\",\nIF(MID(Map[[#This Row],[Orbes]],2,1)=\"F\",\"https://allcards.skylords.eu/imgs/red.png\",\nIF(MID(Map[[#This Row],[Orbes]],2,1)=\"N\",\"https://allcards.skylords.eu/imgs/green.png\",\nIF(MID(Map[[#This Row],[Orbes]],2,1)=\"G\",\"https://allcards.skylords.eu/imgs/blue.png\",\"\"))))","v":"https://allcards.skylords.eu/imgs/purple.png"},{"$f":"IF(MID(Map[[#This Row],[Orbes]],3,1)=\"S\",\"https://allcards.skylords.eu/imgs/purple.png\",\nIF(MID(Map[[#This Row],[Orbes]],3,1)=\"F\",\"https://allcards.skylords.eu/imgs/red.png\",\nIF(MID(Map[[#This Row],[Orbes]],3,1)=\"N\",\"https://allcards.skylords.eu/imgs/green.png\",\nIF(MID(Map[[#This Row],[Orbes]],3,1)=\"G\",\"https://allcards.skylords.eu/imgs/blue.png\",\"\"))))","v":"https://allcards.skylords.eu/imgs/blue.png"},{"$f":"IF(MID(Map[[#This Row],[Orbes]],4,1)=\"S\",\"https://allcards.skylords.eu/imgs/purple.png\",\nIF(MID(Map[[#This Row],[Orbes]],4,1)=\"F\",\"https://allcards.skylords.eu/imgs/red.png\",\nIF(MID(Map[[#This Row],[Orbes]],4,1)=\"N\",\"https://allcards.skylords.eu/imgs/green.png\",\nIF(MID(Map[[#This Row],[Orbes]],4,1)=\"G\",\"https://allcards.skylords.eu/imgs/blue.png\",\"\"))))","v":"https://allcards.skylords.eu/imgs/blue.png"},"Main","THE GUNS OF LYR","The Guns of Lyr","4 Players",4,"The Guns of Lyr","Les Canons de Lyr","08:43.6","04:20.9","Febuary 2019","Restore the old defenses of Lyr and make a stand at the king's fortress, keeping back a massive Twilight attack.","https://www.youtube.com/watch?v=k8_BHof0JBI","https://drive.google.com/open?id=1wG3WyT_AT4e9ujKJ9nLAqwkjvqsra_xq"]
["THE GUNS OF LYR Support","N",{"$f":"IF(MID(Map[[#This Row],[Orbes]],1,1)=\"S\",\"https://allcards.skylords.eu/imgs/purple.png\",\nIF(MID(Map[[#This Row],[Orbes]],1,1)=\"F\",\"https://allcards.skylords.eu/imgs/red.png\",\nIF(MID(Map[[#This Row],[Orbes]],1,1)=\"N\",\"https://allcards.skylords.eu/imgs/green.png\",\nIF(MID(Map[[#This Row],[Orbes]],1,1)=\"G\",\"https://allcards.skylords.eu/imgs/blue.png\",\"\"))))","v":"https://allcards.skylords.eu/imgs/green.png"},{"$f":"IF(MID(Map[[#This Row],[Orbes]],2,1)=\"S\",\"https://allcards.skylords.eu/imgs/purple.png\",\nIF(MID(Map[[#This Row],[Orbes]],2,1)=\"F\",\"https://allcards.skylords.eu/imgs/red.png\",\nIF(MID(Map[[#This Row],[Orbes]],2,1)=\"N\",\"https://allcards.skylords.eu/imgs/green.png\",\nIF(MID(Map[[#This Row],[Orbes]],2,1)=\"G\",\"https://allcards.skylords.eu/imgs/blue.png\",\"\"))))","v":""},{"$f":"IF(MID(Map[[#This Row],[Orbes]],3,1)=\"S\",\"https://allcards.skylords.eu/imgs/purple.png\",\nIF(MID(Map[[#This Row],[Orbes]],3,1)=\"F\",\"https://allcards.skylords.eu/imgs/red.png\",\nIF(MID(Map[[#This Row],[Orbes]],3,1)=\"N\",\"https://allcards.skylords.eu/imgs/green.png\",\nIF(MID(Map[[#This Row],[Orbes]],3,1)=\"G\",\"https://allcards.skylords.eu/imgs/blue.png\",\"\"))))","v":""},{"$f":"IF(MID(Map[[#This Row],[Orbes]],4,1)=\"S\",\"https://allcards.skylords.eu/imgs/purple.png\",\nIF(MID(Map[[#This Row],[Orbes]],4,1)=\"F\",\"https://allcards.skylords.eu/imgs/red.png\",\nIF(MID(Map[[#This Row],[Orbes]],4,1)=\"N\",\"https://allcards.skylords.eu/imgs/green.png\",\nIF(MID(Map[[#This Row],[Orbes]],4,1)=\"G\",\"https://allcards.skylords.eu/imgs/blue.png\",\"\"))))","v":""},"Support",{"$f":"H39","v":"THE GUNS OF LYR"},{"$f":"I39","v":"The Guns of Lyr"},{"$f":"J39","v":"4 Players"},{"$f":"K39","v":4},{"$f":"L39","v":"The Guns of Lyr"},{"$f":"M39","v":"Les Canons de Lyr"},{"$f":"N39","v":"08:43.6"},{"$f":"O39","v":"04:20.9"},{"$f":"P39","v":"Febuary 2019"},{"$f":"Q39","v":"Restore the old defenses of Lyr and make a stand at the king's fortress, keeping back a massive Twilight attack."},{"$f":"R39","v":"https://www.youtube.com/watch?v=k8_BHof0JBI"},"https://drive.google.com/open?id=1wG3WyT_AT4e9ujKJ9nLAqwkjvqsra_xq"]
["THE INSANE GOD","SSFN",{"$f":"IF(MID(Map[[#This Row],[Orbes]],1,1)=\"S\",\"https://allcards.skylords.eu/imgs/purple.png\",\nIF(MID(Map[[#This Row],[Orbes]],1,1)=\"F\",\"https://allcards.skylords.eu/imgs/red.png\",\nIF(MID(Map[[#This Row],[Orbes]],1,1)=\"N\",\"https://allcards.skylords.eu/imgs/green.png\",\nIF(MID(Map[[#This Row],[Orbes]],1,1)=\"G\",\"https://allcards.skylords.eu/imgs/blue.png\",\"\"))))","v":"https://allcards.skylords.eu/imgs/purple.png"},{"$f":"IF(MID(Map[[#This Row],[Orbes]],2,1)=\"S\",\"https://allcards.skylords.eu/imgs/purple.png\",\nIF(MID(Map[[#This Row],[Orbes]],2,1)=\"F\",\"https://allcards.skylords.eu/imgs/red.png\",\nIF(MID(Map[[#This Row],[Orbes]],2,1)=\"N\",\"https://allcards.skylords.eu/imgs/green.png\",\nIF(MID(Map[[#This Row],[Orbes]],2,1)=\"G\",\"https://allcards.skylords.eu/imgs/blue.png\",\"\"))))","v":"https://allcards.skylords.eu/imgs/purple.png"},{"$f":"IF(MID(Map[[#This Row],[Orbes]],3,1)=\"S\",\"https://allcards.skylords.eu/imgs/purple.png\",\nIF(MID(Map[[#This Row],[Orbes]],3,1)=\"F\",\"https://allcards.skylords.eu/imgs/red.png\",\nIF(MID(Map[[#This Row],[Orbes]],3,1)=\"N\",\"https://allcards.skylords.eu/imgs/green.png\",\nIF(MID(Map[[#This Row],[Orbes]],3,1)=\"G\",\"https://allcards.skylords.eu/imgs/blue.png\",\"\"))))","v":"https://allcards.skylords.eu/imgs/red.png"},{"$f":"IF(MID(Map[[#This Row],[Orbes]],4,1)=\"S\",\"https://allcards.skylords.eu/imgs/purple.png\",\nIF(MID(Map[[#This Row],[Orbes]],4,1)=\"F\",\"https://allcards.skylords.eu/imgs/red.png\",\nIF(MID(Map[[#This Row],[Orbes]],4,1)=\"N\",\"https://allcards.skylords.eu/imgs/green.png\",\nIF(MID(Map[[#This Row],[Orbes]],4,1)=\"G\",\"https://allcards.skylords.eu/imgs/blue.png\",\"\"))))","v":"https://allcards.skylords.eu/imgs/green.png"},"Main","THE INSANE GOD","The Insane God","2 Players",2,"The Insane God","Le Dieu Fou","06:07.3","05:45.1","July 2013","Save the priests of the god of insects from their insane master and unleash ancient guardian spirits to destroy him.","https://www.youtube.com/watch?v=kbGInYdT9tk","https://drive.google.com/open?id=1KByQz-oWPv9A7KX-8EYLX2JmrzVbt8dk"]
["THE INSANE GOD Support","F",{"$f":"IF(MID(Map[[#This Row],[Orbes]],1,1)=\"S\",\"https://allcards.skylords.eu/imgs/purple.png\",\nIF(MID(Map[[#This Row],[Orbes]],1,1)=\"F\",\"https://allcards.skylords.eu/imgs/red.png\",\nIF(MID(Map[[#This Row],[Orbes]],1,1)=\"N\",\"https://allcards.skylords.eu/imgs/green.png\",\nIF(MID(Map[[#This Row],[Orbes]],1,1)=\"G\",\"https://allcards.skylords.eu/imgs/blue.png\",\"\"))))","v":"https://allcards.skylords.eu/imgs/red.png"},{"$f":"IF(MID(Map[[#This Row],[Orbes]],2,1)=\"S\",\"https://allcards.skylords.eu/imgs/purple.png\",\nIF(MID(Map[[#This Row],[Orbes]],2,1)=\"F\",\"https://allcards.skylords.eu/imgs/red.png\",\nIF(MID(Map[[#This Row],[Orbes]],2,1)=\"N\",\"https://allcards.skylords.eu/imgs/green.png\",\nIF(MID(Map[[#This Row],[Orbes]],2,1)=\"G\",\"https://allcards.skylords.eu/imgs/blue.png\",\"\"))))","v":""},{"$f":"IF(MID(Map[[#This Row],[Orbes]],3,1)=\"S\",\"https://allcards.skylords.eu/imgs/purple.png\",\nIF(MID(Map[[#This Row],[Orbes]],3,1)=\"F\",\"https://allcards.skylords.eu/imgs/red.png\",\nIF(MID(Map[[#This Row],[Orbes]],3,1)=\"N\",\"https://allcards.skylords.eu/imgs/green.png\",\nIF(MID(Map[[#This Row],[Orbes]],3,1)=\"G\",\"https://allcards.skylords.eu/imgs/blue.png\",\"\"))))","v":""},{"$f":"IF(MID(Map[[#This Row],[Orbes]],4,1)=\"S\",\"https://allcards.skylords.eu/imgs/purple.png\",\nIF(MID(Map[[#This Row],[Orbes]],4,1)=\"F\",\"https://allcards.skylords.eu/imgs/red.png\",\nIF(MID(Map[[#This Row],[Orbes]],4,1)=\"N\",\"https://allcards.skylords.eu/imgs/green.png\",\nIF(MID(Map[[#This Row],[Orbes]],4,1)=\"G\",\"https://allcards.skylords.eu/imgs/blue.png\",\"\"))))","v":""},"Support",{"$f":"H41","v":"THE INSANE GOD"},{"$f":"I41","v":"The Insane God"},{"$f":"J41","v":"2 Players"},{"$f":"K41","v":2},{"$f":"L41","v":"The Insane God"},{"$f":"M41","v":"Le Dieu Fou"},{"$f":"N41","v":"06:07.3"},{"$f":"O41","v":"05:45.1"},{"$f":"P41","v":"July 2013"},{"$f":"Q41","v":"Save the priests of the god of insects from their insane master and unleash ancient guardian spirits to destroy him."},{"$f":"R41","v":"https://www.youtube.com/watch?v=kbGInYdT9tk"},"https://drive.google.com/open?id=1KByQz-oWPv9A7KX-8EYLX2JmrzVbt8dk"]
["THE SOULTREE","FSGF",{"$f":"IF(MID(Map[[#This Row],[Orbes]],1,1)=\"S\",\"https://allcards.skylords.eu/imgs/purple.png\",\nIF(MID(Map[[#This Row],[Orbes]],1,1)=\"F\",\"https://allcards.skylords.eu/imgs/red.png\",\nIF(MID(Map[[#This Row],[Orbes]],1,1)=\"N\",\"https://allcards.skylords.eu/imgs/green.png\",\nIF(MID(Map[[#This Row],[Orbes]],1,1)=\"G\",\"https://allcards.skylords.eu/imgs/blue.png\",\"\"))))","v":"https://allcards.skylords.eu/imgs/red.png"},{"$f":"IF(MID(Map[[#This Row],[Orbes]],2,1)=\"S\",\"https://allcards.skylords.eu/imgs/purple.png\",\nIF(MID(Map[[#This Row],[Orbes]],2,1)=\"F\",\"https://allcards.skylords.eu/imgs/red.png\",\nIF(MID(Map[[#This Row],[Orbes]],2,1)=\"N\",\"https://allcards.skylords.eu/imgs/green.png\",\nIF(MID(Map[[#This Row],[Orbes]],2,1)=\"G\",\"https://allcards.skylords.eu/imgs/blue.png\",\"\"))))","v":"https://allcards.skylords.eu/imgs/purple.png"},{"$f":"IF(MID(Map[[#This Row],[Orbes]],3,1)=\"S\",\"https://allcards.skylords.eu/imgs/purple.png\",\nIF(MID(Map[[#This Row],[Orbes]],3,1)=\"F\",\"https://allcards.skylords.eu/imgs/red.png\",\nIF(MID(Map[[#This Row],[Orbes]],3,1)=\"N\",\"https://allcards.skylords.eu/imgs/green.png\",\nIF(MID(Map[[#This Row],[Orbes]],3,1)=\"G\",\"https://allcards.skylords.eu/imgs/blue.png\",\"\"))))","v":"https://allcards.skylords.eu/imgs/blue.png"},{"$f":"IF(MID(Map[[#This Row],[Orbes]],4,1)=\"S\",\"https://allcards.skylords.eu/imgs/purple.png\",\nIF(MID(Map[[#This Row],[Orbes]],4,1)=\"F\",\"https://allcards.skylords.eu/imgs/red.png\",\nIF(MID(Map[[#This Row],[Orbes]],4,1)=\"N\",\"https://allcards.skylords.eu/imgs/green.png\",\nIF(MID(Map[[#This Row],[Orbes]],4,1)=\"G\",\"https://allcards.skylords.eu/imgs/blue.png\",\"\"))))","v":"https://allcards.skylords.eu/imgs/red.png"},"Main","THE SOULTREE","The Soultree","1 Player",1,"The Soultree","L'Arbre des Âmes","11:01.8","09:30.7","March 2019","Viridya’s quest for the cure to the Twilight has reached its final stage as Skylords and Twilight clash in the fight over an ancient and dangerous artifact.","https://www.youtube.com/watch?v=zKRIEuYuXzM","https://drive.google.com/open?id=1R4lRjE3n-3EDlDOlEwuO0UeHnL4f2Vaf"]
["THE TREASURE FLEET","NGSS",{"$f":"IF(MID(Map[[#This Row],[Orbes]],1,1)=\"S\",\"https://allcards.skylords.eu/imgs/purple.png\",\nIF(MID(Map[[#This Row],[Orbes]],1,1)=\"F\",\"https://allcards.skylords.eu/imgs/red.png\",\nIF(MID(Map[[#This Row],[Orbes]],1,1)=\"N\",\"https://allcards.skylords.eu/imgs/green.png\",\nIF(MID(Map[[#This Row],[Orbes]],1,1)=\"G\",\"https://allcards.skylords.eu/imgs/blue.png\",\"\"))))","v":"https://allcards.skylords.eu/imgs/green.png"},{"$f":"IF(MID(Map[[#This Row],[Orbes]],2,1)=\"S\",\"https://allcards.skylords.eu/imgs/purple.png\",\nIF(MID(Map[[#This Row],[Orbes]],2,1)=\"F\",\"https://allcards.skylords.eu/imgs/red.png\",\nIF(MID(Map[[#This Row],[Orbes]],2,1)=\"N\",\"https://allcards.skylords.eu/imgs/green.png\",\nIF(MID(Map[[#This Row],[Orbes]],2,1)=\"G\",\"https://allcards.skylords.eu/imgs/blue.png\",\"\"))))","v":"https://allcards.skylords.eu/imgs/blue.png"},{"$f":"IF(MID(Map[[#This Row],[Orbes]],3,1)=\"S\",\"https://allcards.skylords.eu/imgs/purple.png\",\nIF(MID(Map[[#This Row],[Orbes]],3,1)=\"F\",\"https://allcards.skylords.eu/imgs/red.png\",\nIF(MID(Map[[#This Row],[Orbes]],3,1)=\"N\",\"https://allcards.skylords.eu/imgs/green.png\",\nIF(MID(Map[[#This Row],[Orbes]],3,1)=\"G\",\"https://allcards.skylords.eu/imgs/blue.png\",\"\"))))","v":"https://allcards.skylords.eu/imgs/purple.png"},{"$f":"IF(MID(Map[[#This Row],[Orbes]],4,1)=\"S\",\"https://allcards.skylords.eu/imgs/purple.png\",\nIF(MID(Map[[#This Row],[Orbes]],4,1)=\"F\",\"https://allcards.skylords.eu/imgs/red.png\",\nIF(MID(Map[[#This Row],[Orbes]],4,1)=\"N\",\"https://allcards.skylords.eu/imgs/green.png\",\nIF(MID(Map[[#This Row],[Orbes]],4,1)=\"G\",\"https://allcards.skylords.eu/imgs/blue.png\",\"\"))))","v":"https://allcards.skylords.eu/imgs/purple.png"},"Main","THE TREASURE FLEET","The Treasure Fleet","1 Player",1,"The Treasure Fleet","Le transport du Trésor","00:00.0","15:25.3","October 2013","There is a prize that will buy peace for the humans. It only needs to reach its destination ...","https://www.youtube.com/watch?v=vb4hYo-Wm9E"]
["TITANS","SSNN",{"$f":"IF(MID(Map[[#This Row],[Orbes]],1,1)=\"S\",\"https://allcards.skylords.eu/imgs/purple.png\",\nIF(MID(Map[[#This Row],[Orbes]],1,1)=\"F\",\"https://allcards.skylords.eu/imgs/red.png\",\nIF(MID(Map[[#This Row],[Orbes]],1,1)=\"N\",\"https://allcards.skylords.eu/imgs/green.png\",\nIF(MID(Map[[#This Row],[Orbes]],1,1)=\"G\",\"https://allcards.skylords.eu/imgs/blue.png\",\"\"))))","v":"https://allcards.skylords.eu/imgs/purple.png"},{"$f":"IF(MID(Map[[#This Row],[Orbes]],2,1)=\"S\",\"https://allcards.skylords.eu/imgs/purple.png\",\nIF(MID(Map[[#This Row],[Orbes]],2,1)=\"F\",\"https://allcards.skylords.eu/imgs/red.png\",\nIF(MID(Map[[#This Row],[Orbes]],2,1)=\"N\",\"https://allcards.skylords.eu/imgs/green.png\",\nIF(MID(Map[[#This Row],[Orbes]],2,1)=\"G\",\"https://allcards.skylords.eu/imgs/blue.png\",\"\"))))","v":"https://allcards.skylords.eu/imgs/purple.png"},{"$f":"IF(MID(Map[[#This Row],[Orbes]],3,1)=\"S\",\"https://allcards.skylords.eu/imgs/purple.png\",\nIF(MID(Map[[#This Row],[Orbes]],3,1)=\"F\",\"https://allcards.skylords.eu/imgs/red.png\",\nIF(MID(Map[[#This Row],[Orbes]],3,1)=\"N\",\"https://allcards.skylords.eu/imgs/green.png\",\nIF(MID(Map[[#This Row],[Orbes]],3,1)=\"G\",\"https://allcards.skylords.eu/imgs/blue.png\",\"\"))))","v":"https://allcards.skylords.eu/imgs/green.png"},{"$f":"IF(MID(Map[[#This Row],[Orbes]],4,1)=\"S\",\"https://allcards.skylords.eu/imgs/purple.png\",\nIF(MID(Map[[#This Row],[Orbes]],4,1)=\"F\",\"https://allcards.skylords.eu/imgs/red.png\",\nIF(MID(Map[[#This Row],[Orbes]],4,1)=\"N\",\"https://allcards.skylords.eu/imgs/green.png\",\nIF(MID(Map[[#This Row],[Orbes]],4,1)=\"G\",\"https://allcards.skylords.eu/imgs/blue.png\",\"\"))))","v":"https://allcards.skylords.eu/imgs/green.png"},"Main","TITANS","Titans","4 Players",4,"Titans","Les Titans","16:08.2","16:07.6","Many players","A goddess of nature and a titan of fire clash near Lyr while Rogan lures the king of the giants there to decide the battle.","https://www.youtube.com/watch?v=yaCIwuObrr8","https://drive.google.com/open?id=1h0SiIcOIaZdUm47sQF1bOWHhvGt4w2Al"]
["TITANS Support","FSS",{"$f":"IF(MID(Map[[#This Row],[Orbes]],1,1)=\"S\",\"https://allcards.skylords.eu/imgs/purple.png\",\nIF(MID(Map[[#This Row],[Orbes]],1,1)=\"F\",\"https://allcards.skylords.eu/imgs/red.png\",\nIF(MID(Map[[#This Row],[Orbes]],1,1)=\"N\",\"https://allcards.skylords.eu/imgs/green.png\",\nIF(MID(Map[[#This Row],[Orbes]],1,1)=\"G\",\"https://allcards.skylords.eu/imgs/blue.png\",\"\"))))","v":"https://allcards.skylords.eu/imgs/red.png"},{"$f":"IF(MID(Map[[#This Row],[Orbes]],2,1)=\"S\",\"https://allcards.skylords.eu/imgs/purple.png\",\nIF(MID(Map[[#This Row],[Orbes]],2,1)=\"F\",\"https://allcards.skylords.eu/imgs/red.png\",\nIF(MID(Map[[#This Row],[Orbes]],2,1)=\"N\",\"https://allcards.skylords.eu/imgs/green.png\",\nIF(MID(Map[[#This Row],[Orbes]],2,1)=\"G\",\"https://allcards.skylords.eu/imgs/blue.png\",\"\"))))","v":"https://allcards.skylords.eu/imgs/purple.png"},{"$f":"IF(MID(Map[[#This Row],[Orbes]],3,1)=\"S\",\"https://allcards.skylords.eu/imgs/purple.png\",\nIF(MID(Map[[#This Row],[Orbes]],3,1)=\"F\",\"https://allcards.skylords.eu/imgs/red.png\",\nIF(MID(Map[[#This Row],[Orbes]],3,1)=\"N\",\"https://allcards.skylords.eu/imgs/green.png\",\nIF(MID(Map[[#This Row],[Orbes]],3,1)=\"G\",\"https://allcards.skylords.eu/imgs/blue.png\",\"\"))))","v":"https://allcards.skylords.eu/imgs/purple.png"},{"$f":"IF(MID(Map[[#This Row],[Orbes]],4,1)=\"S\",\"https://allcards.skylords.eu/imgs/purple.png\",\nIF(MID(Map[[#This Row],[Orbes]],4,1)=\"F\",\"https://allcards.skylords.eu/imgs/red.png\",\nIF(MID(Map[[#This Row],[Orbes]],4,1)=\"N\",\"https://allcards.skylords.eu/imgs/green.png\",\nIF(MID(Map[[#This Row],[Orbes]],4,1)=\"G\",\"https://allcards.skylords.eu/imgs/blue.png\",\"\"))))","v":""},"Support",{"$f":"H45","v":"TITANS"},{"$f":"I45","v":"Titans"},{"$f":"J45","v":"4 Players"},{"$f":"K45","v":4},{"$f":"L45","v":"Titans"},{"$f":"M45","v":"Les Titans"},{"$f":"N45","v":"16:08.2"},{"$f":"O45","v":"16:07.6"},{"$f":"P45","v":"Many players"},{"$f":"Q45","v":"A goddess of nature and a titan of fire clash near Lyr while Rogan lures the king of the giants there to decide the battle."},{"$f":"R45","v":"https://www.youtube.com/watch?v=yaCIwuObrr8"},"https://drive.google.com/open?id=1h0SiIcOIaZdUm47sQF1bOWHhvGt4w2Al"]

{"sheet":"Matchups","index":2,"n_rows":14,"n_cols":16,"rows_kept":14,"cut":false,"hidden":false,"merged":[]}
["Deck","Ranking","Fond","Pure Shadow","Pure Fire","Shadow/Frost","Frost/Nature","Nature/Frost","Fire/Nature","Pure Frost","Shadow/Nature","Fire/Frost","Frost/Fire","Pure Nature","Shadow/Fire","Fire/Shadow"]
["Pure Shadow",13,"Shadow Worm","=","=","=","+","+","-","+","+","+","+","+","+","+"]
["Pure Fire",12,"Fire Dragon","=","=","+","=","=","=","-","+","-","-","+","=","="]
["Shadow/Frost",11,"Shadow","=","-","=","=","=","+","=","=","+","+","=","+","+"]
["Frost/Nature",10,"Construct","-","=","=","=","=","+","=","=","=","=","=","+","+"]
["Nature/Frost",9,"Razorleaf","-","=","=","=","=","+","=","=","=","=","=","+","+"]
["Fire/Nature",8,"SpitFire","+","=","-","-","-","=","-","+","=","=","+","+","+"]
["Pure Frost",7,"Frost Mage","-","+","=","=","=","+","=","-","+","+","=","=","="]
["Shadow/Nature",6,"Revenge","-","-","=","=","=","-","+","=","+","+","+","+","+"]
["Fire/Frost",5,"Lyrish Knight","-","+","-","=","=","=","-","-","=","=","-","+","+"]
["Frost/Fire",4,"Ice Shield","-","+","-","=","=","=","-","-","=","=","-","+","+"]
["Pure Nature",3,"Shaman","-","-","=","=","=","-","=","-","+","+","=","=","="]
["Shadow/Fire",2,"Fallen Skyelf","-","=","-","-","-","-","=","-","-","-","=","=","="]
["Fire/Shadow",1,"Rage Claws","-","=","-","-","-","-","=","-","-","-","=","=","="]

{"sheet":"Fonds","index":3,"n_rows":41,"n_cols":3,"rows_kept":41,"cut":false,"hidden":false,"merged":[]}
["Fond","URL","URL Minimap"]
["Construct","http://drive.google.com/uc?export=view&id=1UudfHShV5x4ixVJWbW6gJVhQxvb0E7e1"]
["Fallen Skyelf","http://drive.google.com/uc?export=view&id=1NMU31wp-Dl4RpGpFfQxOwwNjvcA3RhMT"]
["Fire Dragon","http://drive.google.com/uc?export=view&id=1YuoRdCA38bosQPh776ZxcBJW2Rcfb59A"]
["Frost Mage","http://drive.google.com/uc?export=view&id=1juWsujAklNLw60N2eskUVCph3GbPlJ9o"]
["Ice Shield","http://drive.google.com/uc?export=view&id=182uBEhROEAq-KvdW_Wv1djmkCRicrHsJ"]
["Lyrish Knight","http://drive.google.com/uc?export=view&id=1XfJAXhS6U2x4Vlf7VfCnk6GO_vjB0kaS"]
["Rage Claws","http://drive.google.com/uc?export=view&id=1L6I10n8kwnhx12nghly8n2leLGc5PQ7R"]
["Razorleaf","http://drive.google.com/uc?export=view&id=1Po4TV0IQA1EgaOO8Q13Gw2-qMPH7Ywi6"]
["Revenge","http://drive.google.com/uc?export=view&id=1DLtjm-_Up1q34fidUp0sPhkw6XOe4ihm"]
["Shadow","http://drive.google.com/uc?export=view&id=12aNyNNTbDAnBW3yFwAy9ifetwW9tk9dt"]
["Shadow Worm","http://drive.google.com/uc?export=view&id=1-2pbqeGrSSioJ83iRvHJDUQoy3vZjMv2"]
["Shaman","http://drive.google.com/uc?export=view&id=1lD20RN9ojroWaYrStIezSYJ0AOWtmCcH"]
["SpitFire","http://drive.google.com/uc?export=view&id=1gUoMxsTX2amZrwRYuOWrGm4gdpO6F63I"]
["Ascension","https://cardbase.skylords.eu/lrms/GetMediaData?id=57bf0d741f73e8495573141d","https://cardbase.skylords.eu/lrms/GetMediaData?id=57be0c421f73e855a1af639e"]
["Bad Harvest","https://cardbase.skylords.eu/lrms/GetMediaData?id=57bf0cc51f73e84955731418","https://cardbase.skylords.eu/lrms/GetMediaData?id=57be0cda1f73e855a1af639f"]
["Behind Enemy Lines","https://cardbase.skylords.eu/lrms/GetMediaData?id=57bf0e3e1f73e84955731423","https://cardbase.skylords.eu/lrms/GetMediaData?id=57beee631f73e84955731401"]
["Blight","https://cardbase.skylords.eu/lrms/GetMediaData?id=57bf0e7d1f73e84955731425","https://cardbase.skylords.eu/lrms/GetMediaData?id=57bf0c0a1f73e84955731415"]
["Convoy","https://cardbase.skylords.eu/lrms/GetMediaData?id=57bf0eaf1f73e84955731427","https://cardbase.skylords.eu/lrms/GetMediaData?id=57bf0bb51f73e84955731413"]
["Crusade","https://cardbase.skylords.eu/lrms/GetMediaData?id=57bf0cf71f73e84955731419","https://cardbase.skylords.eu/lrms/GetMediaData?id=57bef0781f73e84955731404"]
["Defending Hope","https://cardbase.skylords.eu/lrms/GetMediaData?id=57bf0d271f73e8495573141b","https://cardbase.skylords.eu/lrms/GetMediaData?id=57beef7f1f73e84955731403"]
["Empire","https://cardbase.skylords.eu/lrms/GetMediaData?id=57bf0dd11f73e84955731421","https://cardbase.skylords.eu/lrms/GetMediaData?id=57bf0c491f73e84955731417"]
["Encounters with Twilight","https://cardbase.skylords.eu/lrms/GetMediaData?id=57bf0d0d1f73e8495573141a","https://cardbase.skylords.eu/lrms/GetMediaData?id=57beef561f73e84955731402"]
["Introduction","https://cardbase.skylords.eu/lrms/GetMediaData?id=57bf0cf71f73e84955731419","https://cardbase.skylords.eu/lrms/GetMediaData?id=57beed621f73e84955731400"]
["King of the Giants","https://cardbase.skylords.eu/lrms/GetMediaData?id=57bf0d9f1f73e8495573141f","https://cardbase.skylords.eu/lrms/GetMediaData?id=57bef5d71f73e8495573140a"]
["Mo","https://cardbase.skylords.eu/lrms/GetMediaData?id=57bf0e961f73e84955731426","https://cardbase.skylords.eu/lrms/GetMediaData?id=57bf07031f73e84955731410"]
["Nightmare Shard","https://cardbase.skylords.eu/lrms/GetMediaData?id=57bf0cf71f73e84955731419","https://cardbase.skylords.eu/lrms/GetMediaData?id=57bef3ec1f73e84955731407"]
["Nightmare's End","https://cardbase.skylords.eu/lrms/GetMediaData?id=57bf0cf71f73e84955731419","https://cardbase.skylords.eu/lrms/GetMediaData?id=57bef46b1f73e84955731408"]
["Ocean","https://cardbase.skylords.eu/lrms/GetMediaData?id=57bf0ed21f73e84955731428","https://cardbase.skylords.eu/lrms/GetMediaData?id=57bf07211f73e84955731411"]
["Oracle","https://cardbase.skylords.eu/lrms/GetMediaData?id=57bf0e651f73e84955731424","https://cardbase.skylords.eu/lrms/GetMediaData?id=57bf081f1f73e84955731412"]
["Passage to Darkness","https://cardbase.skylords.eu/lrms/GetMediaData?id=57bf0dd11f73e84955731421","https://cardbase.skylords.eu/lrms/GetMediaData?id=57bf06ba1f73e8495573140f"]
["Raven's End","https://cardbase.skylords.eu/lrms/GetMediaData?id=57bf0ee91f73e84955731429","https://cardbase.skylords.eu/lrms/GetMediaData?id=57bf0c311f73e84955731416"]
["Siege of Hope","https://cardbase.skylords.eu/lrms/GetMediaData?id=57bf0d271f73e8495573141b","https://cardbase.skylords.eu/lrms/GetMediaData?id=57beed351f73e849557313ff"]
["Slave Master","https://cardbase.skylords.eu/lrms/GetMediaData?id=57bf0eaf1f73e84955731427","https://cardbase.skylords.eu/lrms/GetMediaData?id=57bf0be51f73e84955731414"]
["Sunbridge","https://cardbase.skylords.eu/lrms/GetMediaData?id=57bf0d8a1f73e8495573141e","https://cardbase.skylords.eu/lrms/GetMediaData?id=57bef1a41f73e84955731405"]
["The Dwarven Riddle","https://cardbase.skylords.eu/lrms/GetMediaData?id=57bf0e2c1f73e84955731422","https://cardbase.skylords.eu/lrms/GetMediaData?id=57bef4e21f73e84955731409"]
["The Guns of Lyr","https://cardbase.skylords.eu/lrms/GetMediaData?id=57bf0e2c1f73e84955731422","https://cardbase.skylords.eu/lrms/GetMediaData?id=57bf06891f73e8495573140e"]
["The Insane God","https://cardbase.skylords.eu/lrms/GetMediaData?id=57bf0e3e1f73e84955731423","https://cardbase.skylords.eu/lrms/GetMediaData?id=57bef32d1f73e84955731406"]
["The Soultree","https://cardbase.skylords.eu/lrms/GetMediaData?id=57bf0d5a1f73e8495573141c","https://cardbase.skylords.eu/lrms/GetMediaData?id=57bf06231f73e8495573140d"]
["The Treasure Fleet","https://cardbase.skylords.eu/lrms/GetMediaData?id=57bf0cc51f73e84955731418","https://cardbase.skylords.eu/lrms/GetMediaData?id=57bf05ef1f73e8495573140c"]
["Titans","https://cardbase.skylords.eu/lrms/GetMediaData?id=57bf0db71f73e84955731420","https://cardbase.skylords.eu/lrms/GetMediaData?id=57bef6781f73e8495573140b"]